Workbook

Sheet Brazil
D2: 2001 | E2: 2002 | F2: 2003 | G2: 2004 | H2: 2005 | I2: 2006 | J2: 2007 | K2: 2008 | L2: 2009 | M2: 2010 | N2: 2011 | O2: 2012 | P2: 2013 | Q2: 2014 | R2: 2015 | S2: 2016 | T2: 2017 | U2: 2018 | V2: 2019 | W2: 2020 | X2: 2021 | Y2: 2022 | Z2: 2023 | AA2: 2024 | AB2: 2025 | AC2: 2026F | AD2: 2027F | AE2: 2028F
C3: World | D3: 2001-12-01 | E3: 2002-12-01 | F3: 2003-12-01 | G3: 2004-12-01 | H3: 2005-12-01 | I3: 2006-12-01 | J3: 2007-12-01 | K3: 2008-12-01 | L3: 2009-12-01 | M3: 2010-12-01 | N3: 2011-12-01 | O3: 2012-12-01 | P3: 2013-12-01 | Q3: 2014-12-01 | R3: 2015-12-01 | S3: 2016-12-01 | T3: 2017-12-01 | U3: 2018-12-01 | V3: 2019-12-01 | W3: 2020-12-01 | X3: 2021-12-01 | Y3: 2022-12-01 | Z3: 2023-12-01 | AA3: 2024-12-01 | AB3: 2025-12-01 | AC3: 2026-12-01 | AD3: 2027-12-01 | AE3: 2028-12-01
C4: Economic Activity
C5: World – Real GDP growth* | D5: 0.02482 | E5: 0.02991 | F5: 0.04283 | G5: 0.05386 | H5: 0.04894 | I5: 0.05467 | J5: 0.05574 | K5: 0.03037 | L5: -0.0011 | M5: 0.05385 | N5: 0.04282 | O5: 0.03513 | P5: 0.03491 | Q5: 0.0358 | R5: 0.03451 | S5: 0.03268 | T5: 0.038 | U5: 0.036 | V5: 0.028 | W5: -0.028 | X5: 0.063 | Y5: 0.035 | Z5: 0.032 | AA5: 0.032 | AB5: 0.033 | AC5: 0.034 | AD5: 0.034 | AE5: 0.032
C6: USA – Real GDP growth | D6: 0.009555902384 | E6: 0.01700548813 | F6: 0.02795608283 | G6: 0.03848144489 | H6: 0.0348354024 | I6: 0.02783962972 | J6: 0.02003882408 | K6: 0.001139454971 | L6: -0.02576646903 | M6: 0.02695561224 | N6: 0.01564044837 | O6: 0.02289413807 | P6: 0.02117779256 | Q6: 0.02523551274 | R6: 0.02945508907 | S6: 0.01819719569 | T6: 0.02457461981 | U6: 0.02966535965 | V6: 0.02583948618 | W6: -0.02081513055 | X6: 0.06151987971 | Y6: 0.02524103212 | Z6: 0.029344217 | AA6: 0.02793119078 | AB6: 0.02117439551 | AC6: 0.02551359436 | AD6: 0.02237573063 | AE6: 0.02164631594
C7: Eurozone – Real GDP growth | D7: 0.02156657103 | E7: 0.009296968408 | F7: 0.00740157993 | G7: 0.02041681829 | H7: 0.01895532358 | I7: 0.03426651999 | J7: 0.02976727619 | K7: 0.003096488963 | L7: -0.04424205327 | M7: 0.01986958158 | N7: 0.01783060408 | O7: -0.009047424272 | P7: -0.001204353342 | Q7: 0.01458190115 | R7: 0.02007289382 | S7: 0.0175603731 | T7: 0.02769942334 | U7: 0.01748151411 | V7: 0.01641258681 | W7: -0.06162231516 | X7: 0.06349297611 | Y7: 0.0370347965 | Z7: 0.005460370904 | AA7: 0.008592182261 | AB7: 0.0146666425 | AC7: 0.009351836962 | AD7: 0.01155110584 | AE7: 0.012
C8: China – Real GDP growth | D8: 0.08368468789 | E8: 0.09185288233 | F8: 0.101147043 | G8: 0.1014321142 | H8: 0.1136402539 | I8: 0.1262411017 | J8: 0.1410822677 | K8: 0.09736780858 | L8: 0.09313387937 | M8: 0.1066074119 | N8: 0.09279953609 | O8: 0.07821024961 | P8: 0.07814929206 | Q8: 0.07447580667 | R8: 0.07184851062 | S8: 0.06868678172 | T8: 0.06895583775 | U8: 0.06866628413 | V8: 0.06157624036 | W8: 0.01976562504 | X8: 0.07735009105 | Y8: 0.03 | Z8: 0.05359561901 | AA8: 0.05042641055 | AB8: 0.05037840717 | AC8: 0.04706176089 | AD8: 0.04498526655 | AE8: 0.04498526655
D9: 0 | E9: 0 | F9: 0 | G9: 0 | H9: 0 | I9: 0 | J9: 0 | K9: 0 | L9: 0 | M9: 0 | N9: 0 | O9: 0 | P9: 0 | Q9: 0 | R9: 0 | S9: 0 | T9: 0 | U9: 0 | V9: 0 | W9: 0 | X9: 0 | Y9: 0 | Z9: 0 | AA9: 0 | AB9: 0 | AC9: 0 | AD9: 0 | AE9: 0
C10: Inflation
C11: USA – CPI | D11: 0.01603665521 | E11: 0.02480270575 | F11: 0.0203520352 | G11: 0.03342318059 | H11: 0.03338549817 | I11: 0.02523977789 | J11: 0.04108813392 | K11: -0.0002222800255 | L11: 0.02814123123 | M11: 0.01437793022 | N11: 0.03062066838 | O11: 0.0175950498 | P11: 0.01512838367 | Q11: 0.00653121392 | R11: 0.006387247515 | S11: 0.02050798912 | T11: 0.0212993072 | U11: 0.02002380904 | V11: 0.0231952747 | W11: 0.01320419132 | X11: 0.07159457345 | Y11: 0.06410831677 | Z11: 0.03322200209 | AA11: 0.02872366269 | AB11: 0.02653312469 | AC11: 0.03468608313 | AD11: 0.03043133173 | AE11: 0.02748853167
C12: USA – Core CPI | D12: 0.02782324059 | E12: 0.01963906582 | F12: 0.01093180635 | G12: 0.02265705458 | H12: 0.02114803625 | I12: 0.02613412229 | J12: 0.02435367612 | K12: 0.01762459656 | L12: 0.01823671776 | M12: 0.006618948665 | N12: 0.02276662634 | O12: 0.01899694378 | P12: 0.01740856619 | Q12: 0.01622419505 | R12: 0.02071507279 | S12: 0.02197123661 | T12: 0.01770166453 | U12: 0.02248529551 | V12: 0.02290598816 | W12: 0.01624313961 | X12: 0.05504159561 | Y12: 0.05684013449 | Z12: 0.03913639184 | AA12: 0.03213613 | AB12: 0.02648965654 | AC12: 0.03154531223 | AD12: 0.03465775992 | AE12: 0.03059806365
C13: Eurozone – CPI | D13: 0.020489095 | E13: 0.022776339 | F13: 0.019736148 | G13: 0.023597599 | H13: 0.022244692 | I13: 0.019188922 | J13: 0.030667702 | K13: 0.015819209 | L13: 0.009269559 | M13: 0.02213446 | N13: 0.027495732 | O13: 0.0222 | P13: 0.0085 | Q13: -0.001698132055 | R13: 0.002301380828 | S13: 0.01138065289 | T13: 0.01352285066 | U13: 0.016 | V13: 0.013 | W13: -0.003 | X13: 0.05 | Y13: 0.092 | Z13: 0.029 | AA13: 0.024 | AB13: 0.02 | AC13: 0.02 | AD13: 0.02 | AE13: 0.02
C14: Brazil
C15: Economic Activity
C16: Nominal GDP – BRL Bil. | D16: 1315.756 | E16: 1488.788 | F16: 1717.951 | G16: 1957.75 | H16: 2170.584 | I16: 2409.45 | J16: 2720.263 | K16: 3109.803 | L16: 3333.039 | M16: 3885.847 | N16: 4376.382 | O16: 4814.76 | P16: 5331.619 | Q16: 5778.953 | R16: 5995.787 | S16: 6269.327 | T16: 6585.479 | U16: 7004.141 | V16: 7389.131 | W16: 7609.597 | X16: 9012.142 | Y16: 10079.676 | Z16: 10943.344 | AA16: 11779.251 | AB16: 12738.566 | AC16: 13440.98715 | AD16: 14264.36695 | AE16: 15140.29468
C17: Nominal GDP – USD Bil. | D17: 559.7098622 | E17: 509.5626952 | F17: 558.3090963 | G17: 669.0590607 | H17: 891.3714681 | I17: 1107.768673 | J17: 1396.999175 | K17: 1693.768991 | L17: 1667.050308 | M17: 2207.577504 | N17: 2612.424225 | O17: 2463.043833 | P17: 2468.363641 | Q17: 2454.759117 | R17: 1800.06815 | S17: 1798.090435 | T17: 2063.276198 | U17: 1915.863361 | V17: 1872.491162 | W17: 1474.592358 | X17: 1670.180708 | Y17: 1951.452698 | Z17: 2192.249474 | AA17: 2185.573849 | AB17: 2278.446827 | AC17: 2534.343178 | AD17: 2589.59763 | AE17: 2691.884638
C18: Real GDP growth | D18: 0.01389888653 | E18: 0.03053460503 | F18: 0.01140838373 | G18: 0.05759956637 | H18: 0.03202168316 | I18: 0.03961956023 | J18: 0.06069895103 | K18: 0.05094177083 | L18: -0.001258141298 | M18: 0.0752824912 | N18: 0.03974402662 | O18: 0.01921181494 | P18: 0.03004826946 | Q18: 0.00503934595 | R18: -0.03545755284 | S18: -0.0327591305 | T18: 0.01322868384 | U18: 0.01783672177 | V18: 0.01220761868 | W18: -0.0327675065 | X18: 0.04762598948 | Y18: 0.03016717901 | Z18: 0.03241651798 | AA18: 0.03419315468 | AB18: 0.02285741113 | AC18: 0.01850431206 | AD18: 0.0167823068 | AE18: 0.01577852974
C19: Unemployment Rate - year avg | D19: 0 | E19: 0 | F19: 0 | G19: 0 | H19: 0 | I19: 0 | J19: 0 | K19: 0 | L19: 0 | M19: 0 | N19: 0 | O19: 0.07395058178 | P19: 0.07198932489 | Q19: 0.06886364336 | R19: 0.08623491781 | S19: 0.1162186213 | T19: 0.1283235388 | U19: 0.123710624 | V19: 0.1198648758 | W19: 0.137458208 | X19: 0.1323742387 | Y19: 0.09268728384 | Z19: 0.07975696604 | AA19: 0.06829512481 | AB19: 0.05851109124 | AC19: 0.05548694865 | AD19: 0.05896448199 | AE19: 0.06183319811
C20: Unemployment Rate - year end | D20: 0 | E20: 0 | F20: 0 | G20: 0 | H20: 0 | I20: 0 | J20: 0 | K20: 0 | L20: 0 | M20: 0 | N20: 0 | O20: 0.07498542906 | P20: 0.06847002867 | Q20: 0.07181438579 | R20: 0.09689539451 | S20: 0.1277070584 | T20: 0.1252474462 | U20: 0.123394102 | V20: 0.1169701412 | W20: 0.1481095863 | X20: 0.1168488165 | Y20: 0.08382884487 | Z20: 0.0778504265 | AA20: 0.06491653524 | AB20: 0.05390555299 | AC20: 0.05702603974 | AD20: 0.05999546633 | AE20: 0.06326603974
C21: Inflation
C22: IPCA | D22: 0.07673436414 | E22: 0.1253027336 | F22: 0.093005128 | G22: 0.07599495849 | H22: 0.05689226819 | I22: 0.03141516132 | J22: 0.04457658553 | K22: 0.05902724391 | L22: 0.04311650063 | M22: 0.05908688722 | N22: 0.06503352744 | O22: 0.05838594718 | P22: 0.05910683255 | Q22: 0.06407470796 | R22: 0.1067302813 | S22: 0.06287988213 | T22: 0.0294742132 | U22: 0.0374558117 | V22: 0.04306151617 | W22: 0.04517456886 | X22: 0.1006098274 | Y22: 0.05785092908 | Z22: 0.04621190005 | AA22: 0.04831196748 | AB22: 0.04264347581 | AC22: 0.0450110694 | AD22: 0.04077414652 | AE22: 0.04
C23: INPC | D23: 0.09441028789 | E23: 0.1473991913 | F23: 0.1038395787 | G23: 0.06132793795 | H23: 0.05046764681 | I23: 0.02813086463 | J23: 0.0515534145 | K23: 0.06480961192 | L23: 0.04113797473 | M23: 0.06465213882 | N23: 0.06080187764 | O23: 0.06197348975 | P23: 0.05562748481 | Q23: 0.06228373702 | R23: 0.1127607123 | S23: 0.06579949307 | T23: 0.02067284923 | U23: 0.03433724905 | V23: 0.04481526357 | W23: 0.05447315885 | X23: 0.1016024821 | Y23: 0.05932464431 | Z23: 0.0370693008 | AA23: 0.04776205699 | AB23: 0.03870605616 | AC23: 0.04344931793 | AD23: 0.04077414652 | AE23: 0.04
C24: IGP-M | D24: 0.1038467627 | E24: 0.2530682864 | F24: 0.08708332872 | G24: 0.1241276256 | H24: 0.0120874307 | I24: 0.03831573166 | J24: 0.07754382737 | K24: 0.09807505036 | L24: -0.01719249226 | M24: 0.1132314295 | N24: 0.05096813021 | O24: 0.07818244825 | P24: 0.05510610443 | Q24: 0.0368575515 | R24: 0.1053916695 | S24: 0.07172908253 | T24: -0.005209404449 | U24: 0.07536873403 | V24: 0.07303930646 | W24: 0.2313835113 | X24: 0.1778321234 | Y24: 0.05451285573 | Z24: -0.03175827972 | AA24: 0.06535658428 | AB24: -0.01060851118 | AC24: 0.04847691491 | AD24: 0.03718730121 | AE24: 0.04
C25: IPA-M (wholesale prices) | D25: 0.1188320976 | E25: 0.3364397324 | F25: 0.07647820341 | G25: 0.1509003846 | H25: -0.009562576903 | I25: 0.04399660632 | J25: 0.09192084433 | K25: 0.1084144037 | L25: -0.04424421849 | M25: 0.138984373 | N25: 0.04344526085 | O25: 0.0863339315 | P25: 0.05120331862 | Q25: 0.02127058824 | R25: 0.1119975776 | S25: 0.07638313364 | T25: -0.02547416904 | U25: 0.0942949815 | V25: 0.09076844332 | W25: 0.3162974152 | X25: 0.2056652314 | Y25: 0.05273529209 | Z25: -0.0559191344 | AA25: 0.07233372373 | AB25: -0.03335783125 | AC25: 0.05098230397 | AD25: 0.04077414652 | AE25: 0.04
C26: Interest Rates
C27: Selic – eop | D27: 0.19 | E27: 0.25 | F27: 0.165 | G27: 0.1775 | H27: 0.18 | I27: 0.1325 | J27: 0.1125 | K27: 0.1375 | L27: 0.0875 | M27: 0.1075 | N27: 0.11 | O27: 0.0725 | P27: 0.1 | Q27: 0.1175 | R27: 0.1425 | S27: 0.1375 | T27: 0.07 | U27: 0.065 | V27: 0.045 | W27: 0.02 | X27: 0.0925 | Y27: 0.1375 | Z27: 0.1175 | AA27: 0.1225 | AB27: 0.15 | AC27: 0.13 | AD27: 0.12 | AE27: 0.11
C28: Selic – year avg | D28: 0.17625 | E28: 0.1947916667 | F28: 0.2308333333 | G28: 0.164375 | H28: 0.1914583333 | I28: 0.150625 | J28: 0.1197916667 | K28: 0.1254166667 | L28: 0.09916666667 | M28: 0.1 | N28: 0.1170833333 | O28: 0.08458333333 | P28: 0.084375 | Q28: 0.1102083333 | R28: 0.1358333333 | S28: 0.1416666667 | T28: 0.09916666667 | U28: 0.065625 | V28: 0.05958333333 | W28: 0.028125 | X28: 0.048125 | Y28: 0.12625 | Z28: 0.1325 | AA28: 0.1091666667 | AB28: 0.145625 | AC28: 0.139375 | AD28: 0.1247916667 | AE28: 0.1120833333
C29: Real interest rate (Selic/IPCA) – eop | D29: 0.1051936667 | E29: 0.1108121954 | F29: 0.06586874128 | G29: 0.09433598244 | H29: 0.1164808709 | I29: 0.09800596547 | J29: 0.06502482959 | K29: 0.07409890212 | L29: 0.04254893806 | M29: 0.04571212557 | N29: 0.04222071081 | O29: 0.01333544994 | P29: 0.0386109939 | Q29: 0.05020821531 | R29: 0.03232017707 | S29: 0.07020559813 | T29: 0.03936551909 | U29: 0.02654974601 | V29: 0.0018584559 | W29: -0.02408647284 | X29: -0.007368485337 | Y29: 0.07529328446 | Z29: 0.06813925549 | AA29: 0.07076904091 | AB29: 0.1029657085 | AC29: 0.0813282587 | AD29: 0.07612204218 | AE29: 0.06730769231
C30: CDI - eop (annual basis) | D30: 0.1905 | E30: 0.2291 | F30: 0.1681 | G30: 0.1746 | H30: 0.1815 | I30: 0.131101207 | J30: 0.111099698 | K30: 0.136100086 | L30: 0.08609947542 | M30: 0.1060988368 | N30: 0.1085992538 | O30: 0.07109898453 | P30: 0.0978 | Q30: 0.1151 | R30: 0.1414 | S30: 0.1363 | T30: 0.0699 | U30: 0.064 | V30: 0.0459 | W30: 0.019 | X30: 0.0876 | Y30: 0.1365 | Z30: 0.1187 | AA30: 0.1177 | AB30: 0.149 | AC30: 0.1288249268 | AD30: 0.1188388185 | AE30: 0.108851534
C31: CDI - accumulated | D31: 0.1742285043 | E31: 0.1903773095 | F31: 0.2322412114 | G31: 0.1616969119 | H31: 0.1907261819 | I31: 0.1517987058 | J31: 0.1190552554 | K31: 0.1229830484 | L31: 0.1000496827 | M31: 0.09753863837 | N31: 0.1161063476 | O31: 0.08488122873 | P31: 0.08017215203 | Q31: 0.1076529578 | R31: 0.1333347811 | S31: 0.1405990346 | T31: 0.100463044 | U31: 0.06475717425 | V31: 0.05938122745 | W31: 0.02784709532 | X31: 0.04396766323 | Y31: 0.1242156862 | Z31: 0.1319829927 | AA31: 0.1083819319 | AB31: 0.1431353521 | AC31: 0.1389499706 | AD31: 0.1240455211 | AE31: 0.1115383222
C32: TJLP (Nominal Rate) – eop | D32: 0.1 | E32: 0.1 | F32: 0.11 | G32: 0.0975 | H32: 0.0975 | I32: 0.0685 | J32: 0.0625 | K32: 0.0625 | L32: 0.06 | M32: 0.06 | N32: 0.06 | O32: 0.055 | P32: 0.05 | Q32: 0.05 | R32: 0.07 | S32: 0.075 | T32: 0.07 | U32: 0.0698 | V32: 0.0557 | W32: 0.0455 | X32: 0.0532 | Y32: 0.072 | Z32: 0.0655 | AA32: 0.0743 | AB32: 0.0907 | AC32: 0.08266659168 | AD32: 0.07382727357 | AE32: 0.06984846618
C33: TLP (Real Rate) – eop | D33: - | E33: - | F33: - | G33: - | H33: - | I33: - | J33: - | K33: - | L33: - | M33: - | N33: - | O33: - | P33: - | Q33: - | R33: - | S33: - | T33: - | U33: 0.0298 | V33: 0.0168 | W33: 0.0183 | X33: 0.041 | Y33: 0.0523 | Z33: 0.0556 | AA33: 0.0666 | AB33: 0.0782 | AC33: 0.06813606924 | AD33: 0.06388929013 | AE33: 0.06131896208
C34: Public Finances
C35: Primary budget surplus – % GDP | D35: - | E35: - | F35: 0.032 | G35: 0.037 | H35: 0.037 | I35: 0.03150736532 | J35: 0.03237848049 | K35: 0.03330874748 | L35: 0.01943236723 | M35: 0.02617088108 | N35: 0.0294285659 | O35: 0.02183793012 | P35: 0.0171742487 | Q35: -0.005720790735 | R35: -0.01876114537 | S35: -0.02485781142 | T35: -0.01689220609 | U35: -0.01545456359 | V35: -0.008176222012 | W35: -0.09219633395 | X35: 0.00686149461 | Y35: 0.01233607563 | Z35: -0.02276488795 | AA35: -0.004036844108 | AB35: -0.004319402985 | AC35: -0.005122791493 | AD35: -0.005847593095 | AE35: -0.003388546926
C36: Nominal budget surplus – % GDP | D36: - | E36: - | F36: - | G36: - | H36: - | I36: -0.03569683951 | J36: -0.02737253366 | K36: -0.01991354025 | L36: -0.03187543501 | M36: -0.0241062552 | N36: -0.02466942409 | O36: -0.0226203591 | P36: -0.02955004275 | Q36: -0.0595118747 | R36: -0.1022442574 | S36: -0.0898031731 | T36: -0.07765698606 | U36: -0.06959341842 | V36: -0.05807903314 | W36: -0.133435421 | X36: -0.04257186643 | Y36: -0.04567932256 | Z36: -0.08840236151 | AA36: -0.08472318928 | AB36: -0.08341398005 | AC36: -0.08698040212 | AD36: -0.08253252606 | AE36: -0.09546084976
C37: Net Debt – % GDP | D37: - | E37: - | F37: 0.541 | G37: 0.502 | H37: 0.479 | I37: 0.4648582199 | J37: 0.4454577555 | K37: 0.3756631332 | L37: 0.4088491959 | M37: 0.3797935938 | N37: 0.3449165227 | O37: 0.3225367169 | P37: 0.3059058838 | Q37: 0.331113828 | R37: 0.3603674234 | S37: 0.4615954727 | T37: 0.5136972129 | U37: 0.5276646085 | V37: 0.546988378 | W37: 0.6137070281 | X37: 0.5511366138 | Y37: 0.5613292019 | Z37: 0.604278704 | AA37: 0.6130048901 | AB37: 0.6524349568 | AC37: 0.7068269956 | AD37: 0.7447660634 | AE37: 0.7921853597
C38: Gross Debt – % GDP | D38: - | E38: - | F38: - | G38: - | H38: - | I38: 0.5547510573 | J38: 0.5671701131 | K38: 0.5598064439 | L38: 0.5920793237 | M38: 0.5176533358 | N38: 0.5126617638 | O38: 0.5366718911 | P38: 0.515415056 | Q38: 0.5628093098 | R38: 0.6545249471 | S38: 0.6986346218 | T38: 0.7371792677 | U38: 0.7526950498 | V38: 0.7443506085 | W38: 0.8694072208 | X38: 0.7730598565 | Y38: 0.7167771805 | Z38: 0.7382816463 | AA38: 0.7627171366 | AB38: 0.7864244012 | AC38: 0.8275952066 | AD38: 0.8635612443 | AE38: 0.9090615577
C39: Exchange Rate
C40: BRL / USD – dec | D40: 2.3105 | E40: 3.54 | F40: 2.8915 | G40: 2.656 | H40: 2.3355 | I40: 2.1364 | J40: 1.78 | K40: 2.3145 | L40: 1.7445 | M40: 1.6613 | N40: 1.8668 | O40: 2.0516 | P40: 2.3621 | Q40: 2.6576 | R40: 3.9578 | S40: 3.2552 | T40: 3.3125 | U40: 3.8764 | V40: 4.031 | W40: 5.1926 | X40: 5.5699 | Y40: 5.2804 | Z40: 4.8572 | AA40: 6.1774 | AB40: 5.4749 | AC40: 5.4 | AD40: 5.6 | AE40: 5.65
C41: BRL / USD – year avg | D41: 2.350782233 | E41: 2.921697397 | F41: 3.077060738 | G41: 2.926124336 | H41: 2.435105988 | I41: 2.175047967 | J41: 1.94721876 | K41: 1.836025465 | L41: 1.999363176 | M41: 1.760231291 | N41: 1.675218733 | O41: 1.954800778 | P41: 2.159981176 | Q41: 2.354183333 | R41: 3.330866667 | S41: 3.486658333 | T41: 3.191758333 | U41: 3.655866667 | V41: 3.94615 | W41: 5.160475 | X41: 5.395908333 | Y41: 5.165216667 | Z41: 4.991833333 | AA41: 5.389546094 | AB41: 5.590898963 | AC41: 5.30353871 | AD41: 5.508333333 | AE41: 5.627083333
C42: External Sector
C43: Trade balance – USD bn | D43: 1.463274061 | E43: 11.87239455 | F43: 23.46958354 | G43: 31.3080357 | H43: 43.90561985 | I43: 45.05005434 | J43: 37.77443471 | K43: 21.05753655 | L43: 22.39406266 | M43: 17.09716998 | N43: 25.69655281 | O43: 14.78611209 | P43: -8.956630853 | Q43: -9.899781958 | R43: 13.67809599 | S43: 40.20477156 | T43: 56.03666435 | U43: 46.5675399 | V43: 35.19884007 | W43: 50.39341678 | X43: 61.40652828 | Y43: 61.52535127 | Z43: 98.83815359 | AA43: 74.55212911 | AB43: 68.29354771 | AC43: 80.32630937 | AD43: 74.59917862 | AE43: 84.73474177
C44: Exports – USD bn | D44: 58.03229424 | E44: 60.1471581 | F44: 72.77674669 | G44: 95.12167237 | H44: 118.5978354 | I44: 137.5811512 | J44: 159.8163838 | K44: 195.7646242 | L44: 151.7916742 | M44: 200.4341348 | N44: 253.6663095 | O44: 239.9525382 | P44: 232.5442556 | Q44: 220.9232368 | R44: 186.7823551 | S44: 179.5261292 | T44: 214.9881084 | U44: 231.8895234 | V44: 221.1268076 | W44: 209.1802417 | X44: 280.8145775 | Y44: 334.1360382 | Z44: 339.6727778 | AA44: 337.0362754 | AB44: 348.6764921 | AC44: 377.4440694 | AD44: 374.4916346 | AE44: 392.1139321
C45: Imports – USD bn | D45: 56.56902018 | E45: 48.27476355 | F45: 49.30716315 | G45: 63.81363667 | H45: 74.69221555 | I45: 92.53109687 | J45: 122.0419491 | K45: 174.7070876 | L45: 129.3976115 | M45: 183.3369648 | N45: 227.9697567 | O45: 225.1664261 | P45: 241.5008865 | Q45: 230.8230188 | R45: 173.1042591 | S45: 139.3213577 | T45: 158.951444 | U45: 185.3219835 | V45: 185.9279676 | W45: 158.7868249 | X45: 219.4080492 | Y45: 272.6106869 | Z45: 240.8346242 | AA45: 262.4841463 | AB45: 280.3829444 | AC45: 297.1177601 | AD45: 299.892456 | AE45: 307.3791903
C46: Current account result – % GDP | D46: -0.04448127768 | E46: -0.01851412073 | F46: 0.00392012551 | G46: 0.01338529501 | H46: 0.01309298528 | I46: 0.009731458991 | J46: -0.001971417604 | K46: -0.02102695608 | L46: -0.01753437447 | M46: -0.03924323514 | N46: -0.03196664042 | O46: -0.03761977997 | P46: -0.03580539013 | Q46: -0.04501025374 | R46: -0.03530231255 | S46: -0.01695919607 | T46: -0.01224495067 | U46: -0.02808576302 | V46: -0.03415181075 | W46: -0.01641678508 | X46: -0.02358438936 | Y46: -0.02150064653 | Z46: -0.01235661268 | AA46: -0.03028544669 | AB46: -0.03017151807 | AC46: -0.02604225054 | AD46: -0.02625890571 | AE46: -0.0234079221
C47: Direct Investment in the country – % GDP | D47: 0.04149622499 | E47: 0.03255065638 | F47: 0.01813155784 | G47: 0.02714465961 | H47: 0.01734403911 | I47: 0.0175290077 | J47: 0.03191089392 | K47: 0.02994292785 | L47: 0.01888421216 | M47: 0.03732142239 | N47: 0.03920773175 | O47: 0.03758292365 | P47: 0.03046999554 | Q47: 0.03573221609 | R47: 0.03596427917 | S47: 0.04131862689 | T47: 0.03338646148 | U47: 0.04080867228 | V47: 0.03694245033 | W47: 0.02595301413 | X47: 0.02780567594 | Y47: 0.03968965864 | Z47: 0.0286237333 | AA47: 0.0338999234 | AB47: 0.03409171634 | AC47: 0.03613469563 | AD47: 0.04013237664 | AE47: 0.03986897194

Sheet Brazil_Quarterly
C1: GDP NSA | G1: GDP SA | H1: Selic | J1: BRL/USD | L1: BRL/EUR | N1: BRL/GBP | P1: IPCA | S1: IGP-M | V1: IPA | Y1: US Inflation | AB1: Nominal GDP (BRL - '000) | AD1: Nominal GDP (BRL - '000): Personal Consumption | AF1: TJLP (Nominal Rate) | AG1: TLP (Real Rate)
C2: Index | D2: Ytd | E2: 12M | F2: YoY | G2: QoQ | H2: eop | I2: Avg | J2: eop | K2: Avg | L2: eop | M2: Avg | N2: eop | O2: Avg | P2: Index | Q2: QoQ | R2: YoY | S2: Index | T2: QoQ | U2: YoY | V2: Index | W2: QoQ | X2: YoY | Y2: Index | Z2: CPI QoQ | AA2: YoY | AB2: Quarterly | AC2: Annual | AD2: Quarterly | AE2: Annual | AF2: Annual | AG2: Annual
A3: 2003-03-01 | B3: 2003 - I | C3: 113.5764 | D3: 0.02236070381 | E3: 0.03238486622 | F3: 0.02236070381 | G3: -0.004317754031 | H3: 0.265 | I3: 0.2616666667 | J3: 3.3525 | K3: 3.495336163 | L3: 3.65925375 | M3: 3.785449064 | N3: 5.30600175 | O3: 5.594169017 | P3: 2144.49 | Q3: 0.05133396739 | R3: 0.1657307799 | S3: 287.855 | T3: 0.06271712686 | U3: 0.3248356929 | V3: 316.763 | W3: 0.07069146761 | X3: 0.4321697102 | Y3: 183.9 | Z3: 0.01 | AA3: 0.042 | AB3: 397242 | AC3: 1543733 | AD3: 257432 | AE3: 963055 | AF3: 11 | AG3: -
A4: 2003-06-01 | B4: 2003 - II | C4: 116.3134 | D4: 0.01744470651 | E4: 0.03003223297 | F4: 0.01280387577 | G4: -0.008455601955 | H4: 0.26 | I4: 0.2633333333 | J4: 2.844 | K4: 2.981332973 | L4: 3.2740128 | M4: 3.426545363 | N4: 4.7056824 | O4: 4.859075856 | P4: 2175.23 | Q4: 0.01433441051 | R4: 0.1657056194 | S4: 286.843 | T4: -0.003515658926 | U4: 0.2823352169 | V4: 310.47 | W4: -0.01986658795 | X4: 0.3540376463 | Y4: 183.1 | Z4: -0.002 | AA4: 0.007 | AB4: 418987 | AC4: 1595357 | AD4: 260277 | AE4: 997536 | AF4: 12 | AG4: -
A5: 2003-09-01 | B5: 2003 - III | C5: 120.2491 | D5: 0.01443304993 | E5: 0.02197947408 | F5: 0.008676420551 | G5: 0.009329564607 | H5: 0.2 | I5: 0.2216666667 | J5: 2.9 | K5: 2.933911064 | L5: 3.38053 | M5: 3.312678982 | N5: 4.81922 | O5: 4.743449611 | P5: 2204.05 | Q5: 0.01324917365 | R5: 0.1514329896 | S5: 290.127 | T5: 0.01144877163 | U5: 0.2142100836 | V5: 313.511 | W5: 0.009794827197 | X5: 0.2477801437 | Y5: 185.1 | Z5: 0.007 | AA5: 0.03 | AB5: 439350 | AC5: 1654912 | AD5: 267445 | AE5: 1031326 | AF5: 12 | AG5: -
A6: 2003-12-01 | B6: 2003 - IV | C6: 119.9445 | D6: 0.01146749064 | E6: 0.01146749064 | F6: 0.009172276056 | G6: 0.01039832829 | H6: 0.165 | I6: 0.1766666667 | J6: 2.8915 | K6: 2.897662754 | L6: 3.64184425 | M6: 3.494967636 | N6: 5.1636407 | O6: 5.026189224 | P6: 2229.49 | Q6: 0.01154238788 | R6: 0.093005128 | S6: 294.455 | T6: 0.01491760505 | U6: 0.08708332872 | V6: 318.475 | W6: 0.01583357522 | X6: 0.07647820341 | Y6: 185.5 | Z6: 0.004 | AA6: 0.015 | AB6: 462372 | AC6: 1717951 | AD6: 277306 | AE6: 1062460 | AF6: 11 | AG6: -
A7: 2004-03-01 | B7: 2004 - I | C7: 117.981 | D7: 0.03878094393 | E7: 0.01157218218 | F7: 0.03878094393 | G7: 0.01385458699 | H7: 0.1625 | I7: 0.1641666667 | J7: 2.8953 | K7: 2.895794921 | L7: 3.56585148 | M7: 3.599183507 | N7: 5.34530286 | O7: 5.346120057 | P7: 2270.75 | Q7: 0.01850647457 | R7: 0.05887646946 | S7: 302.484 | T7: 0.02726732438 | U7: 0.05082072571 | V7: 328.441 | W7: 0.03129288013 | X7: 0.0368666795 | Y7: 187.1 | Z7: 0.008625336927 | AA7: 0.01740076128 | AB7: 444783 | AC7: 1765492 | AD7: 274159 | AE7: 1079187 | AF7: 10 | AG7: -
A8: 2004-06-01 | B8: 2004 - II | C8: 123.6507 | D8: 0.0510762113 | E8: 0.02425705795 | F8: 0.06308215562 | G8: 0.02763544623 | H8: 0.16 | I8: 0.16 | J8: 3.085 | K8: 3.046414502 | L8: 3.7637 | M8: 3.696620904 | N8: 5.615934 | O8: 5.515533456 | P8: 2307.03 | Q8: 0.01597710008 | R8: 0.06059129379 | S8: 314.419 | T8: 0.03945663242 | U8: 0.09613621389 | V8: 344.816 | W8: 0.04985674748 | X8: 0.1106258254 | Y8: 188.9 | Z8: 0.009620523784 | AA8: 0.03167667941 | AB8: 481795 | AC8: 1828300 | AD8: 284833 | AE8: 1103743 | AF8: 9.75 | AG8: -
A9: 2004-09-01 | B9: 2004 - III | C9: 128.136 | D9: 0.05606003789 | E9: 0.03982235106 | F9: 0.06558801687 | G9: 0.01263035637 | H9: 0.1625 | I9: 0.1608333333 | J9: 2.8608 | K9: 2.976710606 | L9: 3.55769088 | M9: 3.635357439 | N9: 5.1837696 | O9: 5.392112816 | P9: 2351.82 | Q9: 0.01941457198 | R9: 0.06704475851 | S9: 324.651 | T9: 0.03254256263 | U9: 0.1189961637 | V9: 358.427 | W9: 0.0394732263 | X9: 0.1432677003 | Y9: 189.8 | Z9: 0.004764425622 | AA9: 0.02539168017 | AB9: 505252 | AC9: 1894202 | AD9: 301881 | AE9: 1138179 | AF9: 9.75 | AG9: -
A10: 2004-12-01 | B10: 2004 - IV | C10: 127.3923 | D10: 0.05759956637 | E10: 0.05759956637 | F10: 0.06209371834 | G10: 0.007616701485 | H10: 0.1775 | I10: 0.1725 | J10: 2.656 | K10: 2.785577317 | L10: 3.5999424 | M10: 3.679840488 | N10: 5.0947392 | O10: 5.2600985 | P10: 2398.92 | Q10: 0.02002704289 | R10: 0.07599495849 | S10: 331.005 | T10: 0.01957178632 | U10: 0.1241276256 | V10: 366.533 | W10: 0.02261548377 | X10: 0.1509003846 | Y10: 191.7 | Z10: 0.01001053741 | AA10: 0.03342318059 | AB10: 525920 | AC10: 1957750 | AD10: 317821 | AE10: 1178694 | AF10: 9.75 | AG10: -
A11: 2005-03-01 | B11: 2005 - I | C11: 122.9177 | D11: 0.04184317814 | E11: 0.05818629765 | F11: 0.04184317814 | G11: 0.008871895653 | H11: 0.1925 | I11: 0.1875 | J11: 2.679 | K11: 2.667518772 | L11: 3.4730556 | M11: 3.488314298 | N11: 5.0646495 | O11: 5.063395215 | P11: 2441.87 | Q11: 0.01790389008 | R11: 0.07535836177 | S11: 336.123 | T11: 0.01546200208 | U11: 0.1112091879 | V11: 371.46 | W11: 0.01344217301 | X11: 0.1309793844 | Y11: 193.1 | Z11: 0.007303077726 | AA11: 0.03206841261 | AB11: 499710 | AC11: 2012677 | AD11: 308544 | AE11: 1213079 | AF11: 9.75 | AG11: -
A12: 2005-06-01 | B12: 2005 - II | C12: 129.1841 | D12: 0.04333082125 | E12: 0.05355634086 | F12: 0.04475025212 | G12: 0.01065504378 | H12: 0.1975 | I12: 0.1966666667 | J12: 2.3325 | K12: 2.478630952 | L12: 2.824191 | M12: 3.080525169 | N12: 4.17867375 | O12: 4.558532806 | P12: 2474.68 | Q12: 0.01343642372 | R12: 0.07266918939 | S12: 336.801 | T12: 0.002017118733 | U12: 0.07118526552 | V12: 368.376 | W12: -0.008302374414 | X12: 0.06832629576 | Y12: 193.7 | Z12: 0.003107198343 | AA12: 0.02541026998 | AB12: 535557 | AC12: 2066439 | AD12: 321752 | AE12: 1249998 | AF12: 9.75 | AG12: -
A13: 2005-09-01 | B13: 2005 - III | C13: 130.8461 | D13: 0.03564454115 | E13: 0.04212269982 | F13: 0.02115018418 | G13: -0.005856969577 | H13: 0.195 | I13: 0.1966666667 | J13: 2.2275 | K13: 2.343132527 | L13: 2.6787915 | M13: 2.850420719 | N13: 3.92997825 | O13: 4.160075593 | P13: 2493.79 | Q13: 0.007722210548 | R13: 0.06036601441 | S13: 331.69 | T13: -0.01517513309 | U13: 0.0216817444 | V13: 359.967 | W13: -0.02282722001 | X13: 0.00429655132 | Y13: 198.8 | Z13: 0.02632937532 | AA13: 0.04741833509 | AB13: 552859 | AC13: 2114046 | AD13: 332896 | AE13: 1281013 | AF13: 9.75 | AG13: -
A14: 2005-12-01 | B14: 2005 - IV | C14: 130.132 | D14: 0.03202168316 | E14: 0.03202168316 | F14: 0.02150600939 | G14: 0.01282800117 | H14: 0.18 | I14: 0.185 | J14: 2.3355 | K14: 2.251141703 | L14: 2.76733395 | M14: 2.673530924 | N14: 4.0240665 | O14: 3.918712438 | P14: 2535.4 | Q14: 0.01668544665 | R14: 0.05689226819 | S14: 335.006 | T14: 0.009997286623 | U14: 0.0120874307 | V14: 363.028 | W14: 0.008503557271 | X14: -0.009562576903 | Y14: 198.1 | Z14: -0.003521126761 | AA14: 0.03338549817 | AB14: 582458 | AC14: 2170584 | AD14: 350104 | AE14: 1313296 | AF14: 9.75 | AG14: -
A15: 2006-03-01 | B15: 2006 - I | C15: 128.1774 | D15: 0.04279041993 | E15: 0.03235014291 | F15: 0.04279041993 | G15: 0.01602936493 | H15: 0.165 | I15: 0.17 | J15: 2.164 | K15: 2.193146765 | L15: 2.6223352 | M15: 2.646031573 | N15: 3.7593008 | O15: 3.852700923 | P15: 2571.83 | Q15: 0.01436854145 | R15: 0.05322150647 | S15: 337.339 | T15: 0.006964054375 | U15: 0.003617723274 | V15: 365.058 | W15: 0.005591855174 | X15: -0.01723469553 | Y15: 199.7 | Z15: 0.008076728925 | AA15: 0.03417918177 | AB15: 554270 | AC15: 2225144 | AD15: 345002 | AE15: 1349754 | AF15: 9 | AG15: -
A16: 2006-06-01 | B16: 2006 - II | C16: 132.1337 | D16: 0.03256343271 | E16: 0.02690758487 | F16: 0.02283253125 | G16: 0.003168259915 | H16: 0.1525 | I16: 0.1541666667 | J16: 2.165 | K16: 2.184373597 | L16: 2.7692515 | M16: 2.784056962 | N16: 4.0015695 | O16: 4.036722407 | P16: 2574.39 | Q16: 0.0009954001625 | R16: 0.04029207817 | S16: 339.712 | T16: 0.007034466812 | U16: 0.008643085977 | V16: 367.852 | W16: 0.007653578335 | X16: -0.001422459661 | Y16: 201.8 | Z16: 0.01051577366 | AA16: 0.04181724316 | AB16: 581977 | AC16: 2271564 | AD16: 355817 | AE16: 1383819 | AF16: 8.15 | AG16: -
A17: 2006-09-01 | B17: 2006 - III | C17: 136.7247 | D17: 0.03678803305 | E17: 0.03297329899 | F17: 0.04492759051 | G17: 0.01676961255 | H17: 0.1425 | I17: 0.1441666667 | J17: 2.169 | K17: 2.171362112 | L17: 2.7489906 | M17: 2.768776207 | N17: 4.0605849 | O17: 4.085417813 | P17: 2585.99 | Q17: 0.004505921791 | R17: 0.03697183805 | S17: 342.561 | T17: 0.008386515637 | U17: 0.03277457867 | V17: 371.698 | W17: 0.0104552918 | X17: 0.03258909845 | Y17: 202.8 | Z17: 0.004955401388 | AA17: 0.02012072435 | AB17: 617848 | AC17: 2336553 | AD17: 368734 | AE17: 1419657 | AF17: 7.5 | AG17: -
A18: 2006-12-01 | B18: 2006 - IV | C18: 136.3721 | D18: 0.03961956023 | E18: 0.03961956023 | F18: 0.04795207943 | G18: 0.01173168319 | H18: 0.1325 | I18: 0.1341666667 | J18: 2.1364 | K18: 2.151309394 | L18: 2.81940708 | M18: 2.811115985 | N18: 4.18478032 | O18: 4.182217172 | P18: 2615.05 | Q18: 0.01123747578 | R18: 0.03141516132 | S18: 347.842 | T18: 0.01541623244 | U18: 0.03831573166 | V18: 379 | W18: 0.0196449806 | X18: 0.04399660632 | Y18: 203.1 | Z18: 0.001479289941 | AA18: 0.02523977789 | AB18: 655355 | AC18: 2409450 | AD18: 386663 | AE18: 1456216 | AF18: 6.85 | AG18: -
A19: 2007-03-01 | B19: 2007 - I | C19: 134.8359 | D19: 0.05194753521 | E19: 0.04191614918 | F19: 0.05194753521 | G19: 0.01859208419 | H19: 0.1275 | I19: 0.1291666667 | J19: 2.0594 | K19: 2.107136124 | L19: 2.75012276 | M19: 2.782473252 | N19: 4.05248732 | O19: 4.142067718 | P19: 2647.88 | Q19: 0.01255425326 | R19: 0.02957038373 | S19: 351.717 | T19: 0.01114011534 | U19: 0.04262181367 | V19: 382.52 | W19: 0.009287598945 | X19: 0.04783349495 | Y19: 205.288 | Z19: 0.01077301822 | AA19: 0.02798197296 | AB19: 631423 | AC19: 2486603 | AD19: 384999 | AE19: 1496213 | AF19: 6.5 | AG19: -
A20: 2007-06-01 | B20: 2007 - II | C20: 140.7717 | D20: 0.05876238086 | E20: 0.05259115286 | F20: 0.06537317883 | G20: 0.01688761819 | H20: 0.12 | I20: 0.1233333333 | J20: 1.929 | K20: 1.981751219 | L20: 2.6120589 | M20: 2.684744435 | N20: 3.8747823 | O20: 3.955575434 | P20: 2669.38 | Q20: 0.00811970331 | R20: 0.03689806129 | S20: 352.936 | T20: 0.00346585465 | U20: 0.03892709118 | V20: 381.652 | W20: -0.002269162397 | X20: 0.03751508759 | Y20: 207.234 | Z20: 0.009479365574 | AA20: 0.02692765114 | AB20: 670655 | AC20: 2575281 | AD20: 400751 | AE20: 1541147 | AF20: 6.5 | AG20: -
A21: 2007-09-01 | B21: 2007 - III | C21: 144.7508 | D21: 0.05874180615 | E21: 0.05607834925 | F21: 0.05870263383 | G21: 0.01042677391 | H21: 0.1125 | I21: 0.1141666667 | J21: 1.8336 | K21: 1.914707132 | L21: 2.61599712 | M21: 2.653847908 | N21: 3.75392928 | O21: 3.890493421 | P21: 2693.21 | Q21: 0.008927166608 | R21: 0.04146187727 | S21: 361.997 | T21: 0.02567320987 | U21: 0.05673734021 | V21: 394.796 | W21: 0.0344397514 | X21: 0.06214184634 | Y21: 208.547 | Z21: 0.006335832923 | AA21: 0.0283382643 | AB21: 691846 | AC21: 2649279 | AD21: 410354 | AE21: 1582767 | AF21: 6.25 | AG21: -
A22: 2007-12-01 | B22: 2007 - IV | C22: 145.4268 | D22: 0.06069895103 | E22: 0.06069895103 | F22: 0.06639701229 | G22: 0.01501894112 | H22: 0.1125 | I22: 0.1125 | J22: 1.78 | K22: 1.785280563 | L22: 2.596842 | M22: 2.601094271 | N22: 3.5333 | O22: 3.642626951 | P22: 2731.62 | Q22: 0.01426179169 | R22: 0.04457658553 | S22: 374.815 | T22: 0.03540913322 | U22: 0.07754382737 | V22: 413.838 | W22: 0.04823250489 | X22: 0.09192084433 | Y22: 211.445 | Z22: 0.01389614811 | AA22: 0.04108813392 | AB22: 726339 | AC22: 2720263 | AD22: 432652 | AE22: 1628756 | AF22: 6.25 | AG22: -
A23: 2008-03-01 | B23: 2008 - I | C23: 143.1382 | D23: 0.06157336436 | E23: 0.06299429107 | F23: 0.06157336436 | G23: 0.01265927488 | H23: 0.1125 | I23: 0.1125 | J23: 1.7519 | K23: 1.737234199 | L23: 2.76589972 | M23: 2.653798963 | N23: 3.47524403 | O23: 3.451305276 | P23: 2773.08 | Q23: 0.01517780658 | R23: 0.04728310951 | S23: 383.731 | T23: 0.02378773528 | U23: 0.09102204329 | V23: 425.692 | W23: 0.02864405879 | X23: 0.1128620726 | Y23: 213.448 | Z23: 0.009472912578 | AA23: 0.0397490355 | AB23: 712055 | AC23: 2800895 | AD23: 433753 | AE23: 1677510 | AF23: 6.25 | AG23: -
A24: 2008-06-01 | B24: 2008 - II | C24: 149.6911 | D24: 0.06248630299 | E24: 0.06251544547 | F24: 0.06336074651 | G24: 0.0202558504 | H24: 0.1225 | I24: 0.1191666667 | J24: 1.6037 | K24: 1.654471573 | L24: 2.52662935 | M24: 2.58820018 | N24: 3.19505151 | O24: 3.287710761 | P24: 2831.16 | Q24: 0.02094422087 | R24: 0.06060583356 | S24: 400.382 | T24: 0.04339237643 | U24: 0.134432305 | V24: 446.997 | W24: 0.05004792197 | X24: 0.1712161865 | Y24: 217.463 | Z24: 0.01881020202 | AA24: 0.04935966106 | AB24: 769525 | AC24: 2899765 | AD24: 456473 | AE24: 1733232 | AF24: 6.25 | AG24: -
A25: 2008-09-01 | B25: 2008 - III | C25: 154.8556 | D25: 0.06500762207 | E25: 0.06534795561 | F25: 0.06980824976 | G25: 0.01627531303 | H25: 0.1375 | I25: 0.1325 | J25: 1.9046 | K25: 1.667783255 | L25: 2.68396232 | M25: 2.466540248 | N25: 3.3911403 | O25: 3.105245642 | P25: 2861.55 | Q25: 0.01073411605 | R25: 0.0625053375 | S25: 406.557 | T25: 0.01542277125 | U25: 0.1230949428 | V25: 453.642 | W25: 0.01486587158 | X25: 0.1490541951 | Y25: 218.877 | Z25: 0.006502255556 | AA25: 0.04953319875 | AB25: 812603 | AC25: 3020522 | AD25: 480468 | AE25: 1803346 | AF25: 6.25 | AG25: -
A26: 2008-12-01 | B26: 2008 - IV | C26: 146.9224 | D26: 0.05094177083 | E26: 0.05094177083 | F26: 0.01028421171 | G26: -0.03768486794 | H26: 0.1375 | I26: 0.1375 | J26: 2.3145 | K26: 2.284612833 | L26: 3.23358795 | M26: 2.999544342 | N26: 3.37754985 | O26: 3.506576083 | P26: 2892.86 | Q26: 0.01094162255 | R26: 0.05902724391 | S26: 411.575 | T26: 0.01234267274 | U26: 0.09807505036 | V26: 458.704 | W26: 0.01115857879 | X26: 0.1084144037 | Y26: 211.398 | Z26: -0.03416987623 | AA26: -0.0002222800255 | AB26: 815620 | AC26: 3109803 | AD26: 486816 | AE26: 1857510 | AF26: 6.25 | AG26: -
A27: 2009-03-01 | B27: 2009 - I | C27: 139.6656 | D27: -0.02426046995 | E27: 0.02969442811 | F27: -0.02426046995 | G27: -0.01430129114 | H27: 0.1125 | I27: 0.1225 | J27: 2.3228 | K27: 2.315815382 | L27: 3.07771 | M27: 2.989872046 | N27: 3.32694644 | O27: 3.333307468 | P27: 2928.57 | Q27: 0.01234418534 | R27: 0.05607122766 | S27: 407.808 | T27: -0.009152645326 | U27: 0.06274447464 | V27: 449.612 | W27: -0.01982106108 | X27: 0.056190861 | Y27: 212.495 | Z27: 0.005189263853 | AA27: -0.004464787677 | AB27: 756127 | AC27: 3153875 | AD27: 474264 | AE27: 1898021 | AF27: 6.25 | AG27: -
A28: 2009-06-01 | B28: 2009 - II | C28: 146.3935 | D28: -0.02311995418 | E28: 0.008284979131 | F28: -0.02202936581 | G28: 0.01836931409 | H28: 0.0925 | I28: 0.09916666667 | J28: 1.9518 | K28: 2.076248773 | L28: 2.73896094 | M28: 2.866676682 | N28: 3.21227244 | O28: 3.283102977 | P28: 2967.1 | Q28: 0.01315659178 | R28: 0.04801565436 | S28: 406.486 | T28: -0.003241721594 | U28: 0.0152454406 | V28: 444.299 | W28: -0.01181685542 | X28: -0.006035834692 | Y28: 214.79 | Z28: 0.01080025412 | AA28: -0.01229174618 | AB28: 803577 | AC28: 3187927 | AD28: 504220 | AE28: 1945768 | AF28: 6.25 | AG28: -
A29: 2009-09-01 | B29: 2009 - III | C29: 153.0551 | D29: -0.01914449203 | E29: -0.01192878171 | F29: -0.01162696086 | G29: 0.02335059881 | H29: 0.0875 | I29: 0.0875 | J29: 1.767 | K29: 1.865447161 | L29: 2.586888 | M29: 2.688171541 | N29: 2.8240194 | O29: 3.045839943 | P29: 2985.83 | Q29: 0.006312561087 | R29: 0.04343100767 | S29: 404.945 | T29: -0.003791028473 | U29: -0.003965003677 | V29: 440.137 | W29: -0.009367565536 | X29: -0.02977017119 | Y29: 215.861 | Z29: 0.004986265655 | AA29: -0.01377942863 | AB29: 852843 | AC29: 3228167 | AD29: 534397 | AE29: 1999697 | AF29: 6 | AG29: -
A30: 2009-12-01 | B30: 2009 - IV | C30: 154.745 | D30: -0.001258141298 | E30: -0.001258141298 | F30: 0.05324307253 | G30: 0.02582611051 | H30: 0.0875 | I30: 0.0875 | J30: 1.7445 | K30: 1.739941389 | L30: 2.49829845 | M30: 2.554523949 | N30: 2.8208565 | O30: 2.845558146 | P30: 3017.59 | Q30: 0.01063690833 | R30: 0.04311650063 | S30: 404.499 | T30: -0.001101384139 | U30: -0.01719249226 | V30: 438.409 | W30: -0.003926050298 | X30: -0.04424421849 | Y30: 217.347 | Z30: 0.006884059649 | AA30: 0.02814123123 | AB30: 920492 | AC30: 3333039 | AD30: 552152 | AE30: 2065033 | AF30: 6 | AG30: -
A31: 2010-03-01 | B31: 2010 - I | C31: 152.5276 | D31: 0.09209139545 | E31: 0.02636708689 | F31: 0.09209139545 | G31: 0.02065709705 | H31: 0.0875 | I31: 0.0875 | J31: 1.7813 | K31: 1.802545217 | L31: 2.4065363 | M31: 2.463718803 | N31: 2.70472592 | O31: 2.788417282 | P31: 3079.86 | Q31: 0.02063567284 | R31: 0.0516600252 | S31: 415.734 | T31: 0.02777509957 | U31: 0.01943561676 | V31: 451.673 | W31: 0.03025485334 | X31: 0.004583952386 | Y31: 217.353 | Z31: 2.760562603e-05 | AA31: 0.02286171439 | AB31: 886397 | AC31: 3463309 | AD31: 546392 | AE31: 2137161 | AF31: 6 | AG31: -
A32: 2010-06-01 | B32: 2010 - II | C32: 158.8629 | D32: 0.08855302978 | E32: 0.05333705545 | F32: 0.08517727905 | G32: 0.01272828299 | H32: 0.1025 | I32: 0.0975 | J32: 1.8047 | K32: 1.793186905 | L32: 2.20859186 | M32: 2.259714364 | N32: 2.69712415 | O32: 2.670473711 | P32: 3110.74 | Q32: 0.01002642977 | R32: 0.04841090627 | S32: 427.489 | T32: 0.02827529141 | U32: 0.0516696762 | V32: 466.708 | W32: 0.03328735612 | X32: 0.05043675543 | Y32: 217.199 | Z32: -0.0007085248421 | AA32: 0.01121560594 | AB32: 944145 | AC32: 3603877 | AD32: 568567 | AE32: 2201508 | AF32: 6 | AG32: -
A33: 2010-09-01 | B33: 2010 - III | C33: 163.6269 | D33: 0.08176278517 | E33: 0.07461274603 | F33: 0.06907185713 | G33: 0.008758893989 | H33: 0.1075 | I33: 0.1075 | J33: 1.6873 | K33: 1.748733478 | L33: 2.30046482 | M33: 2.294688069 | N33: 2.65176068 | O33: 2.725284543 | P33: 3126.29 | Q33: 0.004998810572 | R33: 0.04704219597 | S33: 436.423 | T33: 0.02089878336 | U33: 0.07773401326 | V33: 480.998 | W33: 0.03061871663 | X33: 0.09283700302 | Y33: 218.275 | Z33: 0.004953982293 | AA33: 0.01118312247 | AB33: 997935 | AC33: 3748969 | AD33: 596732 | AE33: 2263843 | AF33: 6 | AG33: -
A34: 2010-12-01 | B34: 2010 - IV | C34: 163.549 | D34: 0.0752824912 | E34: 0.0752824912 | F34: 0.05689359915 | G34: 0.01434995057 | H34: 0.1075 | I34: 0.1075 | J34: 1.6613 | K34: 1.696459565 | L34: 2.22348392 | M34: 2.279702364 | N34: 2.59362156 | O34: 2.669774966 | P34: 3195.89 | Q34: 0.02226280991 | R34: 0.05908688722 | S34: 450.301 | T34: 0.03179942395 | U34: 0.1132314295 | V34: 499.341 | W34: 0.0381352937 | X34: 0.138984373 | Y34: 220.472 | Z34: 0.01006528462 | AA34: 0.01437793022 | AB34: 1057370 | AC34: 3885847 | AD34: 628475 | AE34: 2340166 | AF34: 6 | AG34: -
A35: 2011-03-01 | B35: 2011 - I | C35: 160.4516 | D35: 0.05195125341 | E35: 0.06554773428 | F35: 0.05195125341 | G35: 0.01343279049 | H35: 0.1175 | I35: 0.1141666667 | J35: 1.6318 | K35: 1.666837381 | L35: 2.31030244 | M35: 2.314570387 | N35: 2.61544904 | O35: 2.683552622 | P35: 3273.86 | Q35: 0.02439695985 | R35: 0.06298987616 | S35: 461.249 | T35: 0.02431262644 | U35: 0.1094810624 | V35: 512.468 | W35: 0.02628864844 | X35: 0.1345995886 | Y35: 223.046 | Z35: 0.01167495192 | AA35: 0.0261924151 | AB35: 1016531 | AC35: 4015981 | AD35: 623585 | AE35: 2417359 | AF35: 6 | AG35: -
A36: 2011-06-01 | B36: 2011 - II | C36: 166.3302 | D36: 0.04942764792 | E36: 0.05614926971 | F36: 0.0470046814 | G36: 0.01009632883 | H36: 0.1225 | I36: 0.1208333333 | J36: 1.5633 | K36: 1.594702624 | L36: 2.26709766 | M36: 2.323215939 | N36: 2.50956549 | O36: 2.615737557 | P36: 3319.55 | Q36: 0.01395600301 | R36: 0.06712550711 | S36: 464.463 | T36: 0.006968036787 | U36: 0.08649111439 | V36: 511.759 | W36: -0.001383501019 | X36: 0.0965293074 | Y36: 224.806 | Z36: 0.007890748993 | AA36: 0.03502318151 | AB36: 1086712 | AC36: 4158548 | AD36: 648649 | AE36: 2497441 | AF36: 6 | AG36: -
A37: 2011-09-01 | B37: 2011 - III | C37: 169.4149 | D37: 0.04458636673 | E37: 0.04761049564 | F37: 0.03537315686 | G37: -0.002279921672 | H37: 0.12 | I37: 0.1216666667 | J37: 1.8793 | K37: 1.637677502 | L37: 2.51581891 | M37: 2.301155247 | N37: 2.92870112 | O37: 2.634477208 | P37: 3354.85 | Q37: 0.01063397147 | R37: 0.0731090206 | S37: 468.975 | T37: 0.009714444423 | U37: 0.07458818623 | V37: 517.344 | W37: 0.01091334007 | X37: 0.07556372376 | Y37: 226.597 | Z37: 0.007966869212 | AA37: 0.03812621693 | AB37: 1112334 | AC37: 4272947 | AD37: 668612 | AE37: 2569321 | AF37: 6 | AG37: -
A38: 2011-12-01 | B38: 2011 - IV | C38: 167.7489 | D38: 0.03974402662 | E38: 0.03974402662 | F38: 0.0256797657 | G38: 0.009308661722 | H38: 0.11 | I38: 0.1116666667 | J38: 1.8668 | K38: 1.801657424 | L38: 2.41955948 | M38: 2.41812454 | N38: 2.90156724 | O38: 2.842655084 | P38: 3403.73 | Q38: 0.01456995097 | R38: 0.06503352744 | S38: 473.252 | T38: 0.00911988912 | U38: 0.05096813021 | V38: 521.035 | W38: 0.007134517845 | X38: 0.04344526085 | Y38: 227.223 | Z38: 0.002762613803 | AA38: 0.03062066838 | AB38: 1160805 | AC38: 4376382 | AD38: 696968 | AE38: 2637814 | AF38: 6 | AG38: -
A39: 2012-03-01 | B39: 2012 - I | C39: 163.1908 | D39: 0.0170718148 | E39: 0.0312369681 | F39: 0.0170718148 | G39: -0.0144299168 | H39: 0.0975 | I39: 0.1025 | J39: 1.8268 | K39: 1.766454386 | L39: 2.43749924 | M39: 2.340669825 | N39: 2.92434144 | O39: 2.807779246 | P39: 3445.41 | Q39: 0.01224538962 | R39: 0.05239991936 | S39: 476.166 | T39: 0.00615739606 | U39: 0.03234044952 | V39: 521.478 | W39: 0.0008502307906 | X39: 0.01758158558 | Y39: 228.807 | Z39: 0.006971125282 | AA39: 0.02582875281 | AB39: 1129474 | AC39: 4489325 | AD39: 694701 | AE39: 2708930 | AF39: 6 | AG39: -
A40: 2012-06-01 | B40: 2012 - II | C40: 167.971 | D40: 0.01340343924 | E40: 0.02197068709 | F40: 0.009864714886 | G40: 0.01806299408 | H40: 0.085 | I40: 0.08666666667 | J40: 2.0094 | K40: 1.965220758 | L40: 2.54530698 | M40: 2.50703212 | N40: 3.15616458 | O40: 3.1015114 | P40: 3482.72 | Q40: 0.0108288999 | R40: 0.04915425284 | S40: 488.342 | T40: 0.02557091434 | U40: 0.05141206081 | V40: 536.606 | W40: 0.02900985276 | X40: 0.04855215052 | Y40: 228.524 | Z40: -0.001236850271 | AA40: 0.01653870448 | AB40: 1183126 | AC40: 4585739 | AD40: 718126 | AE40: 2778407 | AF40: 6 | AG40: -
A41: 2012-09-01 | B41: 2012 - III | C41: 173.6256 | D41: 0.01731309378 | E41: 0.0193871669 | F41: 0.02485436641 | G41: 0.01733820836 | H41: 0.075 | I41: 0.07666666667 | J41: 2.0264 | K41: 2.027862513 | L41: 2.6059504 | M41: 2.551253828 | N41: 3.27608088 | O41: 3.225044945 | P41: 3532.06 | Q41: 0.01416708779 | R41: 0.05282203377 | S41: 506.804 | T41: 0.03780547239 | U41: 0.08066314836 | V41: 564.133 | W41: 0.05129834553 | X41: 0.09044078988 | Y41: 231.015 | Z41: 0.01090038683 | AA41: 0.01949716898 | AB41: 1230449 | AC41: 4703854 | AD41: 753551 | AE41: 2863346 | AF41: 5.5 | AG41: -
A42: 2012-12-01 | B42: 2012 - IV | C42: 171.9138 | D42: 0.01921181494 | E42: 0.01921181494 | F42: 0.02482818069 | G42: 0.0001737373 | H42: 0.0725 | I42: 0.0725 | J42: 2.0516 | K42: 2.059665455 | L42: 2.70667588 | M42: 2.687108208 | N42: 3.3348758 | O42: 3.322720967 | P42: 3602.46 | Q42: 0.01993171124 | R42: 0.05838594718 | S42: 510.252 | T42: 0.006803419073 | U42: 0.07818244825 | V42: 566.018 | W42: 0.003341410625 | X42: 0.0863339315 | Y42: 231.221 | Z42: 0.0008917169881 | AA42: 0.0175950498 | AB42: 1271711 | AC42: 4814760 | AD42: 790457 | AE42: 2956835 | AF42: 5.5 | AG42: -
A43: 2013-03-01 | B43: 2013 - I | C43: 167.6314 | D43: 0.02721109278 | E43: 0.02168491017 | F43: 0.02721109278 | G43: 0.005357797206 | H43: 0.0725 | I43: 0.0725 | J43: 2.0217 | K43: 1.995366667 | L43: 2.59101072 | M43: 2.624040191 | N43: 3.07156881 | O43: 3.073729326 | P43: 3672.42 | Q43: 0.01942006296 | R43: 0.06588765923 | S43: 514.526 | T43: 0.008376253302 | U43: 0.08056014079 | V43: 567.892 | W43: 0.003310848772 | X43: 0.08900471353 | Y43: 232.282 | Z43: 0.004588683554 | AA43: 0.01518747241 | AB43: 1241614 | AC43: 4926900 | AD43: 777713 | AE43: 3039847 | AF43: 5 | AG43: -
A44: 2013-06-01 | B44: 2013 - II | C44: 174.7265 | D44: 0.03380854917 | E44: 0.02928467801 | F44: 0.04021825196 | G44: 0.01387238197 | H44: 0.08 | I44: 0.07833333333 | J44: 2.2317 | K44: 2.0713 | L44: 2.9034417 | M44: 2.70491067 | N44: 3.39508521 | O44: 3.172057863 | P44: 3715.92 | Q44: 0.0118450504 | R44: 0.06695915836 | S44: 519.153 | T44: 0.008992742835 | U44: 0.06309307821 | V44: 569.345 | W44: 0.002558585083 | X44: 0.06101124475 | Y44: 232.445 | Z44: 0.000701733238 | AA44: 0.01715793527 | AB44: 1322580 | AC44: 5066354 | AD44: 805985 | AE44: 3127706 | AF44: 5 | AG44: -
A45: 2013-09-01 | B45: 2013 - III | C45: 178.4159 | D45: 0.0316695702 | E45: 0.02996314102 | F45: 0.02758982546 | G45: 0.004663410487 | H45: 0.09 | I45: 0.08833333333 | J45: 2.217 | K45: 2.28889137 | L45: 2.9989359 | M45: 3.055746276 | N45: 3.5884362 | O45: 3.578071286 | P45: 3738.99 | Q45: 0.00620842214 | R45: 0.05858620748 | S45: 529.085 | T45: 0.01913116172 | U45: 0.04396374141 | V45: 583.926 | W45: 0.02561013094 | X45: 0.03508569788 | Y45: 233.544 | Z45: 0.004728000172 | AA45: 0.01094734108 | AB45: 1354134 | AC45: 5190039 | AD45: 833145 | AE45: 3207300 | AF45: 5 | AG45: -
A46: 2013-12-01 | B46: 2013 - IV | C46: 176.2611 | D46: 0.03004826946 | E46: 0.03004826946 | F46: 0.02528767324 | G46: 0.001616739575 | H46: 0.1 | I46: 0.09833333333 | J46: 2.3621 | K46: 2.284366667 | L46: 3.24623403 | M46: 3.115723842 | N46: 3.91092897 | O46: 3.728467128 | P46: 3815.39 | Q46: 0.02043332558 | R46: 0.05910683255 | S46: 538.37 | T46: 0.01754916507 | U46: 0.05510610443 | V46: 595 | W46: 0.01896473183 | X46: 0.05120331862 | Y46: 234.719 | Z46: 0.005031171856 | AA46: 0.01512838367 | AB46: 1413291 | AC46: 5331619 | AD46: 873580 | AE46: 3290423 | AF46: 5 | AG46: -
A47: 2014-03-01 | B47: 2014 - I | C47: 173.4471 | D47: 0.03469338083 | E47: 0.0318711904 | F47: 0.03469338083 | G47: 0.008479170089 | H47: 0.1075 | I47: 0.1066666667 | J47: 2.2719 | K47: 2.363133333 | L47: 3.12817911 | M47: 3.234105509 | N47: 3.78543978 | O47: 3.926424804 | P47: 3898.38 | Q47: 0.02175138059 | R47: 0.06152891009 | S47: 552.087 | T47: 0.02547875996 | U47: 0.07300117001 | V47: 611.583 | W47: 0.02787058824 | X47: 0.07693540321 | Y47: 236.028 | Z47: 0.005576881292 | AA47: 0.01612694914 | AB47: 1385981 | AC47: 5475986 | AD47: 873828 | AE47: 3386538 | AF47: 5 | AG47: -
A48: 2014-06-01 | B48: 2014 - II | C48: 173.966 | D48: 0.01476583423 | E48: 0.0206321496 | F48: -0.004352516647 | G48: -0.01481087241 | H48: 0.11 | I48: 0.11 | J48: 2.2143 | K48: 2.229 | L48: 3.03181956 | M48: 3.0607142 | N48: 3.78778158 | O48: 3.7695362 | P48: 3958.32 | Q48: 0.01537561756 | R48: 0.06523283601 | S48: 551.554 | T48: -0.0009654275504 | U48: 0.06241127375 | V48: 603.594 | W48: -0.01306282222 | X48: 0.0601550905 | Y48: 237.231 | Z48: 0.005096852916 | AA48: 0.02058981695 | AB48: 1422322 | AC48: 5575728 | AD48: 888391 | AE48: 3468944 | AF48: 5 | AG48: -
A49: 2014-09-01 | B49: 2014 - III | C49: 177.2761 | D49: 0.007518427386 | E49: 0.0119284653 | F49: -0.006388444079 | G49: -0.0006031698845 | H49: 0.11 | I49: 0.11 | J49: 2.4469 | K49: 2.275466667 | L49: 3.09067939 | M49: 2.969711547 | N49: 3.96715897 | O49: 3.769462231 | P49: 3991.24 | Q49: 0.008316659593 | R49: 0.06746474315 | S49: 547.839 | T49: -0.006735514564 | U49: 0.03544610034 | V49: 594.97 | W49: -0.01428774971 | X49: 0.01891335546 | Y49: 237.477 | Z49: 0.001036963972 | AA49: 0.01684050971 | AB49: 1462125 | AC49: 5683719 | AD49: 912055 | AE49: 3547854 | AF49: 5 | AG49: -
A50: 2014-12-01 | B50: 2014 - IV | C50: 175.8583 | D50: 0.00503934595 | E50: 0.00503934595 | F50: -0.002285246149 | G50: 0.005235638945 | H50: 0.1175 | I50: 0.1141666667 | J50: 2.6576 | K50: 2.549133333 | L50: 3.21516448 | M50: 3.150303944 | N50: 4.13974352 | O50: 4.012080953 | P50: 4059.86 | Q50: 0.01719265191 | R50: 0.06407470796 | S50: 558.213 | T50: 0.01893622031 | U50: 0.0368575515 | V50: 607.656 | W50: 0.02132208347 | X50: 0.02127058824 | Y50: 236.252 | Z50: -0.005158394287 | AA50: 0.00653121392 | AB50: 1508525 | AC50: 5778953 | AD50: 964130 | AE50: 3638404 | AF50: 5 | AG50: -
A51: 2015-03-01 | B51: 2015 - I | C51: 170.6383 | D51: -0.01619398652 | E51: -0.00727309616 | F51: -0.01619398652 | G51: -0.007802580138 | H51: 0.1275 | I51: 0.1241666667 | J51: 3.1967 | K51: 2.865666667 | L51: 3.43037877 | M51: 3.173057178 | N51: 4.73687006 | O51: 4.328685022 | P51: 4215.26 | Q51: 0.03827718197 | R51: 0.08128504661 | S51: 569.536 | T51: 0.02028437174 | U51: 0.03160552594 | V51: 616.157 | W51: 0.01398982319 | X51: 0.007478952162 | Y51: 235.976 | Z51: -0.001168244078 | AA51: -0.0002203128442 | AB51: 1456659 | AC51: 5849631 | AD51: 936567 | AE51: 3701143 | AF51: 5.5 | AG51: -
A52: 2015-06-01 | B52: 2015 - II | C52: 169.1987 | D52: -0.02180717998 | E52: -0.01298793417 | F52: -0.02740363059 | G52: -0.02367121312 | H52: 0.1375 | I52: 0.1341666667 | J52: 3.1029 | K52: 3.069433333 | L52: 3.47555829 | M52: 3.418427903 | N52: 4.82656095 | O52: 4.72662039 | P52: 4310.39 | Q52: 0.02256800292 | R52: 0.0889442996 | S52: 582.401 | T52: 0.02258856332 | U52: 0.05592743412 | V52: 629.294 | W52: 0.02132086465 | X52: 0.04257828938 | Y52: 237.657 | Z52: 0.00712360579 | AA52: 0.001795718098 | AB52: 1479970 | AC52: 5907279 | AD52: 938595 | AE52: 3751347 | AF52: 6 | AG52: -
A53: 2015-09-01 | B53: 2015 - III | C53: 169.7191 | D53: -0.02884202686 | E53: -0.02216405357 | F53: -0.04262841974 | G53: -0.01646690277 | H53: 0.1425 | I53: 0.1425 | J53: 3.9475 | K53: 3.5466 | L53: 4.41212075 | M53: 3.94523784 | N53: 5.971778 | O53: 5.4493509 | P53: 4370.12 | Q53: 0.01385721478 | R53: 0.09492789208 | S53: 593.606 | T53: 0.01923932136 | U53: 0.08354096733 | V53: 643.419 | W53: 0.02244578845 | X53: 0.08143099652 | Y53: 237.498 | Z53: -0.0006690314192 | AA53: 8.842961634e-05 | AB53: 1508228 | AC53: 5953382 | AD53: 959600 | AE53: 3798892 | AF53: 6.5 | AG53: -
A54: 2015-12-01 | B54: 2015 - IV | C54: 166.1517 | D54: -0.03545755284 | E54: -0.03545755284 | F54: -0.05519557507 | G54: -0.007689383438 | H54: 0.1425 | I54: 0.1425 | J54: 3.9578 | K54: 3.841766667 | L54: 4.29896236 | M54: 4.153333943 | N54: 5.83617188 | O54: 5.792103544 | P54: 4493.17 | Q54: 0.02815712154 | R54: 0.1067302813 | S54: 617.044 | T54: 0.03948410225 | U54: 0.1053916695 | V54: 675.712 | W54: 0.05018968977 | X54: 0.1119975776 | Y54: 237.761 | Z54: 0.001107377746 | AA54: 0.006387247515 | AB54: 1550930 | AC54: 5995787 | AD54: 1000430 | AE54: 3835192 | AF54: 7 | AG54: -
A55: 2016-03-01 | B55: 2016 - I | C55: 161.8705 | D55: -0.05138236844 | E55: -0.04414073635 | F55: -0.05138236844 | G55: -0.01432781606 | H55: 0.1425 | I55: 0.1425 | J55: 3.59 | K55: 3.904966667 | L55: 4.08542 | M55: 4.30639724 | N55: 5.15524 | O55: 5.534769588 | P55: 4610.92 | Q55: 0.02620644222 | R55: 0.09386372371 | S55: 635.349 | T55: 0.02966563162 | U55: 0.1155554697 | V55: 696.424 | W55: 0.03065211214 | X55: 0.1302703694 | Y55: 238.08 | Z55: 0.001341683455 | AA55: 0.008916160966 | AB55: 1500299 | AC55: 6039427 | AD55: 974593 | AE55: 3873218 | AF55: 7.5 | AG55: -
A56: 2016-06-01 | B56: 2016 - II | C56: 163.753 | D56: -0.0418244629 | E56: -0.04542337534 | F56: -0.03218523547 | G56: 0.002807993644 | H56: 0.1425 | I56: 0.1425 | J56: 3.213 | K56: 3.501366667 | L56: 3.5683578 | M56: 3.931918054 | N56: 4.2768243 | O56: 4.966688617 | P56: 4691.59 | Q56: 0.01749542391 | R56: 0.08843747318 | S56: 653.496 | T56: 0.02856225476 | U56: 0.1220722492 | V56: 720.875 | W56: 0.03510935867 | X56: 0.1455297524 | Y56: 240.222 | Z56: 0.008996975806 | AA56: 0.01079286535 | AB56: 1559050 | AC56: 6118507 | AD56: 986780 | AE56: 3921403 | AF56: 7.5 | AG56: -
A57: 2016-09-01 | B57: 2016 - III | C57: 165.5539 | D57: -0.03606806002 | E57: -0.04097564918 | F57: -0.02454172807 | G57: -0.005477237568 | H57: 0.1425 | I57: 0.1425 | J57: 3.2624 | K57: 3.248 | L57: 3.6653064 | M57: 3.679875733 | N57: 4.23198528 | O57: 4.259210667 | P57: 4740.53 | Q57: 0.01043143156 | R57: 0.08475968623 | S57: 656.894 | T57: 0.005199725783 | U57: 0.106616173 | V57: 722.424 | W57: 0.002148777527 | X57: 0.1227893488 | Y57: 241.176 | Z57: 0.003971326523 | AA57: 0.0154864462 | AB57: 1577170 | AC57: 6187449 | AD57: 1016029 | AE57: 3977832 | AF57: 7.5 | AG57: -
A58: 2016-12-01 | B58: 2016 - IV | C58: 162.3948 | D58: -0.0327591305 | E58: -0.0327591305 | F58: -0.02261126428 | G58: -0.0009750222455 | H58: 0.1375 | I58: 0.1391666667 | J58: 3.2552 | K58: 3.2923 | L58: 3.42349384 | M58: 3.52177331 | N58: 4.0169168 | O58: 4.070160747 | P58: 4775.7 | Q58: 0.007419001673 | R58: 0.06287988213 | S58: 661.304 | T58: 0.006713411905 | U58: 0.07172908253 | V58: 727.325 | W58: 0.006784104626 | X58: 0.07638313364 | Y58: 242.637 | Z58: 0.006057816698 | AA58: 0.02050798912 | AB58: 1632808 | AC58: 6269327 | AD58: 1050734 | AE58: 4028136 | AF58: 7.5 | AG58: -
A59: 2017-03-01 | B59: 2017 - I | C59: 162.327 | D59: 0.002820155618 | E59: -0.0193590128 | F59: 0.002820155618 | G59: 0.01018225281 | H59: 0.1225 | I59: 0.125 | J59: 3.122 | K59: 3.1419 | L59: 3.3255544 | M59: 3.35408298 | N59: 3.91811 | O59: 3.92831757 | P59: 4821.69 | Q59: 0.009630001885 | R59: 0.04571105116 | S59: 666.197 | T59: 0.007399017698 | U59: 0.04855284261 | V59: 730.425 | W59: 0.004262193655 | X59: 0.04882226919 | Y59: 243.892 | Z59: 0.005172335629 | AA59: 0.02441196237 | AB59: 1585673 | AC59: 6354701 | AD59: 1017563 | AE59: 4071106 | AF59: 7.5 | AG59: -
A60: 2017-06-01 | B60: 2017 - II | C60: 165.0425 | D60: 0.005362020862 | E60: -0.009336588388 | F60: 0.007874664892 | G60: 0.008350794636 | H60: 0.1025 | I60: 0.1091666667 | J60: 3.3082 | K60: 3.214033333 | L60: 3.77994932 | M60: 3.58975383 | N60: 4.3089305 | O60: 4.163887318 | P60: 4832.27 | Q60: 0.002194251393 | R60: 0.02998556992 | S60: 648.409 | T60: -0.02670081072 | U60: -0.007784286361 | V60: 697.723 | W60: -0.04477119485 | X60: -0.03211652506 | Y60: 244.163 | Z60: 0.001111147557 | AA60: 0.0164056581 | AB60: 1630730 | AC60: 6426381 | AD60: 1035708 | AE60: 4120034 | AF60: 7 | AG60: -
A61: 2017-09-01 | B61: 2017 - III | C61: 168.2702 | D61: 0.009084904965 | E61: 0.001073130643 | F61: 0.01640734528 | G61: 0.002378176491 | H61: 0.0825 | I61: 0.08916666667 | J61: 3.1625 | K61: 3.163066667 | L61: 3.7361775 | M61: 3.749920969 | N61: 4.2371175 | O61: 4.169238173 | P61: 4860.83 | Q61: 0.005910265776 | R61: 0.02537690933 | S61: 647.4 | T61: -0.001556116587 | U61: -0.01445286454 | V61: 694.397 | W61: -0.004766934729 | X61: -0.03879577644 | Y61: 246.435 | Z61: 0.009305259192 | AA61: 0.0218056523 | AB61: 1648635 | AC61: 6497846 | AD61: 1070402 | AE61: 4174407 | AF61: 7 | AG61: -
A62: 2017-12-01 | B62: 2017 - IV | C62: 166.5784 | D62: 0.01322868384 | E62: 0.01322868384 | F62: 0.02576190863 | G62: 0.005416192864 | H62: 0.07 | I62: 0.07333333333 | J62: 3.3125 | K62: 3.248033333 | L62: 3.97665625 | M62: 3.849460839 | N62: 4.47618125 | O62: 4.365465068 | P62: 4916.46 | Q62: 0.01144454754 | R62: 0.0294742132 | S62: 657.859 | T62: 0.01615539079 | U62: -0.005209404449 | V62: 708.797 | W62: 0.02073741678 | X62: -0.02547416904 | Y62: 247.805 | Z62: 0.005559275265 | AA62: 0.0212993072 | AB62: 1720441 | AC62: 6585479 | AD62: 1123586 | AE62: 4247259 | AF62: 7 | AG62: -
A63: 2018-03-01 | B63: 2018 - I | C63: 165.4193 | D63: 0.01904981919 | E63: 0.01724954883 | F63: 0.01904981919 | G63: 0.005924039454 | H63: 0.065 | I63: 0.0675 | J63: 3.3063 | K63: 3.243966667 | L63: 4.07468412 | M63: 3.993539231 | N63: 4.63377945 | O63: 4.537876838 | P63: 4950.95 | Q63: 0.007015210131 | R63: 0.02680802789 | S63: 667.524 | T63: 0.01469159805 | U63: 0.001991903296 | V63: 721.488 | W63: 0.01790498549 | X63: -0.01223534244 | Y63: 249.577 | Z63: 0.007150783882 | AA63: 0.02330949765 | AB63: 1682083 | AC63: 6681889 | AD63: 1088772 | AE63: 4318468 | AF63: 6.75 | AG63: -
A64: 2018-06-01 | B64: 2018 - II | C64: 167.7114 | D64: 0.0175984629 | E64: 0.01932053772 | F64: 0.01617098626 | G64: -0.0009832064311 | H64: 0.065 | I64: 0.065 | J64: 3.88 | K64: 3.608833333 | L64: 4.533392 | M64: 4.265039528 | N64: 5.124316 | O64: 4.844016689 | P64: 5044.46 | Q64: 0.01888728426 | R64: 0.04391103974 | S64: 693.287 | T64: 0.038594867 | U64: 0.0692124878 | V64: 758.269 | W64: 0.05097936487 | X64: 0.08677655746 | Y64: 251.018 | Z64: 0.005773769218 | AA64: 0.02807550694 | AB64: 1734099 | AC64: 6785258 | AD64: 1099647 | AE64: 4382407 | AF64: 6.6 | AG64: 2.58
A65: 2018-09-01 | B65: 2018 - III | C65: 171.7312 | D65: 0.01860666125 | E65: 0.02037248807 | F65: 0.0205681101 | G65: 0.009611145393 | H65: 0.065 | I65: 0.065 | J65: 4.05 | K65: 3.956433333 | L65: 4.69962 | M65: 4.602255134 | N65: 5.277555 | O65: 5.158529661 | P65: 5080.83 | Q65: 0.007209889661 | R65: 0.04525976016 | S65: 712.373 | T65: 0.02752972434 | U65: 0.1003599011 | V65: 786.501 | W65: 0.03723216959 | X65: 0.1326388219 | Y65: 252.182 | Z65: 0.004637117657 | AA65: 0.02332055106 | AB65: 1767856 | AC65: 6904479 | AD65: 1143238 | AE65: 4455243 | AF65: 6.56 | AG65: 3.13
A66: 2018-12-01 | B66: 2018 - IV | C66: 169.168 | D66: 0.01783672177 | E66: 0.01783672177 | F66: 0.01554583307 | G66: -0.002643372132 | H66: 0.065 | I66: 0.065 | J66: 3.8764 | K66: 3.814233333 | L66: 4.44506788 | M66: 4.335003324 | N66: 4.94396056 | O66: 4.865563181 | P66: 5100.61 | Q66: 0.003893064716 | R66: 0.0374558117 | S66: 707.441 | T66: -0.006923339318 | U66: 0.07536873403 | V66: 775.633 | W66: -0.01381816425 | X66: 0.0942949815 | Y66: 252.767 | Z66: 0.002319753194 | AA66: 0.02002380904 | AB66: 1820103 | AC66: 7004141 | AD66: 1194145 | AE66: 4525802 | AF66: 6.98 | AG66: 2.98
A67: 2019-03-01 | B67: 2019 - I | C67: 166.9102 | D67: 0.009012854002 | E67: 0.01534682157 | F67: 0.009012854002 | G67: 0.003109815162 | H67: 0.065 | I67: 0.065 | J67: 3.9205 | K67: 3.768133333 | L67: 4.3980169 | M67: 4.275072871 | N67: 5.11037175 | O67: 4.949694342 | P67: 5177.47 | Q67: 0.01506878589 | R67: 0.04575283531 | S67: 722.707 | T67: 0.0215791847 | U67: 0.08266818871 | V67: 796.106 | W67: 0.02639521526 | X67: 0.1034223715 | Y67: 254.277 | Z67: 0.005973881084 | AA67: 0.01883186351 | AB67: 1757554 | AC67: 7079612 | AD67: 1155353 | AE67: 4592383 | AF67: 7.03 | AG67: 2.84
A68: 2019-06-01 | B68: 2019 - II | C68: 169.6779 | D68: 0.0103785091 | E68: 0.01423397402 | F68: 0.01172549988 | G68: 0.005643690932 | H68: 0.065 | I68: 0.065 | J68: 3.8499 | K68: 3.9184 | L68: 4.37849127 | M68: 4.409114293 | N68: 4.88783304 | O68: 5.009935627 | P68: 5214.27 | Q68: 0.007107718635 | R68: 0.03366267152 | S68: 738.421 | T68: 0.02174325141 | U68: 0.06510146592 | V68: 818.268 | W68: 0.02783800147 | X68: 0.07912627313 | Y68: 255.213 | Z68: 0.003681025024 | AA68: 0.01671194894 | AB68: 1826761 | AC68: 7172274 | AD68: 1172601 | AE68: 4665337 | AF68: 6.26 | AG68: 2.64
A69: 2019-09-01 | B69: 2019 - III | C69: 173.6366 | D69: 0.01062231077 | E69: 0.01184379311 | F69: 0.01109524652 | G69: 0.0001874663459 | H69: 0.055 | I69: 0.06 | J69: 4.157 | K69: 3.979766667 | L69: 4.5307143 | M69: 4.372039001 | N69: 5.1085373 | O69: 4.855845969 | P69: 5227.84 | Q69: 0.002602473596 | R69: 0.02893424893 | S69: 736.362 | T69: -0.002788382237 | U69: 0.03367477431 | V69: 811.493 | W69: -0.008279683429 | X69: 0.03177618337 | Y69: 256.43 | Z69: 0.004768565865 | AA69: 0.01684497704 | AB69: 1880610 | AC69: 7285028 | AD69: 1216014 | AE69: 4738113 | AF69: 5.95 | AG69: 2.03
A70: 2019-12-01 | B70: 2019 - IV | C70: 172.0335 | D70: 0.01220761868 | E70: 0.01220761868 | F70: 0.01693878275 | G70: 0.008795488022 | H70: 0.045 | I70: 0.04833333333 | J70: 4.031 | K70: 4.1183 | L70: 4.5199603 | M70: 4.582706963 | N70: 5.3426874 | O70: 5.370400477 | P70: 5320.25 | Q70: 0.0176765165 | R70: 0.04306151617 | S70: 759.112 | T70: 0.03089513038 | U70: 0.07303930646 | V70: 846.036 | W70: 0.04256721869 | X70: 0.09076844332 | Y70: 258.63 | Z70: 0.008579339391 | AA70: 0.0231952747 | AB70: 1924206 | AC70: 7389131 | AD70: 1269611 | AE70: 4813579 | AF70: 5.57 | AG70: 1.68
A71: 2020-03-01 | B71: 2020 - I | C71: 167.6012 | D71: 0.004139950704 | E71: 0.01099655259 | F71: 0.004139950704 | G71: -0.02282019227 | H71: 0.0375 | I71: 0.04166666667 | J71: 5.2053 | K71: 4.466533333 | L71: 5.74196643 | M71: 4.93794615 | N71: 6.4649826 | O71: 5.724458004 | P71: 5348.49 | Q71: 0.00530802124 | R71: 0.0330315772 | S71: 771.908 | T71: 0.01685653764 | U71: 0.06807876498 | V71: 863.622 | W71: 0.02078634952 | X71: 0.08480780198 | Y71: 258.076 | Z71: -0.002142056219 | AA71: 0.01494039964 | AB71: 1868095 | AC71: 7499672 | AD71: 1211460 | AE71: 4869686 | AF71: 5.09 | AG71: 1.83
A72: 2020-06-01 | B72: 2020 - II | C72: 152.4765 | D72: -0.04905223922 | E72: -0.0173280001 | F72: -0.1013767851 | G72: -0.08884180617 | H72: 0.0225 | I72: 0.03 | J72: 5.4669 | K72: 5.389633333 | L72: 6.14151546 | M72: 5.980696456 | N72: 6.77950269 | O72: 6.731652033 | P72: 5325.46 | Q72: -0.004305888204 | R72: 0.02132417385 | S72: 792.429 | T72: 0.02658477435 | U72: 0.07313984841 | V72: 898.183 | W72: 0.04001866557 | X72: 0.09766360166 | Y72: 257.042 | Z72: -0.004006571708 | AA72: 0.007166562832 | AB72: 1752724 | AC72: 7425635 | AD72: 1066604 | AE72: 4763689 | AF72: 4.94 | AG72: 2.26
A73: 2020-09-01 | B73: 2020 - III | C73: 168.3655 | D73: -0.04269001481 | E73: -0.02784251288 | F73: -0.0303570791 | G73: 0.07919576333 | H73: 0.02 | I73: 0.02083333333 | J73: 5.61 | K73: 5.384433333 | L73: 6.611385 | M73: 6.371399963 | N73: 7.24812 | O73: 7.06706875 | P73: 5391.75 | Q73: 0.01244775099 | R73: 0.03135329314 | S73: 868.442 | T73: 0.09592405124 | U73: 0.1793682998 | V73: 1016.468 | W73: 0.1316936526 | X73: 0.2525899792 | Y73: 259.997 | Z73: 0.01149617572 | AA73: 0.01391022891 | AB73: 1929323 | AC73: 7474348 | AD73: 1200311 | AE73: 4747986 | AF73: 4.91 | AG73: 1.53
A74: 2020-12-01 | B74: 2020 - IV | C74: 171.4591 | D74: -0.0327675065 | E74: -0.0327675065 | F74: -0.003338884578 | G74: 0.03835137274 | H74: 0.02 | I74: 0.02 | J74: 5.1926 | K74: 5.4013 | L74: 6.34328016 | M74: 6.465536143 | N74: 7.0982842 | O74: 7.190930733 | P74: 5560.59 | Q74: 0.03131450828 | R74: 0.04517456886 | S74: 934.758 | T74: 0.07636203684 | U74: 0.2313835113 | V74: 1113.635 | W74: 0.09559277813 | X74: 0.3162974152 | Y74: 262.045 | Z74: 0.007877013966 | AA74: 0.01320419132 | AB74: 2059455 | AC74: 7609597 | AD74: 1326629 | AE74: 4805004 | AF74: 4.55 | AG74: 1.83
A75: 2021-03-01 | B75: 2021 - I | C75: 170.5338 | D75: 0.01749748808 | E75: -0.02945211738 | F75: 0.01749748808 | G75: 0.008901448806 | H75: 0.0275 | I75: 0.0225 | J75: 5.6344 | K75: 5.4738 | L75: 6.704936 | M75: 6.59939574 | N75: 7.8092784 | O75: 7.54818774 | P75: 5674.72 | Q75: 0.02052480043 | R75: 0.06099478544 | S75: 1011.948 | T75: 0.08257752274 | U75: 0.3109697011 | V75: 1231.299 | W75: 0.1056575988 | X75: 0.4257383439 | Y75: 264.847 | Z75: 0.01069281994 | AA75: 0.02623645748 | AB75: 2156670 | AC75: 7898172 | AD75: 1287344 | AE75: 4880888 | AF75: 4.39 | AG75: 2.08
A76: 2021-06-01 | B76: 2021 - II | C76: 171.3783 | D76: 0.06821593632 | E76: 0.02401645188 | F76: 0.1239653324 | G76: -0.006963183118 | H76: 0.0425 | I76: 0.035 | J76: 4.969 | K76: 5.2923 | L76: 5.982676 | M76: 6.37880919 | N76: 6.9670349 | O76: 7.40057591 | P76: 5769.98 | Q76: 0.01678673133 | R76: 0.08347072366 | S76: 1075.733 | T76: 0.06303189492 | U76: 0.3575134176 | V76: 1325.064 | W76: 0.07615128413 | X76: 0.4752717431 | Y76: 270.71 | Z76: 0.02213730947 | AA76: 0.05317418943 | AB76: 2203639 | AC76: 8349087 | AD76: 1306327 | AE76: 5120611 | AF76: 4.61 | AG76: 2.87
A77: 2021-09-01 | B77: 2021 - III | C77: 175.4587 | D77: 0.05922408174 | E77: 0.04292838794 | F77: 0.04212977124 | G77: 0.001321218377 | H77: 0.0625 | I77: 0.0525 | J77: 5.443 | K77: 5.233066667 | L77: 6.4036895 | M77: 6.167692373 | N77: 7.4748719 | O77: 7.211165867 | P77: 5944.21 | Q77: 0.03019594522 | R77: 0.1024639496 | S77: 1084.312 | T77: 0.00797502726 | U77: 0.2485715799 | V77: 1326.913 | W77: 0.001395404297 | X77: 0.3054154189 | Y77: 273.942 | Z77: 0.01193897529 | AA77: 0.05363523425 | AB77: 2295851 | AC77: 8715615 | AD77: 1413002 | AE77: 5333302 | AF77: 4.88 | AG77: 3.28
A78: 2021-12-01 | B78: 2021 - IV | C78: 173.96 | D78: 0.04762598948 | E78: 0.04762598948 | F78: 0.01458598581 | G78: 0.01322764136 | H78: 0.0925 | I78: 0.0825 | J78: 5.5699 | K78: 5.584466667 | L78: 6.29788593 | M78: 6.387512973 | N78: 7.41687884 | O78: 7.531025598 | P78: 6120.04 | Q78: 0.02958004512 | R78: 0.1006098274 | S78: 1100.988 | T78: 0.01537933731 | U78: 0.1778321234 | V78: 1342.671 | W78: 0.01187568439 | X78: 0.2056652314 | Y78: 280.806 | Z78: 0.0250563988 | AA78: 0.07159457345 | AB78: 2355982 | AC78: 9012142 | AD78: 1523898 | AE78: 5530571 | AF78: 5.32 | AG78: 4.1
A79: 2022-03-01 | B79: 2022 - I | C79: 173.0465 | D79: 0.01473432246 | E79: 0.04678178533 | F79: 0.01473432246 | G79: 0.007220408397 | H79: 0.1175 | I79: 0.1058333333 | J79: 4.74 | K79: 5.2266 | L79: 5.221584 | M79: 5.86738116 | N79: 6.239262 | O79: 7.0140972 | P79: 6315.93 | Q79: 0.03200796073 | R79: 0.1129941213 | S79: 1161.418 | T79: 0.05488706507 | U79: 0.1477052181 | V79: 1435.019 | W79: 0.06877932122 | X79: 0.1654512836 | Y79: 287.467 | Z79: 0.02372100311 | AA79: 0.08540780149 | AB79: 2319528 | AC79: 9175000 | AD79: 1475027 | AE79: 5718254 | AF79: 6.08 | AG79: 4.77
A80: 2022-06-01 | B80: 2022 - II | C80: 177.4517 | D80: 0.02511200978 | E80: 0.02666748028 | F80: 0.03543855902 | G80: 0.01149645267 | H80: 0.1325 | I80: 0.1258333333 | J80: 5.26 | K80: 4.9215 | L80: 5.556664 | M80: 5.2407413 | N80: 6.478742 | O80: 6.18386475 | P80: 6455.85 | Q80: 0.02215350708 | R80: 0.1188686963 | S80: 1190.908286 | T80: 0.02539162101 | U80: 0.107066796 | V80: 1466.795026 | W80: 0.02214327879 | X80: 0.1069616455 | Y80: 295.072 | Z80: 0.02645521051 | AA80: 0.08999298142 | AB80: 2517481 | AC80: 9488842 | AD80: 1563936 | AE80: 5975863 | AF80: 6.82 | AG80: 5.01
A81: 2022-09-01 | B81: 2022 - III | C81: 183.0417 | D81: 0.03125244022 | E81: 0.02710393379 | F81: 0.04321814763 | G81: 0.01023873108 | H81: 0.1375 | I81: 0.1358333333 | J81: 5.4155 | K81: 5.249566667 | L81: 5.36080345 | M81: 5.285088734 | N81: 6.130346 | O81: 6.17506527 | P81: 6370.34 | Q81: -0.01324535112 | R81: 0.07168824789 | S81: 1173.826631 | T81: -0.0143433836 | U81: 0.08255431215 | V81: 1440.886809 | W81: -0.01766314761 | X81: 0.08589395743 | Y81: 296.421 | Z81: 0.004571765535 | AA81: 0.08205751582 | AB81: 2601182 | AC81: 9794173 | AD81: 1626419 | AE81: 6189280 | AF81: 7.01 | AG81: 5.23
A82: 2022-12-01 | B82: 2022 - IV | C82: 178.6464 | D82: 0.03016717901 | E82: 0.03016717901 | F82: 0.02693952633 | G82: 0.004105716449 | H82: 0.1375 | I82: 0.1375 | J82: 5.2804 | K82: 5.2632 | L82: 5.6526682 | M82: 5.43056976 | N82: 6.38030732 | O82: 6.19899696 | P82: 6474.09 | Q82: 0.01628641485 | R82: 0.05785092908 | S82: 1161.006 | T82: -0.01092208251 | U82: 0.05451285573 | V82: 1413.477147 | W82: -0.01902277209 | X82: 0.05273529209 | Y82: 298.808 | Z82: 0.008052735805 | AA82: 0.06410831677 | AB82: 2641485 | AC82: 10079676 | AD82: 1691277 | AE82: 6356659 | AF82: 7.2 | AG82: 5.23
A83: 2023-03-01 | B83: 2023 - I | C83: 180.7372 | D83: 0.04444296764 | E83: 0.03752070892 | F83: 0.04444296764 | G83: 0.01381860946 | H83: 0.1375 | I83: 0.1375 | J83: 5.074 | K83: 5.1917 | L83: 5.4997086 | M83: 5.585923087 | N83: 6.2597938 | O83: 6.362082237 | P83: 6609.67 | Q83: 0.02094193933 | R83: 0.04650779853 | S83: 1163.36602 | T83: 0.002032737115 | U83: 0.001677277249 | V83: 1410.416698 | W83: -0.002165191986 | X83: -0.01714423435 | Y83: 301.643 | Z83: 0.009487697786 | AA83: 0.04931348642 | AB83: 2581018 | AC83: 10341166 | AD83: 1635673 | AE83: 6517305 | AF83: 7.37 | AG83: 6.15
A84: 2023-06-01 | B84: 2023 - II | C84: 184.2841 | D84: 0.04143559082 | E84: 0.03827954433 | F84: 0.03850287149 | G84: 0.008006208341 | H84: 0.1375 | I84: 0.1375 | J84: 4.7866 | K84: 4.937 | L84: 5.22170194 | M84: 5.3650379 | N84: 6.08041798 | O84: 6.197086967 | P84: 6659.95 | Q84: 0.007607036357 | R84: 0.03161473702 | S84: 1109.274249 | T84: -0.04649591755 | U84: -0.06854771037 | V84: 1315.16501 | W84: -0.06753442981 | X84: -0.1033750542 | Y84: 304.099 | Z84: 0.008142075235 | AA84: 0.03059253335 | AB84: 2727580 | AC84: 10551265 | AD84: 1686827 | AE84: 6640196 | AF84: 7.28 | AG84: 5.69
A85: 2023-09-01 | B85: 2023 - III | C85: 187.3524 | D85: 0.03529970298 | E85: 0.03324410364 | F85: 0.02355037131 | G85: 0.001005195 | H85: 0.1275 | I85: 0.1325 | J85: 5.0283 | K85: 4.8832 | L85: 5.31642159 | M85: 5.275972053 | N85: 6.13402317 | O85: 6.139810133 | P85: 6700.66 | Q85: 0.006112658503 | R85: 0.05185280534 | S85: 1103.775776 | T85: -0.004956820193 | U85: -0.05967734332 | V85: 1304.46359 | W85: -0.008136941225 | X85: -0.09468003858 | Y85: 307.374 | Z85: 0.01076951914 | AA85: 0.03695082332 | AB85: 2769445 | AC85: 10719528 | AD85: 1748852 | AE85: 6762629 | AF85: 7 | AG85: 5.15
A86: 2023-12-01 | B86: 2023 - IV | C86: 182.8992 | D86: 0.03241651798 | E86: 0.03241651798 | F86: 0.02380568542 | G86: 0.003205391601 | H86: 0.1175 | I86: 0.1225 | J86: 4.8572 | K86: 4.955433333 | L86: 5.36186308 | M86: 5.368716473 | N86: 6.18370132 | O86: 6.194126486 | P86: 6773.27 | Q86: 0.01083624598 | R86: 0.04621190005 | S86: 1124.134447 | T86: 0.01844457062 | U86: -0.03175827972 | V86: 1334.436729 | W86: 0.02297736704 | X86: -0.0559191344 | Y86: 308.735 | Z86: 0.004427830591 | AA86: 0.03322200209 | AB86: 2865301 | AC86: 10943344 | AD86: 1814674 | AE86: 6886026 | AF86: 6.55 | AG86: 5.56
A87: 2024-03-01 | B87: 2024 - I | C87: 185.184 | D87: 0.02460367871 | E87: 0.02756401441 | F87: 0.02460367871 | G87: 0.007801214549 | H87: 0.1075 | I87: 0.1108333333 | J87: 5.0141 | K87: 4.950233333 | L87: 5.4102139 | M87: 5.352852311 | N87: 6.32929843 | O87: 6.254619817 | P87: 6869.14 | Q87: 0.01415416778 | R87: 0.0392561202 | S87: 1113.940496 | T87: -0.00906826689 | U87: -0.04248493047 | V87: 1311.147329 | W87: -0.01745260687 | X87: -0.07038300733 | Y87: 312.107 | Z87: 0.01092198811 | AA87: 0.03469001435 | AB87: 2764833 | AC87: 11127159 | AD87: 1784961 | AE87: 7035314 | AF87: 6.53 | AG87: 5.41
A88: 2024-06-01 | B88: 2024 - II | C88: 190.6808 | D88: 0.02970648562 | E88: 0.02670531027 | F88: 0.03471107925 | G88: 0.01694789663 | H88: 0.105 | I88: 0.1058333333 | J88: 5.5941 | K88: 5.2197 | L88: 5.99295933 | M88: 5.60717573 | N88: 7.07373945 | O88: 6.59317706 | P88: 6941.51 | Q88: 0.01053552555 | R88: 0.04227659367 | S88: 1136.527256 | T88: 0.02027645158 | U88: 0.02456832169 | V88: 1340.80457 | W88: 0.02261930427 | X88: 0.01949531722 | Y88: 313.131 | Z88: 0.003280926093 | AA88: 0.029700854 | AB88: 2934759 | AC88: 11334338 | AD88: 1834839 | AE88: 7183326 | AF88: 6.67 | AG88: 5.91
A89: 2024-09-01 | B89: 2024 - III | C89: 195.1024 | D89: 0.0336610885 | E89: 0.03125262903 | F89: 0.04136589657 | G89: 0.008202832465 | H89: 0.1075 | I89: 0.1058333333 | J89: 5.45 | K89: 5.545933333 | L89: 6.068575 | M89: 6.102190447 | N89: 7.30409 | O89: 7.27737372 | P89: 6997.15 | Q89: 0.00801554705 | R89: 0.04424788006 | S89: 1153.789719 | T89: 0.01518878054 | U89: 0.04531168715 | V89: 1363.270301 | W89: 0.01675541095 | X89: 0.04508114407 | Y89: 314.851 | Z89: 0.005492908719 | AA89: 0.02432541464 | AB89: 3015936 | AC89: 11580829 | AD89: 1932140 | AE89: 7366614 | AF89: 6.91 | AG89: 6.28
A90: 2024-12-01 | B90: 2024 - IV | C90: 189.447 | D90: 0.03419315468 | E90: 0.03419315468 | F90: 0.03580004724 | G90: 2.657633845e-06 | H90: 0.1225 | I90: 0.1141666667 | J90: 6.1774 | K90: 5.842317711 | L90: 6.39607996 | M90: 6.195777932 | N90: 7.73348706 | O90: 7.422469908 | P90: 7100.5 | Q90: 0.01477029934 | R90: 0.04831196748 | S90: 1197.604034 | T90: 0.03797426392 | U90: 0.06535658428 | V90: 1430.961506 | W90: 0.04965354653 | X90: 0.07233372373 | Y90: 317.603 | Z90: 0.008740642399 | AA90: 0.02872366269 | AB90: 3063723 | AC90: 11779251 | AD90: 1981637 | AE90: 7533577 | AF90: 7.43 | AG90: 6.66
A91: 2025-03-01 | B91: 2025 - I | C91: 191.0153 | D91: 0.03148922153 | E91: 0.03585925858 | F91: 0.03148922153 | G91: 0.01480427297 | H91: 0.1425 | I91: 0.1358333333 | J91: 5.7057 | K91: 5.848796785 | L91: 6.17128512 | M91: 6.151569498 | N91: 7.36434699 | O91: 7.38488578 | P91: 7245.38 | Q91: 0.02040419689 | R91: 0.05477250427 | S91: 1209.370388 | T91: 0.009824911698 | U91: 0.08566875265 | V91: 1440.718326 | W91: 0.00681836628 | X91: 0.0988226068 | Y91: 319.615 | Z91: 0.006334952755 | AA91: 0.02405585264 | AB91: 3024723 | AC91: 12039141 | AD91: 1934192 | AE91: 7682808 | AF91: 7.97 | AG91: 7.68
A92: 2025-06-01 | B92: 2025 - II | C92: 195.1805 | D92: 0.02748594707 | E92: 0.03300932669 | F92: 0.02359807595 | G92: 0.002949785888 | H92: 0.15 | I92: 0.1466666667 | J92: 5.4317 | K92: 5.667426416 | L92: 6.40234479 | M92: 6.510361638 | N92: 7.44903338 | O92: 7.654803946 | P92: 7312.97 | Q92: 0.009328703256 | R92: 0.05351285239 | S92: 1186.156032 | T92: -0.01919540648 | U92: 0.04366703553 | V92: 1394.573355 | W92: -0.0320291414 | X92: 0.04010188123 | Y92: 321.5 | Z92: 0.005897720695 | AA92: 0.02672683318 | AB92: 3200345 | AC92: 12304727 | AD92: 1992000 | AE92: 7839969 | AF92: 8.65 | AG92: 7.61
A93: 2025-09-01 | B93: 2025 - III | C93: 198.6604 | D93: 0.02432539032 | E93: 0.02710931274 | F93: 0.01823657731 | G93: 0.0002247115138 | H93: 0.15 | I93: 0.15 | J93: 5.32 | K93: 5.444657527 | L93: 6.242488 | M93: 6.320339946 | N93: 7.160188 | O93: 7.290396428 | P93: 7359.06 | Q93: 0.006302500899 | R93: 0.05172248701 | S93: 1186.178418 | T93: 1.88724373e-05 | U93: 0.02807157849 | V93: 1389.265832 | W93: -0.003805840043 | X93: 0.0190685082 | Y93: 324.368 | Z93: 0.008920684292 | AA93: 0.03022699626 | AB93: 3235708 | AC93: 12524499 | AD93: 2050092 | AE93: 7957921 | AF93: 8.96 | AG93: 7.61
A94: 2025-12-01 | B94: 2025 - IV | C94: 192.9391 | D94: 0.02285741113 | E94: 0.02285741113 | F94: 0.01843312378 | G94: 0.001452951469 | H94: 0.15 | I94: 0.15 | J94: 5.4749 | K94: 5.402715125 | L94: 6.43081754 | M94: 6.281736876 | N94: 7.36483548 | O94: 7.174625596 | P94: 7403.29 | Q94: 0.006010278487 | R94: 0.04264347581 | S94: 1184.899239 | T94: -0.001078403663 | U94: -0.01060851118 | V94: 1383.227734 | W94: -0.004346251022 | X94: -0.03335783125 | Y94: 326.03 | Z94: 0.005123809994 | AA94: 0.02653312469 | AB94: 3277790 | AC94: 12738566 | AD94: 2105049 | AE94: 8081333 | AF94: 9.07 | AG94: 7.82
A95: 2026-03-01 | B95: 2026 - I | C95: 194.5299815 | D95: 0.0184 | E95: 0.01966012397 | F95: 0.0184 | G95: 0.011 | H95: 0.1475 | I95: 0.1491666667 | J95: 5.22 | K95: 5.254154839 | L95: 6.033798 | M95: 6.168728058 | N95: 6.937112194 | O95: 7.085663363 | P95: 7529.78 | Q95: 0.01708564706 | R95: 0.03925259959 | S95: 1190.774321 | T95: 0.004958296956 | U95: -0.01537665183 | V95: - | W95: - | X95: - | Y95: 328.0488581 | Z95: 0.006192246326 | AA95: 0.02638755399 | AB95: 3191209.808 | AC95: 12905052.81 | AD95: 2022651.478 | AE95: 8169792.478 | AF95: 9.19 | AG95: 7.72
A96: 2026-06-01 | B96: 2026 - II | C96: 198.9670017 | D96: 0.0189053926 | E96: 0.01862000986 | F96: 0.0194 | G96: 0.00446905013 | H96: 0.14 | I96: 0.1433333333 | J96: 5.28 | K96: 5.26 | L96: 6.1248 | M96: 6.1016 | N96: 7.033441717 | O96: 7.006799893 | P96: 7602.94 | Q96: 0.009716087323 | R96: 0.03965146856 | S96: 1214.639441 | T96: 0.02004168189 | U96: 0.02401320582 | V96: - | W96: - | X96: - | Y96: 330.0802174 | Z96: 0.006192246326 | AA96: 0.02668807902 | AB96: 3379813.888 | AC96: 13084521.7 | AD96: 2085923.971 | AE96: 8263716.449 | AF96: 8.848495703 | AG96: 7.292594821
A97: 2026-09-01 | B97: 2026 - III | C97: 202.3753495 | D97: 0.01883562609 | E97: 0.01873714677 | F97: 0.0187 | G97: 0.002413422459 | H97: 0.13 | I97: 0.135 | J97: 5.34 | K97: 5.32 | L97: 6.1944 | M97: 6.1712 | N97: 7.113367191 | O97: 7.086725367 | P97: 7648.51 | Q97: 0.005993734003 | R97: 0.03933246909 | S97: 1225.728133 | T97: 0.009129204809 | U97: 0.03334213042 | V97: - | W97: - | X97: - | Y97: 332.1241554 | Z97: 0.006192246326 | AA97: 0.02391159245 | AB97: 3414813.483 | AC97: 13263627.18 | AD97: 2161664.627 | AE97: 8375289.076 | AF97: 8.544055785 | AG97: 6.924227513
A98: 2026-12-01 | B98: 2026 - IV | C98: 196.3155343 | D98: 0.01850431206 | E98: 0.01850431206 | F98: 0.0175 | G98: 0.002639736598 | H98: 0.13 | I98: 0.13 | J98: 5.4 | K98: 5.38 | L98: 6.264 | M98: 6.2408 | N98: 7.193292665 | O98: 7.166650841 | P98: 7736.52 | Q98: 0.01150681636 | R98: 0.0450110694 | S98: 1242.339498 | T98: 0.0135522425 | U98: 0.04847691491 | V98: - | W98: - | X98: - | Y98: 334.18075 | Z98: 0.006192246326 | AA98: 0.025 | AB98: 3455149.97 | AC98: 13440987.15 | AD98: 2233600.464 | AE98: 8503840.54 | AF98: 8.266659168 | AG98: 6.813606924
A99: 2027-03-01 | B99: 2027 - I | C99: 196.4752813 | D99: 0.01 | E99: 0.01641241703 | F99: 0.01 | G99: 0.004912463795 | H99: 0.13 | I99: 0.13 | J99: 5.45 | K99: 5.433333333 | L99: 6.322 | M99: 6.302666667 | N99: 7.259897227 | O99: 7.237695706 | P99: 7828.83 | Q99: 0.01193172124 | R99: 0.03971563578 | S99: 1250.528482 | T99: 0.006591582991 | U99: 0.05018092861 | V99: - | W99: - | X99: - | Y99: 336.2500795 | Z99: 0.006192246326 | AA99: 0.025 | AB99: 3363831.724 | AC99: 13613609.06 | AD99: 2155561.324 | AE99: 8636750.386 | AF99: 8.032421923 | AG99: 6.723362023
A100: 2027-06-01 | B100: 2027 - II | C100: 202.7473747 | D100: 0.01455074141 | E100: 0.01632545407 | F100: 0.019 | G100: 0.005141948012 | H100: 0.125 | I100: 0.1266666667 | J100: 5.5 | K100: 5.483333333 | L100: 6.38 | M100: 6.360666667 | N100: 7.326501789 | O100: 7.304300268 | P100: 7916.24 | Q100: 0.01116514217 | R100: 0.04120774332 | S100: 1262.135072 | T100: 0.009281348001 | U100: 0.03910265834 | V100: - | W100: - | X100: - | Y100: 338.3322228 | Z100: 0.006192246326 | AA100: 0.025 | AB100: 3594384.231 | AC100: 13828179.41 | AD100: 2215699.377 | AE100: 8766525.792 | AF100: 7.807097612 | AG100: 6.595032554
A101: 2027-09-01 | B101: 2027 - III | C101: 206.0181058 | D101: 0.01572220864 | E101: 0.01615704699 | F101: 0.018 | G101: 0.005182434253 | H101: 0.12 | I101: 0.1225 | J101: 5.55 | K101: 5.533333333 | L101: 6.438 | M101: 6.418666667 | N101: 7.39310635 | O101: 7.37090483 | P101: 7956.03 | Q101: 0.005026376158 | R101: 0.04020652389 | S101: 1270.211246 | T101: 0.00639881918 | U101: 0.03629117399 | V101: - | W101: - | X101: - | Y101: 340.4272593 | Z101: 0.006192246326 | AA101: 0.025 | AB101: 3628041.914 | AC101: 14041407.84 | AD101: 2288620.116 | AE101: 8893481.281 | AF101: 7.558393879 | AG101: 6.460707912
A102: 2027-12-01 | B102: 2027 - IV | C102: 200.2418449 | D102: 0.0167823068 | E102: 0.0167823068 | F102: 0.02 | G102: 0.005047259427 | H102: 0.12 | I102: 0.12 | J102: 5.6 | K102: 5.583333333 | L102: 6.496 | M102: 6.476666667 | N102: 7.459710912 | O102: 7.437509392 | P102: 8051.97 | Q102: 0.01205877806 | R102: 0.04077414652 | S102: 1288.538751 | T102: 0.01442870636 | U102: 0.03718730121 | V102: - | W102: - | X102: - | Y102: 342.5352688 | Z102: 0.006192246326 | AA102: 0.025 | AB102: 3678109.078 | AC102: 14264366.95 | AD102: 2357023.542 | AE102: 9016904.359 | AF102: 7.382727357 | AG102: 6.388929013
A103: 2028-03-01 | B103: 2028 - I | C103: 200.2092176 | D103: 0.0190046107 | E103: 0.01899351 | F103: 0.0190046107 | G103: 0.0035 | H103: 0.115 | I103: 0.1166666667 | J103: 5.6125 | K103: 5.608333333 | L103: 6.5105 | M103: 6.505666667 | N103: 7.476362053 | O103: 7.470811672 | P103: 8164.306676 | Q103: 0.01395145235 | R103: 0.0428514447 | S103: 1296.924096 | T103: 0.006507638821 | U103: 0.03710080553 | V103: - | W103: - | X103: - | Y103: 344.6563315 | Z103: 0.006192246326 | AA103: 0.025 | AB103: 3581035.184 | AC103: 14481570.41 | AD103: 2289787.691 | AE103: 9151130.726 | AF103: 7.231895435 | AG103: 6.306832514
A104: 2028-06-01 | B104: 2028 - II | C104: 206.2630177 | D104: 0.01815923801 | E104: 0.01857174427 | F104: 0.01734001736 | G104: 0.0035 | H104: 0.11 | I104: 0.1116666667 | J104: 5.625 | K104: 5.620833333 | L104: 6.525 | M104: 6.520166667 | N104: 7.493013193 | O104: 7.487462813 | P104: 8227.56487 | Q104: 0.007748140381 | R104: 0.03932736628 | S104: 1309.412886 | T104: 0.009629545825 | U104: 0.03745860095 | V104: - | W104: - | X104: - | Y104: 346.7905284 | Z104: 0.006192246326 | AA104: 0.025 | AB104: 3820223.794 | AC104: 14707409.97 | AD104: 2367050.325 | AE104: 9302481.674 | AF104: 7.070593854 | AG104: 6.235557228
A105: 2028-09-01 | B105: 2028 - III | C105: 209.2396591 | D105: 0.0173007723 | E105: 0.01796186165 | F105: 0.01563723423 | G105: 0.0035 | H105: 0.11 | I105: 0.11 | J105: 5.6375 | K105: 5.633333333 | L105: 6.5395 | M105: 6.534666667 | N105: 7.509664334 | O105: 7.504113953 | P105: 8260.726066 | Q105: 0.004030499469 | R105: 0.03829750087 | S105: 1326.455592 | T105: 0.01301553235 | U105: 0.0442795211 | V105: - | W105: - | X105: - | Y105: 348.9379408 | Z105: 0.006192246326 | AA105: 0.025 | AB105: 3849542.217 | AC105: 14928910.27 | AD105: 2458850.866 | AE105: 9472712.424 | AF105: 6.982888807 | AG105: 6.180777316
A106: 2028-12-01 | B106: 2028 - IV | C106: 203.0599829 | D106: 0.01649851961 | E106: 0.01649851961 | F106: 0.01407367165 | G106: 0.0035 | H106: 0.11 | I106: 0.11 | J106: 5.65 | K106: 5.645833333 | L106: 6.554 | M106: 6.549166667 | N106: 7.526315474 | O106: 7.520765094 | P106: 8374.0488 | Q106: 0.01371825348 | R106: 0.04 | S106: 1340.080301 | T106: 0.01027151572 | U106: 0.04 | V106: - | W106: - | X106: - | Y106: 351.0986505 | Z106: 0.006192246326 | AA106: 0.025 | AB106: 3896657.984 | AC106: 15147459.18 | AD106: 2546737.717 | AE106: 9662426.598 | AF106: 6.984846618 | AG106: 6.131896208

Sheet Argentina
D2: 2009 | E2: 2010 | F2: 2011 | G2: 2012 | H2: 2013 | I2: 2014 | J2: 2015 | K2: 2016 | L2: 2017 | M2: 2018 | N2: 2019 | O2: 2020 | P2: 2021 | Q2: 2022 | R2: 2023 | S2: 2024 | T2: 2025 | U2: 2026F | V2: 2027F | W2: 2028F
C4: GDP % | D4: -0.0591852508 | E4: 0.1012539816 | F4: 0.06003951689 | G4: -0.01026420463 | H4: 0.02405323787 | I4: -0.02512615326 | J4: 0.02731159839 | K4: -0.02080327849 | L4: 0.02818502973 | M4: -0.02617396461 | N4: -0.02000861002 | O4: -0.09900484819 | P4: 0.10441812 | Q4: 0.06020745374 | R4: -0.01855788033 | S4: -0.01342930725 | T4: 0.04456669099 | U4: 0.03521548909 | V4: 0.02975079962 | W4: 0.02960251472
C5: CPI % | D5: 0.1486782796 | E5: 0.2636475076 | F5: 0.2281 | G5: 0.2563414034 | H5: 0.2660026127 | I5: 0.3803688895 | J5: 0.2690420949 | K5: 0.41 | L5: 0.2482571783 | M5: 0.4763516032 | N5: 0.5397586025 | O5: 0.361 | P5: 0.5081172267 | Q5: 0.9471905738 | R5: 2.055110939 | S5: 1.177714205 | T5: 0.315230048 | U5: 0.2354668012 | V5: 0.1801615923 | W5: 0.1504773669
C6: Exchange Rate - ARG / USD (end of period) | D6: 3.7967 | E6: 3.9758 | F6: 4.3032 | G6: 4.917 | H6: 6.518 | I6: 8.552 | J6: 13.005 | K6: 15.8502 | L6: 18.7742 | M6: 37.8083 | N6: 59.895 | O6: 84.14 | P6: 102.75 | Q6: 177.128 | R6: 809 | S6: 1032.5 | T6: 1459 | U6: 1700 | V6: 1950.111496 | W6: 2187.770979
C7: Monetary Policy Rate - % (end of period) | K7: 0.2475 | L7: 0.2875 | M7: 0.5925 | N7: 0.55 | O7: 0.38 | P7: 0.38 | Q7: 0.75 | R7: 1 | S7: 0.32 | T7: 0.27 | U7: 0.28 | V7: 0.22 | W7: 0.18

Sheet Argentina_Quarterly
C1: GDP NSA | H1: Monetary Policy Rate ** | J1: Exchange Rate | L1: Inflation NSA
C2: Index | D2: Ydt | E2: 12M | F2: YoY | G2: QoQ* | H2: eop | I2: Avg | J2: eop | K2: Avg | L2: Index (eop) | M2: QoQ | N2: YoY
A3: 2002-03-01 | B3: 2002 - I | H3: 0.335 | I3: 0.2003 | J3: 2.8517 | K3: 2.12585 | L3: 51.127
A4: 2002-06-01 | B4: 2002 - II | H4: 0.5881 | I4: 0.8506 | J4: 3.8037 | K4: 3.3602 | L4: 60.8282 | M4: =L4/L3-1 -> 0.1897471004
A5: 2002-09-01 | B5: 2002 - III | H5: 0.3469 | I5: 0.66065 | J5: 3.7267 | K5: 3.71375 | L5: 65.1055 | M5: 0.07031771448
A6: 2002-12-01 | B6: 2002 - IV | H6: 0.2131 | I6: 0.21155 | J6: 3.363 | K6: 3.4431 | L6: 65.7028 | M6: 0.00917434011
A7: 2003-03-01 | B7: 2003 - I | H7: 0.2513 | I7: 0.21035 | J7: 2.9625 | K7: 3.0721 | L7: 67.3372 | M7: 0.02487565218 | N7: =L7/L3-1 -> 0.3170575234
A8: 2003-06-01 | B8: 2003 - II | H8: 0.0525 | I8: 0.12065 | J8: 2.8075 | K8: 2.8185 | L8: 67.0585 | M8: -0.004138871233 | N8: 0.1024245334
A9: 2003-09-01 | B9: 2003 - III | H9: 0.0413 | I9: 0.03505 | J9: 2.911 | K9: 2.92115 | L9: 67.3994 | M9: 0.005083621017 | N9: 0.03523358242
A10: 2003-12-01 | B10: 2003 - IV | H10: 0.0281 | I10: 0.03095 | J10: 2.933 | K10: 2.90525 | L10: 68.1082 | M10: 0.01051641409 | N10: 0.03661031189
A11: 2004-03-01 | B11: 2004 - I | H11: 0.0169 | I11: 0.01595 | J11: 2.855 | K11: 2.89385 | L11: 68.8695 | M11: 0.01117780238 | N11: 0.02275562393
A12: 2004-06-01 | B12: 2004 - II | H12: 0.0244 | I12: 0.02125 | J12: 2.9607 | K12: 2.90295 | L12: 70.3639 | M12: 0.02169901045 | N12: 0.04929129044
A13: 2004-09-01 | B13: 2004 - III | H13: 0.0519 | I13: 0.04595 | J13: 2.9825 | K13: 2.97925 | L13: 71.3774 | M13: 0.0144036928 | N13: 0.05902129693
A14: 2004-12-01 | B14: 2004 - IV | H14: 0.04 | I14: 0.0419 | J14: 2.9738 | K14: 2.976 | L14: 72.2606 | M14: 0.01237366449 | N14: 0.06096769552
A15: 2005-03-01 | B15: 2005 - I | C15: 101.7495505 | H15: 0.0331 | I15: 0.03095 | J15: 2.9233 | K15: 2.9243 | L15: 75.1723 | M15: =L15/L14-1 -> 0.04029443431 | N15: 0.09151801596
A16: 2005-06-01 | B16: 2005 - II | C16: 119.903119 | G16: 0.02352208408 | H16: 0.0594 | I16: 0.05315 | J16: 2.8908 | K16: 2.90205 | L16: 76.6907 | M16: 0.02019892966 | N16: 0.08991542538
A17: 2005-09-01 | B17: 2005 - III | C17: 106.0980556 | G17: 0.005751031793 | H17: 0.0606 | I17: 0.06125 | J17: 2.9125 | K17: 2.88765 | L17: 78.704 | M17: 0.02625220529 | N17: 0.1026459355
A18: 2005-12-01 | B18: 2005 - IV | C18: 107.6559146 | G18: 0.01876699164 | H18: 0.0763 | I18: 0.0697 | J18: 3.0315 | K18: 3.0206 | L18: 81.1696 | M18: 0.03132750559 | N18: 0.1232898703
A19: 2006-03-01 | B19: 2006 - I | C19: 109.7364538 | D19: =AVERAGE(OFFSET($C$1,MATCH(EDATE(A19,0),$A$1:$A$304,0)-1,,IF(MONTH($A19)=3,-1,IF(MONTH($A19)=6,-2,IF(MONTH($A19)=9,-3,-4)))))/AVERAGE(OFFSET($C$1,MATCH(EDATE(A19,-12),$A$1:$A$304,0)-1,,IF(MONTH($A19)=3,-1,IF(MONTH($A19)=6,-2,IF(MONTH($A19)=9,-3,-4)))))-1 -> 0.0784957107 | F19: =C19/C15-1 -> 0.0784957107 | G19: 0.02670317863 | H19: 0.0863 | I19: 0.08345 | J19: 3.0808 | K19: 3.07225 | L19: 83.5258 | M19: 0.02902810905 | N19: 0.1111247095
A20: 2006-06-01 | B20: 2006 - II | C20: 126.5836236 | D20: 0.06617293566 | F20: =C20/C16-1 -> 0.05571585304 | G20: 0.01210383222 | H20: 0.0913 | I20: 0.09065 | J20: 3.0848 | K20: 3.0643 | L20: 85.1431 | M20: 0.01936287949 | N20: 0.1102141459
A21: 2006-09-01 | B21: 2006 - III | C21: 116.0505734 | D21: 0.07511783726 | F21: 0.09380490281 | G21: 0.02835416787 | H21: 0.095 | I21: 0.0947 | J21: 3.1043 | K21: 3.08955 | L21: 86.9252 | M21: 0.020930645 | N21: 0.1044572067
A22: 2006-12-01 | B22: 2006 - IV | C22: 118.0738209 | D22: 0.08047151504 | E22: =AVERAGE(C19:C22)/AVERAGE(C15:C18)-1 -> 0.08047151504 | F22: 0.09677040377 | G22: 0.02132786086 | H22: 0.0988 | I22: 0.0972 | J22: 3.0695 | K22: 3.0814 | L22: 89.1559 | M22: 0.02566229356 | N22: =L22/L18-1 -> 0.09839028405
A23: 2007-03-01 | B23: 2007 - I | C23: 118.9092594 | D23: 0.08358941136 | E23: =AVERAGE(C20:C23)/AVERAGE(C16:C19)-1 -> 0.08169657593 | F23: 0.08358941136 | G23: 0.02394998477 | H23: 0.0831 | I23: 0.08625 | J23: 3.1007 | K23: 3.1035 | L23: 91.97935725 | M23: 0.03166876508 | N23: 0.1012089349
A24: 2007-06-01 | B24: 2007 - II | C24: 139.0639934 | D24: 0.09162647387 | E24: 0.09337041258 | F24: 0.09859387387 | G24: 0.02083385509 | H24: 0.0819 | I24: 0.0794 | J24: 3.0908 | K24: 3.0903 | L24: 96.1261763 | M24: 0.045084236 | N24: 0.1289954947
A25: 2007-09-01 | B25: 2007 - III | C25: 125.831081 | D25: 0.08920630278 | E25: 0.09097646188 | F25: 0.08427797713 | G25: 0.01357928798 | H25: 0.1175 | I25: 0.10845 | J25: 3.1495 | K25: 3.1345 | L25: 101.1650591 | M25: 0.05241946608 | N25: 0.1638173871
A26: 2007-12-01 | B26: 2007 - IV | C26: 129.0161335 | D26: 0.09007650879 | E26: 0.09007650879 | F26: 0.0926734863 | G26: 0.03073201056 | H26: 0.1363 | I26: 0.13505 | J26: 3.151 | K26: 3.14935 | L26: 109.0161152 | M26: 0.0776064003 | N26: 0.2227582832
A27: 2008-03-01 | B27: 2008 - I | C27: 127.1286414 | D27: 0.06912314577 | E27: 0.08636588806 | F27: 0.06912314577 | G27: 0.01007820761 | H27: 0.0831 | I27: 0.0853 | J27: 3.1653 | K27: 3.1605 | L27: 115.7828276 | M27: 0.062070753 | N27: 0.2587914401
A28: 2008-06-01 | B28: 2008 - II | C28: 146.6467156 | D28: 0.06125481641 | E28: 0.07422292028 | F28: 0.05452685475 | G28: 0.005030364135 | H28: 0.1625 | I28: 0.13 | J28: 3.0242 | K28: 3.09385 | L28: 121.5748451 | M28: 0.05002484057 | N28: 0.2647423391
A29: 2008-09-01 | B29: 2008 - III | C29: 133.388516 | D29: 0.06086314619 | E29: 0.06834697143 | F29: 0.06006016144 | G29: 0.006590737794 | H29: 0.1256 | I29: 0.12625 | J29: 3.1302 | K29: 3.08035 | L29: 127.2018088 | M29: 0.04628394718 | N29: 0.2573689953
A30: 2008-12-01 | B30: 2008 - IV | C30: 126.462916 | D30: 0.04057233102 | E30: 0.04057233102 | F30: -0.01978990884 | G30: -0.04609503573 | H30: 0.1975 | I30: 0.21375 | J30: 3.4537 | K30: 3.41635 | L30: 131.1458446 | M30: 0.03100612969 | N30: 0.2029950278
A31: 2009-03-01 | B31: 2009 - I | C31: 119.2609611 | D31: -0.06188755144 | E31: 0.009057386596 | F31: -0.06188755144 | G31: -0.03569362494 | H31: 0.1238 | I31: 0.1272 | J31: 3.7135 | K31: 3.6005 | L31: 137.4048117 | M31: 0.0477252422 | N31: 0.1867460367
A32: 2009-06-01 | B32: 2009 - II | C32: 130.1129625 | D32: -0.08912940046 | E32: -0.03669388513 | F32: -0.1127454715 | G32: -0.02388291272 | H32: 0.1294 | I32: 0.12845 | J32: 3.7952 | K32: 3.7575 | L32: 140.7886424 | M32: 0.02462672583 | N32: 0.1580408949
A33: 2009-09-01 | B33: 2009 - III | C33: 125.8504909 | D33: -0.07844374376 | E33: -0.06433040327 | F33: -0.05651179964 | G33: 0.03937845574 | H33: 0.1219 | I33: 0.1269 | J33: 3.8427 | K33: 3.8366 | L33: 144.8975002 | M33: 0.02918458317 | N33: 0.1391150929
A34: 2009-12-01 | B34: 2009 - IV | C34: 126.8195392 | D34: -0.0591852508 | E34: -0.0591852508 | F34: 0.002819982261 | G34: 0.01999367815 | H34: 0.1 | I34: 0.1069 | J34: 3.7967 | K34: 3.80785 | L34: 150.6443831 | M34: 0.03966171168 | N34: 0.1486782796
A35: 2010-03-01 | B35: 2010 - I | C35: 126.0746607 | D35: 0.05713269108 | E35: -0.03214676661 | F35: 0.05713269108 | G35: 0.03120235166 | H35: 0.0938 | I35: 0.09565 | J35: 3.8763 | K35: 3.84965 | L35: 160.466747 | M35: 0.06520232404 | N35: 0.1678393568
A36: 2010-06-01 | B36: 2010 - II | C36: 151.2487717 | D36: 0.1120787148 | E36: 0.04078372517 | F36: 0.1624419951 | G36: 0.04422966789 | H36: 0.1031 | I36: 0.0978 | J36: 3.9318 | K36: 3.909 | L36: 169.2882614 | M36: 0.05497409631 | N36: 0.2024283957
A37: 2010-09-01 | B37: 2010 - III | C37: 137.8160313 | D37: 0.1063764717 | E37: 0.08027245265 | F37: 0.09507742367 | G37: 0.004193719552 | H37: 0.1044 | I37: 0.1044 | J37: 3.9607 | K37: 3.9501 | L37: 179.0707713 | M37: 0.05778610898 | N37: 0.2358444489
A38: 2010-12-01 | B38: 2010 - IV | C38: 137.7384391 | D38: 0.1012539816 | E38: 0.1012539816 | F38: 0.0860979311 | G38: 0.01219979912 | H38: 0.1125 | I38: 0.11065 | J38: 3.9758 | K38: 3.9664 | L38: 190.3613992 | M38: 0.06305120509 | N38: 0.2636475076
A39: 2011-03-01 | B39: 2011 - I | C39: 136.5295486 | D39: 0.0829261625 | E39: 0.1070537842 | F39: 0.0829261625 | G39: 0.02418590712 | H39: 0.1113 | I39: 0.1113 | J39: 4.052 | K39: 4.0264 | L39: 201.5959343 | M39: 0.05901687566 | N39: 0.2563097218
A40: 2011-06-01 | B40: 2011 - II | C40: 157.9692745 | D40: 0.06193270623 | E40: 0.07558551925 | F40: 0.04443343766 | G40: 0.0120919328 | H40: 0.1144 | I40: 0.11125 | J40: 4.111 | K40: 4.09575 | L40: 212.0716543 | M40: 0.0519639452 | N40: 0.252725101
A41: 2011-09-01 | B41: 2011 - III | C41: 146.6491668 | D41: 0.06265009334 | E41: 0.06813693637 | F41: 0.06409367181 | G41: 0.007808886549 | H41: 0.14 | I41: 0.13 | J41: 4.2045 | K41: 4.17375 | L41: 223.6864531 | M41: 0.05476827557 | N41: 0.2491511122
A42: 2011-12-01 | B42: 2011 - IV | C42: 144.9244351 | D42: 0.06003951689 | E42: 0.06003951689 | F42: 0.05217131892 | G42: -0.001126598896 | H42: 0.1719 | I42: 0.18625 | J42: 4.3032 | K42: 4.26935 | L42: 233.7828344 | M42: 0.04513631071 | N42: 0.2281
A43: 2012-03-01 | B43: 2012 - I | C43: 138.6652078 | D43: 0.01564246932 | E43: 0.04415736856 | F43: 0.01564246932 | G43: -0.009153312087 | H43: 0.1225 | I43: 0.13655 | J43: 4.3785 | K43: 4.35735 | L43: 248.6829508 | M43: 0.06373486077 | N43: 0.2335712608
A44: 2012-06-01 | B44: 2012 - II | C44: 150.6525213 | D44: -0.01759291924 | E44: 0.01901232329 | F44: -0.04631757223 | G44: -0.03520720063 | H44: 0.1363 | I44: 0.1269 | J44: 4.5253 | K44: 4.47005 | L44: 262.6107355 | M44: 0.05600619057 | N44: 0.238311345
A45: 2012-09-01 | B45: 2012 - III | C45: 145.0091977 | D45: -0.0154620746 | E45: 0.0006304050074 | F45: -0.01118294196 | G45: 0.03170108123 | H45: 0.1488 | I45: 0.1419 | J45: 4.6942 | K45: 4.63875 | L45: 277.8614745 | M45: 0.058073555 | N45: 0.2421917851
A46: 2012-12-01 | B46: 2012 - IV | C46: 145.729931 | D46: -0.01026420463 | E46: -0.01026420463 | F46: 0.005558040164 | G46: 0.01606932285 | H46: 0.1544 | I46: 0.1516 | J46: 4.917 | K46: 4.84125 | L46: 293.7110542 | M46: 0.0570413 | N46: 0.2563414034
A47: 2013-03-01 | B47: 2013 - I | C47: 139.5721132 | D47: 0.006540251446 | E47: -0.01231591581 | F47: 0.006540251446 | G47: -0.0005686287197 | H47: 0.1488 | I47: 0.1491 | J47: 5.1223 | K47: 5.04955 | L47: 308.3281121 | M47: 0.049766795 | N47: 0.2398441915
A48: 2013-06-01 | B48: 2013 - II | C48: 160.0623131 | D48: 0.03565871069 | E48: 0.0163235762 | F48: 0.06246023494 | G48: 0.006396602661 | H48: 0.1713 | I48: 0.1622 | J48: 5.3852 | K48: 5.2846 | L48: 325.2771242 | M48: 0.0549707 | N48: 0.2386284345
A49: 2013-09-01 | B49: 2013 - III | C49: 148.7190983 | D49: 0.0322950224 | E49: 0.02560562587 | F49: 0.02558389874 | G49: 0.00661351185 | H49: 0.1719 | I49: 0.1744 | J49: 5.7915 | K49: 5.649 | L49: 347.2549576 | M49: 0.06756648954 | N49: 0.2497412901
A50: 2013-12-01 | B50: 2013 - IV | C50: 145.6555787 | D50: 0.02405323787 | E50: 0.02405323787 | F50: -0.0005102057546 | G50: -0.008761219308 | H50: 0.2163 | I50: 0.2041 | J50: 6.518 | K50: 6.2144 | L50: 371.838962 | M50: 0.07079525827 | N50: 0.2660026127
A51: 2014-03-01 | B51: 2014 - I | C51: 138.3312775 | D51: =AVERAGE(OFFSET($C$1,MATCH(EDATE(A51,0),$A$1:$A$304,0)-1,,IF(MONTH($A51)=3,-1,IF(MONTH($A51)=6,-2,IF(MONTH($A51)=9,-3,-4)))))/AVERAGE(OFFSET($C$1,MATCH(EDATE(A51,-12),$A$1:$A$304,0)-1,,IF(MONTH($A51)=3,-1,IF(MONTH($A51)=6,-2,IF(MONTH($A51)=9,-3,-4)))))-1 -> -0.00889028384 | E51: 0.02031883105 | F51: -0.00889028384 | G51: -0.0150358351 | H51: 0.2638 | I51: 0.2588 | J51: 8.0098 | K51: 8.014 | L51: 421.4280991 | M51: 0.1333618638 | N51: 0.3668169803
A52: 2014-06-01 | B52: 2014 - II | C52: 156.7827345 | D52: -0.01508643191 | E52: -0.001498823889 | F52: -0.02048938693 | G52: -0.007765266427 | H52: 0.2281 | I52: 0.2431 | J52: 8.1327 | K52: 8.0671 | L52: 455.8962569 | M52: 0.08178894072 | N52: 0.4015626152
A53: 2014-09-01 | B53: 2014 - III | C53: 142.415617 | D53: -0.02414143114 | E53: -0.01834464146 | F53: -0.04238515055 | G53: -0.007974817188 | H53: 0.1988 | I53: 0.2063 | J53: 8.4643 | K53: 8.33725 | L53: 487.0722829 | M53: 0.06838403596 | N53: 0.4026359371
A54: 2014-12-01 | B54: 2014 - IV | C54: 141.5543107 | D54: -0.02512615326 | E54: -0.02512615326 | F54: -0.02815730139 | G54: 0.005042364337 | H54: 0.2038 | I54: 0.2022 | J54: 8.552 | K54: 8.52735 | L54: 513.2749351 | M54: 0.05379622925 | N54: 0.3803688895
A55: 2015-03-01 | B55: 2015 - I | C55: 138.678363 | D55: 0.002509089478 | E55: -0.0224999266 | F55: 0.002509089478 | G55: 0.01420097455 | H55: 0.2188 | I55: 0.2122 | J55: 8.8197 | K55: 8.7296 | L55: 539.5622101 | M55: 0.05121480365 | N55: 0.2803185438
A56: 2015-06-01 | B56: 2015 - II | C56: 163.1026967 | D56: 0.02259143087 | E56: -0.006340582391 | F56: 0.04031032032 | G56: 0.02555131449 | H56: 0.208 | I56: 0.2068 | J56: 9.0865 | K56: 8.9956 | L56: 572.2738762 | M56: 0.06062631045 | N56: 0.2552721536
A57: 2015-09-01 | B57: 2015 - III | C57: 148.0640624 | D57: 0.02814779261 | E57: 0.01408510559 | F57: 0.03966169986 | G57: -0.001968332527 | H57: 0.2125 | I57: 0.2122 | J57: 9.4147 | K57: 9.301 | L57: 604.1498238 | M57: 0.05570051155 | N57: 0.2403699513
A58: 2015-12-01 | B58: 2015 - IV | C58: 145.0545254 | D58: 0.02731159839 | E58: 0.02731159839 | F58: 0.02472700915 | G58: -0.0117235574 | H58: 0.33 | I58: 0.27815 | J58: 13.005 | K58: 11.2755 | L58: 654 | M58: 0.0825129367 | N58: 0.2741709273
A59: 2016-03-01 | B59: 2016 - I | C59: 139.6889019 | D59: 0.007286925453 | E59: 0.02844024676 | F59: 0.007286925453 | G59: -0.007645983675 | H59: 0.38 | I59: 0.34375 | J59: 14.5817 | K59: 14.24285 | L59: 731.4120965 | M59: 0.11836712 | N59: 0.3555658324
A60: 2016-06-01 | B60: 2016 - II | C60: 156.8087926 | D60: -0.01750727915 | E60: 0.006598870546 | F60: -0.03858859647 | G60: -0.01688751823 | H60: 0.3075 | I60: 0.34375 | J60: 14.92 | K60: 14.5891 | L60: 836.5829941 | M60: 0.1437915754 | N60: 0.4618577379
A61: 2016-09-01 | B61: 2016 - III | C61: 143.137647 | D61: -0.02269621287 | E61: -0.01134523563 | F61: -0.03327218852 | G61: 0.002643589449 | H61: 0.2675 | I61: 0.285 | J61: 15.2633 | K61: 15.154 | L61: 865.260021 | M61: 0.03427875906 | N61: 0.4321944439
A62: 2016-12-01 | B62: 2016 - IV | C62: 142.888443 | D62: -0.02080327849 | E62: -0.02080327849 | F62: -0.01493288393 | G62: 0.006654334145 | H62: 0.2475 | I62: 0.2575 | J62: 15.8502 | K62: 15.51235 | L62: 910.7865999 | M62: 0.05261606671 | N62: 0.3926400611
A63: 2017-03-01 | B63: 2017 - I | C63: 140.4707115 | D63: 0.005596790824 | E63: -0.02115183237 | F63: 0.005596790824 | G63: 0.009529132015 | H63: 0.2475 | I63: 0.2475 | J63: 15.3818 | K63: 15.64675 | L63: 967.4667299 | M63: 0.062232064 | N63: 0.3227382136
A64: 2017-06-01 | B64: 2017 - II | C64: 160.4570799 | D64: 0.01494142112 | E64: -0.004515480585 | F64: 0.02326583408 | G64: 0.009773975079 | H64: 0.2625 | I64: 0.2625 | J64: 16.5985 | K64: 16.01265 | L64: 1019.588551 | M64: 0.053874536 | N64: 0.2187536184
A65: 2017-09-01 | B65: 2017 - III | C65: 148.6493175 | D65: 0.02261366744 | E65: 0.01329881952 | F65: 0.03850608564 | G65: 0.01306557184 | H65: 0.2625 | I65: 0.2625 | J65: 17.3183 | K65: 17.49415 | L65: 1071.415789 | M65: 0.050831522 | N65: 0.2382587465
A66: 2017-12-01 | B66: 2017 - IV | C66: 149.3651258 | D66: 0.02818502973 | E66: 0.02818502973 | F66: 0.04532684826 | G66: 0.00978682864 | H66: 0.2875 | I66: 0.2825 | J66: 18.7742 | K66: 18.2221 | L66: 1136.895911 | M66: 0.06111551 | N66: 0.2482571783
A67: 2018-03-01 | B67: 2018 - I | C67: 145.8054242 | D67: 0.03797740218 | E67: 0.03595260107 | F67: 0.03797740218 | G67: -0.005544091479 | H67: 0.2725 | I67: 0.2725 | J67: 20.1433 | K67: 19.89765 | L67: 1212.394822 | M67: 0.066407936 | N67: 0.2531643567
A68: 2018-06-01 | B68: 2018 - II | C68: 154.0723332 | D68: -0.003489322164 | E68: 0.01863573886 | F68: -0.03979099407 | G68: -0.04169852099 | H68: 0.4 | I68: 0.35125 | J68: 28.8617 | K68: 24.7767 | L68: 1318.314458 | M68: 0.087363979 | N68: 0.2929867216
A69: 2018-09-01 | B69: 2018 - III | C69: 143.4920181 | D69: -0.01380704966 | E69: 0.0004546244173 | F69: -0.03469440387 | G69: -0.003007821429 | H69: 0.65 | I69: 0.525 | J69: 40.8967 | K69: 34.1196 | L69: 1503.982683 | M69: 0.140837585 | N69: 0.4037339174
A70: 2018-12-01 | B70: 2018 - IV | C70: 139.8957664 | D70: -0.02617396461 | E70: -0.02617396461 | F70: -0.06339739167 | G70: -0.01556572603 | H70: 0.5925 | I70: 0.6365 | J70: 37.8083 | K70: 37.0025 | L70: 1678.458101 | M70: 0.116008928 | N70: 0.4763516032
A71: 2019-03-01 | B71: 2019 - I | C71: 137.2557945 | D71: -0.05863725399 | E71: -0.04891968057 | F71: -0.05863725399 | G71: 0.003788031562 | H71: 0.6816 | I71: 0.60925 | J71: 43.3533 | K71: 40.19415 | L71: 1877.024384 | M71: 0.118302794 | N71: 0.5481956454
A72: 2019-06-01 | B72: 2019 - II | C72: 154.9702974 | D72: -0.02551594873 | E72: -0.03726143993 | F72: 0.005828198936 | G72: 0.005435983123 | H72: 0.6269 | I72: 0.6831 | J72: 42.4483 | K72: 43.22915 | L72: 2055.036606 | M72: 0.094837458 | N72: 0.5588364316
A73: 2019-09-01 | B73: 2019 - III | C73: 140.9770103 | D73: -0.02293046084 | E73: -0.0331278496 | F73: -0.01752716164 | G73: -0.0007852473916 | H73: 0.7837 | I73: 0.69383 | J73: 57.5583 | K73: 50.71915 | L73: 2313.128488 | M73: 0.12558992 | N73: 0.5380020762
A74: 2019-12-01 | B74: 2019 - IV | C74: 138.3921069 | D74: -0.02000861002 | E74: -0.02000861002 | F74: -0.0107484274 | G74: -0.01391344365 | H74: 0.55 | I74: 0.615 | J74: 59.895 | K74: 59.81085 | L74: 2584.4203 | M74: 0.117283503 | N74: 0.5397586025
A75: 2020-03-01 | B75: 2020 - I | C75: 130.3585952 | D75: -0.05025069659 | E75: -0.01743105097 | F75: -0.05025069659 | G75: -0.04395626195 | H75: 0.38 | I75: 0.43 | J75: 64.47 | K75: 62.4006 | L75: 2785.7316 | M75: 0.07789418 | N75: 0.4841211568
A76: 2020-06-01 | B76: 2020 - II | C76: 125.615523 | D76: -0.1240545411 | E76: -0.06996120604 | F76: -0.1894219404 | G76: -0.1414712989 | H76: 0.38 | I76: 0.38 | J76: 70.455 | K76: 68.645 | L76: 2934.216778 | M76: 0.05330204 | N76: 0.4278172806
A77: 2020-09-01 | B77: 2020 - III | C77: 126.6075531 | D77: -0.1168538051 | E77: -0.09095305056 | F77: -0.1019276628 | G77: 0.1070267457 | H77: 0.38 | I77: 0.38 | J77: 76.175 | K77: 74.245 | L77: 3157.903769 | M77: 0.0762339692 | N77: 0.3652089735
A78: 2020-12-01 | B78: 2020 - IV | C78: 132.4228409 | D78: -0.09900484819 | E78: -0.09900484819 | F78: -0.04313299476 | G78: 0.04897593164 | H78: 0.38 | I78: 0.37 | J78: 84.14 | K78: 81.235 | L78: 3518.108926 | M78: 0.11406464 | N78: 0.361275844
A79: 2021-03-01 | B79: 2021 - I | C79: 134.5725682 | D79: 0.03232600779 | E79: -0.08053778102 | F79: 0.03232600779 | G79: 0.0348391499 | H79: 0.38 | I79: 0.38 | J79: 91.985 | K79: 89.6425 | L79: 3972.514719 | M79: =L79/L78-1 -> 0.1291619456 | N79: 0.4260220614
A80: 2021-06-01 | B80: 2021 - II | C80: 149.1432612 | D80: 0.1083770162 | E80: 0.01382848886 | F80: 0.1872996078 | G80: 0.002803413245 | H80: 0.38 | I80: 0.38 | J80: 95.73 | K80: 94.6425 | L80: 4408.555001 | M80: 0.109764296 | N80: 0.5024639742
A81: 2021-09-01 | B81: 2021 - III | C81: 141.5656476 | D81: 0.111609648 | E81: 0.07050362452 | F81: 0.1181453567 | G81: 0.02045998759 | H81: 0.38 | I81: 0.38 | J81: 98.73 | K81: 97.7075 | L81: 4816.298175 | M81: 0.092489075 | N81: 0.5251567265
A82: 2021-12-01 | B82: 2021 - IV | C82: 143.4988382 | D82: 0.10441812 | E82: 0.10441812 | F82: 0.08364113941 | G82: 0.02417047466 | H82: 0.38 | I82: 0.38 | J82: 102.75 | K82: 101.24 | L82: 5305.720676 | M82: 0.101617982 | N82: 0.5081172267
A83: 2022-03-01 | B83: 2022 - I | C83: 143.8061086 | D83: =AVERAGE(OFFSET($C$1,MATCH(EDATE(A83,0),$A$1:$A$304,0)-1,,IF(MONTH($A83)=3,-1,IF(MONTH($A83)=6,-2,IF(MONTH($A83)=9,-3,-4)))))/AVERAGE(OFFSET($C$1,MATCH(EDATE(A83,-12),$A$1:$A$304,0)-1,,IF(MONTH($A83)=3,-1,IF(MONTH($A83)=6,-2,IF(MONTH($A83)=9,-3,-4)))))-1 -> 0.06861383872 | E83: 0.1132382074 | F83: 0.06861383872 | G83: 0.024544389 | H83: 0.445 | I83: 0.4225 | J83: 110.98 | K83: 107.9975 | L83: 6160.797286 | M83: 0.1611612562 | N83: 0.5508557477
A84: 2022-06-01 | B84: 2022 - II | C84: 161.2686299 | D84: 0.07528275472 | E84: 0.08732073844 | F84: =C84/C80-1 -> 0.08130014462 | G84: 0.01929501767 | H84: 0.52 | I84: 0.495 | J84: 125.215 | K84: 120.26335 | L84: 7229.30866 | M84: 0.1734371909 | N84: 0.6398363316
A85: 2022-09-01 | B85: 2022 - III | C85: 151.028492 | D85: 0.07247377385 | E85: 0.07512538372 | F85: 0.06684421363 | G85: -0.007947700644 | H85: 0.75 | I85: 0.675 | J85: 147.315 | K85: 139.2725 | L85: 8818.705207 | M85: 0.21985457 | N85: 0.8310131323
A86: 2022-12-01 | B86: 2022 - IV | C86: 146.9218991 | D86: 0.06020745374 | E86: 0.06020745374 | F86: 0.02385427627 | G86: -0.01878648268 | H86: 0.75 | I86: 0.75 | J86: 177.128 | K86: 167.014 | L86: 10331.24929 | M86: 0.1715154374 | N86: =L86/L82-1 -> 0.9471905738
A87: 2023-03-01 | B87: 2023 - I | C87: 145.117595 | D87: 0.009119823772 | E87: =AVERAGE(C84:C87)/AVERAGE(C80:C83)-1 -> 0.04554001627 | F87: 0.009119823772 | G87: 0.009518748777 | H87: 0.78 | I87: 0.765 | J87: 208.9883 | K87: 197.93165 | L87: 12218.19058 | M87: 0.1826440573 | N87: 0.9832158095
A88: 2023-06-01 | B88: 2023 - II | C88: 152.1168408 | D88: -0.02569961278 | E88: 0.008549851401 | F88: -0.05674872433 | G88: -0.0244459315 | H88: 0.97 | I88: 0.94 | J88: 256.67 | K88: 239.62 | L88: 15134.2465 | M88: 0.23866512 | N88: 1.093456955
A89: 2023-09-01 | B89: 2023 - III | C89: 150.199085 | D89: -0.01900821799 | E89: -0.008750217813 | F89: -0.005491725252 | G89: 0.01935788936 | H89: 1.18 | I89: 1.18 | J89: 350 | K89: 312.75 | L89: 20379.0669 | M89: 0.346553124 | N89: 1.310891046
A90: 2023-12-01 | B90: 2023 - IV | C90: 144.4007406 | D90: -0.01855788033 | E90: -0.01855788033 | F90: -0.01715985549 | G90: -0.02299650874 | H90: 1 | I90: 1.165 | J90: 809 | K90: 579.5 | L90: 31563.11271 | M90: 0.548800682 | N90: 2.055110939
A91: 2024-03-01 | B91: 2024 - I | C91: 137.9172906 | D91: -0.04961703258 | E91: -0.03260212682 | F91: -0.04961703258 | G91: -0.0160280748 | H91: 0.8 | I91: 0.9 | J91: 857.4 | K91: 841.825 | L91: 47863.71984 | M91: 0.5164448538 | N91: 2.917414738
A92: 2024-06-01 | B92: 2024 - II | C92: 150.4689592 | D92: -0.02976837467 | E92: -0.02049573685 | F92: -0.01083299918 | G92: -0.008242911355 | H92: 0.4 | I92: 0.5 | J92: 911.75 | K92: 894.25 | L92: 56801.66526 | M92: 0.1867373754 | N92: 2.753187532
A93: 2024-09-01 | B93: 2024 - III | C93: 147.2896278 | D93: -0.02627796692 | E93: -0.02402401213 | F93: -0.01937067199 | G93: 0.03640544144 | H93: 0.4 | I93: 0.4 | J93: 970.72 | K93: 951.735 | L93: 63666.29037 | M93: 0.1208525328 | N93: 2.124102329
A94: 2024-12-01 | B94: 2024 - IV | C94: 148.2104597 | D94: -0.01342930725 | E94: -0.01342930725 | F94: 0.02638296111 | G94: 0.01958707799 | H94: 0.32 | I94: 0.36 | J94: 1032.5 | K94: 1011.625 | L94: 68735.43889 | M94: 0.0796206044 | N94: 1.177714205
A95: 2025-03-01 | B95: 2025 - I | C95: 145.9681768 | D95: 0.05837474157 | E95: 0.01249203268 | F95: 0.05837474157 | G95: 0.01103801285 | H95: 0.29 | I95: 0.29 | J95: 1074 | K95: 1063.75 | L95: 74625.45724 | M95: 0.0856911434 | N95: 0.5591236429
A96: 2025-06-01 | B96: 2025 - II | C96: 160.0710066 | D96: 0.06121281293 | E96: 0.03182442301 | F96: 0.0638141409 | G96: -0.0005240100412 | H96: 0.35 | I96: 0.32 | J96: 1194 | K96: 1183 | L96: 79112.39493 | M96: 0.06012609987 | N96: 0.392783021
A97: 2025-09-01 | B97: 2025 - III | C97: 152.1016157 | D97: 0.05156338132 | E97: 0.04529512086 | F97: 0.03267024243 | G97: 0.002811825956 | H97: 0.4025 | I97: 0.40125 | J97: 1366.6 | K97: 1359.2 | L97: 83834.03525 | M97: 0.0596826871 | N97: 0.3167727342
A98: 2025-12-01 | B98: 2025 - IV | C98: 151.7674203 | D98: 0.04456669099 | E98: 0.04456669099 | F98: 0.02399938955 | G98: 0.0095 | H98: 0.27 | I98: 0.329 | J98: 1459 | K98: 1451 | L98: 90402.91459 | M98: 0.0783557576 | N98: 0.315230048
A99: 2026-03-01 | B99: 2026 - I | C99: 149.2425418 | D99: 0.0224320474 | E99: 0.03589123979 | F99: 0.0224320474 | G99: 0.0105 | H99: 0.3045454545 | I99: 0.3072727273 | J99: 1430 | K99: 1438.5 | L99: 97638.06108 | M99: 0.080032226 | N99: 0.3083747114
A100: 2026-06-01 | B100: 2026 - II | C100: 165.4668814 | D100: 0.02833048963 | E100: 0.02832597827 | F100: 0.03370925793 | G100: 0.0105 | H100: 0.2963636364 | I100: 0.2990909091 | J100: 1520 | K100: 1490 | L100: 103106.9759 | M100: 0.05601212 | N100: 0.3032973653
A101: 2026-09-01 | B101: 2026 - III | C101: 158.4342616 | D101: 0.03274732544 | E101: 0.03060906716 | F101: 0.04163431075 | G101: 0.0105 | H101: 0.2881818182 | I101: 0.2909090909 | J101: 1610 | K101: 1580 | L101: 107604.1838 | M101: 0.043616912 | N101: 0.2835381651
A102: 2026-12-01 | B102: 2026 - IV | C102: 158.2427507 | D102: 0.03521548909 | E102: 0.03521548909 | F102: 0.04266614266 | G102: 0.0105 | H102: 0.28 | I102: 0.2827272727 | J102: 1700 | K102: 1670 | L102: 111689.7997 | M102: 0.037968932 | N102: 0.2354668012
A103: 2027-03-01 | B103: 2027 - I | C103: 154.8401793 | D103: 0.03750698312 | E103: 0.03881631554 | F103: 0.03750698312 | G103: 0.0055 | H103: 0.265 | I103: 0.27 | J103: 1762.527874 | K103: 1741.685249 | L103: 116412.3031 | M103: 0.04228231562 | N103: 0.1922840517
A104: 2027-06-01 | B104: 2027 - II | C104: 170.8235989 | D104: 0.03480783915 | E104: 0.03841441771 | F104: 0.03237335134 | G104: 0.0055 | H104: 0.25 | I104: 0.255 | J104: 1825.055748 | K104: 1804.213123 | L104: 121334.4848 | M104: 0.04228231562 | N104: 0.1767824997
A105: 2027-09-01 | B105: 2027 - III | C105: 162.7539909 | D105: 0.03228212652 | E105: 0.03480401376 | F105: 0.027265121 | G105: 0.0055 | H105: 0.235 | I105: 0.24 | J105: 1887.583622 | K105: 1866.740997 | L105: 126464.7878 | M105: 0.04228231562 | N105: 0.1752776087
A106: 2027-12-01 | B106: 2027 - IV | C106: 161.7529177 | D106: 0.02975079962 | E106: 0.02975079962 | F106: 0.02218216642 | G106: 0.0055 | H106: 0.22 | I106: 0.225 | J106: 1950.111496 | K106: 1929.268871 | L106: 131812.0119 | M106: 0.04228231562 | N106: 0.1801615923
A107: 2028-03-01 | B107: 2028 - I | C107: 158.7313564 | D107: 0.02513028007 | E107: =AVERAGE(C104:C107)/AVERAGE(C100:C103)-1 -> 0.02681038918 | F107: =C107/C103-1 -> 0.02513028007 | G107: 0.0084 | H107: 0.21 | I107: 0.2133333333 | J107: 2009.526367 | K107: 1989.72141 | L107: 136614.4149 | M107: =L107/L106-1 -> 0.036433728 | N107: =L107/L103-1 -> 0.1735393189
A108: 2028-06-01 | B108: 2028 - II | C108: 175.6215037 | D108: 0.02668114293 | E108: 0.02571684439 | F108: 0.02808689649 | G108: 0.0084 | H108: 0.2 | I108: 0.2033333333 | J108: 2068.941237 | K108: 2049.13628 | L108: 141591.7873 | M108: 0.036433728 | N108: 0.1669542052
A109: 2028-09-01 | B109: 2028 - III | C109: 167.8078344 | D109: 0.02813764394 | E109: 0.02668029327 | F109: 0.0310520402 | G109: 0.0084 | H109: 0.19 | I109: 0.1933333333 | J109: 2128.356108 | K109: 2108.551151 | L109: 146750.5039 | M109: 0.036433728 | N109: 0.1604060427
A110: 2028-12-01 | B110: 2028 - IV | C110: 167.2566797 | D110: 0.02960251472 | E110: 0.02960251472 | F110: 0.03402573579 | G110: 0.0084 | H110: 0.18 | I110: 0.1833333333 | J110: 2187.770979 | K110: 2167.966022 | L110: 151646.7363 | M110: 0.033364331 | N110: 0.1504773669
A112: * Index SA
A113: ** From December 2015 and December 2016 Lebac 35 days rate. From December 2016 center of the corridor 7 day repo rate

Sheet Chile
D2: 2003 | E2: 2004 | F2: 2005 | G2: 2006 | H2: 2007 | I2: 2008 | J2: 2009 | K2: 2010 | L2: 2011 | M2: 2012 | N2: 2013 | O2: 2014 | P2: 2015 | Q2: 2016 | R2: 2017 | S2: 2018 | T2: 2019 | U2: 2020 | V2: 2021 | W2: 2022 | X2: 2023 | Y2: 2024 | Z2: 2025 | AA2: 2026F | AB2: 2027F | AC2: 2028F
C4: GDP % | D4: 0.041 | E4: 0.072 | F4: 0.057 | G4: 0.063 | H4: 0.049 | I4: 0.035 | J4: -0.016 | K4: 0.058 | L4: 0.061 | M4: 0.053 | N4: 0.04 | O4: 0.018 | P4: 0.02151941817 | Q4: 0.01753038912 | R4: 0.01357698242 | S4: 0.03990028237 | T4: 0.006442266938 | U4: -0.06139704721 | V4: 0.1133741072 | W4: 0.02063915168 | X4: 0.006770299514 | Y4: 0.02805120466 | Z4: 0.02459254074 | AA4: 0.02104479302 | AB4: 0.02812325312 | AC4: 0.02227613473
C5: CPI % | D5: 0.01072801816 | E5: 0.02428322299 | F5: 0.03658711105 | G5: 0.02570153448 | H5: 0.07829216412 | I5: 0.07089269736 | J5: -0.01482710426 | K5: 0.02974556874 | L5: 0.04440323997 | M5: 0.01485703607 | N5: 0.03 | O5: 0.046 | P5: 0.04368715084 | Q5: 0.02708489455 | R5: 0.02272253492 | S5: 0.02568283734 | T5: 0.02996413631 | U5: 0.02965985048 | V5: 0.07161980184 | W5: 0.1280537616 | X5: 0.03935718172 | Y5: 0.04535756165 | Z5: 0.03451674196 | AA5: 0.04054795973 | AB5: 0.02934062192 | AC5: 0.0298534526
C6: Exchange Rate - CLP / USD (end of period) | D6: 599.42 | E6: 559.83 | F6: 514.21 | G6: 534.43 | H6: 495.82 | I6: 629.11 | J6: 507.45 | K6: 468 | L6: 519.55 | M6: 479.2 | N6: 525.45 | O6: 606 | P6: 709 | Q6: 670 | R6: 615.43 | S6: 694 | T6: 753 | U6: 710.5 | V6: 851 | W6: 850.58 | X6: 879 | Y6: 996.49 | Z6: 901 | AA6: 880 | AB6: 860 | AC6: 860
C7: Monetary Policy Rate - % (end of period) | D7: 0.0225 | E7: 0.0225 | F7: 0.045 | G7: 0.0525 | H7: 0.06 | I7: 0.0825 | J7: 0.005 | K7: 0.0325 | L7: 0.0525 | M7: 0.05 | N7: 0.045 | O7: 0.03 | P7: 0.035 | Q7: 0.035 | R7: 0.025 | S7: 0.0275 | T7: 0.0175 | U7: 0.005 | V7: 0.04 | W7: 0.1125 | X7: 0.0825 | Y7: 0.05 | Z7: 0.045 | AA7: 0.045 | AB7: 0.045 | AC7: 0.0425

Sheet Chile_Quarterly
C1: GDP NSA | H1: Monetary Policy Rate | J1: Exchange Rate | L1: Inflation NSA
C2: Index | D2: Ydt | E2: 12M | F2: YoY | G2: QoQ* | H2: eop | I2: Avg | J2: eop | K2: Avg | L2: Index (eop) | M2: QoQ | N2: YoY**
A3: 1991-03-01 | B3: 1991 - I | C3: 40.37589517 | J3: 344.1 | K3: 340.72 | L3: 26.10248968
A4: 1991-06-01 | B4: 1991 - II | C4: 40.7278451 | G4: 0.03379502501 | J4: 348.04 | K4: 342.74 | L4: 27.69322846 | M4: =L4/L3-1 -> 0.06094203259
A5: 1991-09-01 | B5: 1991 - III | C5: 38.57428076 | G5: 0.009457733837 | J5: 346.1 | K5: 347.205 | L5: 29.02805825 | M5: 0.04820058451
A6: 1991-12-01 | B6: 1991 - IV | C6: 43.56602678 | G6: 0.04566879635 | J6: 363.27 | K6: 356.15 | L6: 30.5196733 | M6: 0.05138528487
A7: 1992-03-01 | B7: 1992 - I | C7: 45.54346869 | D7: =AVERAGE(OFFSET($C$1,MATCH(EDATE(A7,0),$A$1:$A$304,0)-1,,IF(MONTH($A7)=3,-1,IF(MONTH($A7)=6,-2,IF(MONTH($A7)=9,-3,-4)))))/AVERAGE(OFFSET($C$1,MATCH(EDATE(A7,-12),$A$1:$A$304,0)-1,,IF(MONTH($A7)=3,-1,IF(MONTH($A7)=6,-2,IF(MONTH($A7)=9,-3,-4)))))-1 -> 0.1279865993 | F7: =C7/C3-1 -> 0.1279865993 | G7: 0.02537382761 | J7: 340.15 | K7: 342.875 | L7: 30.80093782 | M7: 0.009215843226 | N7: =L7/L3-1 -> 0.18
A8: 1992-06-01 | B8: 1992 - II | C8: 44.72428862 | D8: 0.1129912997 | F8: 0.0981255822 | G8: 0.01574160014 | J8: 348.3 | K8: 342.23 | L8: 31.70874658 | M8: 0.02947341298 | N8: 0.145
A9: 1992-09-01 | B9: 1992 - III | C9: 43.38939974 | D9: 0.1168062096 | F9: 0.1248271875 | G9: 0.03726612385 | J9: 366.07 | K9: 360.13 | L9: 33.41129505 | M9: 0.05369333867 | N9: 0.151
A10: 1992-12-01 | B10: 1992 - IV | C10: 47.81946101 | D10: 0.1116890354 | E10: =AVERAGE(C7:C10)/AVERAGE(C3:C6)-1 -> 0.1116890354 | F10: 0.09763190588 | G10: 0.01650052693 | J10: 382.12 | K10: 372.405 | L10: 34.39567181 | M10: 0.02946239448 | N10: 0.127
A11: 1993-03-01 | B11: 1993 - I | C11: 48.79632986 | D11: 0.07142321983 | E11: 0.09689270707 | F11: 0.07142321983 | G11: 0.00839035347 | J11: 401.06 | K11: 392.715 | L11: 34.71265693 | M11: 0.009215843226 | N11: 0.127
A12: 1993-06-01 | B12: 1993 - II | C12: 48.08750327 | D12: 0.07329389835 | E12: 0.0909738709 | F12: 0.07519884063 | G12: 0.01254760191 | J12: 404.65 | K12: 404.9 | L12: 35.83088364 | M12: 0.03221380361 | N12: 0.13
A13: 1993-09-01 | B13: 1993 - III | C13: 46.17777322 | D13: 0.07036248203 | E13: 0.07706600932 | F13: 0.06426393311 | G13: 0.02387768632 | J13: 410.83 | K13: 408.24 | L13: 37.52088434 | M13: 0.0471660348 | N13: 0.123
A14: 1993-12-01 | B14: 1993 - IV | C14: 50.37183352 | D14: 0.06588629407 | E14: 0.06588629407 | F14: 0.05337518367 | G14: 0.004200767977 | J14: 431.04 | K14: 421.74 | L14: 38.59194377 | M14: 0.02854568709 | N14: 0.122
A15: 1994-03-01 | B15: 1994 - I | C15: 50.78712946 | D15: 0.04079814214 | E15: 0.05789417204 | F15: 0.04079814214 | G15: 0.007576730122 | J15: 427 | K15: 429.02 | L15: 39.46829092 | M15: 0.02270803364 | N15: 0.137
A16: 1994-06-01 | B16: 1994 - II | C16: 50.77247199 | D16: 0.04826159506 | E16: 0.05325307492 | F16: 0.05583506187 | G16: 0.01955871131 | J16: 418.94 | K16: 422.97 | L16: 40.38140586 | M16: 0.02313540604 | N16: 0.127
A17: 1994-09-01 | B17: 1994 - III | C17: 48.33259404 | D17: 0.04774578809 | E17: 0.04915606238 | F17: 0.04666359307 | G17: 0.01074863035 | J17: 412.2 | K17: 417.52 | L17: 41.42305631 | M17: 0.02579529939 | N17: 0.104
A18: 1994-12-01 | B18: 1994 - IV | C18: 53.26867433 | D18: 0.05028825392 | E18: 0.05028825392 | F18: 0.05750913949 | G18: 0.01587033994 | J18: 404.09 | K18: 407.17 | L18: 42.02662676 | M18: 0.01457088156 | N18: 0.089
A19: 1995-03-01 | B19: 1995 - I | C19: 54.5148808 | D19: 0.07339952803 | E19: 0.05866407209 | F19: 0.07339952803 | G19: 0.03241815075 | J19: 405.22 | K19: 406.705 | L19: 42.70469078 | M19: 0.0161341528 | N19: 0.082
A20: 1995-06-01 | B20: 1995 - II | C20: 55.36215372 | D20: 0.08189706282 | E20: 0.06748345925 | F20: 0.09039705076 | G20: 0.0286720492 | H20: 0.06 | J20: 374.48 | K20: 381.34 | L20: 43.45039271 | M20: 0.01746182708 | N20: 0.076
A21: 1995-09-01 | B21: 1995 - III | C21: 53.15721855 | D21: 0.08767673012 | E21: 0.08008876307 | F21: 0.09982134431 | G21: 0.01465272543 | H21: 0.06 | J21: 396.74 | K21: 390.325 | L21: 44.98543916 | M21: 0.03532871296 | N21: 0.086
A22: 1995-12-01 | B22: 1995 - IV | C22: 58.2699609 | D22: 0.08930530845 | E22: 0.08930530845 | F22: 0.09388794891 | G22: 0.01047556613 | H22: 0.067 | I22: 0.0585 | J22: 407.13 | K22: 411.665 | L22: 45.47281016 | M22: 0.01083397224 | N22: 0.082
A23: 1996-03-01 | B23: 1996 - I | C23: 58.67331591 | D23: 0.07628073377 | E23: 0.08977790957 | F23: 0.07628073377 | G23: 0.02405129978 | H23: 0.067 | I23: 0.066 | J23: 412.07 | K23: 412.965 | L23: 46.07836135 | M23: 0.0133167753 | N23: 0.079
A24: 1996-06-01 | B24: 1996 - II | C24: 58.97419936 | D24: 0.07071978949 | E24: 0.08320660605 | F24: 0.06524395096 | G24: 0.009949361476 | H24: 0.075 | I24: 0.067 | J24: 410.35 | K24: 408.365 | L24: 47.0567753 | M24: 0.02123369669 | N24: 0.083
A25: 1996-09-01 | B25: 1996 - III | C25: 56.69432389 | D25: 0.06935711902 | E25: 0.07539829842 | F25: 0.0665404519 | G25: 0.009969235505 | H25: 0.075 | I25: 0.075 | J25: 411.94 | K25: 411.285 | L25: 47.81952182 | M25: 0.01620906914 | N25: 0.063
A26: 1996-12-01 | B26: 1996 - IV | C26: 62.02047061 | D26: 0.06804251731 | E26: 0.06804251731 | F26: 0.06436437673 | G26: 0.01433275313 | H26: 0.075 | I26: 0.075 | J26: 424.97 | K26: 422.125 | L26: 48.47401563 | M26: 0.0136867492 | N26: 0.066
A27: 1997-03-01 | B27: 1997 - I | C27: 61.96398258 | D27: 0.05608455269 | E27: 0.06293870598 | F27: 0.05608455269 | G27: 0.02267712138 | H27: 0.0725 | I27: 0.075 | J27: 414.55 | K27: 416.95 | L27: 49.21168992 | M27: 0.01521793248 | N27: 0.068
A28: 1997-06-01 | B28: 1997 - II | C28: 62.99014804 | D28: 0.06210598955 | E28: 0.06370948319 | F28: 0.06809670533 | G28: 0.02081221548 | H28: 0.0675 | I28: 0.07375 | J28: 416.25 | K28: 417.55 | L28: 49.55078439 | M28: 0.006890526791 | N28: 0.053
A29: 1997-09-01 | B29: 1997 - III | C29: 61.31681679 | D29: 0.06842366871 | E29: 0.06740680377 | F29: 0.08153360996 | G29: 0.02258972658 | H29: 0.065 | I29: 0.06875 | J29: 414.85 | K29: 415.7 | L29: 50.68869313 | M29: 0.02296449505 | N29: 0.06
A30: 1997-12-01 | B30: 1997 - IV | C30: 67.5626674 | D30: 0.07391747463 | E30: 0.07391747463 | F30: 0.08936076647 | G30: 0.02128652787 | H30: 0.065 | I30: 0.06625 | J30: 439.85 | K30: 430.175 | L30: 51.38245656 | M30: 0.0136867492 | N30: 0.06
A31: 1998-03-01 | B31: 1998 - I | C31: 66.70917987 | D31: 0.07657992739 | E31: 0.07897183638 | F31: 0.07657992739 | G31: 0.008033128818 | H31: 0.085 | I31: 0.065 | J31: 454.35 | K31: 452.175 | L31: 51.81990949 | M31: 0.008513663111 | N31: 0.053
A32: 1998-06-01 | B32: 1998 - II | C32: 67.36404726 | D32: 0.07297955234 | E32: 0.07913929192 | F32: 0.0694378306 | G32: 0.01696338721 | H32: 0.085 | I32: 0.0775 | J32: 466 | K32: 459.325 | L32: 52.22652675 | M32: 0.007846738118 | N32: 0.054
A33: 1998-09-01 | B33: 1998 - III | C33: 63.72770626 | D33: 0.06189900334 | E33: 0.06875865031 | F33: 0.0393185688 | G33: -0.006716975052 | H33: 0.14 | I33: 0.085 | J33: 465.5 | K33: 465.275 | L33: 53.1217504 | M33: 0.01714116775 | N33: 0.048
A34: 1998-12-01 | B34: 1998 - IV | C34: 66.64513501 | D34: 0.04180870058 | E34: 0.04180870058 | F34: -0.01358046436 | G34: -0.03236730334 | H34: 0.078 | I34: 0.1125 | J34: 473 | K34: 468.125 | L34: 53.79743202 | M34: 0.01271949086 | N34: 0.047
A35: 1999-03-01 | B35: 1999 - I | C35: 65.02061914 | D35: -0.02531226929 | E35: 0.01616023971 | F35: -0.02531226929 | G35: 0.000191836892 | H35: 0.07 | I35: 0.099 | J35: 483.35 | K35: 483.925 | L35: 53.94452578 | M35: 0.002734215185 | N35: 0.041
A36: 1999-06-01 | B36: 1999 - II | C36: 65.18851976 | D36: -0.02882072966 | E36: -0.009015807971 | F36: -0.03229508317 | G36: 0.002728670081 | H36: 0.05 | I36: 0.07125 | J36: 517.95 | K36: 500.9 | L36: 54.21113476 | M36: =L36/L35-1 -> 0.004942280659 | N36: 0.038
A37: 1999-09-01 | B37: 1999 - III | C37: 63.2821428 | D37: -0.02178782284 | E37: -0.01969819551 | F37: -0.006991675776 | G37: 0.02109512111 | H37: 0.05 | I37: 0.0575 | J37: 531.95 | K37: 523.1 | L37: 54.66228117 | M37: 0.008322024676 | N37: 0.029
A38: 1999-12-01 | B38: 1999 - IV | C38: 70.23121295 | D38: -0.002736186452 | E38: -0.002736186452 | F38: 0.05380854797 | G38: 0.02634081779 | H38: 0.05 | I38: 0.05 | J38: 528.2 | K38: 538.175 | L38: 55.03477296 | M38: 0.006814420938 | N38: 0.023
A39: 2000-03-01 | B39: 2000 - I | C39: 68.78933497 | D39: =AVERAGE(OFFSET($C$1,MATCH(EDATE(A39,0),$A$1:$A$304,0)-1,,IF(MONTH($A39)=3,-1,IF(MONTH($A39)=6,-2,IF(MONTH($A39)=9,-3,-4)))))/AVERAGE(OFFSET($C$1,MATCH(EDATE(A39,-12),$A$1:$A$304,0)-1,,IF(MONTH($A39)=3,-1,IF(MONTH($A39)=6,-2,IF(MONTH($A39)=9,-3,-4)))))-1 -> 0.0579618569 | E39: 0.01801548066 | F39: =C39/C35-1 -> 0.0579618569 | G39: 0.009447479791 | H39: 0.055 | I39: 0.05 | J39: 501.35 | K39: 509.3 | L39: 55.77863965 | M39: 0.01351630352 | N39: =L39/L35-1 -> 0.034
A40: 2000-06-01 | B40: 2000 - II | C40: 68.99704647 | D40: 0.05819286263 | E40: 0.04113007741 | F40: 0.05842327337 | G40: 0.002217041989 | H40: 0.055 | I40: 0.05375 | J40: 538.55 | K40: 526.275 | L40: 56.21694675 | M40: 0.00785797393 | N40: 0.037
A41: 2000-09-01 | B41: 2000 - III | C41: 66.44590685 | D41: 0.05551157903 | E41: 0.05507527435 | F41: 0.04999457829 | G41: 0.01555915065 | H41: 0.05 | I41: 0.055 | J41: 563.35 | K41: 559.05 | L41: 56.95809697 | M41: 0.01318375093 | N41: 0.042
A42: 2000-12-01 | B42: 2000 - IV | C42: 72.6015098 | D42: 0.04971628773 | E42: =AVERAGE(C39:C42)/AVERAGE(C35:C38)-1 -> 0.04971628773 | F42: 0.03374990621 | G42: 0.0117362961 | H42: 0.05 | I42: 0.0525 | J42: 572.45 | K42: 571.4 | L42: 57.51133774 | M42: 0.009713118887 | N42: 0.045
A43: 2001-03-01 | B43: 2001 - I | C43: 71.11860489 | D43: 0.0338609164 | E43: 0.04363454598 | F43: 0.0338609164 | G43: 0.006967230264 | H43: 0.04 | I43: 0.05 | J43: 592.65 | K43: 577.31 | L43: 57.73089204 | M43: 0.003817582912 | N43: 0.035
A44: 2001-06-01 | B44: 2001 - II | C44: 71.90153305 | D44: 0.0379845704 | E44: 0.03968974504 | F44: 0.04209581039 | G44: 0.009687366701 | H44: 0.035 | I44: 0.04375 | J44: 626.85 | K44: 614.49 | L44: 58.24075683 | M44: 0.00883174975 | N44: 0.036
A45: 2001-09-01 | B45: 2001 - III | C45: 68.28212978 | D45: 0.03461734427 | E45: 0.0343953795 | F45: 0.0276348539 | G45: -0.002351194259 | H45: 0.065 | I45: 0.03625 | J45: 696.2 | K45: 680.875 | L45: 59.17946276 | M45: 0.01611768071 | N45: 0.039
A46: 2001-12-01 | B46: 2001 - IV | C46: 74.26297017 | D46: 0.03154036777 | E46: 0.03154036777 | F46: 0.02288465312 | G46: 0.006245935268 | H46: 0.065 | I46: 0.05 | J46: 654 | K46: 685.1 | L46: 59.00663252 | M46: -0.002920442754 | N46: 0.026
A47: 2002-03-01 | B47: 2002 - I | C47: 71.96766256 | D47: 0.01193861536 | E47: 0.02597488129 | F47: 0.01193861536 | G47: 0.00837442839 | H47: 0.0475 | I47: 0.065 | J47: 656.45 | K47: 667 | L47: 59.23189524 | M47: 0.003817582912 | N47: 0.026
A48: 2002-06-01 | B48: 2002 - II | C48: 73.76225053 | D48: 0.0189468084 | E48: 0.0220069921 | F48: 0.02587868997 | G48: 0.00813467657 | H48: 0.04 | I48: 0.05375 | J48: 695.45 | K48: 671.6 | L48: 59.40557197 | M48: 0.002932148874 | N48: 0.02
A49: 2002-09-01 | B49: 2002 - III | C49: 71.16779667 | D49: 0.02648074772 | E49: 0.02556113369 | F49: 0.04226093859 | G49: 0.01089327978 | H49: 0.03 | I49: 0.04375 | J49: 746.75 | K49: 723.175 | L49: 60.5405904 | M49: 0.01910626212 | N49: 0.023
A50: 2002-12-01 | B50: 2002 - IV | C50: 77.81358023 | D50: 0.03202789028 | E50: 0.03202789028 | F50: 0.04781131234 | G50: 0.0145330452 | H50: 0.03 | I50: 0.03125 | J50: 720.35 | K50: 726.85 | L50: 60.65881823 | M50: 0.001952868865 | N50: 0.028
A51: 2003-03-01 | B51: 2003 - I | C51: 75.80604019 | D51: 0.05333475483 | E51: 0.04236999432 | F51: 0.05333475483 | G51: 0.01421036115 | H51: 0.0275 | I51: 0.03 | J51: 726.25 | K51: 730.75 | L51: 61.89733052 | M51: 0.02041767913 | N51: 0.045
A52: 2003-06-01 | B52: 2003 - II | C52: 77.55876159 | D52: 0.05239067627 | E52: 0.04881160357 | F52: 0.05146956652 | G52: 0.01058674701 | H52: 0.0275 | I52: 0.0275 | J52: 695.46 | K52: 700.855 | L52: 61.54417256 | M52: -0.005705544274 | N52: 0.036
A53: 2003-09-01 | B53: 2003 - III | C53: 74.43556123 | D53: 0.05026633647 | E53: 0.049640162 | F53: 0.04591633734 | G53: 0.006592208736 | H53: 0.0275 | I53: 0.0275 | J53: 659.7 | K53: 683.7 | L53: 61.87248339 | M53: 0.005334555878 | N53: 0.022
A54: 2003-12-01 | B54: 2003 - IV | C54: 80.83086916 | D54: 0.04723247008 | E54: 0.04723247008 | F54: 0.03877586558 | G54: 0.005426515039 | H54: 0.0225 | I54: 0.0275 | J54: 592.6 | K54: 610.275 | L54: 61.32606523 | M54: -0.008831359665 | N54: 0.011
A55: 2004-03-01 | B55: 2004 - I | C55: 79.38062365 | D55: 0.04715433554 | E55: 0.04574162856 | F55: 0.04715433554 | G55: 0.02106263898 | H55: 0.0175 | I55: 0.025 | J55: 619.8 | K55: 609.925 | L55: 61.46404921 | M55: 0.002250005316 | N55: -0.007
A56: 2004-06-01 | B56: 2004 - II | C56: 81.93529558 | D56: 0.05184447375 | E56: 0.04708566515 | F56: 0.05642862129 | G56: 0.01922387438 | H56: 0.0175 | I56: 0.0175 | J56: 635.85 | K56: 631.65 | L56: 62.22115846 | M56: 0.01231792018 | N56: 0.011
A57: 2004-09-01 | B57: 2004 - III | C57: 79.97376245 | D57: 0.05921552752 | E57: 0.054011304 | F57: 0.07440262603 | G57: 0.02618202674 | H57: 0.02 | I57: 0.0175 | J57: 606.9 | K57: 622.775 | L57: 62.80057064 | M57: 0.009312140669 | N57: 0.015
A58: 2004-12-01 | B58: 2004 - IV | C58: 87.94036995 | D58: 0.06674249819 | E58: 0.06674249819 | F58: 0.08795526836 | G58: 0.01622236762 | H58: 0.0225 | I58: 0.01875 | J58: 559.2 | K58: 587.725 | L58: 62.7978908 | M58: -4.267221388e-05 | N58: 0.024
A59: 2005-03-01 | B59: 2005 - I | C59: 84.29482178 | D59: 0.06190677145 | E59: 0.07026913987 | F59: 0.06190677145 | G59: 0.001131485925 | H59: 0.0275 | I59: 0.02125 | J59: 586.75 | K59: 586.35 | L59: 62.93918639 | M59: 0.002250005316 | N59: 0.024
A60: 2005-06-01 | B60: 2005 - II | C60: 86.80426854 | D60: 0.06064603624 | E60: 0.07085320178 | F60: 0.05942460966 | G60: 0.01660761357 | H60: 0.0325 | I60: 0.02625 | J60: 579.25 | K60: 582.45 | L60: 63.90112974 | M60: 0.01528369534 | N60: 0.027
A61: 2005-09-01 | B61: 2005 - III | C61: 84.5512039 | D61: 0.05951606561 | E61: 0.06665241711 | F61: 0.05723678994 | G61: 0.02431300027 | H61: 0.04 | I61: 0.03125 | J61: 529.8 | K61: 546.475 | L61: 65.24979289 | M61: 0.02110546656 | N61: 0.039
A62: 2005-12-01 | B62: 2005 - IV | C62: 92.79706668 | D62: 0.05837045907 | E62: 0.05837045907 | F62: 0.05522715824 | G62: 0.01202333383 | H62: 0.045 | I62: 0.0375 | J62: 513.75 | K62: 530.25 | L62: 65.12141276 | M62: -0.001967517888 | N62: 0.037
A63: 2006-03-01 | B63: 2006 - I | C63: 89.31293356 | D63: 0.05953048689 | E63: 0.05782299987 | F63: 0.05953048689 | G63: 0.009043857613 | H63: 0.0475 | I63: 0.04375 | J63: 527.95 | K63: 526.1 | L63: 65.45675384 | M63: 0.005149474955 | N63: 0.04
A64: 2006-06-01 | B64: 2006 - II | C64: 92.30234039 | D64: 0.06146253387 | E64: 0.05884821141 | F64: 0.0633387268 | G64: 0.02075803884 | H64: 0.05 | I64: 0.04625 | J64: 544.75 | K64: 531.325 | L64: 66.3932738 | M64: 0.01430746101 | N64: 0.039
A65: 2006-09-01 | B65: 2006 - III | C65: 89.30806939 | D65: 0.05974195796 | E65: 0.05858641679 | F65: 0.05626017463 | G65: 0.01361326074 | H65: 0.0525 | I65: 0.05 | J65: 537.23 | K65: 539.24 | L65: 67.0767871 | M65: 0.01029491783 | N65: 0.028
A66: 2006-12-01 | B66: 2006 - IV | C66: 98.60505543 | D66: 0.06049992123 | E66: 0.06049992123 | F66: 0.06258806409 | G66: 0.02134840299 | H66: 0.0525 | I66: 0.0525 | J66: 532.76 | K66: 529.465 | L66: 66.81456949 | M66: -0.003909215324 | N66: 0.026
A67: 2007-03-01 | B67: 2007 - I | C67: 94.24951264 | D67: 0.05527283549 | E67: 0.05941034361 | F67: 0.05527283549 | G67: 0.01026052529 | H67: 0.05 | I67: 0.0525 | J67: 538.75 | K67: 540.965 | L67: 67.15862944 | M67: 0.005149474955 | N67: 0.026
A68: 2007-06-01 | B68: 2007 - II | C68: 97.35568843 | D68: 0.05500598548 | E68: 0.05726147317 | F68: 0.05474777797 | G68: 0.0101671637 | H68: 0.05 | I68: 0.05 | J68: 527.65 | K68: 527.05 | L68: 68.51785856 | M68: =L68/L67-1 -> 0.02023908359 | N68: 0.032
A69: 2007-09-01 | B69: 2007 - III | C69: 93.65342059 | D69: 0.05291267319 | E69: 0.05538118436 | F69: 0.04865575118 | G69: 0.002749320276 | H69: 0.0575 | I69: 0.05 | J69: 511.75 | K69: 517.5 | L69: 70.96724075 | M69: 0.03574808436 | N69: 0.058
A70: 2007-12-01 | B70: 2007 - IV | C70: 103.3678564 | D70: 0.0516823046 | E70: 0.0516823046 | F70: 0.04830179261 | G70: 0.01879713786 | H70: 0.06 | I70: 0.055 | J70: 497.95 | K70: 495.535 | L70: 72.02610591 | M70: 0.01492047815 | N70: 0.078
A71: 2008-03-01 | B71: 2008 - I | C71: 100 | D71: =AVERAGE(OFFSET($C$1,MATCH(EDATE(A71,0),$A$1:$A$304,0)-1,,IF(MONTH($A71)=3,-1,IF(MONTH($A71)=6,-2,IF(MONTH($A71)=9,-3,-4)))))/AVERAGE(OFFSET($C$1,MATCH(EDATE(A71,-12),$A$1:$A$304,0)-1,,IF(MONTH($A71)=3,-1,IF(MONTH($A71)=6,-2,IF(MONTH($A71)=9,-3,-4)))))-1 -> 0.06101344396 | E71: 0.05317449885 | F71: =C71/C67-1 -> 0.06101344396 | G71: 0.02107290433 | H71: 0.0625 | I71: 0.05875 | J71: 440.8 | K71: 453.275 | L71: 72.86711295 | M71: 0.0116764196 | N71: =L71/L67-1 -> 0.085
A72: 2008-06-01 | B72: 2008 - II | C72: 102.2299888 | D72: 0.05545145787 | E72: 0.05199469572 | F72: 0.05006692939 | G72: 0.0009874053629 | H72: 0.0675 | I72: 0.0625 | J72: 521.75 | K72: 490.8 | L72: 75.02705512 | M72: 0.02964220879 | N72: 0.095
A73: 2008-09-01 | B73: 2008 - III | C73: 96.98106073 | D73: 0.04891150279 | E73: 0.04875488337 | F73: 0.03553143189 | G73: -0.008149128538 | H73: 0.0825 | I73: 0.065 | J73: 558.95 | K73: 533.6 | L73: 77.4962269 | M73: 0.03291041838 | N73: 0.092
A74: 2008-12-01 | B74: 2008 - IV | C74: 104.1420117 | D74: 0.03789392642 | E74: =AVERAGE(C71:C74)/AVERAGE(C67:C70)-1 -> 0.03789392642 | F74: 0.007489323275 | G74: -0.008030309009 | H74: 0.0825 | I74: 0.0775 | J74: 642.25 | K74: 657.05 | L74: 77.13995943 | M74: -0.004597223355 | N74: 0.071
A75: 2009-03-01 | B75: 2009 - I | C75: 97.74065248 | D75: -0.02259347524 | E75: 0.01703128953 | F75: -0.02259347524 | G75: -0.004863694038 | H75: 0.0225 | I75: 0.0825 | J75: 583.2 | K75: 600.025 | L75: 76.51046859 | M75: -0.008160372944 | N75: 0.05
A76: 2009-06-01 | B76: 2009 - II | C76: 99.34307692 | D76: -0.02544755821 | E76: -0.00261605679 | F76: -0.02823938379 | G76: -0.005823468294 | H76: 0.0075 | I76: 0.0475 | J76: 533.65 | K76: 557.7 | L76: 76.45256917 | M76: -0.0007567516618 | N76: 0.019
A77: 2009-09-01 | B77: 2009 - III | C77: 96.28525327 | D77: -0.01952490353 | E77: -0.01258861682 | F77: -0.007174673688 | G77: 0.01196373753 | H77: 0.005 | I77: 0.0125 | J77: 549.7 | K77: 545.215 | L77: 76.6437684 | M77: 0.002500886923 | N77: -0.011
A78: 2009-12-01 | B78: 2009 - IV | C78: 105.4744169 | D78: -0.01118043231 | E78: -0.01118043231 | F78: 0.01279411891 | G78: 0.01230023679 | H78: 0.005 | I78: 0.005 | J78: 507.45 | K78: 519.11 | L78: 76.06 | M78: -0.007616645327 | N78: -0.014
A79: 2010-03-01 | B79: 2010 - I | C79: 99.6295995 | D79: 0.01932611429 | E79: -0.0009009541625 | F79: 0.01932611429 | G79: 0.003235012855 | H79: 0.005 | I79: 0.005 | J79: 524.4 | K79: 524.575 | L79: 76.74 | M79: 0.008940310281 | N79: 0.003
A80: 2010-06-01 | B80: 2010 - II | C80: 105.7134849 | D80: 0.04190784839 | E80: 0.02234003244 | F80: 0.06412533444 | G80: 0.03393434899 | H80: 0.01 | I80: 0.005 | J80: 546.04 | K80: 532.445 | L80: 77.37 | M80: 0.008209538702 | N80: 0.012
A81: 2010-09-01 | B81: 2010 - III | C81: 103.5066009 | D81: 0.05276870984 | E81: 0.0422959572 | F81: 0.07499951887 | G81: 0.02347374791 | H81: 0.025 | I81: 0.0075 | J81: 483.55 | K81: 502.4 | L81: 78.1 | M81: 0.009435181595 | N81: 0.019
A82: 2010-12-01 | B82: 2010 - IV | C82: 113.332652 | D82: 0.058516545 | E82: 0.058516545 | F82: 0.07450370666 | G82: 0.01189851023 | H82: 0.0325 | I82: 0.02 | J82: 468 | K82: 478.575 | L82: 78.33 | M82: 0.002944942382 | N82: 0.02984485932
A83: 2011-03-01 | B83: 2011 - I | C83: 108.3636161 | D83: 0.08766487767 | E83: 0.07532211369 | F83: 0.08766487767 | G83: 0.01165672738 | H83: 0.04 | I83: 0.03 | J83: 477.45 | K83: 480.36 | L83: 79.32 | M83: 0.0126388357 | N83: 0.03362001564
A84: 2011-06-01 | B84: 2011 - II | C84: 112.3277962 | D84: 0.07474480059 | E84: 0.07474258094 | F84: 0.06256828304 | G84: 0.01436808879 | H84: 0.0525 | I84: 0.03625 | J84: 467.22 | K84: 463.835 | L84: 80.03 | M84: 0.008951084216 | N84: 0.03438025074
A85: 2011-09-01 | B85: 2011 - III | C85: 108.1676018 | D85: 0.06478662509 | E85: 0.06726030091 | F85: 0.04503095296 | G85: 0.006413753082 | H85: 0.0525 | I85: 0.04875 | J85: 519.75 | K85: 488.775 | L85: 80.66 | M85: 0.007872047982 | N85: 0.03277848912
A86: 2011-12-01 | B86: 2011 - IV | C86: 119.5994938 | D86: 0.06223891496 | E86: 0.06223891496 | F86: 0.05529599552 | G86: 0.02174861161 | H86: 0.0525 | I86: 0.0525 | J86: 519.55 | K86: 504.875 | L86: 81.8 | M86: 0.01413339945 | N86: 0.04429975744
A87: 2012-03-01 | B87: 2012 - I | C87: 114.8882298 | D87: 0.06021037253 | E87: 0.05585020715 | F87: 0.06021037253 | G87: 0.02055303084 | H87: 0.05 | I87: 0.0525 | J87: 488.35 | K87: 489.95 | L87: 82.33 | M87: 0.006479217604 | N87: 0.03794755421
A88: 2012-06-01 | B88: 2012 - II | C88: 119.625465 | D88: 0.0626317187 | E88: 0.05656774969 | F88: 0.06496761272 | G88: 0.01853543103 | H88: 0.05 | I88: 0.05 | J88: 501.08 | K88: 493.065 | L88: 82.15 | M88: -0.002186323333 | N88: 0.02649006623
A89: 2012-09-01 | B89: 2012 - III | C89: 115.3376731 | D89: 0.06383390085 | E89: 0.06164565641 | F89: 0.06628668035 | G89: 0.007771339212 | H89: 0.05 | I89: 0.05 | J89: 474.7 | K89: 478.55 | L89: 82.95 | M89: 0.009738283628 | N89: 0.0283907761
A90: 2012-12-01 | B90: 2012 - IV | C90: 126.211315 | D90: 0.06155346475 | E90: 0.06155346475 | F90: 0.05528302042 | G90: 0.00593627157 | H90: 0.05 | I90: 0.05 | J90: 479.2 | K90: 480.11 | L90: 83.02 | M90: 0.0008438818565 | N90: 0.01491442543
A91: 2013-03-01 | B91: 2013 - I | C91: 119.6390151 | D91: 0.0413513664 | E91: 0.0567720984 | F91: 0.0413513664 | G91: 0.008521375507 | H91: 0.05 | I91: 0.05 | J91: 472.15 | K91: 471.7 | L91: 83.58 | M91: 0.006745362563 | N91: 0.01518280092
A92: 2013-06-01 | B92: 2013 - II | C92: 123.7338328 | D92: 0.03777669845 | E92: 0.04897682557 | F92: 0.03434358934 | G92: 0.008384692817 | H92: 0.05 | I92: 0.05 | J92: 508.42 | K92: 489.73 | L92: 83.7 | M92: 0.001435750179 | N92: 0.01886792453
A93: 2013-09-01 | B93: 2013 - III | C93: 118.7163869 | D93: 0.03498018913 | E93: 0.04015263324 | F93: 0.02929410483 | G93: 0.006109297612 | H93: 0.05 | I93: 0.05 | J93: 504.67 | K93: 509.12 | L93: 84.58 | M93: 0.01051373955 | N93: 0.0196503918
A94: 2013-12-01 | B94: 2013 - IV | C94: 129.7239962 | D94: 0.03308503003 | E94: 0.03308503003 | F94: 0.02783174506 | G94: 0.0036066144 | H94: 0.045 | I94: 0.05 | J94: 525.45 | K94: 519.505 | L94: 85.52 | M94: 0.01111373847 | N94: 0.03011322573
A95: 2014-03-01 | B95: 2014 - I | C95: 122.5759874 | D95: 0.02454861625 | E95: 0.02898574201 | F95: 0.02454861625 | G95: 0.002822467166 | H95: 0.04 | I95: 0.04625 | J95: 549.47 | K95: 552.635 | L95: 86.81 | M95: 0.01508419083 | N95: 0.038645609
A96: 2014-06-01 | B96: 2014 - II | C96: 125.8431439 | D96: 0.02073478392 | E96: 0.02461773745 | F96: 0.01704716565 | G96: 0.008066514509 | H96: 0.04 | I96: 0.0425 | J96: 552.95 | K96: 558.9 | L96: 87.69 | M96: 0.01013708098 | N96: 0.0476702509
A97: 2014-09-01 | B97: 2014 - III | C97: 120.2658267 | D97: 0.01821573951 | E97: 0.02070119382 | F97: 0.01305160818 | G97: -0.004272905964 | H97: 0.0325 | I97: 0.04 | J97: 598.31 | K97: 585.21 | L97: 88.92 | M97: 0.01402668491 | N97: 0.05131236699
A98: 2014-12-01 | B98: 2014 - IV | C98: 131.9447778 | D98: 0.01792653035 | E98: 0.01792653035 | F98: 0.01711928168 | G98: 0.01078877878 | H98: 0.03 | I98: 0.035 | J98: 606 | K98: 592.03 | L98: 89.5 | M98: 0.006522717049 | N98: 0.04653882133
A99: 2015-03-01 | B99: 2015 - I | C99: 125.6387621 | D99: 0.02498674285 | E99: 0.01807438816 | F99: 0.02498674285 | G99: 0.006429332207 | H99: 0.03 | I99: 0.03 | J99: 625.29 | K99: 630.025 | L99: 90.44 | M99: 0.0105027933 | N99: 0.04181545905
A100: 2015-06-01 | B100: 2015 - II | C100: 128.4165198 | D100: 0.02268806938 | E100: 0.01893165293 | F100: 0.02044907437 | G100: 0.009537800531 | H100: 0.03 | I100: 0.03 | J100: 639.12 | K100: 625.51 | L100: 91.57 | M100: =L100/L99-1 -> 0.01249447147 | N100: 0.04424677842
A101: 2015-09-01 | B101: 2015 - III | C101: 122.9913525 | D101: 0.02267973263 | E101: 0.0212324795 | F101: 0.02266251237 | G101: -0.004510798829 | H101: 0.03 | I101: 0.03 | J101: 696.38 | K101: 684.13 | L101: 93.05 | M101: 0.01616249863 | N101: 0.04644624381
A102: 2015-12-01 | B102: 2015 - IV | C102: 134.3563622 | D102: 0.02151941817 | E102: 0.02151941817 | F102: 0.01827722476 | G102: 0.0078805329 | H102: 0.035 | I102: 0.03 | J102: 709 | K102: 700.205 | L102: 93.41 | M102: 0.003868887695 | N102: 0.04368715084
A103: 2016-03-01 | B103: 2016 - I | C103: 129.3886872 | D103: =AVERAGE(OFFSET($C$1,MATCH(EDATE(A103,0),$A$1:$A$304,0)-1,,IF(MONTH($A103)=3,-1,IF(MONTH($A103)=6,-2,IF(MONTH($A103)=9,-3,-4)))))/AVERAGE(OFFSET($C$1,MATCH(EDATE(A103,-12),$A$1:$A$304,0)-1,,IF(MONTH($A103)=3,-1,IF(MONTH($A103)=6,-2,IF(MONTH($A103)=9,-3,-4)))))-1 -> 0.02984688022 | E103: 0.02275279223 | F103: =C103/C99-1 -> 0.02984688022 | G103: 0.009802016426 | H103: 0.035 | I103: 0.03375 | J103: 667.7 | K103: 689.65 | L103: 94.47 | M103: 0.01134782143 | N103: =L103/L99-1 -> 0.04455992923
A104: 2016-06-01 | B104: 2016 - II | C104: 130.0400512 | D104: 0.02115073732 | E104: 0.0207609617 | F104: 0.01264269933 | G104: -0.003586531197 | H104: 0.035 | I104: 0.035 | J104: 663.24 | K104: 661.845 | L104: 95.42 | M104: 0.01005610247 | N104: 0.04204433767
A105: 2016-09-01 | B105: 2016 - III | C105: 125.4390996 | D105: 0.02074333237 | E105: 0.02010404846 | F105: 0.01990178231 | G105: 0.006198091876 | H105: 0.035 | I105: 0.035 | J105: 657.75 | K105: 656.725 | L105: 95.93 | M105: 0.005344791448 | N105: 0.03095110156
A106: 2016-12-01 | B106: 2016 - IV | C106: 135.500252 | D106: 0.01753038912 | E106: =AVERAGE(C103:C106)/AVERAGE(C99:C102)-1 -> 0.01753038912 | F106: 0.008513849659 | G106: -0.0006034027198 | H106: 0.035 | I106: 0.035 | J106: 670 | K106: 661.61 | L106: 95.94 | M106: 0.000104242677 | N106: 0.02708489455
A107: 2017-03-01 | B107: 2017 - I | C107: 128.938578 | D107: -0.003478736431 | E107: 0.009249795743 | F107: -0.003478736431 | G107: -0.006485432702 | H107: 0.03 | I107: 0.035 | J107: 660.17 | K107: 653.735 | L107: 97.06 | M107: 0.01167396289 | N107: 0.02741611093
A108: 2017-06-01 | B108: 2017 - II | C108: 130.9676304 | D108: 0.001840467176 | E108: 0.007874017954 | F108: 0.00713302716 | G108: 0.01339847811 | H108: 0.025 | I108: 0.03125 | J108: 663.9 | K108: 665.625 | L108: 97.04 | M108: -0.0002060581084 | N108: 0.01697757284
A109: 2017-09-01 | B109: 2017 - III | C109: 127.8081804 | D109: 0.00739617761 | E109: 0.007685390537 | F109: 0.01888630272 | G109: 0.01880030804 | H109: 0.025 | I109: 0.02625 | J109: 639.11 | K109: 642.055 | L109: 97.32 | M109: 0.002885408079 | N109: 0.0144897321
A110: 2017-12-01 | B110: 2017 - IV | C110: 139.7187296 | D110: 0.01357698242 | E110: 0.01357698242 | F110: 0.03113261753 | G110: 0.006938973783 | H110: 0.025 | I110: 0.025 | J110: 615.43 | K110: 625.385 | L110: 98.12 | M110: 0.008220304151 | N110: 0.02272253492
A111: 2018-03-01 | B111: 2018 - I | C111: 134.8533179 | D111: 0.04587253818 | E111: 0.02583076155 | F111: 0.04587253818 | G111: 0.01207993853 | H111: 0.025 | I111: 0.025 | J111: 603.9 | K111: 602.655 | L111: 98.82 | M111: 0.007134121484 | N111: 0.01813311354
A112: 2018-06-01 | B112: 2018 - II | C112: 137.9675716 | D112: 0.04968977519 | E112: 0.03744342065 | F112: 0.05344787259 | G112: 0.010768259 | H112: 0.025 | I112: 0.025 | J112: 653.9 | K112: 633.78 | L112: 99.52 | M112: 0.007083586319 | N112: 0.02555647156
A113: 2018-09-01 | B113: 2018 - III | C113: 130.8661778 | D113: 0.0411970226 | E113: 0.03859057905 | F113: 0.02392646042 | G113: -0.002919239431 | H113: 0.025 | I113: 0.025 | J113: 656.83 | K113: 646.75 | L113: 100.38 | M113: 0.0086414791 | N113: 0.03144266338
A114: 2018-12-01 | B114: 2018 - IV | C114: 144.7907815 | D114: 0.03990028237 | E114: 0.03990028237 | F114: 0.03630187544 | G114: 0.01222593723 | H114: 0.0275 | I114: 0.025 | J114: 694 | K114: 695.4 | L114: 100.64 | M114: 0.002590157402 | N114: 0.02568283734
A115: 2019-03-01 | B115: 2019 - I | C115: 136.5430657 | D115: 0.01253026503 | E115: 0.0315361505 | F115: 0.01253026503 | G115: -0.003914997801 | H115: 0.03 | I115: 0.0275 | J115: 679.72 | K115: 667.13 | L115: 101.27 | M115: 0.006259936407 | N115: 0.02479255211
A116: 2019-06-01 | B116: 2019 - II | C116: 140.0567023 | D116: 0.01385113311 | E116: 0.02203937493 | F116: 0.01514218608 | G116: 0.01330799953 | H116: 0.025 | I116: 0.03 | J116: 678.73 | K116: 677.745 | L116: 102.2 | M116: 0.009183371186 | N116: 0.02692926045
A117: 2019-09-01 | B117: 2019 - III | C117: 134.6842591 | D117: 0.01881893277 | E117: 0.02331409008 | F117: 0.02917546296 | G117: -0.00168321104 | H117: 0.02 | I117: 0.0275 | J117: 728.66 | K117: 712.94 | L117: 102.63247 | M117: 0.004231604471 | N117: 0.02243942994
A118: 2019-12-01 | B118: 2019 - IV | C118: 140.7272624 | D118: 0.006442266938 | E118: 0.006442266938 | F118: -0.0280647637 | G118: -0.03966844005 | H118: 0.0175 | I118: 0.0225 | J118: 753 | K118: 747.18 | L118: 103.6555907 | M118: 0.009968781829 | N118: 0.02996413631
A119: 2020-03-01 | B119: 2020 - I | C119: 136.0015797 | D119: -0.003965679127 | E119: 0.00236692768 | F119: -0.003965679127 | G119: 0.02110413592 | H119: 0.005 | I119: 0.0175 | J119: 853.79 | K119: 827.165 | L119: 105.0560232 | M119: 0.0135104385 | N119: 0.03738543657
A120: 2020-06-01 | B120: 2020 - II | C120: 119.0148383 | D120: -0.07803097637 | E120: -0.03952652204 | F120: -0.1502381795 | G120: -0.1257698105 | H120: 0.005 | I120: 0.01125 | J120: 821.24 | K120: 828.385 | L120: 104.885603 | M120: -0.001622183927 | N120: 0.02627791555
A121: 2020-09-01 | B121: 2020 - III | C121: 122.2310948 | D121: -0.08275671316 | E121: -0.06851602111 | F121: -0.09246191337 | G121: 0.04989469178 | H121: 0.005 | I121: 0.005 | J121: 784.31 | K121: 771.02 | L121: 105.7907345 | M121: 0.00862970226 | N121: 0.0307725666
A122: 2020-12-01 | B122: 2020 - IV | C122: 140.8719135 | D122: -0.06139704721 | E122: -0.06139704721 | F122: 0.001027882231 | G122: 0.06596129694 | H122: 0.005 | I122: 0.005 | J122: 710.5 | K122: 742.165 | L122: 106.73 | M122: 0.008878523341 | N122: 0.02965985048
A123: 2021-03-01 | B123: 2021 - I | C123: 136.5839478 | D123: 0.004282069001 | E123: -0.05941940767 | F123: 0.004282069001 | G123: 0.03946433656 | H123: 0.005 | I123: 0.005 | J123: 719.04 | K123: 725.77 | L123: 108.0819677 | M123: 0.01266717649 | N123: 0.02880315183
A124: 2021-06-01 | B124: 2021 - II | C124: 140.888938 | D124: 0.0880589103 | E124: 0.0191316367 | F124: 0.1837930467 | G124: 0.01137109841 | H124: 0.005 | I124: 0.005 | J124: 734.38 | K124: 722.365 | L124: 108.8673673 | M124: 0.007266703246 | N124: 0.0379629258
A125: 2021-09-01 | B125: 2021 - III | C125: 142.0829172 | D125: 0.1121499516 | E125: 0.08195947638 | F125: 0.1624122115 | G125: 0.04169930676 | H125: 0.015 | I125: 0.005 | J125: 810.13 | K125: 784.565 | L125: 111.4349374 | M125: 0.02358438692 | N125: 0.05335252637
A126: 2021-12-01 | B126: 2021 - IV | C126: 157.3049505 | D126: 0.1133741072 | E126: 0.1133741072 | F126: 0.116652331 | G126: 0.01780604008 | H126: 0.04 | I126: 0.01125 | J126: 851 | K126: 828.235 | L126: 114.3739815 | M126: 0.02637452913 | N126: 0.07161980184
A127: 2022-03-01 | B127: 2022 - I | C127: 144.7211776 | D127: 0.05957676471 | E127: 0.1278117594 | F127: 0.05957676471 | G127: -0.01282768355 | H127: 0.07 | I127: 0.03375 | J127: 786 | K127: 793.3 | L127: 118.26 | M127: 0.03397642104 | N127: 0.09416956839
A128: 2022-06-01 | B128: 2022 - II | C128: 147.5988533 | D128: 0.05350845349 | E128: 0.09458802188 | F128: 0.04762556506 | G128: 0.002827038415 | H128: 0.09 | I128: 0.0625 | J128: 918.15 | K128: 884.885 | L128: 122.48 | M128: 0.03568408591 | N128: 0.125038687
A129: 2022-09-01 | B129: 2022 - III | C129: 142.2771654 | D129: 0.0358507571 | E129: 0.05616144479 | F129: 0.001367146625 | G129: -0.008495159164 | H129: 0.1075 | I129: 0.08 | J129: 968.38 | K129: 934.74 | L129: 126.75 | M129: 0.03486283475 | N129: 0.1374350173
A130: 2022-12-01 | B130: 2022 - IV | C130: 154.1694739 | D130: 0.02063915168 | E130: 0.02063915168 | F130: -0.01993247248 | G130: -0.001717377377 | H130: 0.1125 | I130: 0.1025 | J130: 850.58 | K130: 877.79 | L130: 129.02 | M130: 0.01790927022 | N130: 0.1280537616
A131: 2023-03-01 | B131: 2023 - I | C131: 144.6527028 | D131: -0.0004731493259 | E131: 0.006325170764 | F131: -0.0004731493259 | G131: 0.004466854261 | H131: 0.1125 | I131: 0.1125 | J131: 795.47 | K131: 796.48 | L131: 131.38 | M131: 0.01829173772 | N131: 0.1109419922
A132: 2023-06-01 | B132: 2023 - II | C132: 147.0670667 | D132: -0.002053438936 | E132: -0.005985199382 | F132: -0.003602918272 | G132: 0.004140029818 | H132: 0.1125 | I132: 0.1125 | J132: 801.81 | K132: 804.53 | L132: 131.74 | M132: =L132/L131-1 -> 0.002740143096 | N132: 0.07560418027
A133: 2023-09-01 | B133: 2023 - III | C133: 144.2385827 | D133: 0.00313199439 | E133: -0.002997658694 | F133: 0.01378588973 | G133: 0.008864365373 | H133: 0.095 | I133: 0.1125 | J133: 892.8 | K133: 865.775 | L133: 133.24 | M133: 0.01138606346 | N133: 0.05120315582
A134: 2023-12-01 | B134: 2023 - IV | C134: 156.7944447 | D134: 0.006770299514 | E134: 0.006770299514 | F134: 0.01702652707 | G134: 0.002649579041 | H134: 0.0825 | I134: 0.09875 | J134: 879 | K134: 888.19 | L134: 134.0978636 | M134: 0.006438483826 | N134: 0.03935718172
A135: =EDATE(A134,3) -> 2024-03-01 | B135: 2024 - I | C135: 149.6864784 | D135: =AVERAGE(OFFSET($C$1,MATCH(EDATE(A135,0),$A$1:$A$304,0)-1,,IF(MONTH($A135)=3,-1,IF(MONTH($A135)=6,-2,IF(MONTH($A135)=9,-3,-4)))))/AVERAGE(OFFSET($C$1,MATCH(EDATE(A135,-12),$A$1:$A$304,0)-1,,IF(MONTH($A135)=3,-1,IF(MONTH($A135)=6,-2,IF(MONTH($A135)=9,-3,-4)))))-1 -> 0.03479904252 | E135: 0.01543809214 | F135: =C135/C131-1 -> 0.03479904252 | G135: 0.0124525233 | H135: 0.0725 | I135: 0.08625 | J135: 980.15 | K135: 954.6125 | L135: 136.3013802 | M135: 0.01643215293 | N135: =L135/L131-1 -> 0.03745912762
A136: 2024-06-01 | B136: 2024 - II | C136: 148.7933247 | D136: 0.02317303892 | E136: 0.01929117583 | F136: 0.01173789656 | G136: -0.006564891397 | H136: 0.0575 | I136: 0.0725 | J136: 941.05 | K136: 950.69 | L136: 137.2533376 | M136: 0.006984209358 | N136: 0.04185014089
A137: 2024-09-01 | B137: 2024 - III | C137: 147.6821522 | D137: 0.02340499491 | E137: 0.02173863554 | F137: 0.02387412144 | G137: 0.01672677223 | H137: 0.055 | I137: 0.06125 | J137: 898.7 | K137: 920.43 | L137: 138.7420556 | M137: 0.01084649756 | N137: 0.04129432267
A138: 2024-12-01 | B138: 2024 - IV | C138: 163.2182717 | D138: 0.02805120466 | E138: =AVERAGE(C135:C138)/AVERAGE(C131:C134)-1 -> 0.02805120466 | F138: 0.04096973601 | G138: 0.009704250248 | H138: 0.05 | I138: 0.05625 | J138: 996.49 | K138: 978.955 | L138: 140.1802157 | M138: 0.01036571169 | N138: 0.04535756165
A139: 2025-03-01 | B139: 2025 - I | C139: 154.0681661 | D139: 0.02927243485 | E139: 0.02672415689 | F139: 0.02927243485 | G139: 0.008514557467 | H139: 0.05 | I139: 0.05125 | J139: 951.08 | K139: 965.95 | L139: 142.9487979 | M139: 0.01975016385 | N139: 0.04876999582
A140: 2025-06-01 | B140: 2025 - II | C140: 154.3500851 | D140: 0.03329688615 | E140: 0.03303656479 | F140: 0.03734549481 | G140: 0.004265332398 | H140: 0.05 | I140: 0.05 | J140: 931.62 | K140: 940.01 | L140: 142.9121351 | M140: -0.0002564753703 | N140: 0.04122885186
A141: 2025-09-01 | B141: 2025 - III | C141: 150.1995032 | D141: 0.02791766288 | E141: 0.03131175996 | F141: 0.01704573637 | G141: -0.002704155096 | H141: 0.0475 | I141: 0.05 | J141: 962.5 | K141: 967.54 | L141: 144.8544531 | M141: 0.01359099424 | N141: 0.04405583808
A142: 2025-12-01 | B142: 2025 - IV | C142: 165.7486807 | D142: 0.02459254074 | E142: 0.02459254074 | F142: 0.01550322141 | G142: 0.005704748038 | H142: 0.045 | I142: 0.0475 | J142: 901 | K142: 921.69 | L142: 145.01878 | M142: 0.001134427983 | N142: 0.03451674196
A143: 2026-03-01 | B143: 2026 - I | C143: 155.0542023 | D143: 0.0064 | E143: 0.01888445073 | F143: 0.0064 | G143: 0.0025 | H143: 0.045 | I143: 0.04625 | J143: 910 | K143: 891.775 | L143: 146.8509321 | M143: 0.01263389535 | N143: 0.02729742573
A144: 2026-06-01 | B144: 2026 - II | C144: 156.8659915 | D144: 0.0113545247 | E144: 0.01380501353 | F144: 0.0163 | G144: 0.00734 | H144: 0.045 | I144: 0.045 | J144: 880 | K144: 890 | L144: 148.0052425 | M144: 0.007860422685 | N144: 0.03563803336
A145: 2026-09-01 | B145: 2026 - III | C145: 154.7039863 | D145: 0.01745773179 | E145: 0.01694471583 | F145: 0.02999 | G145: 0.0117 | H145: 0.045 | I145: 0.045 | J145: 880 | K145: 880 | L145: 150.0511621 | M145: 0.01382329153 | N145: 0.03587538345
A146: 2026-12-01 | B146: 2026 - IV | C146: 170.8819173 | D146: 0.02104479302 | E146: 0.02104479302 | F146: 0.03097 | G146: 0.0135 | H146: 0.045 | I146: 0.045 | J146: 880 | K146: 880 | L146: 150.8989957 | M146: 0.005650296457 | N146: 0.04054795973
A147: 2027-03-01 | B147: 2027 - I | C147: 160.6826699 | D147: 0.0363 | E147: 0.02843531367 | F147: 0.0363 | G147: 0.00233 | H147: 0.045 | I147: 0.045 | J147: 880 | K147: 880 | L147: 152.4172642 | M147: 0.01006148878 | N147: 0.03790464272
A148: 2027-06-01 | B148: 2027 - II | C148: 161.9076644 | D148: 0.03420791832 | E148: 0.03234413609 | F148: 0.03214 | G148: 0.0042 | H148: 0.045 | I148: 0.045 | J148: 875 | K148: 877.5 | L148: 152.9596332 | M148: 0.003558448406 | N148: 0.03347442701
A149: 2027-09-01 | B149: 2027 - III | C149: 158.6628613 | D149: 0.03135074465 | E149: 0.03125094922 | F149: 0.02559 | G149: 0.0054 | H149: 0.045 | I149: 0.045 | J149: 860 | K149: 865 | L149: 154.5213272 | M149: 0.01020984378 | N149: 0.02979093909
A150: 2027-12-01 | B150: 2027 - IV | C150: 174.1816471 | D150: 0.02812325312 | E150: 0.02812325312 | F150: 0.01931 | G150: 0.0054 | H150: 0.045 | I150: 0.045 | J150: 860 | K150: 860 | L150: 155.3264661 | M150: 0.005210535742 | N150: 0.02934062192
A151: 2028-03-01 | B151: 2028 - I | C151: 163.9846988 | D151: 0.02055 | E151: 0.02425978561 | F151: 0.02055 | G151: 0.00544 | H151: 0.0425 | I151: 0.045 | J151: 860 | K151: 860 | L151: 156.8074931 | M151: 0.009534930519 | N151: 0.02880401319
A152: 2028-06-01 | B152: 2028 - II | C152: 165.489062 | D152: 0.02133798093 | E152: 0.02181818834 | F152: 0.02212 | G152: 0.0055 | H152: 0.0425 | I152: 0.0425 | J152: 860 | K152: 860 | L152: 157.5068592 | M152: 0.004460029516 | N152: 0.02972827452
A153: 2028-09-01 | B153: 2028 - III | C153: 162.2867211 | D153: 0.0218331769 | E153: 0.02117201743 | F153: 0.02284 | G153: 0.0055 | H153: 0.0425 | I153: 0.0425 | J153: 860 | K153: 860 | L153: 159.099664 | M153: 0.01011260641 | N153: 0.02962915841
A154: 2028-12-01 | B154: 2028 - IV | C154: 178.2749158 | D154: 0.02227613473 | E154: 0.02227613473 | F154: 0.0235 | G154: 0.0055 | H154: 0.0425 | I154: 0.0425 | J154: 860 | K154: 860 | L154: 159.9634974 | M154: 0.005429510577 | N154: 0.0298534526
A156: * Index SA
A157: ** Growth rate calculated from the CPI constructed with QoQ variations of 2018 CPI basket on historical 2013 CPI.

Sheet Colombia
D2: 2003 | E2: 2004 | F2: 2005 | G2: 2006 | H2: 2007 | I2: 2008 | J2: 2009 | K2: 2010 | L2: 2011 | M2: 2012 | N2: 2013 | O2: 2014 | P2: 2015 | Q2: 2016 | R2: 2017 | S2: 2018 | T2: 2019 | U2: 2020 | V2: 2021 | W2: 2022 | X2: 2023 | Y2: 2024 | Z2: 2025 | AA2: 2026F | AB2: 2027F | AC2: 2028F
C4: GDP % | G4: 0.067 | H4: 0.067 | I4: 0.033 | J4: 0.011 | K4: 0.045 | L4: 0.069 | M4: 0.03903054219 | N4: 0.051 | O4: 0.045 | P4: 0.02955901375 | Q4: 0.02087382502 | R4: 0.01359360868 | S4: 0.02564324283 | T4: 0.03186855392 | U4: -0.07185914138 | V4: 0.1080119819 | W4: 0.07328277294 | X4: 0.008418195558 | Y4: 0.01493307288 | Z4: 0.0264200884 | AA4: 0.02274413555 | AB4: 0.02278320568 | AC4: 0.02770227742
C5: CPI % | D5: 0.06490638787 | E5: 0.05497524436 | F5: 0.04854900675 | G5: 0.04477906888 | H5: 0.05694069897 | I5: 0.07674755051 | J5: 0.0200181 | K5: 0.03171218236 | L5: 0.03725788702 | M5: 0.02436790033 | N5: 0.019 | O5: 0.037 | P5: 0.06769089097 | Q5: 0.05747408378 | R5: 0.0408862165 | S5: 0.03178000977 | T5: 0.038 | U5: 0.0161849711 | V5: 0.05621918847 | W5: 0.1312171486 | X5: 0.09275569309 | Y5: 0.051989544 | Z5: 0.05100773054 | AA5: 0.067028906 | AB5: 0.05697237227 | AC5: 0.03956598461
C6: Exchange Rate - COP / USD (end of period) | D6: 2778.21 | E6: 2389.75 | F6: 2284.22 | G6: 2238.79 | H6: 2014.76 | I6: 2243.59 | J6: 2043.79 | K6: 1907.7 | L6: 1938.5 | M6: 1767 | N6: 1929.51 | O6: 2376.51 | P6: 3149.47 | Q6: 3000.71 | R6: 2984 | S6: 3249.75 | T6: 3277.14 | U6: 3432.5 | V6: 3981.16 | W6: 4810.2 | X6: 3822.05 | Y6: 4409.15 | Z6: 3757.08 | AA6: 3700 | AB6: 3700 | AC6: 3700
C7: Monetary Policy Rate - % (end of period) | D7: 0.0725 | E7: 0.065 | F7: 0.06 | G7: 0.075 | H7: 0.095 | I7: 0.095 | J7: 0.035 | K7: 0.03 | L7: 0.0475 | M7: 0.0425 | N7: 0.0325 | O7: 0.045 | P7: 0.0575 | Q7: 0.075 | R7: 0.0475 | S7: 0.0425 | T7: 0.0425 | U7: 0.0175 | V7: 0.03 | W7: 0.12 | X7: 0.13 | Y7: 0.095 | Z7: 0.0925 | AA7: 0.12 | AB7: 0.1075 | AC7: 0.0825

Sheet Colombia_Quarterly
C1: GDP SA | H1: Monetary Policy Rate | J1: Exchange Rate | L1: Inflation NSA
C2: Index | D2: Ydt | E2: 12M | F2: YoY | G2: QoQ* | H2: eop | I2: Avg | J2: eop | K2: Avg | L2: Index (eop) | M2: QoQ | N2: YoY
A3: 1991-03-01 | B3: 1991 - I | L3: 12.23783766
A4: 1991-06-01 | B4: 1991 - II | L4: 13.06135365 | M4: =L4/L3-1 -> 0.06729260606
A5: 1991-09-01 | B5: 1991 - III | L5: 13.66398484 | M5: 0.04613849461
A6: 1991-12-01 | B6: 1991 - IV | L6: 14.21114105 | M6: 0.04004367814
A7: 1992-03-01 | B7: 1992 - I | L7: 15.55249478 | M7: 0.09438747525 | N7: =L7/L3-1 -> 0.2708531696
A8: 1992-06-01 | B8: 1992 - II | L8: 16.73645964 | M8: 0.07612700593 | N8: 0.2813725202
A9: 1992-09-01 | B9: 1992 - III | J9: 702.81 | L9: 17.34249917 | M9: 0.03621073682 | N9: 0.2692124132
A10: 1992-12-01 | B10: 1992 - IV | J10: 735 | K10: 726.185 | L10: 17.7829408 | M10: 0.0253966639 | N10: 0.2513379982
A11: 1993-03-01 | B11: 1993 - I | J11: 766.79 | K11: 755.965 | L11: 19.31343902 | M11: 0.08606552971 | N11: 0.2418225689
A12: 1993-06-01 | B12: 1993 - II | J12: 787.12 | K12: 781.03 | L12: 20.31518647 | M12: 0.0518678965 | N12: 0.2138281877
A13: 1993-09-01 | B13: 1993 - III | J13: 810.84 | K13: 805.94 | L13: 21.05906445 | M13: 0.03661684217 | N13: 0.2143039038
A14: 1993-12-01 | B14: 1993 - IV | J14: 802.33 | K14: 809.62 | L14: 21.80329819 | M14: 0.03534030384 | N14: 0.2260794451
A15: 1994-03-01 | B15: 1994 - I | J15: 820.78 | K15: 819.58 | L15: 23.83643155 | M15: 0.09324889056 | N15: 0.234188874
A16: 1994-06-01 | B16: 1994 - II | J16: 819.64 | K16: 828.96 | L16: 25.00514578 | M16: 0.04903058676 | N16: 0.2308597714
A17: 1994-09-01 | B17: 1994 - III | J17: 841.2 | K17: 828.41 | L17: 25.75883066 | M17: 0.03014119114 | N17: 0.2231707025
A18: 1994-12-01 | B18: 1994 - IV | J18: 831.2 | K18: 836.26 | L18: 26.72993678 | M18: 0.03769993058 | N18: 0.2259584103
A19: 1995-03-01 | B19: 1995 - I | J19: 876.21 | K19: 866.31 | L19: 28.92270193 | M19: 0.08203405671 | N19: 0.2133822074
A20: 1995-06-01 | B20: 1995 - II | J20: 881.23 | K20: 878.72 | L20: 30.42323763 | M20: 0.0518808962 | N20: 0.2166790748
A21: 1995-09-01 | B21: 1995 - III | J21: 973.2 | K21: 934.38 | L21: 31.11553456 | M21: 0.02275553093 | N21: 0.2079560198
A22: 1995-12-01 | B22: 1995 - IV | J22: 988.16 | K22: 991.33 | L22: 31.93360681 | M22: 0.0262914414 | N22: 0.1946757326
A23: 1996-03-01 | B23: 1996 - I | J23: 1048.42 | K23: 1038.28 | L23: 34.76771757 | M23: 0.08875009876 | N23: 0.2020909266
A24: 1996-06-01 | B24: 1996 - II | J24: 1071 | K24: 1062.5 | L24: 36.41849524 | M24: 0.0474801854 | N24: 0.1970617883
A25: 1996-09-01 | B25: 1996 - III | J25: 1030 | K25: 1045.74 | L25: 37.82155281 | M25: 0.03852596211 | N25: 0.2155199437
A26: 1996-12-01 | B26: 1996 - IV | J26: 1005.4 | K26: 1006.675 | L26: 38.84374418 | M26: 0.02702668952 | N26: 0.2163907575
A27: 1997-03-01 | B27: 1997 - I | J27: 1059.88 | K27: 1065.425 | L27: 41.35210693 | M27: 0.06457572024 | N27: 0.1893822726
A28: 1997-06-01 | B28: 1997 - II | J28: 1089 | K28: 1071.3 | L28: 43.21959536 | M28: 0.04516065968 | N28: 0.1867485209
A29: 1997-09-01 | B29: 1997 - III | J29: 1243 | K29: 1174.6 | L29: 44.63678211 | M29: 0.03279037512 | N29: 0.1801943281
A30: 1997-12-01 | B30: 1997 - IV | J30: 1289.5 | K30: 1285.35 | L30: 45.71295079 | M30: 0.02410945933 | N30: 0.176842031
A31: 1998-03-01 | B31: 1998 - I | J31: 1360 | K31: 1350.5 | L31: 49.31143148 | M31: 0.07871906385 | N31: 0.1924768806
A32: 1998-06-01 | B32: 1998 - II | J32: 1370 | K32: 1369 | L32: 52.16579907 | M32: 0.05788450063 | N32: 0.206994157
A33: 1998-09-01 | B33: 1998 - III | J33: 1553 | K33: 1458.075 | L33: 52.58428582 | M33: 0.008022243791 | N33: 0.1780483123
A34: 1998-12-01 | B34: 1998 - IV | H34: 0.26 | J34: 1549 | K34: 1563 | L34: 53.3484145 | M34: 0.01453150232 | N34: 0.1670306462
A35: 1999-03-01 | B35: 1999 - I | H35: 0.2 | I35: 0.23 | J35: 1538.9 | K35: 1560.45 | L35: 55.97306668 | M35: 0.04919831658 | N35: 0.1350931214
A36: 1999-06-01 | B36: 1999 - II | H36: 0.18 | I36: 0.185 | J36: 1735 | K36: 1671.5 | L36: 56.84009166 | M36: =L36/L35-1 -> 0.01549003886 | N36: 0.08960454314
A37: 1999-09-01 | B37: 1999 - III | H37: 0.16 | I37: 0.165 | J37: 2020 | K37: 1913 | L37: 57.48931203 | M37: 0.01142187404 | N37: 0.09327931578
A38: 1999-12-01 | B38: 1999 - IV | H38: 0.12 | I38: 0.135 | J38: 1875 | K38: 1921.75 | L38: 58.27337857 | M38: 0.01363847497 | N38: 0.09231697175
A39: 2000-03-01 | B39: 2000 - I | H39: 0.12 | I39: 0.12 | J39: 1953.25 | K39: 1965.875 | L39: 61.41655139 | M39: 0.05393840023 | N39: =L39/L35-1 -> 0.0972518575
A40: 2000-06-01 | B40: 2000 - II | H40: 0.12 | I40: 0.12 | J40: 2139.5 | K40: 2071.75 | L40: 62.33959623 | M40: 0.01502925231 | N40: 0.09675397088
A41: 2000-09-01 | B41: 2000 - III | H41: 0.12 | I41: 0.12 | J41: 2211 | K41: 2194.5 | L41: 62.77835311 | M41: 0.00703817321 | N41: 0.092000424
A42: 2000-12-01 | B42: 2000 - IV | H42: 0.12 | I42: 0.12 | J42: 2243 | K42: 2200.25 | L42: 63.37123874 | M42: 0.009444109342 | N42: 0.08748180207
A43: 2001-03-01 | B43: 2001 - I | H43: 0.115 | I43: 0.1175 | J43: 2307.5 | K43: 2276.325 | L43: 66.21582192 | M43: 0.04488760567 | N43: 0.07814295041
A44: 2001-06-01 | B44: 2001 - II | H44: 0.115 | I44: 0.115 | J44: 2301.25 | K44: 2325.25 | L44: 67.28299745 | M44: 0.01611662438 | N44: 0.0792979344
A45: 2001-09-01 | B45: 2001 - III | H45: 0.095 | I45: 0.1025 | J45: 2330.3 | K45: 2311.9 | L45: 67.78251152 | M45: 0.007424075785 | N45: 0.07971152732
A46: 2001-12-01 | B46: 2001 - IV | H46: 0.085 | I46: 0.08875 | J46: 2312.5 | K46: 2311 | L46: 68.21682856 | M46: 0.006407508774 | N46: 0.07646354894
A47: 2002-03-01 | B47: 2002 - I | H47: 0.0725 | I47: 0.07625 | J47: 2273 | K47: 2272.025 | L47: 70.11695077 | M47: 0.02785415645 | N47: 0.05891535801
A48: 2002-06-01 | B48: 2002 - II | H48: 0.0525 | I48: 0.0575 | J48: 2400 | K48: 2337.6 | L48: 71.48744202 | M48: 0.01954579082 | N48: 0.06248896061
A49: 2002-09-01 | B49: 2002 - III | H49: 0.0525 | I49: 0.0525 | J49: 2832 | K49: 2738.25 | L49: 71.8288874 | M49: 0.004776298777 | N49: 0.05969645852
A50: 2002-12-01 | B50: 2002 - IV | H50: 0.0525 | I50: 0.0525 | J50: 2867 | K50: 2821.475 | L50: 72.98707708 | M50: 0.01612428805 | N50: 0.06992773809
A51: 2003-03-01 | B51: 2003 - I | H51: 0.0625 | I51: 0.0625 | J51: 2958.2 | K51: 2949.325 | L51: 75.44592996 | M51: 0.03368887999 | N51: 0.07600129679
A52: 2003-06-01 | B52: 2003 - II | H52: 0.0725 | I52: 0.0725 | J52: 2805.97 | K52: 2840.485 | L52: 76.64364983 | M52: 0.01587520862 | N52: 0.07212746273
A53: 2003-09-01 | B53: 2003 - III | H53: 0.0725 | I53: 0.0725 | J53: 2884 | K53: 2880.85 | L53: 76.93936988 | M53: 0.003858376418 | N53: 0.07114801111
A54: 2003-12-01 | B54: 2003 - IV | H54: 0.0725 | I54: 0.0725 | J54: 2778.95 | K54: 2832.225 | L54: 77.72440352 | M54: 0.01020327614 | N54: 0.06490637296
A55: 2004-03-01 | B55: 2004 - I | H55: 0.0675 | I55: 0.07 | J55: 2674.5 | K55: 2713.75 | L55: 80.13475655 | M55: 0.03101153466 | N55: 0.06214817157
A56: 2004-06-01 | B56: 2004 - II | H56: 0.0675 | I56: 0.0675 | J56: 2699.48 | K56: 2680.865 | L56: 81.29447456 | M56: 0.01447209745 | N56: 0.06068114889
A57: 2004-09-01 | B57: 2004 - III | H57: 0.0675 | I57: 0.0675 | J57: 2596.25 | K57: 2606.75 | L57: 81.53468487 | M57: 0.002954817168 | N57: 0.05972644424
A58: 2004-12-01 | B58: 2004 - IV | H58: 0.065 | I58: 0.06625 | J58: 2396.5 | K58: 2491.5 | L58: 81.99732057 | M58: 0.005674096934 | N58: 0.0549752312
A59: 2005-03-01 | B59: 2005 - I | C59: 94.09888293 | H59: 0.065 | I59: 0.065 | J59: 2367 | K59: 2367.875 | L59: 84.16269019 | M59: 0.02640780944 | N59: 0.05026450207
A60: 2005-06-01 | B60: 2005 - II | C60: 97.54965805 | G60: 0.02471227634 | H60: 0.065 | I60: 0.065 | J60: 2327 | K60: 2337.235 | L60: 85.21700931 | M60: 0.01252715558 | N60: 0.04825093915
A61: 2005-09-01 | B61: 2005 - III | C61: 100.3962789 | G61: -0.003213913226 | H61: 0.06 | I61: 0.0625 | J61: 2291 | K61: 2300 | L61: 85.62454419 | M61: 0.004782318529 | N61: 0.05016097536
A62: 2005-12-01 | B62: 2005 - IV | C62: 107.9551801 | G62: 0.01827456432 | H62: 0.06 | I62: 0.06 | J62: 2286.5 | K62: 2288.25 | L62: 85.97821012 | M62: 0.004130426991 | N62: 0.04854901982
A63: 2006-03-01 | B63: 2006 - I | C63: 100.098227 | D63: =AVERAGE(OFFSET($C$1,MATCH(EDATE(A63,0),$A$1:$A$304,0)-1,,IF(MONTH($A63)=3,-1,IF(MONTH($A63)=6,-2,IF(MONTH($A63)=9,-3,-4)))))/AVERAGE(OFFSET($C$1,MATCH(EDATE(A63,-12),$A$1:$A$304,0)-1,,IF(MONTH($A63)=3,-1,IF(MONTH($A63)=6,-2,IF(MONTH($A63)=9,-3,-4)))))-1 -> 0.06375574146 | F63: =C63/C59-1 -> 0.06375574146 | G63: 0.02337747728 | H63: 0.06 | I63: 0.06 | J63: 2297.35 | K63: 2282 | L63: 87.62346636 | M63: 0.01913573502 | N63: 0.04112007546
A64: 2006-06-01 | B64: 2006 - II | C64: 102.7422644 | D64: 0.05839830757 | F64: 0.0532303905 | G64: 0.01368839604 | H64: 0.065 | I64: 0.06375 | J64: 2635.5 | K64: 2508.75 | L64: 88.57306641 | M64: 0.01083728013 | N64: 0.03938247934
A65: 2006-09-01 | B65: 2006 - III | C65: 108.0808761 | D65: 0.06463579014 | F65: 0.0765426501 | G65: 0.01944387748 | H65: 0.07 | I65: 0.0675 | J65: 2393.5 | K65: 2409.75 | L65: 89.54345898 | M65: 0.01095584248 | N65: 0.04576859155
A66: 2006-12-01 | B66: 2006 - IV | C66: 115.9461072 | D66: 0.06716868698 | E66: =AVERAGE(C63:C66)/AVERAGE(C59:C62)-1 -> 0.06716868698 | F66: 0.07402078432 | G66: 0.01583301199 | H66: 0.075 | I66: 0.07375 | J66: 2240 | K66: 2278.9 | L66: 89.82823738 | M66: 0.00318033726 | N66: 0.04477910455
A67: 2007-03-01 | B67: 2007 - I | C67: 106.8176872 | D67: 0.06712866375 | E67: 0.06794984122 | F67: 0.06712866375 | G67: 0.01735065021 | H67: 0.0825 | I67: 0.08 | J67: 2148.63 | K67: 2203.59 | L67: 92.68850669 | M67: 0.03184153886 | N67: 0.05780461029
A68: 2007-06-01 | B68: 2007 - II | C68: 109.7917251 | D68: 0.06788053396 | E68: 0.07160754287 | F68: 0.06861305504 | G68: 0.01326385238 | H68: 0.09 | I68: 0.0875 | J68: 1960.35 | K68: 2035.9 | L68: 93.91740358 | M68: =L68/L67-1 -> 0.01325835245 | N68: 0.0603381748
A69: 2007-09-01 | B69: 2007 - III | C69: 115.4892496 | D69: 0.06811141515 | E69: 0.06963441045 | F69: 0.06854472082 | G69: 0.02076693554 | H69: 0.0925 | I69: 0.0925 | J69: 2019.25 | K69: 1996.775 | L69: 94.02511082 | M69: 0.001146829398 | N69: 0.05005001918
A70: 2007-12-01 | B70: 2007 - IV | C70: 123.5319744 | D70: 0.06738194691 | E70: 0.06738194691 | F70: 0.06542580306 | G70: 0.01227737317 | H70: 0.095 | I70: 0.09375 | J70: 2017.25 | K70: 2006.25 | L70: 94.94311369 | M70: 0.009763379871 | N70: 0.05694062874
A71: 2008-03-01 | B71: 2008 - I | C71: 112.3448389 | D71: 0.05174378697 | E71: 0.06358783148 | F71: 0.05174378697 | G71: 0.00423232816 | H71: 0.0975 | I71: 0.09625 | J71: 1834.7 | K71: 1885.7 | L71: 98.18118333 | M71: 0.03410536602 | N71: =L71/L67-1 -> 0.05925952249
A72: 2008-06-01 | B72: 2008 - II | C72: 115.0456023 | D72: 0.04977174703 | E72: 0.05849555276 | F72: 0.04785312571 | G72: 0.007281171905 | H72: 0.0975 | I72: 0.0975 | J72: 1899.15 | K72: 1840.515 | L72: 100.6610516 | M72: 0.02525808072 | N72: 0.07180402943
A73: 2008-09-01 | B73: 2008 - III | C73: 119.3230176 | D73: 0.04400739469 | E73: 0.04955010212 | F73: 0.03319588644 | G73: 0.008634377548 | H73: 0.1 | I73: 0.1 | J73: 2185 | K73: 1990 | L73: 101.1463077 | M73: 0.004820693591 | N73: 0.07573718123
A74: 2008-12-01 | B74: 2008 - IV | C74: 123.8775643 | D74: 0.03283446186 | E74: 0.03283446186 | F74: 0.002797574174 | G74: -0.0168338013 | H74: 0.095 | I74: 0.0975 | J74: 2248.58 | K74: 2312.495 | L74: 102.2297684 | M74: 0.01071181694 | N74: 0.07674758529
A75: 2009-03-01 | B75: 2009 - I | C75: 112.5078366 | D75: 0.00145087015 | E75: 0.020809001 | F75: 0.00145087015 | G75: 0.002673825603 | H75: 0.07 | I75: 0.08 | J75: 2548.3 | K75: 2491.45 | L75: 104.2102892 | M75: 0.01937323 | N75: 0.06140795704
A76: 2009-06-01 | B76: 2009 - II | C76: 115.8455731 | D76: 0.004234868208 | E76: 0.01102529549 | F76: 0.006953510268 | G76: 0.01104224768 | H76: 0.045 | I76: 0.0575 | J76: 2143.15 | K76: 2218.025 | L76: 104.5011319 | M76: 0.002790920848 | N76: 0.03814862097
A77: 2009-09-01 | B77: 2009 - III | C77: 119.9582513 | D77: 0.004609576497 | E77: 0.00413356927 | F77: 0.0053236473 | G77: 0.01020835563 | H77: 0.04 | I77: 0.0425 | J77: 1919.73 | K77: 1978.165 | L77: 104.3920497 | M77: -0.001043837783 | N77: 0.03208957462
A78: 2009-12-01 | B78: 2009 - IV | C78: 127.6424463 | D78: 0.01139648645 | E78: 0.01139648645 | F78: 0.03039196025 | G78: 0.007757572621 | H78: 0.035 | I78: 0.0375 | J78: 2043.79 | K78: 2019.965 | L78: 104.2762121 | M78: -0.001109639798 | N78: 0.02001808
A79: 2010-03-01 | B79: 2010 - I | C79: 116.8735347 | D79: 0.0388035018 | E79: 0.02032013337 | F79: 0.0388035018 | G79: 0.009287858377 | H79: 0.035 | I79: 0.035 | J79: 1920.35 | K79: 1951.125 | L79: 106.1272456 | M79: 0.01775125398 | N79: 0.01839507792
A80: 2010-06-01 | B80: 2010 - II | C80: 121.2029088 | D80: 0.04257888576 | E80: 0.02995022769 | F80: 0.04624549355 | G80: 0.01632536179 | H80: 0.03 | I80: 0.03 | J80: 1900.11 | K80: 1928.43 | L80: 106.8473225 | M80: 0.006785032796 | N80: 0.02245134116
A81: 2010-09-01 | B81: 2010 - III | C81: 124.8135071 | D81: 0.04185415302 | E81: 0.03884707779 | F81: 0.04047454645 | G81: 0.007408225204 | H81: 0.03 | I81: 0.03 | J81: 1802.18 | K81: 1822.84 | L81: 106.7770303 | M81: -0.0006578748521 | N81: 0.02284638184
A82: 2010-12-01 | B82: 2010 - IV | C82: 134.4566707 | D82: 0.04494658971 | E82: 0.04494658971 | F82: 0.05338525404 | G82: 0.02100688155 | H82: 0.03 | I82: 0.03 | J82: 1907.7 | K82: 1873.225 | L82: 107.5830425 | M82: 0.007548554267 | N82: 0.0317122222
A83: 2011-03-01 | B83: 2011 - I | C83: 124.8199973 | D83: 0.06799197697 | E83: 0.05199302285 | F83: 0.06799197697 | G83: 0.02093139034 | H83: 0.035 | I83: 0.0325 | J83: 1871 | K83: 1869.1 | L83: 109.5089307 | M83: 0.01790141049 | N83: 0.03186443848
A84: 2011-06-01 | B84: 2011 - II | C84: 129.4236057 | D84: 0.06790743082 | E84: 0.05731511224 | F84: 0.06782590466 | G84: 0.01547176002 | H84: 0.0425 | I84: 0.04 | J84: 1770.78 | K84: 1768.89 | L84: 110.3012584 | M84: 0.007235279586 | N84: 0.03232590109
A85: 2011-09-01 | B85: 2011 - III | C85: 134.6965874 | D85: 0.07178550922 | E85: 0.06699754089 | F85: 0.07918277843 | G85: 0.02028644796 | H85: 0.045 | I85: 0.045 | J85: 1931.99 | K85: 1855.185 | L85: 110.7612495 | M85: 0.004170315261 | N85: 0.03731344798
A86: 2011-12-01 | B86: 2011 - IV | C86: 142.9615368 | D86: 0.06947891982 | E86: 0.06947891982 | F86: 0.06325358261 | G86: 0.006258552308 | H86: 0.0475 | I86: 0.04625 | J86: 1938.5 | K86: 1902.125 | L86: 111.5913572 | M86: 0.007494568436 | N86: 0.03725786731
A87: 2012-03-01 | B87: 2012 - I | C87: 132.477899 | D87: 0.06135156113 | E87: 0.06781518712 | F87: 0.06135156113 | G87: 0.01679759293 | H87: 0.0525 | I87: 0.05125 | J87: 1788.75 | K87: 1799.575 | L87: 113.231364 | M87: 0.01469653913 | N87: 0.03399205197
A88: 2012-06-01 | B88: 2012 - II | C88: 135.6955215 | D88: 0.05478925454 | E88: 0.06293456007 | F88: 0.04846036974 | G88: 0.003426983969 | H88: 0.0525 | I88: 0.0525 | J88: 1783.76 | K88: 1772.88 | L88: 113.8292261 | M88: 0.005280005073 | N88: 0.03198483643
A89: 2012-09-01 | B89: 2012 - III | C89: 137.7235444 | D89: 0.04359738297 | E89: 0.04864691108 | F89: 0.02247241011 | G89: -0.00481185841 | H89: 0.0475 | I89: 0.04875 | J89: 1800.53 | K89: 1796.365 | L89: 114.1773042 | M89: 0.003057897001 | N89: 0.03084160529
A90: 2012-12-01 | B90: 2012 - IV | C90: 146.8161396 | D90: 0.03912635767 | E90: 0.03912635767 | F90: 0.02696251647 | G90: 0.01261157418 | H90: 0.0425 | I90: 0.045 | J90: 1767 | K90: 1799.575 | L90: 114.3089915 | M90: 0.001153357728 | N90: 0.02435344741
A91: 2013-03-01 | B91: 2013 - I | C91: 135.6333108 | D91: 0.02381840107 | E91: 0.03022629268 | F91: 0.02381840107 | G91: 0.01238385129 | H91: 0.0325 | I91: 0.03625 | J91: 1825 | K91: 1800.115 | L91: 115.3957471 | M91: 0.009507175102 | N91: 0.01911469599
A92: 2013-06-01 | B92: 2013 - II | C92: 142.9868522 | D92: 0.03895517468 | E92: 0.03174661185 | F92: 0.05373302397 | G92: 0.03363850769 | H92: 0.0325 | I92: 0.0325 | J92: 1922.77 | K92: 1873.86 | L92: 116.2824942 | M92: 0.007684400574 | N92: 0.02155218085
A93: 2013-09-01 | B93: 2013 - III | C93: 146.3292587 | D93: 0.04693914581 | E93: 0.04173581996 | F93: 0.06248542628 | G93: 0.002720343041 | H93: 0.0325 | I93: 0.0325 | J93: 1906 | K93: 1900.24 | L93: 116.7727555 | M93: 0.004216122634 | N93: 0.02273176174
A94: 2013-12-01 | B94: 2013 - IV | C94: 156.1399378 | D94: 0.0513399352 | E94: 0.0513399352 | F94: 0.06350662928 | G94: 0.0144489217 | H94: 0.0325 | I94: 0.0325 | J94: 1929.51 | K94: 1910.59 | L94: 116.5240887 | M94: -0.002129492916 | N94: 0.01937815402
A95: 2014-03-01 | B95: 2014 - I | C95: 144.5851287 | D95: =AVERAGE(OFFSET($C$1,MATCH(EDATE(A95,0),$A$1:$A$304,0)-1,,IF(MONTH($A95)=3,-1,IF(MONTH($A95)=6,-2,IF(MONTH($A95)=9,-3,-4)))))/AVERAGE(OFFSET($C$1,MATCH(EDATE(A95,-12),$A$1:$A$304,0)-1,,IF(MONTH($A95)=3,-1,IF(MONTH($A95)=6,-2,IF(MONTH($A95)=9,-3,-4)))))-1 -> 0.06600014284 | E95: 0.0614761587 | F95: =C95/C91-1 -> 0.06600014284 | G95: 0.0144058487 | H95: 0.0325 | I95: 0.0325 | J95: 1971.2 | K95: 1993.565 | L95: 118.2937248 | M95: 0.01518686958 | N95: 0.02511338465
A96: 2014-06-01 | B96: 2014 - II | C96: 147.8846118 | D96: 0.04970773583 | E96: 0.05642996417 | F96: 0.03425321628 | G96: 0.002494225214 | H96: 0.04 | I96: 0.0375 | J96: 1877.44 | K96: 1906.92 | L96: 119.5213296 | M96: 0.01037759786 | N96: 0.02785316368
A97: 2014-09-01 | B97: 2014 - III | C97: 152.74719 | D97: 0.04769393187 | E97: 0.05175426594 | F97: 0.04385952176 | G97: 0.01011197169 | H97: 0.045 | I97: 0.04375 | J97: 2024.85 | K97: 1950.675 | L97: 120.1083032 | M97: 0.004911037099 | N97: 0.0285644349
A98: 2014-12-01 | B98: 2014 - IV | C98: 162.0158136 | D98: 0.04499030001 | E98: =AVERAGE(C95:C98)/AVERAGE(C91:C94)-1 -> 0.04499030001 | F98: 0.03763211343 | G98: 0.01022878915 | H98: 0.045 | I98: 0.045 | J98: 2376.51 | K98: 2217.055 | L98: 120.7861663 | M98: 0.005643765547 | N98: 0.03657679437
A99: 2015-03-01 | B99: 2015 - I | C99: 148.6741073 | D99: 0.02828076886 | E99: 0.03606620377 | F99: 0.02828076886 | G99: 0.005920034811 | H99: 0.045 | I99: 0.045 | J99: 2576.05 | K99: 2508.575 | L99: 123.6822396 | M99: 0.02397686201 | N99: 0.04555199139
A100: 2015-06-01 | B100: 2015 - II | C100: 152.9457153 | D100: 0.03128556869 | E100: 0.03604384918 | F100: 0.03422332784 | G100: 0.007733261791 | H100: 0.045 | I100: 0.045 | J100: 2585.11 | K100: 2486.585 | L100: 124.8045098 | M100: =L100/L99-1 -> 0.009073818706 | N100: 0.04420282362
A101: 2015-09-01 | B101: 2015 - III | C101: 158.2088641 | D101: 0.03281940836 | E101: 0.03406900824 | F101: 0.03575629831 | G101: 0.009984619794 | H101: 0.0475 | I101: 0.04625 | J101: 3121.94 | K101: 2993.99 | L101: 126.5349061 | M101: 0.01386485366 | N101: 0.05350673231
A102: 2015-12-01 | B102: 2015 - IV | C102: 165.3532584 | D102: 0.02955901375 | E102: 0.02955901375 | F102: 0.0205995002 | G102: -0.003137639517 | H102: 0.0575 | I102: 0.055 | J102: 3149.47 | K102: 3023.65 | L102: 128.9622896 | M102: 0.01918350885 | N102: 0.06769089097
A103: 2016-03-01 | B103: 2016 - I | C103: 152.2047967 | D103: 0.02374784359 | E103: 0.02844805154 | F103: 0.02374784359 | G103: 0.01028372713 | H103: 0.065 | I103: 0.0625 | J103: 3022.35 | K103: 3154.83 | L103: 133.5466823 | M103: 0.03554832015 | N103: =L103/L99-1 -> 0.07975633983
A104: 2016-06-01 | B104: 2016 - II | C104: 156.1913741 | D104: 0.02246652132 | E104: 0.02526914507 | F104: 0.02122098499 | G104: 0.00398351764 | H104: 0.075 | I104: 0.0725 | J104: 2916.15 | K104: 2883.645 | L104: 135.5404337 | M104: 0.0149292469 | N104: 0.08602192277
A105: 2016-09-01 | B105: 2016 - III | C105: 160.671557 | D105: 0.02009235463 | E105: 0.0202244867 | F105: 0.01556608652 | G105: 0.002657486966 | H105: 0.0775 | I105: 0.0775 | J105: 2879.95 | K105: 2980.85 | L105: 135.7375981 | M105: 0.0014546539 | N105: 0.07272848534
A106: 2016-12-01 | B106: 2016 - IV | C106: 169.1641559 | D106: 0.02087382502 | E106: 0.02087382502 | F106: 0.02304700567 | G106: 0.006397646286 | H106: 0.075 | I106: 0.07625 | J106: 3000.71 | K106: 2984.185 | L106: 136.374279 | M106: 0.004690526963 | N106: 0.05747408378
A107: 2017-03-01 | B107: 2017 - I | C107: 153.832571 | D107: 0.01069463197 | E107: 0.01772991786 | F107: 0.01069463197 | G107: -0.001292729378 | H107: 0.07 | I107: 0.0725 | J107: 2880.24 | K107: 2908.45 | L107: 139.8047553 | M107: 0.02515486289 | N107: 0.04686056485
A108: 2017-06-01 | B108: 2017 - II | C108: 158.1747352 | D108: 0.01170940419 | E108: 0.01564142107 | F108: 0.01269827569 | G108: 0.004663775866 | H108: 0.0575 | I108: 0.06125 | J108: 3038.26 | K108: 2993.055 | L108: 140.9449362 | M108: 0.008155522838 | N108: 0.03987372846
A109: 2017-09-01 | B109: 2017 - III | C109: 163.3869729 | D109: 0.01348750064 | E109: 0.01597905647 | F109: 0.01690041422 | G109: 0.006097851517 | H109: 0.0525 | I109: 0.05375 | J109: 2918.49 | K109: 2956.745 | L109: 141.1269583 | M109: 0.001291441553 | N109: 0.03970425476
A110: 2017-12-01 | B110: 2017 - IV | C110: 171.5134791 | D110: 0.01359360868 | E110: 0.01359360868 | F110: 0.01388783091 | G110: 0.00463694316 | H110: 0.0475 | I110: 0.04875 | J110: 2984 | K110: 2997.72 | L110: 141.9501073 | M110: 0.005832684227 | N110: 0.0408862165
A111: 2018-03-01 | B111: 2018 - I | C111: 156.369642 | D111: 0.01649241749 | E111: 0.01498011486 | F111: 0.01649241749 | G111: 0.002260833417 | H111: 0.045 | I111: 0.045 | J111: 2780.47 | K111: 2812.305 | L111: 144.194429 | M111: 0.01581063734 | N111: 0.03139860059
A112: 2018-06-01 | B112: 2018 - II | C112: 162.522153 | D112: 0.02206515241 | E112: 0.01861705661 | F112: 0.02748490633 | G112: 0.01378778274 | H112: 0.0425 | I112: 0.0425 | J112: 2930.8 | K112: 2868.54 | L112: 145.4523857 | M112: 0.008724031386 | N112: 0.03198021614
A113: 2018-09-01 | B113: 2018 - III | C113: 168.0938293 | D113: 0.02438259304 | E113: 0.02162824606 | F113: 0.0288080279 | G113: 0.007239683442 | H113: 0.0425 | I113: 0.0425 | J113: 2972.18 | K113: 2923.95 | L113: 145.6808099 | M113: 0.001570439963 | N113: 0.03226776562
A114: 2018-12-01 | B114: 2018 - IV | C114: 176.5109466 | D114: 0.02564324283 | E114: 0.02564324283 | F114: 0.02913746207 | G114: 0.005934104057 | H114: 0.0425 | I114: 0.0425 | J114: 3249.75 | K114: 3226.095 | L114: 146.4612831 | M114: 0.005357419192 | N114: 0.03178000977
A115: 2019-03-01 | B115: 2019 - I | C115: 161.8043118 | D115: 0.03475527414 | E115: 0.03000472195 | F115: 0.03475527414 | G115: 0.00794451501 | H115: 0.0425 | I115: 0.0425 | J115: 3174.79 | K115: 3169.125 | L115: 148.8339559 | M115: 0.0162 | N115: 0.03217549353
A116: 2019-06-01 | B116: 2019 - II | C116: 167.5198685 | D116: 0.03271449902 | E116: 0.0307998594 | F116: 0.03075098039 | G116: 0.008772198183 | H116: 0.0425 | I116: 0.0425 | J116: 3205.67 | K116: 3226.695 | L116: 150.4303839 | M116: 0.01072623499 | N116: 0.03422424565
A117: 2019-09-01 | B117: 2019 - III | C117: 173.3500286 | D117: 0.03221570379 | E117: 0.0314139412 | F117: 0.03126943642 | G117: 0.007895482137 | H117: 0.0425 | I117: 0.0425 | J117: 3462.01 | K117: 3379.43 | L117: 151.2388501 | M117: 0.00537435498 | N117: 0.03815217821
A118: 2019-12-01 | B118: 2019 - IV | C118: 181.9670382 | D118: 0.03186855392 | E118: 0.03186855392 | F118: 0.03091078332 | G118: 0.006105137352 | H118: 0.0425 | I118: 0.0425 | J118: 3277.14 | K118: 3333.54 | L118: 152.0268118 | M118: 0.005210048227 | N118: 0.038
A119: 2020-03-01 | B119: 2020 - I | C119: 162.3642999 | D119: 0.003460897617 | E119: 0.02432237223 | F119: 0.003460897617 | G119: -0.01917039397 | H119: 0.0375 | I119: 0.04 | J119: 4064.81 | K119: 3738.13 | L119: 154.560592 | M119: 0.01666666667 | N119: 0.03847667782
A120: 2020-06-01 | B120: 2020 - II | C120: 139.5256121 | D120: -0.08330474927 | E120: -0.0248126708 | F120: -0.1671100668 | G120: -0.1628488395 | H120: 0.025 | I120: 0.02875 | J120: 3758.91 | K120: 3871.1 | L120: 153.7404089 | M120: -0.005306547901 | N120: 0.02200369974
A121: 2020-09-01 | B121: 2020 - III | C121: 157.6093919 | D121: -0.08589043203 | E121: -0.05553539127 | F121: -0.09080261962 | G121: 0.1007870297 | H121: 0.0175 | I121: 0.02 | J121: 3878.94 | K121: 3809.215 | L121: 154.209085 | M121: 0.003048490045 | N121: 0.01963936395
A122: 2020-12-01 | B122: 2020 - IV | C122: 175.944211 | D122: -0.07185914138 | E122: -0.07185914138 | F122: -0.03309845151 | G122: 0.0703697832 | H122: 0.0175 | I122: 0.0175 | J122: 3432.5 | K122: 3645.53 | L122: 154.4873614 | M122: 0.001804539842 | N122: 0.0161849711
A123: 2021-03-01 | B123: 2021 - I | C123: 164.799278 | D123: 0.01499700394 | E123: -0.06906400608 | F123: 0.01499700394 | G123: 0.0296400079 | H123: 0.0175 | I123: 0.0175 | J123: 3736.91 | K123: 3648.185 | L123: 156.8893264 | M123: 0.01554797118 | N123: 0.01506680565
A124: 2021-06-01 | B124: 2021 - II | C124: 165.2294162 | D124: 0.09320875258 | E124: 0.009700624639 | F124: 0.1842228368 | G124: -0.02283026035 | H124: 0.0175 | I124: 0.0175 | J124: 3756.67 | K124: 3734.78 | L124: 159.322761 | M124: 0.01551051668 | N124: 0.03631024623
A125: 2021-09-01 | B125: 2021 - III | C125: 178.6090809 | D125: 0.1069391631 | E125: 0.06721419505 | F125: 0.1332388169 | G125: 0.05385781121 | H125: 0.02 | I125: 0.01875 | J125: 3834.68 | K125: 3851.28 | L125: 161.1639147 | M125: 0.01155612497 | N125: 0.0451
A126: 2021-12-01 | B126: 2021 - IV | C126: 195.4412534 | D126: 0.1080119819 | E126: 0.1080119819 | F126: 0.1108137761 | G126: 0.04760101792 | H126: 0.03 | I126: 0.025 | J126: 3981.16 | K126: 3882.8 | L126: 163.1725155 | M126: 0.0124630926 | N126: 0.05621918847
A127: 2022-03-01 | B127: 2022 - I | C127: 178.1564847 | D127: =AVERAGE(OFFSET($C$1,MATCH(EDATE(A127,0),$A$1:$A$304,0)-1,,IF(MONTH($A127)=3,-1,IF(MONTH($A127)=6,-2,IF(MONTH($A127)=9,-3,-4)))))/AVERAGE(OFFSET($C$1,MATCH(EDATE(A127,-12),$A$1:$A$304,0)-1,,IF(MONTH($A127)=3,-1,IF(MONTH($A127)=6,-2,IF(MONTH($A127)=9,-3,-4)))))-1 -> 0.08105136716 | E127: 0.1247224088 | F127: =C127/C123-1 -> 0.08105136716 | G127: 0.001104164831 | H127: 0.05 | I127: 0.045 | J127: 3748.15 | K127: 3865.375 | L127: 170.271986 | M127: 0.04350898483 | N127: 0.0853
A128: 2022-06-01 | B128: 2022 - II | C128: 185.6948257 | D128: 0.1024838655 | E128: 0.1119971825 | F128: 0.1238605691 | G128: 0.01622250512 | H128: 0.075 | I128: 0.0675 | J128: 4127.47 | K128: 4046.87 | L128: 174.7344552 | M128: 0.02620788816 | N128: 0.09673253278
A129: 2022-09-01 | B129: 2022 - III | C129: 191.828002 | D129: 0.0924853398 | E129: 0.09719592573 | F129: 0.07401035315 | G129: 0.00717461782 | H129: 0.1 | I129: 0.095 | J129: 4532.07 | K129: 4416.185 | L129: 179.6192685 | M129: 0.02795563903 | N129: 0.1145129407
A130: 2022-12-01 | B130: 2022 - IV | C130: 199.9965795 | D130: 0.07328277294 | E130: =AVERAGE(C127:C130)/AVERAGE(C123:C126)-1 -> 0.07328277294 | F130: 0.02330790474 | G130: -0.002842061803 | H130: 0.12 | I130: 0.115 | J130: 4810.2 | K130: 4814.81 | L130: 184.5835477 | M130: 0.0276377876 | N130: 0.1312171486
A131: 2023-03-01 | B131: 2023 - I | C131: 183.1582492 | D131: 0.02807511893 | E131: 0.06027214568 | F131: 0.02807511893 | G131: 0.006265344415 | H131: 0.13 | I131: 0.12875 | J131: 4627.27 | K131: 4629.735 | L131: 192.9844048 | M131: 0.04551249138 | N131: 0.1333890523
A132: 2023-06-01 | B132: 2023 - II | C132: 186.4483121 | D132: 0.01581759008 | E132: 0.03188703849 | F132: 0.004057659544 | G132: -0.006295724398 | H132: 0.1325 | I132: 0.1325 | J132: 4191.28 | K132: 4430.14 | L132: 195.9336091 | M132: =L132/L131-1 -> 0.01528208609 | N132: 0.1213221167
A133: 2023-09-01 | B133: 2023 - III | C133: 190.9709439 | D133: 0.008814783344 | E133: 0.0125858874 | F133: -0.004467846833 | G133: -0.001187350993 | H133: 0.1325 | I133: 0.1325 | J133: 4053.76 | K133: 3988.625 | L133: 199.3637661 | M133: 0.01750673098 | N133: 0.1099241621
A134: 2023-12-01 | B134: 2023 - IV | C134: 201.4598142 | D134: 0.008418195558 | E134: 0.008418195558 | F134: 0.007316298571 | G134: 0.008187504169 | H134: 0.13 | I134: 0.13125 | J134: 3822.05 | K134: 3941.44 | L134: 201.7047226 | M134: 0.01174213623 | N134: 0.09275569309
A135: =EDATE(A134,3) -> 2024-03-01 | B135: 2024 - I | C135: 183.7421228 | D135: 0.003187809268 | E135: 0.002555006694 | F135: 0.003187809268 | G135: 0.002210288631 | H135: 0.1225 | I135: 0.125 | J135: 3842.3 | K135: 3883.95 | L135: 207.2652508 | M135: 0.0275676648 | N135: =L135/L131-1 -> 0.074
A136: 2024-06-01 | B136: 2024 - II | C136: 189.4310336 | D136: 0.009649707144 | E136: 0.005480169379 | F136: 0.01599757851 | G136: 0.007684254391 | H136: 0.1125 | I136: 0.115 | J136: 4184.04 | K136: 4028.74 | L136: 210.0113616 | M136: 0.01324925816 | N136: 0.07184960532
A137: 2024-09-01 | B137: 2024 - III | C137: 194.0374045 | D137: 0.01183253993 | E137: 0.01064497275 | F137: 0.01605721048 | G137: -0.001530248745 | H137: 0.1025 | I137: 0.105 | J137: 4164.21 | K137: 4126.63 | L137: 210.9508321 | M137: 0.00447342706 | N137: 0.05812022031
A138: 2024-12-01 | B138: 2024 - IV | C138: 206.2063173 | D138: 0.01493307288 | E138: 0.01493307288 | F138: 0.02356054545 | G138: 0.01480654029 | H138: 0.095 | I138: 0.09625 | J138: 4409.15 | K138: 4411.305 | L138: 212.1912592 | M138: 0.005880171379 | N138: 0.051989544
A139: 2025-03-01 | B139: 2025 - I | C139: 188.5066094 | D139: 0.02593029038 | E139: 0.0204035398 | F139: 0.02593029038 | G139: 0.004670322764 | H139: 0.095 | I139: 0.095 | J139: 4192.57 | K139: 4181.29 | L139: 217.8131007 | M139: 0.02649421831 | N139: 0.05089058524
A140: 2025-06-01 | B140: 2025 - II | C140: 193.4421393 | D140: 0.02351614045 | E140: 0.02166728225 | F140: 0.02117449122 | G140: 0.00355944762 | H140: 0.0925 | I140: 0.0925 | J140: 4069.67 | K140: 4134.25 | L140: 220.1262136 | M140: 0.0106197143 | N140: 0.04816335612
A141: 2025-09-01 | B141: 2025 - III | C141: 201.018599 | D141: 0.02777943132 | E141: 0.02667370903 | F141: 0.03597860155 | G141: 0.01264130913 | H141: 0.0925 | I141: 0.0925 | J141: 3901.29 | K141: 4040.49 | L141: 221.8777395 | M141: 0.007956916663 | N141: 0.05179836134
A142: 2025-12-01 | B142: 2025 - IV | C142: 210.8832728 | D142: 0.0264200884 | E142: 0.0264200884 | F142: 0.02268095145 | G142: 0.001202062394 | H142: 0.0925 | I142: 0.0925 | J142: 3757.08 | K142: 3813.75 | L142: 223.0146537 | M142: 0.005124057016 | N142: 0.05100773054
A143: 2026-03-01 | B143: 2026 - I | C143: 192.9980649 | D143: 0.02382651453 | E143: 0.02590747102 | F143: 0.02382651453 | G143: 0.00625 | H143: 0.1125 | I143: 0.1075 | J143: 3680 | K143: 3675.235 | L143: 229.8511326 | M143: 0.03065484155 | N143: 0.05526771283
A144: 2026-06-01 | B144: 2026 - II | C144: 198.4341568 | D144: 0.02482917671 | E144: 0.02702867096 | F144: 0.02580625672 | G144: 0.0055 | H144: 0.12 | I144: 0.12 | J144: 3620 | K144: 3633.5 | L144: 232.7960265 | M144: 0.01281217929 | N144: 0.05755703836
A145: 2026-09-01 | B145: 2026 - III | C145: 204.7519378 | D145: 0.02267161584 | E145: 0.02267405518 | F145: 0.01857210626 | G145: 0.0055 | H145: 0.12 | I145: 0.12 | J145: 3736.349112 | K145: 3706.337598 | L145: 234.9357101 | M145: 0.009191237449 | N145: 0.05885209831
A146: 2026-12-01 | B146: 2026 - IV | C146: 215.7219072 | D146: 0.02274413555 | E146: 0.02274413555 | F146: 0.0229446096 | G146: 0.0055 | H146: 0.12 | I146: 0.12 | J146: 3700 | K146: 3714.159193 | L146: 237.963082 | M146: 0.01288595892 | N146: 0.067028906
A147: 2027-03-01 | B147: 2027 - I | C147: 197.2791801 | D147: 0.02218216642 | E147: 0.02235270617 | F147: 0.02218216642 | G147: 0.0055 | H147: 0.12 | I147: 0.12 | J147: 3714.271013 | K147: 3765.320547 | L147: 244.2707492 | M147: 0.02650691495 | N147: 0.06273458999
A148: 2027-06-01 | B148: 2027 - II | C148: 202.8358563 | D148: 0.02218216642 | E148: 0.02147896867 | F148: 0.02218216642 | G148: 0.0055 | H148: 0.115 | I148: 0.1175 | J148: 3743.451888 | K148: 3767.793778 | L148: 246.9557872 | M148: 0.01099205731 | N148: 0.06082475258
A149: 2027-09-01 | B149: 2027 - III | C149: 209.3978538 | D149: 0.02235673409 | E149: 0.02251034345 | F149: 0.02269046187 | G149: 0.006 | H149: 0.1075 | I149: 0.10875 | J149: 3681.349112 | K149: 3651.337598 | L149: 248.9900325 | M149: 0.008237285332 | N149: 0.05982199316
A150: 2027-12-01 | B150: 2027 - IV | C150: 220.8909993 | D150: 0.02278320568 | E150: 0.02278320568 | F150: 0.02396183241 | G150: 0.00675 | H150: 0.1075 | I150: 0.1075 | J150: 3700 | K150: 3691.659193 | L150: 251.5204033 | M150: 0.01016253838 | N150: 0.05697237227
A151: 2028-03-01 | B151: 2028 - I | C151: 202.3579282 | D151: 0.0257439639 | E151: 0.02364096893 | F151: 0.0257439639 | G151: 0.00725 | H151: 0.0975 | I151: 0.1 | J151: 3770 | K151: 3780 | L151: 255.9180149 | M151: 0.01748411486 | N151: 0.04768178663
A152: 2028-06-01 | B152: 2028 - II | C152: 208.4197646 | D152: 0.02664897686 | E152: 0.0249548404 | F152: 0.02752919705 | G152: 0.00725 | H152: 0.09 | I152: 0.09125 | J152: 3740 | K152: 3750 | L152: 257.5231324 | M152: 0.006271998989 | N152: 0.04279043353
A153: 2028-09-01 | B153: 2028 - III | C153: 215.3762877 | D153: 0.02730227781 | E153: 0.026429063 | F153: 0.02855059784 | G153: 0.007 | H153: 0.085 | I153: 0.08625 | J153: 3710 | K153: 3720 | L153: 259.2045431 | M153: 0.006529163756 | N153: 0.04102377317
A154: 2028-12-01 | B154: 2028 - IV | C154: 227.253988 | D154: 0.02770227742 | E154: 0.02770227742 | F154: 0.02880601145 | G154: 0.007 | H154: 0.0825 | I154: 0.0825 | J154: 3700 | K154: 3700 | L154: 261.4720557 | M154: 0.008747966082 | N154: 0.03956598461
A156: * Index SA

Sheet Mexico
D2: 2003 | E2: 2004 | F2: 2005 | G2: 2006 | H2: 2007 | I2: 2008 | J2: 2009 | K2: 2010 | L2: 2011 | M2: 2012 | N2: 2013 | O2: 2014 | P2: 2015 | Q2: 2016 | R2: 2017 | S2: 2018 | T2: 2019 | U2: 2020 | V2: 2021 | W2: 2022 | X2: 2023 | Y2: 2024 | Z2: 2025 | AA2: 2026F | AB2: 2027F | AC2: 2028F | AD2: 2028F
C4: GDP % | D4: 0.014 | E4: 0.043 | F4: 0.03 | G4: 0.05001385468 | H4: 0.03148225822 | I4: 0.01400290149 | J4: -0.04700339936 | K4: 0.05110198731 | L4: 0.0366300793 | M4: 0.03642322678 | N4: 0.01354091963 | O4: 0.02849773258 | P4: 0.0270232343 | Q4: 0.01772493224 | R4: 0.01871728545 | S4: 0.01972082111 | T4: -0.003926905133 | U4: -0.08354034592 | V4: 0.06048483472 | W4: 0.03709757084 | X4: 0.03106796411 | Y4: 0.01350576314 | Z4: 0.005616834562 | AA4: 0.01530912175 | AB4: 0.02026877411 | AC4: 0.02468900493 | AD4: 0.02468900493
C5: CPI % | D5: 0.03976521807 | E5: 0.05190848256 | F5: 0.03332741004 | G5: 0.0405322168 | H5: 0.03759087657 | I5: 0.06528148787 | J5: 0.03573585196 | K5: 0.04401540764 | L5: 0.03818756788 | M5: 0.03568290021 | N5: 0.0397404099 | O5: 0.0408132152 | P5: 0.02130812776 | Q5: 0.03360274019 | R5: 0.06773048198 | S5: 0.048305462 | T5: 0.02828576975 | U5: 0.03150074575 | V5: 0.07355107943 | W5: 0.07817028677 | X5: 0.04660889641 | Y5: 0.0421 | Z5: 0.03694271869 | AA5: 0.041 | AB5: 0.038 | AC5: 0.036 | AD5: 0.036
C6: Exchange Rate - MXN / USD (end of period) | D6: 11.236 | E6: 11.2648 | F6: 10.7777 | G6: 10.881 | H6: 10.8662 | I6: 13.5383 | J6: 13.0587 | K6: 12.3401 | L6: 13.94 | M6: 13.03 | N6: 13.0367 | O6: 14.7515 | P6: 17.0019 | Q6: 20.5137 | R6: 19.0625 | S6: 20.1775 | T6: 19.1776 | U6: 19.9821 | V6: 20.9873 | W6: 19.5825 | X6: 17.2253 | Y6: 20.2382 | Z6: 18.1072 | AA6: 18.8 | AB6: 19.3 | AC6: 20.5 | AD6: 20.5
C7: Monetary Policy Rate - % (end of period) | D7: 0.0638392381 | E7: 0.08936095652 | F7: 0.08701309524 | G7: 0.07340977778 | H7: 0.0757 | I7: 0.0825 | J7: 0.045 | K7: 0.045 | L7: 0.045 | M7: 0.045 | N7: 0.035 | O7: 0.03 | P7: 0.0325 | Q7: 0.0575 | R7: 0.0725 | S7: 0.0825 | T7: 0.0725 | U7: 0.0425 | V7: 0.055 | W7: 0.105 | X7: 0.1125 | Y7: 0.1 | Z7: 0.07 | AA7: 0.065 | AB7: 0.065 | AC7: 0.065 | AD7: 0.065

Sheet Mexico_Quarterly
C1: GDP NSA | H1: Monetary Policy Rate | J1: Exchange Rate | L1: Inflation NSA
C2: Index | D2: Ydt | E2: 12M | F2: YoY | G2: QoQ* | H2: eop | I2: Avg | J2: eop | K2: Avg | L2: Index eop | M2: QoQ | N2: YoY
A3: 2002-03-01 | B3: 2002 - I | C3: 17079137.48 | G3: -0.009593459513 | J3: 9.0809 | K3: 9.12115 | L3: 51.12794844
A4: 2002-06-01 | B4: 2002 - II | C4: 18016798.15 | G4: 0.01390089204 | J4: 9.7378 | K4: 9.43475 | L4: 51.76258618 | M4: =L4/L3-1 -> 0.01241273612
A5: 2002-09-01 | B5: 2002 - III | C5: 17828003.41 | G5: 0.008622626665 | J5: 10.0425 | K5: 9.92015 | L5: 52.42198356 | M5: 0.01273888028
A6: 2002-12-01 | B6: 2002 - IV | C6: 17834460.01 | G6: 0.00266541206 | J6: 10.1982 | K6: 10.14715 | L6: 53.3099298 | M6: 0.01693843265
A7: 2003-03-01 | B7: 2003 - I | C7: 17609605.88 | F7: =C7/C3-1 -> 0.0310594369 | G7: -0.001336496073 | J7: 10.9427 | K7: 10.75945 | L7: 54.01293041 | M7: 0.01318704812 | N7: =L7/L3-1 -> 0.05642671095 | HG7: 2003-I
A8: 2003-06-01 | B8: 2003 - II | C8: 18082663.85 | F8: 0.003655793857 | G8: 0.0008852935293 | J8: 10.4953 | K8: 10.56385 | L8: 53.9751124 | M8: -0.0007001659297 | N8: 0.04274373414 | HG8: 2003-II
A9: 2003-09-01 | B9: 2003 - III | C9: 17859147.3 | F9: 0.001746908854 | G9: 0.001644488109 | J9: 10.9255 | K9: 10.68445 | L9: 54.53823816 | M9: 0.01043306331 | N9: 0.04036960174 | HG9: 2003-III
A10: 2003-12-01 | B10: 2003 - IV | C10: 18045854.59 | D10: =AVERAGE(OFFSET($C$1,MATCH(EDATE(A10,0),$A$1:$A$300,0)-1,,IF(MONTH($A10)=3,-1,IF(MONTH($A10)=6,-2,IF(MONTH($A10)=9,-3,-4)))))/AVERAGE(OFFSET($C$1,MATCH(EDATE(A10,-12),$A$1:$A$300,0)-1,,IF(MONTH($A10)=3,-1,IF(MONTH($A10)=6,-2,IF(MONTH($A10)=9,-3,-4)))))-1 -> 0.01185544869 | E10: =AVERAGE(C7:C10)/AVERAGE(C3:C6)-1 -> 0.01185544869 | F10: 0.01185315277 | G10: 0.008884491711 | J10: 11.2629 | K10: 11.21665 | L10: 55.42981079 | M10: 0.01634766089 | N10: 0.03976521807 | HG10: 2003-IV
A11: 2004-03-01 | B11: 2004 - I | C11: 18185015.46 | D11: 0.03267589235 | E11: 0.01239764067 | F11: 0.03267589235 | G11: 0.01574351857 | J11: 10.9984 | K11: 10.9646 | L11: 56.29807094 | M11: 0.01566413698 | N11: 0.04230728652 | HG11: 2004-I
A12: 2004-06-01 | B12: 2004 - II | C12: 18770260.28 | D12: 0.03538598216 | E12: 0.02109943419 | F12: 0.03802517371 | G12: 0.009960152039 | J12: 11.379 | K12: 11.31625 | L12: 56.33174451 | M12: 0.0005981301531 | N12: 0.04366145813 | HG12: 2004-II
A13: 2004-09-01 | B13: 2004 - III | C13: 18461379.99 | D13: 0.03483080029 | E13: 0.02909025394 | F13: 0.03372124558 | G13: 0.0004916546206 | J13: 11.4858 | K13: 11.47965 | L13: 57.29791705 | M13: 0.01715147558 | N13: 0.05060080741 | HG13: 2004-III
A14: 2004-12-01 | B14: 2004 - IV | C14: 18733374.37 | D14: 0.03565441026 | E14: 0.03565441026 | F14: 0.03809848853 | G14: 0.01009530202 | J14: 11.21 | K14: 11.2982 | L14: 58.30708815 | M14: 0.0176127014 | N14: 0.05190848256 | HG14: 2004-IV
A15: 2005-03-01 | B15: 2005 - I | C15: 18271688.44 | D15: 0.004766175491 | E15: 0.02859838169 | F15: 0.004766175491 | G15: 0.0006480927256 | J15: 11.1326 | K15: 11.1941 | L15: 58.76712098 | M15: 0.007889826744 | N15: 0.04385674323 | HG15: 2005-I
A16: 2005-06-01 | B16: 2005 - II | C16: 19218715.2 | D16: 0.01448041948 | E16: 0.02504629999 | F16: 0.02389177951 | G16: 0.002851886867 | J16: 10.834 | K16: 10.9801 | L16: 58.77178347 | M16: 7.933849327e-05 | N16: 0.04331552278 | HG16: 2005-II
A17: 2005-09-01 | B17: 2005 - III | C17: 18883270.71 | D17: 0.01726951216 | E17: 0.02238609036 | F17: 0.02285260989 | G17: 0.009526085334 | J17: 10.7791 | K17: 10.7361 | L17: 59.30900649 | M17: 0.009140832283 | N17: 0.03509882281 | HG17: 2005-III
A18: 2005-12-01 | B18: 2005 - IV | C18: 19343329.14 | D18: 0.02113247116 | E18: 0.02113247116 | F18: 0.03255979146 | G18: 0.01810151086 | J18: 10.6201 | K18: 10.72565 | L18: 60.25031239 | M18: 0.01587121344 | N18: 0.03332741004 | HG18: 2005-IV
A19: 2006-03-01 | B19: 2006 - I | C19: 19362570.76 | D19: 0.05970342153 | E19: 0.03463492596 | F19: 0.05970342153 | G19: 0.01973133145 | J19: 10.7061 | K19: 10.637 | L19: 60.77251181 | M19: 0.008667165373 | N19: 0.0341243675 | HG19: 2006-I
A20: 2006-06-01 | B20: 2006 - II | C20: 20116112.95 | D20: 0.05303437335 | E20: 0.04043809537 | F20: 0.04669395105 | G20: 0.008094462294 | J20: 11.3864 | K20: 11.2035 | L20: 60.64299806 | M20: -0.002131123784 | N20: 0.03183865594 | HG20: 2006-II
A21: 2006-09-01 | B21: 2006 - III | C21: 19836008.96 | D21: 0.05217006601 | E21: 0.04727882583 | F21: 0.05045409043 | G21: 0.003173619161 | J21: 10.9722 | K21: 10.9995 | L21: 61.73661213 | M21: 0.01803364116 | N21: 0.04093148388 | HG21: 2006-III
A22: 2006-12-01 | B22: 2006 - IV | C22: 20040523.08 | D22: 0.04805013517 | E22: 0.04805013517 | F22: 0.03604312035 | G22: 0.003446878182 | J22: 10.865 | K22: 10.89255 | L22: 62.69242357 | M22: 0.01548208442 | N22: 0.04053275552 | HG22: 2006-IV
A23: 2007-03-01 | B23: 2007 - I | C23: 19745597.37 | D23: 0.01978180552 | E23: 0.03815176675 | F23: 0.01978180552 | G23: 0.007035146348 | J23: 11.125 | K23: 11.0297 | L23: 63.32911314 | M23: 0.01015576581 | N23: 0.0420683835 | HG23: 2007-I
A24: 2007-06-01 | B24: 2007 - II | C24: 20509471.92 | D24: 0.01966594382 | E24: 0.03122461759 | F24: 0.01955442227 | G24: 0.006061654536 | J24: 10.8338 | K24: 10.9131 | L24: 63.05817039 | M24: -0.004278328589 | N24: 0.03982607061 | HG24: 2007-II
A25: 2007-09-01 | B25: 2007 - III | C25: 20266835.2 | D25: 0.02035266083 | E25: 0.02421120845 | F25: 0.02171940167 | G25: 0.004034547679 | J25: 11.045 | K25: 10.92065 | L25: 64.07770259 | M25: 0.01616812218 | N25: 0.03792061761 | HG25: 2007-III
A26: 2007-12-01 | B26: 2007 - IV | C26: 20482204.66 | D26: 0.02077863938 | E26: 0.02077863938 | F26: 0.02203942419 | G26: 0.002709577199 | J26: 10.8494 | K26: 10.8456 | L26: 65.04905568 | M26: 0.01515898746 | N26: 0.03759038136 | HG26: 2007-IV
A27: 2008-03-01 | B27: 2008 - I | C27: 19902921.79 | D27: 0.007967569787 | E27: 0.01784828942 | F27: 0.007967569787 | G27: 0.0007899066386 | H27: 0.075 | I27: 0.075 | J27: 10.7346 | K27: 10.82585 | L27: 66.01989072 | M27: 0.01492465993 | N27: 0.04248879291 | HG27: 2008-I
A28: 2008-06-01 | B28: 2008 - II | C28: 20998503.91 | D28: 0.01605652228 | E28: 0.01895462248 | F28: 0.02384420203 | G28: 0.00750427935 | H28: 0.0775 | I28: 0.07625 | J28: 10.3305 | K28: 10.43 | L28: 66.3721681 | M28: 0.005335928059 | N28: 0.0525546126 | HG28: 2008-II
A29: 2008-09-01 | B29: 2008 - III | C29: 20495872.63 | D29: 0.01446408285 | E29: 0.01634850724 | F29: 0.01130109471 | G29: -0.0006204299634 | H29: 0.0825 | I29: 0.08125 | J29: 10.5744 | K29: 10.4067 | L29: 67.58493481 | M29: 0.0182722178 | N29: 0.05473405072 | HG29: 2008-III
A30: 2008-12-01 | B30: 2008 - IV | C30: 20370948.4 | D30: 0.009433318742 | E30: 0.009433318742 | F30: -0.005431849834 | G30: -0.01553204992 | H30: 0.0825 | I30: 0.0825 | J30: 13.3726 | K30: 12.9232 | L30: 69.29555236 | M30: 0.02531063399 | N30: 0.0652814501 | HG30: 2008-IV
A31: 2009-03-01 | B31: 2009 - I | C31: 18537259.15 | D31: -0.06861618894 | E31: -0.0093498778 | F31: -0.06861618894 | G31: -0.06205682702 | H31: 0.0675 | I31: 0.0725 | J31: 14.7393 | K31: 14.29425 | L31: 70.00995018 | M31: 0.0103094325 | N31: 0.06043723222
A32: 2009-06-01 | B32: 2009 - II | C32: 18827563.21 | D32: -0.08646650537 | E32: -0.04187143524 | F32: -0.1033854941 | G32: -0.01663060722 | H32: 0.0475 | I32: 0.05375 | J32: 13.3439 | K32: 13.41645 | L32: 70.17935416 | M32: 0.00241971289 | N32: 0.05736118266
A33: 2009-09-01 | B33: 2009 - III | C33: 19292209.62 | D33: -0.07720643226 | E33: -0.05925197927 | F33: -0.05872709257 | G33: 0.03618212827 | H33: 0.045 | I33: 0.045 | J33: 13.3987 | K33: 13.3803 | L33: 70.89271587 | M33: 0.01016483719 | N33: 0.04894257966 | HG33: 1
A34: 2009-12-01 | B34: 2009 - IV | C34: 19963698.74 | D34: -0.06295250567 | E34: -0.06295250567 | F34: -0.01999168885 | G34: 0.02214175007 | H34: 0.045 | I34: 0.045 | J34: 12.8504 | K34: 13.0565 | L34: 71.77185517 | M34: 0.01240098214 | N34: 0.03573537877 | HG34: 2
A35: 2010-03-01 | B35: 2010 - I | C35: 19371870.87 | D35: 0.04502346956 | E35: -0.03665605632 | F35: 0.04502346956 | G35: 0.003538613469 | H35: 0.045 | I35: 0.045 | J35: 12.6138 | K35: 12.7104 | L35: 73.48972549 | M35: 0.02393515277 | N35: 0.04970401066 | HG35: 3
A36: 2010-06-01 | B36: 2010 - II | C36: 20180561.28 | D36: 0.05854730892 | E36: 0.007371660635 | F36: 0.07186262285 | G36: 0.01170215135 | H36: 0.045 | I36: 0.045 | J36: 12.7234 | K36: 12.4827 | L36: 72.77118323 | M36: =L36/L35-1 -> -0.009777451941 | N36: 0.03693150361 | HG36: 4
A37: 2010-09-01 | B37: 2010 - III | C37: 20200797.99 | D37: 0.05464808274 | E37: 0.03490872402 | F37: 0.04709612802 | G37: 0.008977946501 | H37: 0.045 | I37: 0.045 | J37: 12.861 | K37: 12.84755 | L37: 73.51511019 | M37: 0.01022282338 | N37: 0.03699102628 | HG37: 5
A38: 2010-12-01 | B38: 2010 - IV | C38: 20676573.45 | D38: 0.04971334581 | E38: 0.04971334581 | F38: 0.03570854881 | G38: 0.008494176422 | H38: 0.045 | I38: 0.045 | J38: 12.4011 | K38: 12.4273 | L38: 74.93095445 | M38: 0.01925922794 | N38: 0.0440158509 | HG38: 6
A39: 2011-03-01 | B39: 2011 - I | C39: 20091352.13 | D39: 0.03714051507 | E39: 0.04769125414 | F39: =C39/C35-1 -> 0.03714051507 | G39: 0.006271040009 | H39: 0.045 | I39: 0.045 | J39: 12.0173 | K39: 12.0825 | L39: 75.72345093 | M39: 0.01057635638 | N39: =L39/L35-1 -> 0.03039507116 | HG39: 7
A40: 2011-06-01 | B40: 2011 - II | C40: 20682934.14 | D40: 0.03089200983 | E40: 0.03607888695 | F40: 0.02489389933 | G40: 0.004199562805 | H40: 0.045 | I40: 0.045 | J40: 11.792 | K40: 11.7752 | L40: 75.15550814 | M40: -0.007500223221 | N40: 0.0327646852 | HG40: 8
A41: 2011-09-01 | B41: 2011 - III | C41: 20950181.65 | D41: 0.03298964389 | E41: 0.03367054567 | F41: 0.03709673555 | G41: 0.01806871516 | H41: 0.045 | I41: 0.045 | J41: 12.9291 | K41: 12.30255 | L41: 75.82111305 | M41: 0.008856368889 | N41: 0.03136773998 | HG41: 9
A42: 2011-12-01 | B42: 2011 - IV | C42: 21475374.34 | D42: =AVERAGE(OFFSET($C$1,MATCH(EDATE(A42,0),$A$1:$A$300,0)-1,,IF(MONTH($A42)=3,-1,IF(MONTH($A42)=6,-2,IF(MONTH($A42)=9,-3,-4)))))/AVERAGE(OFFSET($C$1,MATCH(EDATE(A42,-12),$A$1:$A$300,0)-1,,IF(MONTH($A42)=3,-1,IF(MONTH($A42)=6,-2,IF(MONTH($A42)=9,-3,-4)))))-1 -> 0.03444045057 | E42: =AVERAGE(C39:C42)/AVERAGE(C35:C38)-1 -> 0.03444045057 | F42: 0.03863313681 | G42: 0.007436943217 | H42: 0.045 | I42: 0.045 | J42: 13.7516 | K42: 13.6162 | L42: 77.79238536 | M42: 0.02599898937 | N42: 0.03818756788 | HG42: 10
A43: 2012-03-01 | B43: 2012 - I | C43: 21083780.27 | D43: 0.04939578628 | E43: 0.03749861202 | F43: 0.04939578628 | G43: 0.01197018049 | H43: 0.045 | I43: 0.045 | J43: 12.7561 | K43: 13.1304 | L43: 78.54738867 | M43: 0.009705362575 | N43: 0.03729277657 | HG43: 11
A44: 2012-06-01 | B44: 2012 - II | C44: 21522112.94 | D44: 0.0449206375 | E44: 0.04139280915 | F44: 0.04057348881 | G44: 0.004052169218 | H44: 0.045 | I44: 0.045 | J44: 13.982 | K44: 13.5166 | L44: 78.41366669 | M44: -0.001702436972 | N44: 0.04335222559 | HG44: 12
A45: 2012-09-01 | B45: 2012 - III | C45: 21479008.34 | D45: 0.03824145758 | E45: 0.03833974013 | F45: 0.02524210519 | G45: 0.002107778884 | H45: 0.045 | I45: 0.045 | J45: 12.9871 | K45: 13.18825 | L45: 79.43911894 | M45: 0.01307746843 | N45: 0.04771765732 | HG45: 13
A46: 2012-12-01 | B46: 2012 - IV | C46: 22071206.47 | D46: 0.03553210756 | E46: 0.03553210756 | F46: 0.02774490043 | G46: 0.007806577058 | H46: 0.045 | I46: 0.045 | J46: 12.867 | K46: 12.8699 | L46: 80.56824328 | M46: 0.01421370682 | N46: 0.03568290021 | HG46: 14
A47: 2013-03-01 | B47: 2013 - I | C47: 21025801.06 | D47: -0.002749943713 | E47: 0.02263697594 | F47: -0.002749943713 | G47: -0.000708793353 | H47: 0.04 | I47: 0.0425 | J47: 12.5745 | K47: 12.6482 | L47: 81.88743314 | M47: 0.01637357104 | N47: 0.04252266728 | HG47: 15
A48: 2013-06-01 | B48: 2013 - II | C48: 21893508.35 | D48: 0.007356170201 | E48: 0.01691227219 | F48: 0.01725645675 | G48: -0.0009813619067 | H48: 0.04 | I48: 0.04 | J48: 12.9361 | K48: 12.5805 | L48: 81.61923793 | M48: -0.003275169263 | N48: 0.04088026212 | HG48: 16
A49: 2013-09-01 | B49: 2013 - III | C49: 21702816.35 | D49: 0.008383007542 | E49: 0.01324278497 | F49: 0.01041984841 | G49: 0.004793199418 | H49: 0.0375 | I49: 0.03875 | J49: 13.0925 | K49: 12.9388 | L49: 82.13233968 | M49: 0.006286529523 | N49: 0.03390295339 | HG49: 17
A50: 2013-12-01 | B50: 2013 - IV | C50: 22268119.79 | D50: 0.008521015525 | E50: 0.008521015525 | F50: 0.008921728918 | G50: 0.004960725934 | H50: 0.035 | I50: 0.035 | J50: 13.0098 | K50: 13.01425 | L50: 83.7700583 | M50: 0.01993999707 | N50: 0.0397404099 | HG50: 18
A51: 2014-03-01 | B51: 2014 - I | C51: 21547782.43 | D51: 0.02482575449 | E51: 0.01526279533 | F51: 0.02482575449 | G51: 0.006587851368 | H51: 0.035 | I51: 0.035 | J51: 13.2154 | K51: 13.20675 | L51: 84.96529239 | M51: 0.01426803458 | N51: 0.0375864663 | HG51: 19
A52: 2014-06-01 | B52: 2014 - II | C52: 22320155.99 | D52: 0.02210261605 | E52: 0.01583621931 | F52: 0.01948740399 | G52: 0.01238941003 | H52: 0.03 | I52: 0.0325 | J52: 12.9832 | K52: 13.02565 | L52: 84.68207224 | M52: -0.003333362806 | N52: 0.03752588706 | HG52: 20
A53: 2014-09-01 | B53: 2014 - III | C53: 22258188.34 | D53: 0.02327377791 | E53: 0.01961989787 | F53: 0.02558985788 | G53: 0.002033701419 | H53: 0.03 | I53: 0.03 | J53: 13.2002 | K53: 13.0868 | L53: 85.59633992 | M53: 0.01079647274 | N53: 0.04217583785 | HG53: 21
A54: 2014-12-01 | B54: 2014 - IV | C54: 22939645.05 | D54: 0.02503763508 | E54: 0.02503763508 | F54: 0.03015635192 | G54: 0.008563153174 | H54: 0.03 | I54: 0.03 | J54: 14.4266 | K54: 13.9517 | L54: 87.18898371 | M54: 0.01860644731 | N54: 0.0408132152 | HG54: 22
A55: 2015-03-01 | B55: 2015 - I | C55: 22169554.39 | D55: 0.02885549624 | E55: 0.026029732 | F55: 0.02885549624 | G55: 0.004790188526 | H55: 0.03 | I55: 0.03 | J55: 15.2003 | K55: 14.938 | L55: 87.63071699 | M55: 0.005066388647 | N55: 0.03137074598 | HG55: 23
A56: 2015-06-01 | B56: 2015 - II | C56: 22843017.57 | D56: 0.02609271304 | E56: 0.02699864705 | F56: 0.02342553404 | G56: 0.008378322153 | H56: 0.03 | I56: 0.03 | J56: 15.4562 | K56: 15.3395 | L56: 87.11310776 | M56: -0.005906709988 | N56: 0.0287077944 | HG56: 24
A57: 2015-09-01 | B57: 2015 - III | C57: 23011745.82 | D57: 0.02870561309 | E57: 0.02907108061 | F57: 0.03385529269 | G57: 0.01218171559 | H57: 0.03 | I57: 0.03 | J57: 16.8372 | K57: 16.36265 | L57: 87.75241902 | M57: 0.007338864071 | N57: 0.02518891688 | HG57: 25
A58: 2015-12-01 | B58: 2015 - IV | C58: 23448299.26 | D58: 0.0270232343 | E58: 0.0270232343 | F58: 0.02217358677 | G58: -0.002772638911 | H58: 0.0325 | I58: 0.03125 | J58: 17.0019 | K58: 16.80195 | L58: 89.04681772 | M58: 0.01475057573 | N58: 0.02130812776 | HG58: 26
A59: 2016-03-01 | B59: 2016 - I | C59: 22537031.13 | D59: 0.01657573858 | E59: 0.02400054581 | F59: 0.01657573858 | G59: 0.00015958884 | H59: 0.0375 | I59: 0.035 | J59: 17.7383 | K59: 17.85815 | L59: 89.9100006 | M59: 0.009693584855 | N59: 0.02601009885 | HG59: 27
A60: 2016-06-01 | B60: 2016 - II | C60: 23359955.49 | D60: 0.01964816998 | E60: 0.02379577331 | F60: 0.02263001924 | G60: 0.00414294613 | H60: 0.0425 | I60: 0.04 | J60: 18.6471 | K60: 18.06975 | L60: 89.32402789 | M60: -0.006517325223 | N60: 0.02537987892 | HG60: 28
A61: 2016-09-01 | B61: 2016 - III | C61: 23214541.38 | D61: 0.01598267 | E61: 0.01754391941 | F61: 0.008812697637 | G61: 0.007558354865 | H61: 0.0475 | I61: 0.045 | J61: 19.1386 | K61: 18.85425 | L61: 90.35774385 | M61: 0.01157265288 | N61: 0.0296894931 | HG61: 29
A62: 2016-12-01 | B62: 2016 - IV | C62: 23982434.97 | D62: 0.01772493224 | E62: 0.01772493224 | F62: 0.02277929457 | G62: 0.0113535625 | H62: 0.0575 | I62: 0.0525 | J62: 20.5137 | K62: 19.73085 | L62: 92.0390348 | M62: 0.01860704873 | N62: 0.03360274019 | HG62: 30
A63: 2017-03-01 | B63: 2017 - I | C63: 23306069.19 | D63: 0.03412330855 | E63: 0.02202640682 | F63: 0.03412330855 | G63: 0.005811532151 | H63: 0.065 | I63: 0.06125 | J63: 19.4067 | K63: 20.38995 | L63: 94.72248933 | M63: 0.0291556136 | N63: 0.05352562228 | HG63: 31
A64: 2017-06-01 | B64: 2017 - II | C64: 23710326.8 | D64: 0.0243896049 | E64: 0.02009961353 | F64: 0.01499880011 | G64: 0.0004527532648 | H64: 0.07 | I64: 0.0675 | J64: 18.1901 | K64: 18.47425 | L64: 94.96363964 | M64: 0.002545861191 | N64: 0.06313655899 | HG64: 32
A65: 2017-09-01 | B65: 2017 - III | C65: 23491266.57 | D65: 0.02020118207 | E65: 0.0208542986 | F65: 0.01192033844 | G65: -0.005478182292 | H65: 0.07 | I65: 0.07 | J65: 17.7991 | K65: 17.8252 | L65: 96.09351524 | M65: 0.01189798114 | N65: 0.06347847053 | HG65: 33
A66: 2017-12-01 | B66: 2017 - IV | C66: 24328766.69 | D66: 0.01871728545 | E66: 0.01871728545 | F66: 0.01444105736 | G66: 0.01421243056 | H66: 0.0725 | I66: 0.07125 | J66: 19.0625 | K66: 18.8936 | L66: 98.27288299 | M66: 0.02267965476 | N66: 0.06773048198 | HG66: 34
A67: 2018-03-01 | B67: 2018 - I | C67: 23568390.17 | D67: 0.0112554792 | E67: 0.01316545577 | F67: 0.0112554792 | G67: 0.01105686852 | H67: 0.075 | I67: 0.07375 | J67: 18.6839 | K67: 18.8432 | L67: 99.49215698 | M67: 0.01240702377 | N67: 0.05035412057 | HG67: 35
A68: 2018-06-01 | B68: 2018 - II | C68: 24395733.69 | D68: 0.02015739082 | E68: 0.01667263085 | F68: 0.02890752616 | G68: -0.0009323104756 | H68: 0.0775 | I68: 0.07625 | J68: 20.3105 | K68: 19.32845 | L68: 99.37646493 | M68: =L68/L67-1 -> -0.001162825818 | N68: 0.04646857794 | HG68: 36
A69: 2018-09-01 | B69: 2018 - III | C69: 24137286.23 | D69: 0.02260389114 | E69: 0.02053209065 | F69: 0.02750041843 | G69: 0.003096074948 | H69: 0.0775 | I69: 0.0775 | J69: 19.0539 | K69: 19.0855 | L69: 100.917 | M69: 0.01550201116 | N69: 0.05019573644 | HG69: 37
A70: 2018-12-01 | B70: 2018 - IV | C70: 24605271.42 | D70: 0.01972082111 | E70: 0.01972082111 | F70: 0.0113653409 | G70: -0.001498250773 | H70: 0.0825 | I70: 0.08 | J70: 20.1775 | K70: 19.62065 | L70: 103.02 | M70: 0.02083890722 | N70: 0.048305462 | HG70: 38
A71: 2019-03-01 | B71: 2019 - I | C71: 23790592.91 | D71: 0.009427997983 | E71: 0.0192445643 | F71: =C71/C67-1 -> 0.009427997983 | G71: -3.335906008e-05 | H71: 0.0825 | I71: 0.0825 | J71: 19.2339 | K71: 19.22465 | L71: 103.476 | M71: 0.004426324985 | N71: =L71/L67-1 -> 0.04004177958 | HG71: 39
A72: 2019-06-01 | B72: 2019 - II | C72: 24154801.61 | D72: -0.0003904864614 | E72: 0.009435746716 | F72: -0.009875992216 | G72: -0.003437196523 | H72: 0.0825 | I72: 0.0825 | J72: 19.2912 | K72: 19.15715 | L72: 103.299 | M72: -0.001710541575 | N72: 0.03947146913 | HG72: 40
A73: 2019-09-01 | B73: 2019 - III | C73: 24024905.7 | D73: -0.001818409208 | E73: 0.001507773436 | F73: -0.004655889065 | G73: 0.0005004679978 | H73: 0.0775 | I73: 0.08 | J73: 19.6242 | K73: 19.34555 | L73: 103.942 | M73: 0.006224648835 | N73: 0.02997512808 | HG73: 41
A74: 2019-12-01 | B74: 2019 - IV | C74: 24356623.32 | D74: =AVERAGE(OFFSET($C$1,MATCH(EDATE(A74,0),$A$1:$A$300,0)-1,,IF(MONTH($A74)=3,-1,IF(MONTH($A74)=6,-2,IF(MONTH($A74)=9,-3,-4)))))/AVERAGE(OFFSET($C$1,MATCH(EDATE(A74,-12),$A$1:$A$300,0)-1,,IF(MONTH($A74)=3,-1,IF(MONTH($A74)=6,-2,IF(MONTH($A74)=9,-3,-4)))))-1 -> -0.003926905133 | E74: =AVERAGE(C71:C74)/AVERAGE(C67:C70)-1 -> -0.003926905133 | F74: -0.01010548072 | G74: -0.006813442284 | H74: 0.0725 | I74: 0.075 | J74: 19.1776 | K74: 19.27385 | L74: 105.934 | M74: 0.01916453407 | N74: 0.02828576975 | HG74: 42
A75: 2020-03-01 | B75: 2020 - I | C75: 23449972.17 | D75: -0.01431745456 | E75: -0.009724463862 | F75: -0.01431745456 | G75: -0.009485196476 | H75: 0.065 | I75: 0.06875 | J75: 21.969 | K75: 20.3875 | L75: 106.838 | M75: 0.00853361527 | N75: 0.03249062585 | HG75: 43
A76: 2020-06-01 | B76: 2020 - II | C76: 19252746.13 | D76: -0.1093468156 | E76: -0.05795659863 | F76: -0.2029433137 | G76: -0.1918121917 | H76: 0.05 | I76: 0.055 | J76: 22.2153 | K76: 23.2366 | L76: 106.743 | M76: -0.0008891967278 | N76: 0.03334010978 | HG76: 44
A77: 2020-09-01 | B77: 2020 - III | C77: 22072201.56 | D77: -0.09997707848 | E77: -0.07707982798 | F77: -0.08127832693 | G77: 0.1556219241 | H77: 0.0425 | I77: 0.04625 | J77: 21.645 | K77: 22.0643 | L77: 108.114 | M77: 0.01284393356 | N77: 0.04013776914 | HG77: 45
A78: 2020-12-01 | B78: 2020 - IV | C78: 23504819.16 | D78: -0.08354034592 | E78: -0.08354034592 | F78: -0.03497217778 | G78: 0.04368802506 | H78: 0.0425 | I78: 0.0425 | J78: 19.9821 | K78: 20.66895 | L78: 109.271 | M78: 0.01070166676 | N78: 0.03150074575 | HG78: 46
A79: 2021-03-01 | B79: 2021 - I | C79: 22841382.92 | D79: -0.02595266419 | E79: -0.08662853752 | F79: -0.02595266419 | G79: 0.006711794833 | H79: 0.04 | I79: 0.04125 | J79: 20.7895 | K79: 20.3392 | L79: 111.824 | M79: 0.02336393005 | N79: 0.04666878826 | HG79: 56
A80: 2021-06-01 | B80: 2021 - II | C80: 23623518.49 | D80: 0.08810172404 | E80: 0.01051416497 | F80: 0.2270207235 | G80: 0.009221210637 | H80: 0.0425 | I80: 0.04125 | J80: 20.0366 | K80: 20.045 | L80: 113.018 | M80: 0.0106774932 | N80: 0.05878605623 | HG80: 57
A81: 2021-09-01 | B81: 2021 - III | C81: 23204755.17 | D81: 0.07556530716 | E81: 0.04535916703 | F81: 0.0513113116 | G81: -0.008763817906 | H81: 0.0475 | I81: 0.045 | J81: 20.0078 | K81: 19.98965 | L81: 114.601 | M81: 0.01400661841 | N81: 0.06000147992 | HG81: 58
A82: 2021-12-01 | B82: 2021 - IV | C82: 23949667.87 | D82: 0.06048483472 | E82: 0.06048483472 | F82: 0.01892585112 | G82: 0.01231680501 | H82: 0.055 | I82: 0.05125 | J82: 20.9873 | K82: 20.7298 | L82: 117.308 | M82: 0.02362108533 | N82: 0.07355107943 | HG82: 59
A83: 2022-03-01 | B83: 2022- I | C83: 23440966.47 | D83: 0.0262498794 | E83: 0.07468543804 | F83: 0.0262498794 | G83: 0.01365579753 | H83: 0.065 | I83: 0.06 | J83: 20.6061 | K83: 20.53975 | L83: 120.159 | M83: 0.02430354281 | N83: 0.07453677207 | HG83: 60
A84: 2022-06-01 | B84: 2022 - II | C84: 24310226.02 | D84: 0.0276830692 | E84: 0.03111292479 | F84: 0.02906880846 | G84: 0.01142419639 | H84: 0.0775 | I84: 0.07125 | J84: 19.9743 | K84: 20.0109 | L84: 122.044 | M84: 0.01568754733 | N84: 0.07986338459 | HG84: 61
A85: 2022-09-01 | B85: 2022 - III | C85: 24289301.4 | D85: 0.03402969708 | E85: 0.03021949943 | F85: 0.0467381026 | G85: 0.008036600643 | H85: 0.0925 | I85: 0.085 | J85: 20.073 | K85: 20.2992 | L85: 124.571 | M85: 0.02070564714 | N85: 0.08699749566 | HG85: 62
A86: 2022-12-01 | B86: 2022- IV | C86: 25051880.08 | D86: 0.03709757084 | E86: 0.03709757084 | F86: 0.04602202494 | G86: 0.01294846704 | H86: 0.105 | I86: 0.09875 | J86: 19.5825 | K86: 19.79855 | L86: 126.478 | M86: 0.01530853891 | N86: 0.07817028677 | HG86: 63
A87: 2023-03-01 | B87: 2023 - I | C87: 24330026.11 | D87: 0.03792760176 | E87: 0.03993386991 | F87: 0.03792760176 | G87: 0.004737211759 | H87: 0.1125 | I87: 0.10875 | J87: 18.403 | K87: 18.7233 | L87: 128.389 | M87: 0.01510934708 | N87: 0.06849258066
A88: 2023-06-01 | B88: 2023 - II | C88: 25106433.32 | D88: 0.03529266705 | E88: 0.04079869622 | F88: 0.03275194958 | G88: 0.006732186804 | H88: 0.1125 | I88: 0.1125 | J88: 17.293 | K88: 17.69105 | L88: 128.214 | M88: -0.001363045121 | N88: 0.05055553735
A89: 2023-09-01 | B89: 2023 - III | C89: 25090504.91 | D89: 0.03451489999 | E89: 0.03738594235 | F89: 0.03298586035 | G89: 0.007515520506 | H89: 0.1125 | I89: 0.1125 | J89: 17.2426 | K89: 17.09365 | L89: 130.12 | M89: 0.01486577129 | N89: 0.04454487802
A90: 2023-12-01 | B90: 2023 - IV | C90: 25581872.03 | D90: 0.03106796411 | E90: 0.03106796411 | F90: 0.02115577539 | G90: 0.002744493565 | H90: 0.1125 | I90: 0.1125 | J90: 17.2253 | K90: 17.62955 | L90: 132.373 | M90: 0.01731478635 | N90: 0.04660889641
A91: 2024-03-01 | B91: 2024 - I | C91: 24743029.86 | D91: 0.01697506411 | E91: 0.02592742735 | F91: 0.01697506411 | G91: 0.003586254261 | H91: 0.11 | I91: 0.11125 | J91: 16.8445 | K91: 16.95355 | L91: 134.065 | M91: 0.01278206281 | N91: 0.04420939489
A92: 2024-06-01 | B92: 2024 - II | C92: 25625594.21 | D92: 0.01885581321 | E92: 0.02291368852 | F92: 0.02067840085 | G92: -0.004010302269 | H92: 0.11 | I92: 0.11 | J92: 18.0839 | K92: 17.4265 | L92: 134.594 | M92: 0.003945847164 | N92: 0.04976055657
A93: 2024-09-01 | B93: 2024 - III | C93: 25442015.95 | D93: 0.01722431212 | E93: 0.01821338311 | F93: 0.01400972405 | G93: 0.01138177113 | H93: 0.105 | I93: 0.1075 | J93: 19.6395 | K93: 18.85905 | L93: 136.08 | M93: 0.01104061102 | N93: 0.04580387335
A94: 2024-12-01 | B94: 2024- IV | C94: 25650242.57 | D94: 0.01350576314 | E94: 0.01350576314 | F94: 0.002672616645 | G94: -0.007187475005 | H94: 0.1 | I94: 0.1025 | J94: 20.2382 | K94: 19.95205 | L94: 137.9459033 | M94: 0.01371181143 | N94: 0.0421
A95: 2025-03-01 | B95: 2025 - I | C95: 24882362.66 | D95: 0.005631193826 | E95: 0.01072777095 | F95: 0.005631193826 | G95: 0.004291476222 | H95: 0.09 | I95: 0.095 | J95: 20.2488 | K95: 20.40435 | L95: 139.161 | M95: 0.008808501528 | N95: 0.03801141237
A96: 2025-06-01 | B96: 2025 - II | C96: 25611244.01 | D96: 0.002481358193 | E96: 0.00539250581 | F96: -0.0005599947803 | G96: -0.002671946278 | H96: 0.08 | I96: 0.085 | J96: 19.0791 | K96: 19.6088 | L96: 140.405 | M96: 0.008939286151 | N96: 0.04317428712
A97: 2025-09-01 | B97: 2025 - III | C97: 25428708.2 | D97: 0.001473076101 | E97: 0.001775726583 | F97: -0.0005230621671 | G97: 0.005128572062 | H97: 0.075 | I97: 0.0775 | J97: 18.5281 | K97: 18.61145 | L97: 141.197 | M97: 0.005640824757 | N97: 0.03760288066
A98: 2025-12-01 | B98: 2025 - IV | C98: 26108456.72 | D98: 0.005616834562 | E98: 0.005616834562 | F98: 0.01786393048 | G98: 0.01182675792 | H98: 0.07 | I98: 0.0725 | J98: 18.1072 | K98: 18.25915 | L98: 143.042 | M98: 0.01306684986 | N98: 0.03694271869
A99: 2026-03-01 | B99: 2026 - I | C99: 25126719.6 | D99: 0.009820487716 | E99: 0.006642831703 | F99: 0.009820487716 | G99: -0.0003527748568 | H99: 0.0675 | I99: 0.06875 | J99: 18.04 | K99: 17.87505 | L99: 145.028535 | M99: 0.01388777422 | N99: 0.04216364499
A100: 2026-06-01 | B100: 2026 - II | C100: 26222416.65 | D100: 0.01694332462 | E100: 0.01280134752 | F100: 0.02386344967 | G100: 0.001505434268 | H100: 0.065 | I100: 0.06625 | J100: 18.268 | K100: 18.192 | L100: 145.7980666 | M100: =L100/L99-1 -> 0.005306070555 | N100: 0.03841078764
A101: 2026-09-01 | B101: 2026 - III | C101: 25809255.27 | D101: 0.01628080809 | E101: 0.01668059593 | F101: 0.01496525369 | G101: 0.00165825228 | H101: 0.065 | I101: 0.065 | J101: 18.496 | K101: 18.42 | L101: 147.1728053 | M101: 0.00942905945 | N101: 0.04232246632
A102: 2026-12-01 | B102: 2026 - IV | C102: 26434381.58 | D102: 0.01530912175 | E102: 0.01530912175 | F102: 0.01248349795 | G102: 0.01282164247 | H102: 0.065 | I102: 0.065 | J102: 18.8 | K102: 18.686 | L102: 148.906722 | M102: 0.01178150216 | N102: 0.041
A103: 2027-03-01 | B103: 2027 - I | C103: 25473358.61 | D103: 0.01379563338 | E103: 0.01627261293 | F103: =C103/C99-1 -> 0.01379563338 | G103: 0.009933283488 | H103: 0.065 | I103: 0.065 | J103: 18.925 | K103: 18.88333333 | L103: 150.6061283 | M103: 0.01141255625 | N103: =L103/L99-1 -> 0.03845859259
A104: 2027-06-01 | B104: 2027 - II | C104: 27210063.92 | D104: 0.02598459074 | E104: 0.01983508205 | F104: 0.03766423559 | G104: -0.00199258409 | H104: 0.065 | I104: 0.065 | J104: 19.05 | K104: 19.00833333 | L104: 152.3028637 | M104: 0.01126604438 | N104: 0.0446151117
A105: 2027-09-01 | B105: 2027 - III | C105: 26201996.24 | D105: 0.02238288313 | E105: 0.01988006955 | F105: 0.01521705936 | G105: -0.006586405452 | H105: 0.065 | I105: 0.065 | J105: 19.175 | K105: 19.13333333 | L105: 153.999599 | M105: 0.01114053463 | N105: 0.04638624441
A106: 2027-12-01 | B106: 2027 - IV | C106: 26807052.84 | D106: 0.02026877411 | E106: =AVERAGE(C103:C106)/AVERAGE(C99:C102)-1 -> 0.02026877411 | F106: 0.01409797528 | G106: 0.01735097869 | H106: 0.065 | I106: 0.065 | J106: 19.3 | K106: 19.25833333 | L106: 154.5651774 | M106: 0.00367259685 | N106: 0.038
A107: 2028-03-01 | B107: 2028 - I | C107: 26055734.29 | D107: 0.02286214761 | E107: 0.02246919761 | F107: 0.02286214761 | G107: -0.0006918857144 | H107: 0.065 | I107: 0.065 | J107: 19.61041667 | K107: 19.50694444 | L107: 155.956264 | M107: 0.009 | N107: 0.03552402383
A108: 2028-06-01 | B108: 2028 - II | C108: 27968016.65 | D108: 0.02544117952 | E108: 0.02006861385 | F108: 0.02785560253 | G108: 0.02331598756 | H108: 0.065 | I108: 0.065 | J108: 19.92083333 | K108: 19.81736111 | L108: 157.3473506 | M108: 0.008919722498 | N108: 0.033121419
A109: 2028-09-01 | B109: 2028 - III | C109: 27245949.96 | D109: 0.03022462412 | E109: 0.02617697127 | F109: 0.03984252615 | G109: -0.002331497874 | H109: 0.065 | I109: 0.065 | J109: 20.23125 | K109: 20.12777778 | L109: 158.7384372 | M109: 0.00884086444 | N109: 0.03077175696
A110: 2028-12-01 | B110: 2028 - IV | C110: 27032212.66 | D110: 0.02468900493 | E110: 0.02468900493 | F110: 0.008399275509 | G110: -0.005505417595 | H110: 0.065 | I110: 0.065 | J110: 20.5 | K110: 20.41736111 | L110: 160.1295238 | M110: 0.00876338851 | N110: 0.036
A112: * Index SA

Sheet Peru
D2: 2003 | E2: 2004 | F2: 2005 | G2: 2006 | H2: 2007 | I2: 2008 | J2: 2009 | K2: 2010 | L2: 2011 | M2: 2012 | N2: 2013 | O2: 2014 | P2: 2015 | Q2: 2016 | R2: 2017 | S2: 2018 | T2: 2019 | U2: 2020 | V2: 2021 | W2: 2022 | X2: 2023 | Y2: 2024 | Z2: 2025 | AA2: 2026F | AB2: 2027F | AC2: 2028F | AD2: 2028F
C4: GDP % | D4: 0.04164850561 | E4: 0.04958274137 | F4: 0.06285208166 | G4: 0.07740513994 | H4: 0.08905276764 | I4: 0.09803740563 | J4: 0.0104919354 | K4: 0.08450746875 | L4: 0.06452216002 | M4: 0.0595034634 | N4: 0.0583753976 | O4: 0.02394076363 | P4: 0.0325109108 | Q4: 0.03953670197 | R4: 0.02518770448 | S4: 0.03969372649 | T4: 0.02240419826 | U4: -0.1093761742 | V4: 0.1342084053 | W4: 0.02819155982 | X4: -0.003504486907 | Y4: 0.03514269626 | Z4: 0.03438630983 | AA4: 0.03149513876 | AB4: 0.03029201772 | AC4: 0.02977666019 | AD4: 0.02977666019
C5: CPI % | D5: 0.02483753673 | E5: 0.03481080682 | F5: 0.01494260325 | G5: 0.01137484663 | H5: 0.03927649382 | I5: 0.06650205269 | J5: 0.002453434809 | K5: 0.02076419759 | L5: 0.04738431607 | M5: 0.02649368608 | N5: 0.029 | O5: 0.03224061189 | P5: 0.044 | Q5: 0.032 | R5: 0.014 | S5: 0.022 | T5: 0.019 | U5: 0.02 | V5: 0.064 | W5: 0.085 | X5: 0.032 | Y5: 0.0197 | Z5: 0.01508799739 | AA5: 0.025 | AB5: 0.023 | AC5: 0.02 | AD5: 0.02
C6: Exchange Rate - PEN / USD (end of period) | D6: 3.463 | E6: 3.28 | F6: 3.428 | G6: 3.195 | H6: 2.98 | I6: 3.11 | J6: 2.88 | K6: 2.815 | L6: 2.696 | M6: 2.57 | N6: 2.786 | O6: 2.989 | P6: 3.414 | Q6: 3.356 | R6: 3.2374 | S6: 3.3685 | T6: 3.313 | U6: 3.618 | V6: 4.0015 | W6: 3.8061 | X6: 3.7042 | Y6: 3.757 | Z6: 3.3625 | AA6: 3.4 | AB6: 3.4 | AC6: 3.4 | AD6: 3.4
C7: Monetary Policy Rate - % (end of period) | D7: 0.025 | E7: 0.03 | F7: 0.0325 | G7: 0.045 | H7: 0.05 | I7: 0.065 | J7: 0.0125 | K7: 0.03 | L7: 0.0425 | M7: 0.0425 | N7: 0.04 | O7: 0.035 | P7: 0.0375 | Q7: 0.0425 | R7: 0.0325 | S7: 0.0275 | T7: 0.0225 | U7: 0.0025 | V7: 0.025 | W7: 0.075 | X7: 0.0675 | Y7: 0.05 | Z7: 0.0425 | AA7: 0.0425 | AB7: 0.0425 | AC7: 0.0425 | AD7: 0.0425

Sheet Peru_Quarterly
C1: GDP NSA | H1: Monetary Policy Rate | J1: Exchange Rate | L1: Inflation NSA
C2: Index | D2: Ydt | E2: 12M | F2: YoY | G2: QoQ* | H2: eop | I2: Avg | J2: eop | K2: Avg | L2: Index (eop) | M2: QoQ | N2: YoY
A3: 1991-03-01 | B3: 1991 - I | L3: 12.55
A4: 1991-06-01 | B4: 1991 - II | L4: 15.62 | M4: =L4/L3-1 -> 0.2446215139
A5: 1991-09-01 | B5: 1991 - III | L5: 19.28 | M5: 0.2343149808
A6: 1991-12-01 | B6: 1991 - IV | L6: 21.62 | M6: 0.1213692946
A7: 1992-03-01 | B7: 1992 - I | L7: 17.49 | M7: -0.191026827 | N7: =L7/L3-1 -> 0.393625498
A8: 1992-06-01 | B8: 1992 - II | L8: 19.33 | M8: 0.1052029731 | N8: 0.2375160051
A9: 1992-09-01 | B9: 1992 - III | L9: 21.11 | M9: 0.09208484221 | N9: 0.09491701245
A10: 1992-12-01 | B10: 1992 - IV | L10: 23.53 | M10: 0.1146376125 | N10: 0.08834412581
A11: 1993-03-01 | B11: 1993 - I | L11: 26.46 | M11: 0.124521887 | N11: 0.512864494
A12: 1993-06-01 | B12: 1993 - II | L12: 28.99 | M12: 0.09561602419 | N12: 0.4997413347
A13: 1993-09-01 | B13: 1993 - III | L13: 31.04 | M13: 0.07071403932 | N13: 0.4703931786
A14: 1993-12-01 | B14: 1993 - IV | L14: 32.81 | M14: 0.05702319588 | N14: 0.3943901402
A15: 1994-03-01 | B15: 1994 - I | L15: 34.82 | M15: 0.06126181042 | N15: 0.3159486017
A16: 1994-06-01 | B16: 1994 - II | L16: 36.01 | M16: 0.03417576106 | N16: 0.2421524664
A17: 1994-09-01 | B17: 1994 - III | L17: 37.08 | M17: 0.02971396834 | N17: 0.1945876289
A18: 1994-12-01 | B18: 1994 - IV | L18: 37.86 | M18: 0.02103559871 | N18: 0.1539164889
A19: 1995-03-01 | B19: 1995 - I | L19: 38.96 | M19: 0.02905441099 | N19: 0.1188971855
A20: 1995-06-01 | B20: 1995 - II | L20: 39.99 | M20: 0.02643737166 | N20: 0.1105248542
A21: 1995-09-01 | B21: 1995 - III | L21: 40.8 | M21: 0.02025506377 | N21: 0.1003236246
A22: 1995-12-01 | B22: 1995 - IV | L22: 41.73 | M22: 0.02279411765 | N22: 0.1022187005
A23: 1996-03-01 | B23: 1996 - I | L23: 43.49 | M23: 0.04217589264 | N23: 0.1162731006
A24: 1996-06-01 | B24: 1996 - II | L24: 44.4 | M24: 0.02092435043 | N24: 0.1102775694
A25: 1996-09-01 | B25: 1996 - III | L25: 45.57 | M25: 0.02635135135 | N25: 0.1169117647
A26: 1996-12-01 | B26: 1996 - IV | L26: 46.67 | M26: 0.02413868773 | N26: 0.1183800623
A27: 1997-03-01 | B27: 1997 - I | L27: 47.54 | M27: 0.01864152561 | N27: 0.09312485629
A28: 1997-06-01 | B28: 1997 - II | L28: 48.61 | M28: 0.02250736222 | N28: 0.09481981982
A29: 1997-09-01 | B29: 1997 - III | L29: 49.26 | M29: 0.01337173421 | N29: 0.08097432521
A30: 1997-12-01 | B30: 1997 - IV | L30: 49.69 | M30: 0.008729192042 | N30: 0.0647096636
A31: 1998-03-01 | B31: 1998 - I | L31: 51.43 | M31: 0.03501710606 | N31: 0.08182583088
A32: 1998-06-01 | B32: 1998 - II | L32: 52.33 | M32: 0.0174995139 | N32: 0.07652746348
A33: 1998-09-01 | B33: 1998 - III | L33: 52.51 | M33: 0.003439709536 | N33: 0.06597645148
A34: 1998-12-01 | B34: 1998 - IV | L34: 52.68 | M34: 0.003237478576 | N34: 0.06017307305
A35: 1999-03-01 | B35: 1999 - I | L35: 53.17 | M35: 0.009301442673 | N35: 0.03383239354
A36: 1999-06-01 | B36: 1999 - II | L36: 53.84 | M36: =L36/L35-1 -> 0.01260109084 | N36: 0.0288553411
A37: 1999-09-01 | B37: 1999 - III | L37: 54.32 | M37: 0.008915304606 | N37: 0.03446962483
A38: 1999-12-01 | B38: 1999 - IV | L38: 54.64 | M38: 0.0058910162 | N38: 0.03720577069
A39: 2000-03-01 | B39: 2000 - I | L39: 55.24 | M39: 0.01098096633 | N39: =L39/L35-1 -> 0.03893172842
A40: 2000-06-01 | B40: 2000 - II | L40: 55.56 | M40: 0.005792903693 | N40: 0.03194650817
A41: 2000-09-01 | B41: 2000 - III | L41: 56.43 | M41: 0.0156587473 | N41: 0.03884388807
A42: 2000-12-01 | B42: 2000 - IV | L42: 56.68 | M42: 0.004430267588 | N42: 0.03733528551
A43: 2001-03-01 | B43: 2001 - I | J43: 3.523 | L43: 57.21 | M43: 0.009350741002 | N43: 0.03566256336
A44: 2001-06-01 | B44: 2001 - II | J44: 3.5075 | K44: 3.54575 | L44: 56.96 | M44: -0.004369865408 | N44: 0.02519798416
A45: 2001-09-01 | B45: 2001 - III | J45: 3.4805 | K45: 3.48525 | L45: 56.92 | M45: -0.000702247191 | N45: 0.008683324473
A46: 2001-12-01 | B46: 2001 - IV | J46: 3.4435 | K46: 3.4415 | L46: 56.61 | M46: -0.005446240337 | N46: -0.001235003529
A47: 2002-03-01 | B47: 2002 - I | J47: 3.4435 | K47: 3.45665 | L47: 56.59 | M47: -0.0003532944709 | N47: -0.01083726621
A48: 2002-06-01 | B48: 2002 - II | J48: 3.5085 | K48: 3.47025 | L48: 56.96 | M48: 0.006538257643 | N48: 0
A49: 2002-09-01 | B49: 2002 - III | J49: 3.6313 | K49: 3.6029 | L49: 57.3 | M49: 0.005969101124 | N49: 0.006676036543
A50: 2002-12-01 | B50: 2002 - IV | J50: 3.5145 | K50: 3.559 | L50: 57.47 | M50: 0.002966841187 | N50: 0.01519166225
A51: 2003-03-01 | B51: 2003 - I | C51: 72.88150837 | F51: 0.0564319262 | J51: 3.4742 | K51: 3.47975 | L51: 58.52 | M51: 0.01827040195 | N51: 0.03410496554 | HK51: 2003-I
A52: 2003-06-01 | B52: 2003 - II | C52: 81.58137727 | F52: 0.04646750429 | J52: 3.4675 | K52: 3.46455 | L52: 58.19 | M52: -0.005639097744 | N52: 0.02159410112 | HK52: 2003-II
A53: 2003-09-01 | B53: 2003 - III | C53: 75.76228879 | F53: 0.03676659091 | J53: 3.4829 | K53: 3.47785 | L53: 58.44 | M53: 0.004296270837 | N53: 0.01989528796 | HK53: 2003-III
A54: 2003-12-01 | B54: 2003 - IV | C54: 77.06039485 | F54: 0.02779450267 | H54: 0.025 | I54: 0.02625 | J54: 3.4618 | K54: 3.4667 | L54: 58.89 | M54: 0.007700205339 | N54: 0.02470854359 | HK54: 2003-IV
A55: 2004-03-01 | B55: 2004 - I | C55: 76.21538861 | D55: =AVERAGE(OFFSET($C$1,MATCH(EDATE(A55,0),$A$1:$A$304,0)-1,,IF(MONTH($A55)=3,-1,IF(MONTH($A55)=6,-2,IF(MONTH($A55)=9,-3,-4)))))/AVERAGE(OFFSET($C$1,MATCH(EDATE(A55,-12),$A$1:$A$304,0)-1,,IF(MONTH($A55)=3,-1,IF(MONTH($A55)=6,-2,IF(MONTH($A55)=9,-3,-4)))))-1 -> 0.04574384241 | F55: =C55/C51-1 -> 0.04574384241 | H55: 0.025 | I55: 0.025 | J55: 3.4595 | K55: 3.4795 | L55: 60.13 | M55: 0.02105620649 | N55: 0.02751196172 | HK55: 2004-I
A56: 2004-06-01 | B56: 2004 - II | C56: 84.63083379 | D56: 0.04132602291 | F56: 0.03737932135 | H56: 0.025 | I56: 0.025 | J56: 3.4685 | K56: 3.47525 | L56: 60.67 | M56: 0.008980542159 | N56: 0.0426190067 | HK56: 2004-II
A57: 2004-09-01 | B57: 2004 - III | C57: 79.00798935 | D57: 0.04182443271 | F57: 0.04284058227 | H57: 0.0275 | I57: 0.02625 | J57: 3.3393 | K57: 3.3784 | L57: 60.79 | M57: 0.001977913301 | N57: 0.04021218344 | HK57: 2004-III
A58: 2004-12-01 | B58: 2004 - IV | C58: 82.66744025 | D58: 0.04958281234 | E58: =AVERAGE(C55:C58)/AVERAGE(C51:C54)-1 -> 0.04958281234 | F58: 0.07276170089 | H58: 0.03 | I58: 0.03 | J58: 3.279 | K58: 3.30175 | L58: 60.94 | M58: 0.002467511104 | N58: 0.03481066395 | HK58: 2004-IV
A59: 2005-03-01 | B59: 2005 - I | C59: 80.50334466 | D59: 0.05626102726 | E59: 0.05212216609 | F59: 0.05626102726 | H59: 0.03 | I59: 0.03 | J59: 3.2605 | K59: 3.2612 | L59: 61.26 | M59: 0.005251066623 | N59: 0.018792616 | HK59: 2005-I
A60: 2005-06-01 | B60: 2005 - II | C60: 89.22355838 | D60: 0.05521224253 | E60: 0.05653549417 | F60: 0.05426774593 | H60: 0.03 | I60: 0.03 | J60: 3.2535 | K60: 3.2545 | L60: 61.57 | M60: 0.005060398302 | N60: 0.01483434976 | HK60: 2005-II
A61: 2005-09-01 | B61: 2005 - III | C61: 84.11798342 | D61: 0.05832991053 | E61: 0.06183911913 | F61: 0.0646769284 | H61: 0.03 | I61: 0.03 | J61: 3.34 | K61: 3.2955 | L61: 61.46 | M61: -0.001786584376 | N61: 0.0110215496 | HK61: 2005-III
A62: 2005-12-01 | B62: 2005 - IV | C62: 88.94792275 | D62: 0.06285208166 | E62: 0.06285208166 | F62: 0.07597286764 | H62: 0.0325 | I62: 0.03125 | J62: 3.4205 | K62: 3.39775 | L62: 61.85 | M62: 0.006345590628 | N62: 0.01493272071 | HK62: 2005-IV
A63: 2006-03-01 | B63: 2006 - I | C63: 87.17208581 | D63: 0.08283806308 | E63: 0.0693123511 | F63: 0.08283806308 | H63: 0.04 | I63: 0.0375 | J63: 3.3688 | K63: 3.3394 | L63: 62.79 | M63: 0.01519805982 | N63: 0.0249755142 | HK63: 2006-I
A64: 2006-06-01 | B64: 2006 - II | C64: 94.87093617 | D64: 0.07256432963 | E64: 0.0715341842 | F64: 0.06329469367 | H64: 0.045 | I64: 0.04375 | J64: 3.2625 | K64: 3.28375 | L64: 62.69 | M64: -0.001592610288 | N64: 0.01819067728 | HK64: 2006-II
A65: 2006-09-01 | B65: 2006 - III | C65: 91.09523082 | D65: 0.07600454987 | E65: 0.07599676683 | F65: 0.08294596601 | H65: 0.045 | I65: 0.045 | J65: 3.2505 | K65: 3.2455 | L65: 62.69 | M65: 0 | N65: 0.0200130166 | HK65: 2006-III
A66: 2006-12-01 | B66: 2006 - IV | C66: 95.46266222 | D66: 0.07528776892 | E66: 0.07528776892 | F66: 0.07324217668 | H66: 0.045 | I66: 0.045 | J66: 3.1956 | K66: 3.2063 | L66: 62.56 | M66: -0.002073695964 | N66: 0.01147938561 | HK66: 2006-IV
A67: 2007-03-01 | B67: 2007 - I | C67: 91.78069961 | D67: 0.05286799966 | E67: 0.06795591229 | F67: 0.05286799966 | H67: 0.045 | I67: 0.045 | J67: 3.1825 | K67: 3.19 | L67: 62.94 | M67: 0.006074168798 | N67: 0.002388915432 | HK67: 2007-I
A68: 2007-06-01 | B68: 2007 - II | C68: 100.8792223 | D68: 0.05832082861 | E68: 0.06789152522 | F68: 0.06333115625 | G68: 0.02455558547 | H68: 0.045 | I68: 0.045 | J68: 3.166 | K68: 3.1695 | L68: 63.66 | M68: =L68/L67-1 -> 0.01143946616 | N68: 0.01547296219 | HK68: 2007-II
A69: 2007-09-01 | B69: 2007 - III | C69: 100.9714094 | D69: 0.07502822583 | E69: 0.07458947569 | F69: 0.108415979 | G69: 0.01416136666 | H69: 0.05 | I69: 0.04875 | J69: 3.0845 | K69: 3.1224 | L69: 64.45 | M69: 0.01240967641 | N69: 0.02807465305 | HK69: 2007-III
A70: 2007-12-01 | B70: 2007 - IV | C70: 106.3686687 | D70: 0.08518450092 | E70: 0.08518450092 | F70: 0.1142436867 | G70: 0.02779427882 | H70: 0.05 | I70: 0.05 | J70: 2.998 | K70: 2.9993 | L70: 65.01 | M70: 0.008688906129 | N70: 0.03916240409 | HK70: 2007-IV
A71: 2008-03-01 | B71: 2008 - I | C71: 101.0923818 | D71: 0.1014557765 | E71: 0.09673427536 | F71: 0.1014557765 | G71: 0.03246007643 | H71: 0.0525 | I71: 0.0525 | J71: 2.7505 | K71: 2.84275 | L71: 66.43 | M71: 0.02184279342 | N71: =L71/L67-1 -> 0.05544963457 | HK71: 2008-I
A72: 2008-06-01 | B72: 2008 - II | C72: 111.5041168 | D72: 0.1034806641 | E72: 0.1073756563 | F72: 0.1053229225 | G72: 0.02152812427 | H72: 0.0575 | I72: 0.05625 | J72: 2.961 | K72: 2.88875 | L72: 67.3 | M72: 0.01309649255 | N72: 0.05717876217 | HK72: 2008-II
A73: 2008-09-01 | B73: 2008 - III | C73: 110.6439503 | D73: 0.100837732 | E73: 0.1041268296 | F73: 0.09579484823 | G73: 0.01001392528 | H73: 0.065 | I73: 0.0625 | J73: 2.9825 | K73: 2.89675 | L73: 68.46 | M73: 0.01723625557 | N73: 0.06221877424 | HK73: 2008-III
A74: 2008-12-01 | B74: 2008 - IV | C74: 113.2658244 | D74: 0.09126568301 | E74: 0.09126568301 | F74: 0.06484198584 | G74: -0.000780190591 | H74: 0.065 | I74: 0.065 | J74: 3.1345 | K74: 3.10475 | L74: 69.34 | M74: 0.01285422144 | N74: 0.06660513767 | HK74: 2008-IV
A75: 2009-03-01 | B75: 2009 - I | C75: 103.7147639 | D75: 0.02594045221 | E75: 0.07284662144 | F75: 0.02594045221 | G75: -0.004116054155 | H75: 0.06 | I75: 0.0625 | J75: 3.1527 | K75: 3.1696 | L75: 69.61 | M75: 0.00389385636 | N75: 0.04786993828
A76: 2009-06-01 | B76: 2009 - II | C76: 110.686142 | D76: 0.008487474469 | E76: 0.04375447372 | F76: -0.007335825513 | G76: -0.004702859266 | H76: 0.03 | I76: 0.04 | J76: 3.0065 | K76: 2.9935 | L76: 69.36 | M76: -0.003591438012 | N76: 0.03060921248
A77: 2009-09-01 | B77: 2009 - III | C77: 110.5327036 | D77: 0.005238084009 | E77: 0.01999565648 | F77: -0.001005447899 | G77: 0.008523098395 | H77: 0.0125 | I77: 0.01625 | J77: 2.882 | K77: 2.934 | L77: 69.28 | M77: -0.001153402537 | N77: 0.01197779725 | HK77: 1
A78: 2009-12-01 | B78: 2009 - IV | C78: 116.3560028 | D78: 0.01095823659 | E78: 0.01095823659 | F78: 0.02728253122 | G78: 0.02654434451 | H78: 0.0125 | I78: 0.0125 | J78: 2.888 | K78: 2.8985 | L78: 69.51 | M78: 0.003319861432 | N78: 0.002451687338 | HK78: 2
A79: 2010-03-01 | B79: 2010 - I | C79: 109.5784872 | D79: 0.05653701636 | E79: 0.01827409831 | F79: 0.05653701636 | G79: 0.02423593371 | H79: 0.0125 | I79: 0.0125 | J79: 2.842 | K79: 2.8495 | L79: 70.13 | M79: 0.008919579917 | N79: 0.007470191065 | HK79: 3
A80: 2010-06-01 | B80: 2010 - II | C80: 121.1710976 | D80: 0.07625284432 | E80: 0.04409568696 | F80: 0.09472690444 | G80: 0.03271228864 | H80: 0.0175 | I80: 0.015 | J80: 2.8255 | K80: 2.836 | L80: 70.5 | M80: 0.005275916156 | N80: 0.01643598616 | HK80: 4
A81: 2010-09-01 | B81: 2010 - III | C81: 121.0435571 | D81: 0.08266160113 | E81: 0.06834721475 | F81: 0.09509270269 | G81: 0.009456407149 | H81: 0.03 | I81: 0.025 | J81: 2.7861 | K81: 2.80305 | L81: 70.92 | M81: 0.005957446809 | N81: 0.02367205543 | HK81: 5
A82: 2010-12-01 | B82: 2010 - IV | C82: 126.2517732 | D82: 0.08329065942 | E82: 0.08329065942 | F82: 0.0850473559 | G82: 0.01538011292 | H82: 0.03 | I82: 0.03 | J82: 2.8063 | K82: 2.8024 | L82: 70.95 | M82: 0.0004230118443 | N82: 0.02071644368 | HK82: 6
A83: 2011-03-01 | B83: 2011 - I | C83: 118.7984267 | D83: 0.08414005162 | E83: 0.08970417053 | F83: 0.08414005162 | G83: 0.02239996142 | H83: 0.0375 | I83: 0.035 | J83: 2.8025 | K83: 2.78625 | L83: 72 | M83: 0.01479915433 | N83: 0.02666476544 | HK83: 7
A84: 2011-06-01 | B84: 2011 - II | C84: 127.575247 | D84: 0.06771014975 | E84: 0.07873185775 | F84: 0.05285211986 | G84: 0.006893622249 | H84: 0.0425 | I84: 0.04125 | J84: 2.7495 | K84: 2.78875 | L84: 72.55 | M84: 0.007638888889 | N84: 0.02907801418 | HK84: 8
A85: 2011-09-01 | B85: 2011 - III | C85: 128.0782374 | D85: 0.06440935468 | E85: 0.06953882112 | F85: 0.05811693308 | G85: 0.012246815 | H85: 0.0425 | I85: 0.0425 | J85: 2.774 | K85: 2.7561 | L85: 73.56 | M85: 0.01392143349 | N85: 0.0372250423 | HK85: 9
A86: 2011-12-01 | B86: 2011 - IV | C86: 133.8441746 | D86: 0.06328102184 | E86: 0.06328102184 | F86: 0.06013698874 | G86: 0.01554939611 | H86: 0.0425 | I86: 0.0425 | J86: 2.6965 | K86: 2.70175 | L86: 74.31 | M86: 0.01019575856 | N86: 0.04735729387 | HK86: 10
A87: 2012-03-01 | B87: 2012 - I | C87: 126.0577418 | D87: =AVERAGE(OFFSET($C$1,MATCH(EDATE(A87,0),$A$1:$A$304,0)-1,,IF(MONTH($A87)=3,-1,IF(MONTH($A87)=6,-2,IF(MONTH($A87)=9,-3,-4)))))/AVERAGE(OFFSET($C$1,MATCH(EDATE(A87,-12),$A$1:$A$304,0)-1,,IF(MONTH($A87)=3,-1,IF(MONTH($A87)=6,-2,IF(MONTH($A87)=9,-3,-4)))))-1 -> 0.06110615523 | E87: 0.0580598949 | F87: =C87/C83-1 -> 0.06110615523 | G87: 0.01851990921 | H87: 0.0425 | I87: 0.0425 | J87: 2.6685 | K87: 2.67875 | L87: 75.05 | M87: 0.009958282869 | N87: 0.04236111111 | HK87: 11
A88: 2012-06-01 | B88: 2012 - II | C88: 135.0940865 | D88: 0.05998268566 | E88: 0.0595646803 | F88: 0.05893650766 | G88: 0.01429646871 | H88: 0.0425 | I88: 0.0425 | J88: 2.664 | K88: 2.64925 | L88: 75.45 | M88: 0.005329780147 | N88: 0.0399724328 | HK88: 12
A89: 2012-09-01 | B89: 2012 - III | C89: 137.070037 | D89: 0.06347932415 | E89: 0.06263655869 | F89: 0.07020552283 | G89: 0.01878887967 | H89: 0.0425 | I89: 0.0425 | J89: 2.5975 | K89: 2.612 | L89: 76.31 | M89: 0.011398277 | N89: 0.03738444807 | HK89: 13
A90: 2012-12-01 | B90: 2012 - IV | C90: 141.28252 | D90: 0.06139787511 | E90: =AVERAGE(C87:C90)/AVERAGE(C83:C86)-1 -> 0.06139787511 | F90: 0.05557466631 | G90: 0.001973775191 | H90: 0.0425 | I90: 0.0425 | J90: 2.5515 | K90: 2.57375 | L90: 76.28 | M90: -0.0003931332722 | N90: 0.02651056385 | HK90: 14
A91: 2013-03-01 | B91: 2013 - I | C91: 132.3335087 | D91: 0.04978485878 | E91: 0.0586256129 | F91: 0.04978485878 | G91: 0.02635007278 | H91: 0.0425 | I91: 0.0425 | J91: 2.5895 | K91: 2.5825 | L91: 76.99 | M91: 0.009307813319 | N91: 0.02584943371 | HK91: 15
A92: 2013-06-01 | B92: 2013 - II | C92: 143.5569813 | D92: 0.05643713749 | E92: 0.05958773 | F92: 0.06264445015 | G92: 0.01017216621 | H92: 0.0425 | I92: 0.0425 | J92: 2.7805 | K92: 2.71175 | L92: 77.54 | M92: 0.007143784907 | N92: 0.02770046388 | HK92: 16
A93: 2013-09-01 | B93: 2013 - III | C93: 144.2342787 | D93: 0.05500175958 | E93: 0.05514587746 | F93: 0.05226701482 | G93: 0.01317848789 | H93: 0.0425 | I93: 0.0425 | J93: 2.7815 | K93: 2.788 | L93: 78.47 | M93: 0.01199380965 | N93: 0.0283055956 | HK93: 17
A94: 2013-12-01 | B94: 2013 - IV | C94: 150.9519121 | D94: 0.05852092457 | E94: 0.05852092457 | F94: 0.06844011659 | G94: 0.01506313388 | H94: 0.04 | I94: 0.04125 | J94: 2.799 | K94: 2.7865 | L94: 78.46 | M94: -0.0001274372372 | N94: 0.02857891977 | HK94: 18
A95: 2014-03-01 | B95: 2014 - I | C95: 138.8909448 | D95: 0.04955234788 | E95: 0.05836409495 | F95: 0.04955234788 | G95: 0.00432015141 | H95: 0.04 | I95: 0.04 | J95: 2.8085 | K95: 2.8155 | L95: 79.6 | M95: 0.01452969666 | N95: 0.03390050656 | HK95: 19
A96: 2014-06-01 | B96: 2014 - II | C96: 146.3695912 | D96: 0.03396291764 | E96: 0.04727831937 | F96: 0.01959228944 | G96: -0.005868037505 | H96: 0.04 | I96: 0.04 | J96: 2.7985 | K96: 2.803 | L96: 80.22 | M96: 0.007788944724 | N96: 0.03456280629 | HK96: 20
A97: 2014-09-01 | B97: 2014 - III | C97: 146.8637277 | D97: 0.02856174144 | E97: 0.03859744537 | F97: 0.01823040301 | G97: 0.005120050788 | H97: 0.035 | I97: 0.03625 | J97: 2.8904 | K97: 2.84575 | L97: 80.62 | M97: 0.004986287709 | N97: 0.02739900599 | HK97: 21
A98: 2014-12-01 | B98: 2014 - IV | C98: 152.5653477 | D98: 0.02383730769 | E98: 0.02383730769 | F98: 0.01068840742 | G98: 0.00567545085 | H98: 0.035 | I98: 0.035 | J98: 2.9795 | K98: 2.9505 | L98: 80.99 | M98: 0.004589431903 | N98: 0.03224573031 | HK98: 22
A99: 2015-03-01 | B99: 2015 - I | C99: 141.5725967 | D99: 0.01930760802 | E99: 0.01685694478 | F99: 0.01930760802 | G99: 0.01421271747 | H99: 0.0325 | I99: 0.0325 | J99: 3.0965 | K99: 3.07775 | L99: 82 | M99: 0.01247067539 | N99: 0.03015075377 | HK99: 23
A100: 2015-06-01 | B100: 2015 - II | C100: 151.0184605 | D100: 0.02569763535 | E100: 0.0199387907 | F100: 0.03176116894 | G100: 0.008540236866 | H100: 0.0325 | I100: 0.0325 | J100: 3.1795 | K100: 3.155 | L100: 83.06 | M100: =L100/L99-1 -> 0.01292682927 | N100: 0.03540264273 | HK100: 24
A101: 2015-09-01 | B101: 2015 - III | C101: 151.4984513 | D101: 0.02768936117 | E101: 0.02328800405 | F101: 0.03155798677 | G101: 0.002626869561 | H101: 0.035 | I101: 0.03375 | J101: 3.2335 | K101: 3.21225 | L101: 83.77 | M101: 0.008548037563 | N101: 0.03907219052 | HK101: 25
A102: 2015-12-01 | B102: 2015 - IV | C102: 159.6088946 | D102: 0.0325109108 | E102: 0.0325109108 | F102: 0.04616741022 | G102: 0.01828090082 | H102: 0.0375 | I102: 0.03625 | J102: 3.414 | K102: 3.3505 | L102: 84.56 | M102: 0.009430583741 | N102: 0.04407951599 | HK102: 26
A103: 2016-03-01 | B103: 2016 - I | C103: 147.9134615 | D103: 0.04478878646 | E103: 0.03859229435 | F103: 0.04478878646 | G103: 0.01499638076 | H103: 0.0425 | I103: 0.04125 | J103: 3.313 | K103: 3.39275 | L103: 85.53 | M103: 0.01147114475 | N103: =L103/L99-1 -> 0.04304878049 | HK103: 27
A104: 2016-06-01 | B104: 2016 - II | C104: 156.6593079 | D104: 0.04095037061 | E104: 0.03996482804 | F104: 0.037352039 | G104: -0.004583928961 | H104: 0.0425 | I104: 0.0425 | J104: 3.2855 | K104: 3.2865 | L104: 85.84 | M104: 0.003624459254 | N104: 0.03346978088 | HK104: 28
A105: 2016-09-01 | B105: 2016 - III | C105: 158.485167 | D105: 0.04271307382 | E105: 0.04359635169 | F105: 0.04611740694 | G105: 0.01728170717 | H105: 0.0425 | I105: 0.0425 | J105: 3.3835 | K105: 3.36775 | L105: 86.39 | M105: 0.006407269338 | N105: 0.03127611317 | HK105: 29
A106: 2016-12-01 | B106: 2016 - IV | C106: 164.5087105 | D106: 0.03953670197 | E106: 0.03953670197 | F106: 0.03069888991 | G106: 0.001695078394 | H106: 0.0425 | I106: 0.0425 | J106: 3.356 | K106: 3.35975 | L106: 87.29 | M106: 0.01041787244 | N106: 0.03228476821 | HK106: 30
A107: 2017-03-01 | B107: 2017 - I | C107: 151.2918437 | D107: 0.0228402621 | E107: 0.03426953373 | F107: 0.0228402621 | G107: 0.008246773604 | H107: 0.0425 | I107: 0.0425 | J107: 3.2485 | K107: 3.26 | L107: 88.93 | M107: 0.01878794822 | N107: 0.03975213375 | HK107: 31
A108: 2017-06-01 | B108: 2017 - II | C108: 160.8079146 | D108: 0.02471326936 | E108: 0.03153182963 | F108: 0.02648171192 | G108: 0.005653603965 | H108: 0.04 | I108: 0.04125 | J108: 3.245 | K108: 3.2444 | L108: 88.18 | M108: -0.00843359946 | N108: 0.02726001864 | HK108: 32
A109: 2017-09-01 | B109: 2017 - III | C109: 162.9457657 | D109: 0.02588787861 | E109: 0.02712109059 | F109: 0.02814521282 | G109: 0.01205054032 | H109: 0.035 | I109: 0.03625 | J109: 3.2655 | K109: 3.25275 | L109: 88.94 | M109: 0.008618734407 | N109: 0.02951730524 | HK109: 33
A110: 2017-12-01 | B110: 2017 - IV | C110: 168.3280861 | D110: 0.02518770448 | E110: 0.02518770448 | F110: 0.02321685938 | G110: -0.002704621157 | H110: 0.0325 | I110: 0.03375 | J110: 3.2374 | K110: 3.24395 | L110: 88.48 | M110: -0.005172026085 | N110: 0.01363271852 | HK110: 34
A111: 2018-03-01 | B111: 2018 - I | C111: 156.0836263 | D111: 0.03167244476 | E111: 0.02729296972 | F111: 0.03167244476 | G111: 0.02269740282 | H111: 0.0275 | I111: 0.02875 | J111: 3.2298 | K111: 3.2229 | L111: 89.25 | M111: 0.008702531646 | N111: 0.00359833577 | HK111: 35
A112: 2018-06-01 | B112: 2018 - II | C112: 169.8083852 | D112: 0.04419180988 | E112: 0.03475428865 | F112: 0.05597032114 | G112: 0.01893074113 | H112: 0.0275 | I112: 0.0275 | J112: 3.2765 | K112: 3.2645 | L112: 89.44 | M112: 0.002128851541 | N112: 0.01428895441 | HK112: 36
A113: 2018-09-01 | B113: 2018 - III | C113: 166.9199201 | D113: 0.03739937888 | E113: 0.03375129422 | F113: 0.02438943005 | G113: -0.01533289431 | H113: 0.0275 | I113: 0.0275 | J113: 3.304 | K113: 3.28785 | L113: 90.07 | M113: 0.007043828265 | N113: 0.01270519451 | HK113: 37
A114: 2018-12-01 | B114: 2018 - IV | C114: 176.0995747 | D114: 0.03969372649 | E114: 0.03969372649 | F114: 0.046168698 | G114: 0.01665858349 | H114: 0.0275 | I114: 0.0275 | J114: 3.3685 | K114: 3.37 | L114: 90.42 | M114: 0.003885866548 | N114: 0.02192585895 | HK114: 38
A115: 2019-03-01 | B115: 2019 - I | C115: 159.8267944 | D115: 0.02398181183 | E115: 0.03778245796 | F115: 0.02398181183 | G115: 0.001917067043 | H115: 0.0275 | I115: 0.0275 | J115: 3.3185 | K115: 3.323 | L115: 91.25 | M115: 0.009179385092 | N115: 0.02240896359 | HK115: 39
A116: 2019-06-01 | B116: 2019 - II | C116: 171.7595331 | D116: 0.01747301504 | E116: 0.02653813887 | F116: 0.0114902916 | G116: 0.0132854241 | H116: 0.0275 | I116: 0.0275 | J116: 3.294 | K116: 3.30025 | L116: 91.49 | M116: 0.002630136986 | N116: 0.02292039356 | HK116: 40
A117: 2019-09-01 | B117: 2019 - III | C117: 172.5777016 | D117: 0.02303535435 | E117: 0.02892516794 | F117: 0.03389518429 | G117: 0.000740982826 | H117: 0.025 | I117: 0.02625 | J117: 3.3695 | K117: 3.33695 | L117: 91.74 | M117: 0.002732539075 | N117: 0.01854113467 | HK117: 41
A118: 2019-12-01 | B118: 2019 - IV | C118: 179.7339032 | D118: 0.02240419826 | E118: 0.02240419826 | F118: 0.02063791774 | G118: 0.002786739075 | H118: 0.0225 | I118: 0.02375 | J118: 3.313 | K118: 3.329 | L118: 92.14 | M118: 0.004360148245 | N118: 0.01902234019 | HK118: 42
A119: 2020-03-01 | B119: 2020 - I | C119: 154.1272241 | D119: =AVERAGE(OFFSET($C$1,MATCH(EDATE(A119,0),$A$1:$A$304,0)-1,,IF(MONTH($A119)=3,-1,IF(MONTH($A119)=6,-2,IF(MONTH($A119)=9,-3,-4)))))/AVERAGE(OFFSET($C$1,MATCH(EDATE(A119,-12),$A$1:$A$304,0)-1,,IF(MONTH($A119)=3,-1,IF(MONTH($A119)=6,-2,IF(MONTH($A119)=9,-3,-4)))))-1 -> -0.03566091875 | E119: 0.008241505982 | F119: =C119/C115-1 -> -0.03566091875 | G119: -0.05432088787 | H119: 0.0125 | I119: 0.0175 | J119: 3.432 | K119: 3.409 | L119: 92.92 | M119: 0.008465378771 | N119: 0.01830136986 | HK119: 43
A120: 2020-06-01 | B120: 2020 - II | C120: 120.1508908 | D120: -0.1728304453 | E120: -0.07117653161 | F120: -0.3004703225 | G120: -0.2606137684 | H120: 0.0025 | I120: 0.0025 | J120: 3.5415 | K120: 3.4586 | L120: 92.96 | M120: 0.0004304778304 | N120: 0.01606732976 | HK120: 44
A121: 2020-09-01 | B121: 2020 - III | C121: 157.58414 | D121: -0.1434092279 | E121: -0.1009424071 | F121: -0.0868800626 | G121: 0.3006833215 | H121: 0.0025 | I121: 0.0025 | J121: 3.6025 | K121: 3.5682 | L121: 93.41 | M121: 0.004840791738 | N121: 0.01820361892 | HK121: 45
A122: 2020-12-01 | B122: 2020 - IV | C122: 177.233538 | D122: -0.1093761742 | E122: =AVERAGE(C119:C122)/AVERAGE(C115:C118)-1 -> -0.1093761742 | F122: -0.01391148352 | G122: 0.08146523057 | H122: 0.0025 | I122: 0.0025 | J122: 3.618 | K122: 3.61665 | L122: 93.96 | M122: 0.005888020555 | N122: 0.01975255047 | HK122: 46
A123: 2021-03-01 | B123: 2021 - I | C123: 160.6398985 | D123: 0.04225518521 | E123: -0.09228847806 | F123: 0.04225518521 | G123: 0.006744722313 | H123: 0.0025 | I123: 0.0025 | J123: 3.7435 | K123: 3.69015 | L123: 95.33 | M123: 0.01458067263 | N123: 0.02593628928 | HK123: 47
A124: 2021-06-01 | B124: 2021 - II | C124: 170.7106618 | D124: 0.2080823891 | E124: 0.06316496653 | F124: 0.4208022986 | G124: 0.004380932585 | H124: 0.0025 | I124: 0.0025 | J124: 3.8659 | K124: 3.8258 | L124: 95.98 | M124: 0.006818420224 | N124: 0.03248709122 | HK124: 49
A125: 2021-09-01 | B125: 2021 - III | C125: 176.1125633 | D125: 0.1750578287 | E125: 0.1195241377 | F125: 0.1175779696 | G125: 0.02187603579 | H125: 0.01 | I125: 0.00625 | J125: 4.1345 | K125: 4.1015 | L125: 98.3 | M125: 0.02417170244 | N125: 0.05234985548 | HK125: 50
A126: 2021-12-01 | B126: 2021 - IV | C126: 183.3784444 | D126: 0.1342084053 | E126: 0.1342084053 | F126: 0.03467123939 | G126: 0.0004919344438 | H126: 0.025 | I126: 0.02 | J126: 4.0015 | K126: 3.9965 | L126: 100 | M126: 0.01729399797 | N126: 0.06428267348 | HK126: 51
A127: 2022-03-01 | B127: 2022 - I | C127: 166.930581 | D127: 0.03916014996 | E127: 0.1324279757 | F127: 0.03916014996 | G127: 0.0120544981 | H127: 0.04 | I127: 0.035 | J127: 3.6804 | K127: 3.7627 | L127: 101.84 | M127: 0.0184 | N127: 0.06828910102 | HK127: 52
A128: 2022-06-01 | B128: 2022 - II | C128: 176.5501663 | D128: 0.03660831909 | E128: 0.05524657972 | F128: 0.03420702882 | G128: 0.0005403568761 | H128: 0.055 | I128: 0.05 | J128: 3.8265 | K128: 3.832 | L128: 104.44 | M128: 0.02553024352 | N128: 0.0881433632 | HK128: 53
A129: 2022-09-01 | B129: 2022 - III | C129: 179.7339941 | D129: 0.03103992616 | E129: 0.03197989057 | F129: 0.02056316015 | G129: 0.006557608891 | H129: 0.0675 | I129: 0.06375 | J129: 3.9832 | K129: 3.95255 | L129: 106.68 | M129: 0.02144772118 | N129: 0.08524923703 | HK129: 54
A130: 2022-12-01 | B130: 2022 - IV | C130: 187.1027279 | D130: 0.02819155982 | E130: 0.02819155982 | F130: 0.02030927636 | G130: 0.000146415491 | H130: 0.075 | I130: 0.0725 | J130: 3.8061 | K130: 3.89605 | L130: 108.46 | M130: 0.01668541432 | N130: 0.0846 | HK130: 55
A131: 2023-03-01 | B131: 2023 - I | C131: 166.9958597 | D131: 0.000391052679 | E131: 0.01900715039 | F131: 0.000391052679 | G131: -0.006957450016 | H131: 0.0775 | I131: 0.0775 | J131: 3.7631 | K131: 3.80455 | L131: 110.39 | M131: 0.01779457865 | N131: 0.08395522388
A132: 2023-06-01 | B132: 2023 - II | C132: 175.9219438 | D132: -0.001638938774 | E132: 0.00964870976 | F132: -0.003558323273 | G132: -0.001664516609 | H132: 0.0775 | I132: 0.0775 | J132: 3.625 | K132: 3.6665 | L132: 111.19 | M132: =L132/L131-1 -> 0.007247033246 | N132: 0.0646304098
A133: 2023-09-01 | B133: 2023 - III | C133: 178.609379 | D133: -0.003225365914 | E133: 0.002882457056 | F133: -0.006257108363 | G133: 0.002073857817 | H133: 0.075 | I133: 0.07625 | J133: 3.7849 | K133: 3.6993 | L133: 112.06 | M133: 0.007824444644 | N133: 0.0504311961
A134: 2023-12-01 | B134: 2023 - IV | C134: 186.3009887 | D134: -0.003504486907 | E134: -0.003504486907 | F134: -0.004285021858 | G134: 0.002967591091 | H134: 0.0675 | I134: 0.07 | J134: 3.7042 | K134: 3.7716 | L134: 111.97 | M134: -0.0008031411744 | N134: 0.03236216117
A135: 2024-03-01 | B135: 2024 - I | C135: 169.4045363 | D135: 0.01442357094 | E135: -0.0002053826543 | F135: 0.01442357094 | G135: 0.013294695 | H135: 0.0625 | I135: 0.06375 | J135: 3.7176 | K135: 3.76305 | L135: 113.75 | M135: 0.0158971153 | N135: =L135/L131-1 -> 0.03043753963
A136: 2024-06-01 | B136: 2024 - II | C136: 182.631838 | D136: 0.02659112683 | E136: 0.01013338582 | F136: 0.03814131444 | G136: 0.01275819722 | H136: 0.0575 | I136: 0.05875 | J136: 3.8425 | K136: 3.80445 | L136: 113.73 | M136: -0.0001758241758 | N136: 0.02284378092
A137: 2024-09-01 | B137: 2024 - III | C137: 186.0400968 | D137: 0.03173236057 | E137: 0.02222252983 | F137: 0.04160317805 | G137: 0.01088772889 | H137: 0.0525 | I137: 0.055 | J137: 3.704 | K137: 3.71615 | L137: 114.1 | M137: 0.003253319265 | N137: 0.01820453329
A138: 2024-12-01 | B138: 2024 - IV | C138: 194.6266905 | D138: 0.03514269626 | E138: 0.03514269626 | F138: 0.04468952032 | G138: 0.005536661151 | H138: 0.05 | I138: 0.05125 | J138: 3.757 | K138: 3.76575 | L138: 114.172077 | M138: 0.0006317002629 | N138: 0.01966666964
A139: 2025-03-01 | B139: 2025 - I | C139: 176.3112531 | D139: 0.04077055426 | E139: 0.04135666957 | F139: 0.04077055426 | G139: 0.00954827587 | H139: 0.0475 | I139: 0.0475 | J139: 3.677 | K139: 3.7022 | L139: 115.205841 | M139: 0.009054438065 | N139: 0.0127986022
A140: 2025-06-01 | B140: 2025 - II | C140: 187.899671 | D140: 0.03458321565 | E140: 0.03895822078 | F140: 0.0288440015 | G140: 0.005092034698 | H140: 0.045 | I140: 0.04625 | J140: 3.5417 | K140: 3.6032 | L140: 115.655637 | M140: 0.003904281207 | N140: 0.01693165392
A141: 2025-09-01 | B141: 2025 - III | C141: 192.9384596 | D141: 0.03544647216 | E141: 0.03782367066 | F141: 0.03707997859 | G141: 0.01343992501 | H141: 0.0425 | I141: 0.04375 | J141: 3.4719 | K141: 3.5319 | L141: 115.599718 | M141: -0.0004834956726 | N141: 0.01314389132
A142: 2025-12-01 | B142: 2025 - IV | C142: 200.7487357 | D142: 0.03438630983 | E142: 0.03438630983 | F142: 0.03145532227 | G142: -0.001637914827 | H142: 0.0425 | I142: 0.0425 | J142: 3.3625 | K142: 3.36515 | L142: 115.894705 | M142: 0.002551796882 | N142: 0.01508799739
A143: 2026-03-01 | B143: 2026 - I | C143: 185.8692209 | D143: 0.05421076445 | E143: 0.03764986071 | F143: 0.05421076445 | G143: 0.009 | H143: 0.0425 | I143: 0.0425 | J143: 3.361236471 | K143: 3.365118235 | L143: 117.7896196 | M143: 0.01635031191 | N143: 0.02242749632
A144: 2026-06-01 | B144: 2026 - II | C144: 193.4541311 | D144: 0.04149361516 | E144: 0.0377683955 | F144: 0.02956077613 | G144: 0.009 | H144: 0.0425 | I144: 0.0425 | J144: 3.374157647 | K144: 3.369850588 | L144: 118.3486782 | M144: 0.004746247172 | N144: 0.02328499755
A145: 2026-09-01 | B145: 2026 - III | C145: 197.3647112 | D145: 0.03506901387 | E145: 0.03413346822 | F145: 0.02294126092 | G145: 0.009 | H145: 0.0425 | I145: 0.0425 | J145: 3.387078824 | K145: 3.382771765 | L145: 118.390584 | M145: 0.0003540878265 | N145: 0.02414249877
A146: 2026-12-01 | B146: 2026 - IV | C146: 205.0801627 | D146: 0.03149513876 | E146: 0.03149513876 | F146: 0.0215763599 | G146: 0.01 | H146: 0.0425 | I146: 0.0425 | J146: 3.4 | K146: 3.395692941 | L146: 118.7920726 | M146: 0.003391220495 | N146: 0.025
A147: 2027-03-01 | B147: 2027 - I | C147: 190.8626325 | D147: 0.02686518818 | E147: 0.02515525063 | F147: 0.02686518818 | G147: 0.006 | H147: 0.0425 | I147: 0.0425 | J147: 3.4 | K147: 3.4 | L147: 120.6754653 | M147: 0.01585453127 | N147: 0.0245
A148: 2027-06-01 | B148: 2027 - II | C148: 199.7502755 | D148: 0.02976235441 | E148: 0.02593397286 | F148: 0.03254592913 | G148: 0.006 | H148: 0.0425 | I148: 0.0425 | J148: 3.4 | K148: 3.4 | L148: 121.1890465 | M148: 0.004255887851 | N148: 0.024
A149: 2027-09-01 | B149: 2027 - III | C149: 203.0266262 | D149: 0.02939452384 | E149: 0.02737572755 | F149: 0.02868757515 | G149: 0.006 | H149: 0.0425 | I149: 0.0425 | J149: 3.4 | K149: 3.4 | L149: 121.1727628 | M149: -0.0001343663179 | N149: 0.0235
A150: 2027-12-01 | B150: 2027 - IV | C150: 211.8100286 | D150: 0.03029201772 | E150: 0.03029201772 | F150: 0.03281578209 | G150: 0.007 | H150: 0.0425 | I150: 0.0425 | J150: 3.4 | K150: 3.4 | L150: 121.5242903 | M150: 0.002901044031 | N150: 0.023
A151: 2028-03-01 | B151: 2028 - I | C151: 194.8871907 | D151: 0.02108615015 | E151: 0.02886831589 | F151: =C151/C147-1 -> 0.02108615015 | G151: 0.006 | H151: 0.0425 | I151: 0.0425 | J151: 3.4 | K151: 3.4 | L151: 123.0889746 | M151: 0.01287548572 | N151: 0.02
A152: 2028-06-01 | B152: 2028 - II | C152: 205.0744831 | D152: 0.02393358115 | E152: 0.02741357205 | F152: 0.0266543192 | G152: 0.008 | H152: 0.0425 | I152: 0.0425 | J152: 3.4 | K152: 3.4 | L152: 123.6128274 | M152: 0.004255887851 | N152: 0.02
A153: 2028-09-01 | B153: 2028 - III | C153: 209.1028554 | D153: 0.02598377315 | E153: 0.02773796741 | F153: 0.02992823836 | G153: 0.008 | H153: 0.0425 | I153: 0.0425 | J153: 3.4 | K153: 3.4 | L153: 123.596218 | M153: -0.0001343663179 | N153: 0.02
A154: 2028-12-01 | B154: 2028 - IV | C154: 220.3686316 | D154: 0.02977666019 | E154: =AVERAGE(C151:C154)/AVERAGE(C147:C150)-1 -> 0.02977666019 | F154: 0.04040697691 | G154: 0.008 | H154: 0.0425 | I154: 0.0425 | J154: 3.4 | K154: 3.4 | L154: 123.9547761 | M154: 0.002901044031 | N154: 0.02
HK155: 60
A156: * Index SA | HK156: 61
HK157: 62
HK158: 63
HK159: 64
HK160: 65
HK161: 66
HK162: 67

Sheet Paraguay
D2: 2003 | E2: 2004 | F2: 2005 | G2: 2006 | H2: 2007 | I2: 2008 | J2: 2009 | K2: 2010 | L2: 2011 | M2: 2012 | N2: 2013 | O2: 2014 | P2: 2015 | Q2: 2016 | R2: 2017 | S2: 2018 | T2: 2019 | U2: 2020 | V2: 2021 | W2: 2022 | X2: 2023 | Y2: 2024 | Z2: 2025 | AA2: 2026F | AB2: 2027F | AC2: 2028F | AD2: 2028F
C4: GDP % | D4: 0.04164850561 | E4: 0.04958274137 | F4: 0.06285208166 | G4: 0.07740513994 | H4: 0.08905276764 | I4: 0.09803740563 | J4: 0.0104919354 | K4: 0.08450746875 | L4: 0.06452216002 | M4: 0.0595034634 | N4: 0.0583753976 | O4: 0.02394076363 | P4: 0.02957151684 | Q4: 0.04268025833 | R4: 0.04810078856 | S4: 0.03204250341 | T4: -0.004018551007 | U4: -0.008197853909 | V4: 0.03994615107 | W4: -0.0002807717241 | X4: 0.0528584585 | Y4: 0.0466914578 | Z4: 0.066 | AA4: 0.03980859565 | AB4: 0.03983172239 | AC4: 0.02977666019 | AD4: 0.04008875976
C5: CPI % | D5: 0.02483753673 | E5: 0.03481080682 | F5: 0.01494260325 | G5: 0.01137484663 | H5: 0.03927649382 | I5: 0.06650205269 | J5: 0.002453434809 | K5: 0.02076419759 | L5: 0.04738431607 | M5: 0.02649368608 | N5: 0.029 | O5: 0.03224061189 | P5: 0.03104693141 | Q5: 0.03921568627 | R5: 0.04514824798 | S5: 0.032 | T5: 0.02810077519 | U5: 0.02167766258 | V5: 0.06826568266 | W5: 0.08117443869 | X5: 0.03674121406 | Y5: 0.03775038521 | Z5: 0.03118040089 | AA5: 0.03502618872 | AB5: 0.03498886992 | AC5: 0.02 | AD5: 0.03498886992
C6: Exchange Rate - PYG / USD (end of period) | D6: 3.463 | E6: 3.28 | F6: 3.428 | G6: 3.195 | H6: 2.98 | I6: 3.11 | J6: 2.88 | K6: 2.815 | L6: 2.696 | M6: 2.57 | N6: 2.786 | O6: 2.989 | P6: 5782 | Q6: 5737.5 | R6: 5588 | S6: 5963.9 | T6: 6465 | U6: 6911.6 | V6: 6876.9 | W6: 7339.5 | X6: 7275 | Y6: 7975.1 | Z6: 6598 | AA6: 6649.56455 | AB6: 6649.81429 | AC6: 3.4 | AD6: 6714.618319
C7: Monetary Policy Rate - % (end of period) | D7: 0.025 | E7: 0.03 | F7: 0.0325 | G7: 0.045 | H7: 0.05 | I7: 0.065 | J7: 0.0125 | K7: 0.03 | L7: 0.0425 | M7: 0.0425 | N7: 0.04 | O7: 0.035 | P7: 0.0575 | Q7: 0.055 | R7: 0.0525 | S7: 0.0525 | T7: 0.04 | U7: 0.0075 | V7: 0.0525 | W7: 0.085 | X7: 0.0675 | Y7: 0.06 | Z7: 0.06 | AA7: 0.0525 | AB7: 0.05 | AC7: 0.0425 | AD7: 0.05

Sheet Paraguay_Quarterly
C1: GDP NSA | H1: Monetary Policy Rate | J1: Exchange Rate | L1: Inflation NSA
C2: Index | D2: Ydt | E2: 12M | F2: YoY | G2: QoQ* | H2: eop | I2: Avg | J2: eop | K2: Avg | L2: Index (eop) | M2: QoQ | N2: YoY
A3: 1991-03-01 | B3: 1991 - I
A4: 1991-06-01 | B4: 1991 - II
A5: 1991-09-01 | B5: 1991 - III
A6: 1991-12-01 | B6: 1991 - IV
A7: 1992-03-01 | B7: 1992 - I
A8: 1992-06-01 | B8: 1992 - II
A9: 1992-09-01 | B9: 1992 - III
A10: 1992-12-01 | B10: 1992 - IV
A11: 1993-03-01 | B11: 1993 - I
A12: 1993-06-01 | B12: 1993 - II
A13: 1993-09-01 | B13: 1993 - III
A14: 1993-12-01 | B14: 1993 - IV
A15: 1994-03-01 | B15: 1994 - I
A16: 1994-06-01 | B16: 1994 - II
A17: 1994-09-01 | B17: 1994 - III
A18: 1994-12-01 | B18: 1994 - IV
A19: 1995-03-01 | B19: 1995 - I | L19: 0
A20: 1995-06-01 | B20: 1995 - II | L20: 0
A21: 1995-09-01 | B21: 1995 - III | L21: 0
A22: 1995-12-01 | B22: 1995 - IV | L22: 0
A23: 1996-03-01 | B23: 1996 - I | L23: 0
A24: 1996-06-01 | B24: 1996 - II | L24: 0
A25: 1996-09-01 | B25: 1996 - III | L25: 0
A26: 1996-12-01 | B26: 1996 - IV | L26: 0
A27: 1997-03-01 | B27: 1997 - I | L27: 0
A28: 1997-06-01 | B28: 1997 - II | L28: 0
A29: 1997-09-01 | B29: 1997 - III | L29: 0
A30: 1997-12-01 | B30: 1997 - IV | L30: 0
A31: 1998-03-01 | B31: 1998 - I | L31: 0
A32: 1998-06-01 | B32: 1998 - II | L32: 0
A33: 1998-09-01 | B33: 1998 - III | L33: 0
A34: 1998-12-01 | B34: 1998 - IV | L34: 0
A35: 1999-03-01 | B35: 1999 - I | L35: 0
A36: 1999-06-01 | B36: 1999 - II | L36: 0
A37: 1999-09-01 | B37: 1999 - III | L37: 0
A38: 1999-12-01 | B38: 1999 - IV | L38: 0
A39: 2000-03-01 | B39: 2000 - I | C39: 72.42657156 | L39: 0
A40: 2000-06-01 | B40: 2000 - II | C40: 77.57808924 | L40: 0
A41: 2000-09-01 | B41: 2000 - III | C41: 73.89881955 | L41: 0
A42: 2000-12-01 | B42: 2000 - IV | C42: 85.35636826 | L42: 0
A43: 2001-03-01 | B43: 2001 - I | C43: 73.83485159 | L43: 36.6716951
A44: 2001-06-01 | B44: 2001 - II | C44: 75.67776818 | L44: 36.52044327 | M44: =L44/L43-1 -> -0.004124484439
A45: 2001-09-01 | B45: 2001 - III | C45: 74.91152285 | L45: 37.29045261 | M45: 0.02108433735
A46: 2001-12-01 | B46: 2001 - IV | C46: 82.25630964 | L46: 38.21171379 | M46: 0.02470501475
A47: 2002-03-01 | B47: 2002 - I | C47: 75.11750468 | L47: 39.05047398 | M47: 0.02195034185 | N47: =L47/L43-1 -> 0.06486689164
A48: 2002-06-01 | B48: 2002 - II | C48: 76.81098728 | L48: 39.94423482 | M48: 0.02288732394 | N48: 0.09375
A49: 2002-09-01 | B49: 2002 - III | C49: 73.61755903 | L49: 42.4467652 | M49: 0.06265060241 | N49: 0.1382743363
A50: 2002-12-01 | B50: 2002 - IV | C50: 81.06875816 | L50: 43.80803172 | M50: 0.03206997085 | N50: 0.1464555596
A51: 2003-03-01 | B51: 2003 - I | C51: 74.39939592 | F51: 0.0564319262 | L51: 46.9293196 | M51: 0.07124921532 | N51: 0.2017605634 | HK51: 2003-I
A52: 2003-06-01 | B52: 2003 - II | C52: 78.76246072 | F52: 0.04646750429 | G52: 0.01752754807 | L52: 46.22806109 | M52: =L52/L51-1 -> -0.01494286551 | N52: 0.1573149742 | HK52: 2003-II
A53: 2003-09-01 | B53: 2003 - III | C53: 79.03813814 | F53: 0.03676659091 | G53: 0.03438387879 | L53: 45.88430692 | M53: -0.00743604997 | N53: 0.08098477486 | HK53: 2003-III
A54: 2003-12-01 | B54: 2003 - IV | C54: 87.66285991 | F54: 0.02779450267 | G54: 0.004607952124 | L54: 47.89183129 | M54: 0.04375187294 | N54: 0.09322033898 | HK54: 2003-IV
A55: 2004-03-01 | B55: 2004 - I | C55: 78.01360208 | D55: =AVERAGE(OFFSET($C$1,MATCH(EDATE(A55,0),$A$1:$A$304,0)-1,,IF(MONTH($A55)=3,-1,IF(MONTH($A55)=6,-2,IF(MONTH($A55)=9,-3,-4)))))/AVERAGE(OFFSET($C$1,MATCH(EDATE(A55,-12),$A$1:$A$304,0)-1,,IF(MONTH($A55)=3,-1,IF(MONTH($A55)=6,-2,IF(MONTH($A55)=9,-3,-4)))))-1 -> 0.04857843422 | F55: =C55/C51-1 -> 0.04857843422 | G55: -0.01039099662 | L55: 48.33183663 | M55: 0.009187482056 | N55: =L55/L51-1 -> 0.02988573103 | HK55: 2004-I
A56: 2004-06-01 | B56: 2004 - II | C56: 83.97195529 | D56: 0.05761030142 | F56: 0.06614184623 | G56: 0.03802141866 | L56: 48.78559214 | M56: 0.009388335704 | N56: 0.05532421178 | HK56: 2004-II
A57: 2004-09-01 | B57: 2004 - III | C57: 80.97397105 | D57: 0.04633735523 | F57: 0.02449239014 | G57: -0.006745615875 | L57: 48.93684397 | M57: 0.003100338219 | N57: 0.0665268205 | HK57: 2004-III
A58: 2004-12-01 | B58: 2004 - IV | C58: 89.88150047 | D58: 0.04057418364 | E58: =AVERAGE(C55:C58)/AVERAGE(C51:C54)-1 -> 0.04057418364 | F58: 0.02530878601 | G58: 0.006225919431 | L58: 49.23934764 | M58: 0.006181511661 | N58: 0.0281366638 | HK58: 2004-IV
A59: 2005-03-01 | B59: 2005 - I | C59: 79.87856866 | D59: 0.0239056592 | E59: 0.03471323314 | F59: 0.0239056592 | G59: -0.01663582738 | L59: 50.44936233 | M59: 0.0245741413 | N59: 0.04381223329 | HK59: 2005-I
A60: 2005-06-01 | B60: 2005 - II | C60: 84.32407973 | D60: 0.01368696729 | E60: 0.01938492584 | F60: 0.004193357642 | G60: 0.02332157915 | L60: 51.75562818 | M60: 0.02589261379 | N60: 0.06087936866 | HK60: 2005-II
A61: 2005-09-01 | B61: 2005 - III | C61: 81.27033187 | D61: 0.01034514618 | E61: 0.01431267986 | F61: 0.003659951573 | G61: -0.008723686483 | L61: 52.63563887 | M61: 0.0170031881 | N61: 0.07558302894 | HK61: 2005-III
A62: 2005-12-01 | B62: 2005 - IV | C62: 94.46918091 | D62: 0.02133490665 | E62: 0.02133490665 | F62: 0.05104143141 | G62: 0.0564616308 | L62: 54.09315656 | M62: 0.0276907001 | N62: 0.09857581681 | HK62: 2005-IV
A63: 2006-03-01 | B63: 2006 - I | C63: 86.07737114 | D63: 0.07760282367 | E63: 0.03416421674 | F63: 0.07760282367 | G63: 0.0003545762784 | L63: 56.27943309 | M63: 0.0404168785 | N63: 0.1155628237 | HK63: 2006-I
A64: 2006-06-01 | B64: 2006 - II | C64: 87.28727066 | D64: 0.0557968675 | E64: 0.0419211887 | F64: 0.03514050726 | G64: -0.009769240858 | L64: 56.10068092 | M64: -0.00317615441 | N64: 0.08395324123 | HK64: 2006-II
A65: 2006-09-01 | B65: 2006 - III | C65: 87.30130632 | D65: 0.06189262808 | E65: 0.05898429707 | F65: 0.07420880804 | G65: 0.02601846293 | L65: 57.0219421 | M65: 0.01642156863 | N65: 0.08333333333 | HK65: 2006-III
A66: 2006-12-01 | B66: 2006 - IV | C66: 95.61763112 | D66: 0.04807117193 | E66: 0.04807117193 | F66: 0.0121568769 | G66: 4.25077651e-05 | L66: 60.8444885 | M66: 0.06703641186 | N66: 0.1248093543 | HK66: 2006-IV
A67: 2007-03-01 | B67: 2007 - I | C67: 90.98290397 | D67: 0.05698980776 | E67: 0.04347404673 | F67: 0.05698980776 | G67: 0.03337193019 | L67: 59.45572164 | M67: -0.02282485876 | N67: 0.05643782067 | HK67: 2007-I
A68: 2007-06-01 | B68: 2007 - II | C68: 91.15512373 | D68: 0.05060654703 | E68: 0.0456964214 | F68: 0.04431176546 | G68: -0.0132278997 | L68: 59.93697749 | M68: 0.008094357077 | N68: 0.06838235294 | HK68: 2007-II
A69: 2007-09-01 | B69: 2007 - III | C69: 92.64777688 | D69: 0.05416839661 | E69: 0.04299294949 | F69: 0.06124158717 | G69: 0.04073393495 | L69: 62.78326203 | M69: 0.04748795595 | N69: 0.1010368941 | HK69: 2007-III
A70: 2007-12-01 | B70: 2007 - IV | C70: 100.8141267 | D70: 0.05421622872 | E70: 0.05421622872 | F70: 0.05434662521 | G70: -0.001284015106 | L70: 64.47453256 | M70: 0.02693823916 | N70: 0.05966101695 | HK70: 2007-IV
A71: 2008-03-01 | B71: 2008 - I | C71: 97.14899962 | D71: 0.06777202499 | E71: 0.05696992003 | F71: 0.06777202499 | G71: 0.03303745859 | L71: 66.79561573 | M71: 0.036 | N71: 0.1234514339 | HK71: 2008-I
A72: 2008-06-01 | B72: 2008 - II | C72: 100.1395986 | D72: 0.08318180808 | E72: 0.07038226644 | F72: 0.09856247741 | G72: 0.02445559621 | L72: 67.95615732 | M72: 0.01737451737 | N72: 0.1337935306 | HK72: 2008-II
A73: 2008-09-01 | B73: 2008 - III | C73: 97.3640134 | D73: 0.07229924782 | E73: 0.067664876 | F73: 0.0509050155 | G73: -0.004309100888 | L73: 68.47195358 | M73: 0.007590132827 | N73: 0.09060840999 | HK73: 2008-III
A74: 2008-12-01 | B74: 2008 - IV | C74: 105.3473884 | D74: 0.0649629212 | E74: 0.0649629212 | F74: 0.04496653299 | G74: -0.003842578976 | L74: 69.3101225 | M74: 0.01224105461 | N74: 0.075 | HK74: 2008-IV
A75: 2009-03-01 | B75: 2009 - I | C75: 95.40088474 | D75: -0.01799416242 | E75: 0.04318314636 | F75: -0.01799416242 | G75: -0.04004259823 | L75: 69.05222437 | M75: -0.003720930233 | N75: 0.03378378378
A76: 2009-06-01 | B76: 2009 - II | C76: 96.68499275 | D76: -0.02637111688 | E76: 0.01035642327 | F76: -0.03449789947 | G76: 0.01315361628 | L76: 69.24564797 | M76: 0.002801120448 | N76: 0.01897533207
A77: 2009-09-01 | B77: 2009 - III | C77: 97.77709573 | D77: -0.01625520416 | E77: -0.0006482886631 | F77: 0.004242659188 | G77: 0.04054995506 | L77: 70.01934236 | M77: 0.01117318436 | N77: 0.02259887006 | HK77: 1
A78: 2009-12-01 | B78: 2009 - IV | C78: 109.0924775 | D78: -0.002611373281 | E78: -0.002611373281 | F78: 0.03554989924 | G78: 0.02669587345 | L78: 70.59961315 | M78: 0.008287292818 | N78: 0.01860465116 | HK78: 2
A79: 2010-03-01 | B79: 2010 - I | C79: 108.3049854 | D79: 0.1352618557 | E79: 0.03416849181 | F79: 0.1352618557 | G79: 0.04213780234 | L79: 71.8891038 | M79: 0.01826484018 | N79: 0.04108309991 | HK79: 3
A80: 2010-06-01 | B80: 2010 - II | C80: 109.6452205 | D80: 0.1346498183 | E80: 0.07604535653 | F80: 0.1340459095 | G80: 0.01709905979 | H80: 0.006 | J80: 4760 | K80: 4720 | L80: 72.21147647 | M80: 0.004484304933 | N80: 0.04283054004 | HK80: 4
A81: 2010-09-01 | B81: 2010 - III | C81: 106.7109442 | D81: 0.1200504384 | E81: 0.0975259502 | F81: 0.0913695426 | G81: 0.008006187052 | H81: 0.011 | I81: 0.0085 | J81: 4820 | K81: 4765 | L81: 72.66279819 | M81: 0.00625 | N81: 0.03775322284 | HK81: 5
A82: 2010-12-01 | B82: 2010 - IV | C82: 118.5593304 | D82: 0.1109523127 | E82: 0.1109523127 | F82: 0.08677823738 | G82: 0.02036012626 | H82: 0.045 | I82: 0.0305 | J82: 4645 | K82: 4960 | L82: 75.69310123 | M82: 0.04170363798 | N82: 0.07214611872 | HK82: 6
A83: 2011-03-01 | B83: 2011 - I | C83: 116.4898652 | D83: 0.0755725113 | E83: 0.09601770508 | F83: 0.0755725113 | G83: 0.02046603584 | H83: 0.07 | I83: 0.0575 | J83: 4115 | K83: 4635 | L83: 79.30367505 | M83: 0.04770017036 | N83: 0.1031390135 | HK83: 7
A84: 2011-06-01 | B84: 2011 - II | C84: 114.9842811 | D84: 0.06205059657 | E84: 0.07514867077 | F84: 0.04869396533 | G84: -0.001102252323 | H84: 0.0825 | I84: 0.08125 | J84: 4055 | K84: 3940 | L84: 78.59445519 | M84: =L84/L83-1 -> -0.008943089431 | N84: 0.08839285714 | HK84: 8
A85: 2011-09-01 | B85: 2011 - III | C85: 109.3779945 | D85: 0.04987042818 | E85: 0.05915303491 | F85: 0.02499322155 | G85: -0.01009529521 | H85: 0.085 | I85: 0.08375 | J85: 4180 | K85: 3780 | L85: 79.49709865 | M85: 0.01148482363 | N85: 0.09405501331 | HK85: 9
A86: 2011-12-01 | B86: 2011 - IV | C86: 121.3664149 | D86: 0.04286371207 | E86: 0.04286371207 | F86: 0.02367662233 | G86: 0.01821335519 | H86: 0.0725 | I86: 0.07875 | J86: 4435 | K86: 4200 | L86: 79.43262411 | M86: -0.0008110300081 | N86: 0.04940374787 | HK86: 10
A87: 2012-03-01 | B87: 2012 - I | C87: 114.1431465 | D87: =AVERAGE(OFFSET($C$1,MATCH(EDATE(A87,0),$A$1:$A$304,0)-1,,IF(MONTH($A87)=3,-1,IF(MONTH($A87)=6,-2,IF(MONTH($A87)=9,-3,-4)))))/AVERAGE(OFFSET($C$1,MATCH(EDATE(A87,-12),$A$1:$A$304,0)-1,,IF(MONTH($A87)=3,-1,IF(MONTH($A87)=6,-2,IF(MONTH($A87)=9,-3,-4)))))-1 -> -0.02014526059 | E87: 0.01875581768 | F87: =C87/C83-1 -> -0.02014526059 | G87: -0.0351042166 | H87: 0.065 | I87: 0.065 | J87: 4310 | K87: 4717.5 | L87: 81.88265635 | M87: 0.03084415584 | N87: =L87/L83-1 -> 0.0325203252 | HK87: 11
A88: 2012-06-01 | B88: 2012 - II | C88: 113.2277974 | D88: -0.0177263959 | E88: 0.003001530704 | F88: -0.01527585901 | G88: 0.0143729952 | H88: 0.0625 | I88: 0.06375 | J88: 4540 | K88: 4350 | L88: 81.68923275 | M88: -0.002362204724 | N88: 0.03937653815 | HK88: 12
A89: 2012-09-01 | B89: 2012 - III | C89: 112.7976208 | D89: -0.00200549162 | E89: 0.004622236296 | F89: 0.03126429827 | G89: 0.03749948983 | H89: 0.055 | I89: 0.0575 | J89: 4465 | K89: 4420 | L89: 81.68923275 | M89: 0 | N89: 0.02757502028 | HK89: 13
A90: 2012-12-01 | B90: 2012 - IV | C90: 118.7772843 | D90: -0.007080431123 | E90: =AVERAGE(C87:C90)/AVERAGE(C83:C86)-1 -> -0.007080431123 | F90: -0.02133317144 | G90: -0.0330419786 | H90: 0.055 | I90: 0.055 | J90: 4220 | K90: 4452.5 | L90: 82.59187621 | M90: 0.01104972376 | N90: 0.03977272727 | HK90: 14
A91: 2013-03-01 | B91: 2013 - I | C91: 125.7698409 | D91: 0.1018606437 | E91: 0.02326888831 | F91: 0.1018606437 | G91: 0.07535394735 | H91: 0.055 | I91: 0.055 | J91: 4008 | K91: 4150 | L91: 82.84977434 | M91: 0.0031225605 | N91: 0.01181102362 | HK91: 15
A92: 2013-06-01 | B92: 2013 - II | C92: 123.1200148 | D92: 0.09464231178 | E92: 0.04878554563 | F92: 0.08736562592 | G92: 0.009737456772 | H92: 0.055 | I92: 0.055 | J92: 4452.5 | K92: 4150 | L92: 83.10767247 | M92: 0.003112840467 | N92: 0.01736385162 | HK92: 16
A93: 2013-09-01 | B93: 2013 - III | C93: 118.4512779 | D93: 0.0798797177 | E93: 0.05326451834 | F93: 0.05012213126 | G93: 0.001396846652 | H93: 0.055 | I93: 0.055 | J93: 4427.5 | K93: 4422.5 | L93: 84.33268859 | M93: 0.01474010861 | N93: 0.03235990529 | HK93: 17
A94: 2013-12-01 | B94: 2013 - IV | C94: 129.6654457 | D94: 0.08293076489 | E94: 0.08293076489 | F94: 0.09166871803 | G94: 0.00718181746 | H94: 0.06 | I94: 0.0575 | J94: 4598.2 | K94: 4432.4 | L94: 85.68665377 | M94: 0.01605504587 | N94: 0.037470726 | HK94: 18
A95: 2014-03-01 | B95: 2014 - I | C95: 132.5823049 | D95: 0.05416611758 | E95: 0.07065116822 | F95: 0.05416611758 | G95: 0.0290855461 | H95: 0.0675 | I95: 0.06625 | J95: 4442.1 | K95: 4686.5 | L95: 87.87878788 | M95: 0.02558314522 | N95: 0.06070038911 | HK95: 19
A96: 2014-06-01 | B96: 2014 - II | C96: 127.6500849 | D96: 0.04557250452 | E96: 0.05803620762 | F96: 0.03679393713 | G96: 0.001498951936 | H96: 0.0675 | I96: 0.0675 | J96: 4386.9 | K96: 4434.4 | L96: 88.39458414 | M96: 0.005869405723 | N96: 0.06361520559 | HK96: 20
A97: 2014-09-01 | B97: 2014 - III | C97: 124.9500816 | D97: 0.04856885353 | E97: 0.05909979552 | F97: 0.05486478285 | G97: 0.01559486942 | H97: 0.0675 | I97: 0.0675 | J97: 4527.5 | K97: 4298 | L97: 87.81431335 | M97: -0.006564551422 | N97: 0.04128440367 | HK97: 21
A98: 2014-12-01 | B98: 2014 - IV | C98: 138.1716129 | D98: 0.05301238645 | E98: 0.05301238645 | F98: 0.06560087839 | G98: 0.02131509491 | H98: 0.0675 | I98: 0.0675 | J98: 4635.7 | K98: 4618.6 | L98: 89.2972276 | M98: 0.01688693098 | N98: 0.04213694507 | HK98: 22
A99: 2015-03-01 | B99: 2015 - I | C99: 138.960472 | D99: 0.04810722811 | E99: 0.05143356209 | F99: 0.04810722811 | G99: 0.004641462174 | H99: 0.065 | I99: 0.06625 | J99: 4798.8 | K99: 4818.8 | L99: 90.19987105 | M99: 0.01010830325 | N99: 0.02641232575 | HK99: 23
A100: 2015-06-01 | B100: 2015 - II | C100: 131.3037976 | D100: 0.03854969749 | E100: 0.04925129211 | F100: 0.02862287732 | G100: -0.01124506205 | H100: 0.06 | I100: 0.06125 | J100: 5183.5 | K100: 5014.2 | L100: 90.58671825 | M100: 0.004288777698 | N100: 0.02479941648 | HK100: 24
A101: 2015-09-01 | B101: 2015 - III | C101: 128.7875329 | D101: 0.03600717124 | E101: 0.04346040374 | F101: 0.03071187512 | G101: 0.01567379259 | H101: 0.0575 | I101: 0.0575 | J101: 5636.1 | K101: 5171.7 | L101: 91.10251451 | M101: 0.005693950178 | N101: 0.03744493392 | HK101: 25
A102: 2015-12-01 | B102: 2015 - IV | C102: 139.7786558 | D102: 0.02957151684 | E102: 0.02957151684 | F102: 0.01163077476 | G102: 0.004808680116 | H102: 0.0575 | I102: 0.0575 | J102: 5782 | K102: 5634.7 | L102: 92.0696325 | M102: 0.01061571125 | N102: 0.03104693141 | HK102: 26
A103: 2016-03-01 | B103: 2016 - I | C103: 140.3369684 | D103: 0.009905668382 | E103: 0.01977358044 | F103: 0.009905668382 | G103: -0.002430155219 | H103: 0.06 | I103: 0.06 | J103: 5628.7 | K103: 5929.5 | L103: 94.4551902 | M103: 0.02591036415 | N103: 0.04717655468 | HK103: 27
A104: 2016-06-01 | B104: 2016 - II | C104: 139.3390534 | D104: 0.03482425598 | E104: 0.02785271327 | F104: 0.06119591284 | G104: 0.04447208428 | H104: 0.0575 | I104: 0.05875 | J104: 5589 | K104: 5573 | L104: 94.8420374 | M104: 0.00409556314 | N104: 0.04697508897 | HK104: 28
A105: 2016-09-01 | B105: 2016 - III | C105: 135.362708 | D105: 0.0400622856 | E105: 0.03274982006 | F105: 0.05105443846 | G105: 0.003432140457 | H105: 0.055 | I105: 0.055 | J105: 5555.4 | K105: 5543.6 | L105: 94.32624113 | M105: -0.005438477226 | N105: 0.03538570418 | HK105: 29
A106: 2016-12-01 | B106: 2016 - IV | C106: 146.7891516 | D106: 0.04268025833 | E106: 0.04268025833 | F106: 0.05015426596 | G106: 0.004645236124 | H106: 0.055 | I106: 0.055 | J106: 5737.5 | K106: 5730 | L106: 95.68020632 | M106: 0.01435406699 | N106: 0.03921568627 | HK106: 30
A107: 2017-03-01 | B107: 2017 - I | C107: 151.2325342 | D107: 0.07763860028 | E107: 0.06019265823 | F107: 0.07763860028 | G107: 0.02282475689 | H107: 0.055 | I107: 0.055 | J107: 5638.1 | K107: 5810 | L107: 97.09864603 | M107: 0.01482479784 | N107: 0.02798634812 | HK107: 31
A108: 2017-06-01 | B108: 2017 - II | C108: 142.4977178 | D108: 0.05025182381 | E108: 0.05041549281 | F108: 0.0226689094 | G108: -0.007300569816 | H108: 0.055 | I108: 0.055 | J108: 5555 | K108: 5571.7 | L108: 97.6144423 | M108: 0.005312084993 | N108: 0.02923181509 | HK108: 32
A109: 2017-09-01 | B109: 2017 - III | C109: 141.2725153 | D109: 0.04810162522 | E109: 0.04861875999 | F109: 0.04365905018 | G109: 0.02293396958 | H109: 0.0525 | I109: 0.05375 | J109: 5667.5 | K109: 5555.3 | L109: 98.25918762 | M109: 0.006605019815 | N109: 0.04169514696 | HK109: 33
A110: 2017-12-01 | B110: 2017 - IV | C110: 153.8494783 | D110: 0.04810078856 | E110: 0.04810078856 | F110: 0.04809842293 | G110: 0.008463561005 | H110: 0.0525 | I110: 0.0525 | J110: 5588 | K110: 5636.7 | L110: 100 | M110: 0.01771653543 | N110: 0.04514824798 | HK110: 34
A111: 2018-03-01 | B111: 2018 - I | C111: 158.7324681 | D111: 0.04959206651 | E111: 0.04125679216 | F111: 0.04959206651 | G111: 0.02482243167 | H111: 0.0525 | I111: 0.0525 | J111: 5548.3 | K111: 5607.5 | L111: 101.1 | M111: 0.011 | N111: 0.04120916335 | HK111: 35
A112: 2018-06-01 | B112: 2018 - II | C112: 151.8751338 | D112: 0.05745867095 | E112: 0.05182915609 | F112: 0.06580748204 | G112: 0.00946477681 | H112: 0.0525 | I112: 0.0525 | J112: 5693.2 | K112: 5543.3 | L112: 101.9 | M112: 0.007912957468 | N112: 0.04390290621 | HK112: 36
A113: 2018-09-01 | B113: 2018 - III | C113: 142.811774 | D113: 0.04233676207 | E113: 0.04379045932 | F113: 0.0108956704 | G113: -0.03124274337 | H113: 0.0525 | I113: 0.0525 | J113: 5892.9 | K113: 5726.7 | L113: 102.2 | M113: 0.002944062807 | N113: 0.04010629921 | HK113: 37
A114: 2018-12-01 | B114: 2018 - IV | C114: 154.3011698 | D114: 0.03204250341 | E114: 0.03204250341 | F114: 0.002935930834 | G114: -0.0008333548885 | H114: 0.0525 | I114: 0.0525 | J114: 5963.9 | K114: 5990.9 | L114: 103.2 | M114: 0.009784735812 | N114: 0.032 | HK114: 38
A115: 2019-03-01 | B115: 2019 - I | C115: 153.9367561 | D115: -0.03021254576 | E115: 0.01102143073 | F115: -0.03021254576 | G115: -0.006799576604 | H115: 0.0475 | I115: 0.05 | J115: 6190 | K115: 6036.8 | L115: 103.9 | M115: 0.006782945736 | N115: 0.02769535114 | HK115: 39
A116: 2019-06-01 | B116: 2019 - II | C116: 146.204781 | D116: -0.03369545577 | E116: -0.01399158071 | F116: -0.03733562312 | G116: 0.002235644169 | H116: 0.0475 | I116: 0.0475 | J116: 6197.5 | K116: 6278.5 | L116: 104.8 | M116: =L116/L115-1 -> 0.008662175168 | N116: 0.0284592738 | HK116: 40
A117: 2019-09-01 | B117: 2019 - III | C117: 145.9619393 | D117: -0.01613495104 | E117: -0.01130340863 | F117: 0.02205816222 | G117: 0.02818376152 | H117: 0.04 | I117: 0.0425 | J117: 6380.1 | K117: 5999.2 | L117: 104.9 | M117: 0.0009541984733 | N117: 0.02641878669 | HK117: 41
A118: 2019-12-01 | B118: 2019 - IV | C118: 159.1749132 | D118: -0.004018551007 | E118: -0.004018551007 | F118: 0.03158591363 | G118: 0.005572730148 | H118: 0.04 | I118: 0.04 | J118: 6465 | K118: 6447.5 | L118: 106.1 | M118: 0.01143946616 | N118: 0.02810077519 | HK118: 42
A119: 2020-03-01 | B119: 2020 - I | C119: 160.1206877 | D119: =AVERAGE(OFFSET($C$1,MATCH(EDATE(A119,0),$A$1:$A$304,0)-1,,IF(MONTH($A119)=3,-1,IF(MONTH($A119)=6,-2,IF(MONTH($A119)=9,-3,-4)))))/AVERAGE(OFFSET($C$1,MATCH(EDATE(A119,-12),$A$1:$A$304,0)-1,,IF(MONTH($A119)=3,-1,IF(MONTH($A119)=6,-2,IF(MONTH($A119)=9,-3,-4)))))-1 -> 0.04017189724 | E119: 0.01416011917 | F119: =C119/C115-1 -> 0.04017189724 | G119: 0.00438149939 | H119: 0.0225 | I119: 0.03125 | J119: 6563 | K119: 6530.6 | L119: 106.5 | M119: 0.003770028275 | N119: =L119/L115-1 -> 0.0250240616 | HK119: 43
A120: 2020-06-01 | B120: 2020 - II | C120: 135.39045 | D120: -0.01542738635 | E120: 0.005681848114 | F120: -0.07396701345 | G120: -0.1063616384 | H120: 0.0075 | I120: 0.01 | J120: 6817.5 | K120: 6515.4 | L120: 105.3 | M120: -0.01126760563 | N120: 0.004770992366 | HK120: 44
A121: 2020-09-01 | B121: 2020 - III | C121: 144.0394573 | D121: -0.01468915134 | E121: -0.002796677322 | F121: -0.01317111868 | G121: 0.09308653796 | H121: 0.0075 | I121: 0.0075 | J121: 6990.2 | K121: 6921.8 | L121: 106.6 | M121: 0.01234567901 | N121: 0.01620591039 | HK121: 45
A122: 2020-12-01 | B122: 2020 - IV | C122: 160.7658109 | D122: -0.008197853909 | E122: =AVERAGE(C119:C122)/AVERAGE(C115:C118)-1 -> -0.008197853909 | F122: 0.009994650759 | G122: 0.02717179894 | H122: 0.0075 | I122: 0.0075 | J122: 6911.6 | K122: 7030 | L122: 108.4 | M122: 0.01688555347 | N122: 0.02167766258 | HK122: 46
A123: 2021-03-01 | B123: 2021 - I | C123: 161.1122678 | D123: 0.00619270465 | E123: -0.01660664097 | F123: 0.00619270465 | G123: 0.003108860418 | H123: 0.0075 | I123: 0.0075 | J123: 6311.1 | K123: 6950.1 | L123: 109.1 | M123: 0.006457564576 | N123: 0.02441314554 | HK123: 47
A124: 2021-06-01 | B124: 2021 - II | C124: 154.3432727 | D124: 0.06749120511 | E124: 0.03265276629 | F124: 0.1399864073 | G124: 0.01328062524 | H124: 0.0075 | I124: 0.0075 | J124: 6752.3 | K124: 6585 | L124: 110 | M124: 0.008249312557 | N124: 0.04463437797 | HK124: 49
A125: 2021-09-01 | B125: 2021 - III | C125: 147.6771611 | D125: 0.05365049419 | E125: 0.04204431574 | F125: 0.02525491213 | G125: -0.01786899948 | H125: 0.015 | I125: 0.01125 | J125: 6907 | K125: 6911.3 | L125: 113.4 | M125: 0.03090909091 | N125: 0.06378986867 | HK125: 50
A126: 2021-12-01 | B126: 2021 - IV | C126: 161.164034 | D126: 0.03994615107 | E126: 0.03994615107 | F126: 0.002477039083 | G126: 0.004660686674 | H126: 0.0525 | I126: 0.04 | J126: 6876.9 | K126: 6904.4 | L126: 115.8 | M126: 0.02116402116 | N126: 0.06826568266 | HK126: 51
A127: 2022-03-01 | B127: 2022 - I | C127: 159.1135055 | D127: -0.01240602158 | E127: 0.03490721549 | F127: -0.01240602158 | G127: -0.01101566103 | H127: 0.0625 | I127: 0.05875 | J127: 6941.9 | K127: 7060.9 | L127: 120.1 | M127: 0.03713298791 | N127: 0.1008249313 | HK127: 52
A128: 2022-06-01 | B128: 2022 - II | C128: 149.1317931 | D128: -0.02285660234 | E128: -0.005117709785 | F128: -0.03376551166 | G128: -0.006112866795 | H128: 0.0775 | I128: 0.0725 | J128: 6849.1 | K128: 6831.9 | L128: 122.7 | M128: 0.02164862614 | N128: 0.1154545455 | HK128: 53
A129: 2022-09-01 | B129: 2022 - III | C129: 151.6411464 | D129: -0.007009344428 | E129: -0.004564898566 | F129: 0.02684223607 | G129: 0.04205864094 | H129: 0.085 | I129: 0.0825 | J129: 7074.7 | K129: 6881 | L129: 124 | M129: 0.01059494703 | N129: 0.09347442681 | HK129: 54
A130: 2022-12-01 | B130: 2022 - IV | C130: 164.2350058 | D130: -0.0002807717241 | E130: -0.0002807717241 | F130: 0.01905494467 | G130: -0.003192232483 | H130: 0.085 | I130: 0.085 | J130: 7339.5 | K130: 7270.7 | L130: 125.2 | M130: 0.009677419355 | N130: 0.08117443869 | HK130: 55
A131: 2023-03-01 | B131: 2023 - I | C131: 166.9733576 | D131: 0.04939776853 | E131: 0.01556059947 | F131: 0.04939776853 | G131: 0.01401854254 | H131: 0.085 | I131: 0.085 | J131: 7181.8 | K131: 7320.2 | L131: 127.8 | M131: 0.02076677316 | N131: 0.06411323897
A132: 2023-06-01 | B132: 2023 - II | C132: 158.1440522 | D132: 0.05473598871 | E132: 0.03874184316 | F132: 0.06043150747 | G132: 0.004649875728 | H132: 0.085 | I132: 0.085 | J132: 7265.8 | K132: 7239.8 | L132: 127.9 | M132: 0.0007824726135 | N132: 0.0423797881
A133: 2023-09-01 | B133: 2023 - III | C133: 158.2652847 | D133: 0.05109141565 | E133: 0.04277787742 | F133: 0.04368298769 | G133: 0.02496254158 | H133: 0.08 | I133: 0.0825 | J133: 7287.5 | K133: 7283.2 | L133: 128.3 | M133: 0.003127443315 | N133: 0.03467741935
A134: 2023-12-01 | B134: 2023 - IV | C134: 173.7288541 | D134: 0.0528584585 | E134: 0.0528584585 | F134: 0.05780648433 | G134: 0.009950423199 | H134: 0.0675 | I134: 0.0725 | J134: 7275 | K134: 7462.1 | L134: 129.8 | M134: 0.0116913484 | N134: 0.03674121406
A135: 2024-03-01 | B135: 2024 - I | C135: 175.8764071 | D135: 0.05332017999 | E135: 0.05385174374 | F135: 0.05332017999 | G135: 0.007039896387 | H135: 0.06 | I135: 0.0625 | J135: 7385.5 | K135: 7276.9 | L135: 132.4 | M135: 0.02003081664 | N135: 0.03599374022
A136: 2024-06-01 | B136: 2024 - II | C136: 167.2183649 | D136: 0.05529498456 | E136: 0.05319140596 | F136: 0.057380044 | G136: 0.01096885043 | H136: 0.06 | I136: 0.06 | J136: 7806.1 | K136: 7969.7 | L136: 133.4 | M136: 0.007552870091 | N136: 0.04300234558
A137: 2024-09-01 | B137: 2024 - III | C137: 163.9880113 | D137: 0.04902965927 | E137: 0.05125545068 | F137: 0.03615907725 | G137: 0.003456659476 | H137: 0.06 | I137: 0.06 | J137: 7988 | K137: 7904.6 | L137: 133.5 | M137: 0.0007496251874 | N137: 0.04053000779
A138: 2024-12-01 | B138: 2024 - IV | C138: 180.7102614 | D138: 0.0466914578 | E138: 0.0466914578 | F138: 0.04018565233 | G138: 0.01520782323 | H138: 0.06 | I138: 0.06 | J138: 7975.1 | K138: 7976.9 | L138: 134.7 | M138: 0.008988764045 | N138: 0.03775038521
A139: 2025-03-01 | B139: 2025 - I | C139: 187.3508873 | D139: 0.06524172496 | E139: 0.0499282252 | F139: 0.06524172496 | G139: 0.02711063479 | H139: 0.06 | I139: 0.06 | J139: 7988 | K139: 7884 | L139: 138.2 | M139: 0.02598366741 | N139: 0.04380664653
A140: 2025-06-01 | B140: 2025 - II | C140: 178.1445052 | D140: 0.06528989169 | E140: 0.05200019424 | F140: 0.06534055234 | G140: 0.013 | H140: 0.06 | I140: 0.06 | J140: 7928 | K140: 8005.418182 | L140: 138.7 | M140: 0.003617945007 | N140: 0.03973013493
A141: 2025-09-01 | B141: 2025 - III | C141: 174.7743528 | D141: 0.06544683236 | E141: 0.05900070891 | F141: 0.06577518272 | G141: 0.005 | H141: 0.06 | I141: 0.06 | J141: 7172 | K141: 7472.22 | L141: 139.2 | M141: 0.003604902668 | N141: 0.04269662921
A142: 2025-12-01 | B142: 2025 - IV | C142: 188.8422232 | D142: 0.06007464599 | E142: 0.06007464599 | F142: 0.045 | G142: 0.013 | H142: 0.06 | I142: 0.06 | J142: 6598 | K142: 7095 | L142: 138.9 | M142: -0.002155172414 | N142: 0.03118040089
A143: 2026-03-01 | B143: 2026 - I | C143: 195.050483 | D143: 0.04109719353 | E143: 0.05369052305 | F143: 0.04109719353 | G143: 0.0095 | H143: 0.0525 | I143: 0.055 | J143: 6610.891138 | K143: 6602.297046 | L143: 141.0284283 | M143: 0.01532345782 | N143: 0.02046619603
A144: 2026-06-01 | B144: 2026 - II | C144: 184.8249447 | D144: 0.03934395745 | E144: 0.04688627901 | F144: 0.03750011537 | G144: 0.0095 | H144: 0.0525 | I144: 0.0525 | J144: 6623.782275 | K144: 6615.188183 | L144: 141.9907121 | M144: 0.006823331794 | N144: 0.0237253933
A145: 2026-09-01 | B145: 2026 - III | C145: 182.1403294 | D145: 0.0402502861 | E145: 0.04144077964 | F145: 0.04214563827 | G145: 0.0095 | H145: 0.0525 | I145: 0.0525 | J145: 6636.673413 | K145: 6628.079321 | L145: 142.6737843 | M145: 0.004810682799 | N145: 0.02495534717
A146: 2026-12-01 | B146: 2026 - IV | C146: 196.1211349 | D146: 0.03980859565 | E146: 0.03980859565 | F146: 0.03854493765 | G146: 0.0095 | H146: 0.0525 | I146: 0.0525 | J146: 6649.56455 | K146: 6640.970459 | L146: 143.7651376 | M146: 0.007649290951 | N146: 0.03502618872
A147: 2027-03-01 | B147: 2027 - I | C147: 202.6690229 | D147: 0.03905932345 | E147: 0.03928259161 | F147: 0.03905932345 | G147: 0.01 | H147: 0.0525 | I147: 0.0525 | J147: 6649.626985 | K147: 6649.585362 | L147: 146.3300373 | M147: 0.01784090136 | N147: 0.03759248419
A148: 2027-06-01 | B148: 2027 - II | C148: 192.1392004 | D148: 0.03930971715 | E148: 0.03978211445 | F148: 0.03957396403 | G148: 0.01 | H148: 0.0525 | I148: 0.0525 | J148: 6649.68942 | K148: 6649.647797 | L148: 147.2051627 | M148: =L148/L147-1 -> 0.005980491182 | N148: 0.03672388584
A149: 2027-09-01 | B149: 2027 - III | C149: 189.4421275 | D149: 0.03956222474 | E149: 0.03930637509 | F149: 0.0400888595 | G149: 0.01 | H149: 0.0525 | I149: 0.0525 | J149: 6649.751855 | K149: 6649.710232 | L149: 147.7894976 | M149: 0.003969527034 | N149: 0.03585601462
A150: 2027-12-01 | B150: 2027 - IV | C150: 204.0844394 | D150: 0.03983172239 | E150: 0.03983172239 | F150: 0.04060401 | G150: 0.01 | H150: 0.05 | I150: 0.05125 | J150: 6649.81429 | K150: 6649.772667 | L150: 148.7953173 | M150: 0.006805758905 | N150: 0.03498886992
A151: 2028-03-01 | B151: 2028 - I | C151: 210.8564359 | D151: 0.0403979498 | E151: 0.04017832593 | F151: =C151/C147-1 -> 0.0403979498 | G151: 0.0098 | H151: 0.05 | I151: 0.05 | J151: 6666.015297 | K151: 6655.214626 | L151: 151.4499599 | M151: 0.01784090136 | N151: =L151/L147-1 -> 0.03498886992
A152: 2028-06-01 | B152: 2028 - II | C152: 199.8616458 | D152: 0.04029768745 | E152: 0.0403261976 | F152: 0.0401919304 | G152: 0.0098 | H152: 0.05 | I152: 0.05 | J152: 6682.216305 | K152: 6671.415633 | L152: 152.355705 | M152: 0.005980491182 | N152: 0.03498886992
A153: 2028-09-01 | B153: 2028 - III | C153: 197.0171513 | D153: 0.04019660772 | E153: 0.04029899511 | F153: 0.0399859518 | G153: 0.0098 | H153: 0.05 | I153: 0.05 | J153: 6698.417312 | K153: 6687.61664 | L153: 152.9604851 | M153: 0.003969527034 | N153: 0.03498886992
A154: 2028-12-01 | B154: 2028 - IV | C154: 212.2029213 | D154: 0.04008875976 | E154: =AVERAGE(C151:C154)/AVERAGE(C147:C150)-1 -> 0.04008875976 | F154: 0.03978001399 | G154: 0.0098 | H154: 0.05 | I154: 0.05 | J154: 6714.618319 | K154: 6703.817648 | L154: 154.0014973 | M154: 0.006805758905 | N154: 0.03498886992
HK155: 60
A156: * Index SA | HK156: 61
HK157: 62
HK158: 63
HK159: 64
HK160: 65
HK161: 66
HK162: 67

Sheet Uruguay
D2: 2003 | E2: 2004 | F2: 2005 | G2: 2006 | H2: 2007 | I2: 2008 | J2: 2009 | K2: 2010 | L2: 2011 | M2: 2012 | N2: 2013 | O2: 2014 | P2: 2015 | Q2: 2016 | R2: 2017 | S2: 2018 | T2: 2019 | U2: 2020 | V2: 2021 | W2: 2022 | X2: 2023 | Y2: 2024 | Z2: 2025 | AA2: 2026F | AB2: 2027F | AC2: 2028F | AD2: 2028F
C4: GDP % | D4: 0.04164850561 | E4: 0.04958274137 | F4: 0.06285208166 | G4: 0.07740513994 | H4: 0.08905276764 | I4: 0.09803740563 | J4: 0.0104919354 | K4: 0.08450746875 | L4: 0.06452216002 | M4: 0.0595034634 | N4: 0.0583753976 | O4: 0.02394076363 | P4: 0 | Q4: 0 | R4: 0.01740376489 | S4: 0.001645182671 | T4: 0.009285655433 | U4: -0.07380098841 | V4: 0.05561892793 | W4: 0.04791536696 | X4: 0.007421287286 | Y4: 0.03108254828 | Z4: 0.018 | AA4: 0.01772872527 | AB4: 0.02036412372 | AC4: 0.02977666019 | AD4: 0.01976690772
C5: CPI % | D5: 0.02483753673 | E5: 0.03481080682 | F5: 0.01494260325 | G5: 0.01137484663 | H5: 0.03927649382 | I5: 0.06650205269 | J5: 0.002453434809 | K5: 0.02076419759 | L5: 0.04738431607 | M5: 0.02649368608 | N5: 0.029 | O5: 0.03224061189 | P5: 0.0943630132 | Q5: 0.0810288532 | R5: 0.06552425569 | S5: 0.07960199005 | T5: 0.08787911264 | U5: 0.09412865728 | V5: 0.07959303111 | W5: 0.08295761832 | X5: 0.0511196599 | Y5: 0.05492331057 | Z5: 0.0364787255 | AA5: 0.04500238137 | AB5: 0.04500238137 | AC5: 0.02 | AD5: 0.04500238137
C6: Exchange Rate - UYU / USD (end of period) | D6: 3.463 | E6: 3.28 | F6: 3.428 | G6: 3.195 | H6: 2.98 | I6: 3.11 | J6: 2.88 | K6: 2.815 | L6: 2.696 | M6: 2.57 | N6: 2.786 | O6: 2.989 | P6: 29.873 | Q6: 29.261 | R6: 28.7 | S6: 32.4 | T6: 37.35 | U6: 42.3525 | V6: 44.6875 | W6: 39.9125 | X6: 38.85 | Y6: 44.066 | Z6: 39 | AA6: 39.45313928 | AB6: 39.95021754 | AC6: 3.4 | AD6: 40.72982679
C7: Monetary Policy Rate - % (end of period) | D7: 0.025 | E7: 0.03 | F7: 0.0325 | G7: 0.045 | H7: 0.05 | I7: 0.065 | J7: 0.0125 | K7: 0.03 | L7: 0.0425 | M7: 0.0425 | N7: 0.04 | O7: 0.035 | P7: 0.1227 | Q7: 0.1 | R7: 0.0856 | S7: 0.0825 | T7: 0.0857 | U7: 0.045 | V7: 0.0575 | W7: 0.115 | X7: 0.09 | Y7: 0.0875 | Z7: 0.075 | AA7: 0.055 | AB7: 0.055 | AC7: 0.0425 | AD7: 0.055

Sheet Uruguay_Quarterly
C1: GDP NSA | H1: Monetary Policy Rate | J1: Exchange Rate | L1: Inflation NSA
C2: Index | D2: Ydt | E2: 12M | F2: YoY | G2: QoQ* | H2: eop | I2: Avg | J2: eop | K2: Avg | L2: Index (eop) | M2: QoQ | N2: YoY
A3: 1991-03-01 | B3: 1991 - I | L3: 0
A4: 1991-06-01 | B4: 1991 - II | L4: 0
A5: 1991-09-01 | B5: 1991 - III | L5: 0
A6: 1991-12-01 | B6: 1991 - IV | L6: 0
A7: 1992-03-01 | B7: 1992 - I | L7: 0
A8: 1992-06-01 | B8: 1992 - II | L8: 0
A9: 1992-09-01 | B9: 1992 - III | L9: 0
A10: 1992-12-01 | B10: 1992 - IV | L10: 0
A11: 1993-03-01 | B11: 1993 - I | L11: 0
A12: 1993-06-01 | B12: 1993 - II | J12: 3.9 | L12: 0
A13: 1993-09-01 | B13: 1993 - III | J13: 4.1 | K13: 4 | L13: 0
A14: 1993-12-01 | B14: 1993 - IV | J14: 4.4 | K14: 4.3 | L14: 0
A15: 1994-03-01 | B15: 1994 - I | J15: 4.7 | K15: 4.6 | L15: 0
A16: 1994-06-01 | B16: 1994 - II | J16: 5 | K16: 4.8 | L16: 0
A17: 1994-09-01 | B17: 1994 - III | J17: 5.6 | K17: 5.1 | L17: 0
A18: 1994-12-01 | B18: 1994 - IV | J18: 5.6 | K18: 5.4 | L18: 0
A19: 1995-03-01 | B19: 1995 - I | J19: 5.9 | K19: 5.7 | L19: 0
A20: 1995-06-01 | B20: 1995 - II | J20: 6.3 | K20: 6 | L20: 0
A21: 1995-09-01 | B21: 1995 - III | J21: 6.6 | K21: 6.4 | L21: 0
A22: 1995-12-01 | B22: 1995 - IV | J22: 7 | K22: 6.8 | L22: 0
A23: 1996-03-01 | B23: 1996 - I | J23: 7 | K23: 7.2 | L23: 0
A24: 1996-06-01 | B24: 1996 - II | J24: 7.9 | K24: 7.6 | L24: 0
A25: 1996-09-01 | B25: 1996 - III | J25: 8.3 | K25: 8.2 | L25: 0
A26: 1996-12-01 | B26: 1996 - IV | J26: 8.7 | K26: 8.5 | L26: 0
A27: 1997-03-01 | B27: 1997 - I | J27: 9.1 | K27: 8.8 | L27: 0
A28: 1997-06-01 | B28: 1997 - II | J28: 9.4 | K28: 9.2 | L28: 0
A29: 1997-09-01 | B29: 1997 - III | J29: 9.7 | K29: 9.6 | L29: 0
A30: 1997-12-01 | B30: 1997 - IV | J30: 10 | K30: 9.8 | L30: 0
A31: 1998-03-01 | B31: 1998 - I | J31: 10.2 | K31: 10.1 | L31: 0
A32: 1998-06-01 | B32: 1998 - II | J32: 10.4 | K32: 10.3 | L32: 0
A33: 1998-09-01 | B33: 1998 - III | J33: 10.7 | K33: 10.5 | L33: 0
A34: 1998-12-01 | B34: 1998 - IV | J34: 10.8 | K34: 10.7 | L34: 0
A35: 1999-03-01 | B35: 1999 - I | J35: 11 | K35: 11 | L35: 0
A36: 1999-06-01 | B36: 1999 - II | J36: 11.4 | K36: 11.1 | L36: 0
A37: 1999-09-01 | B37: 1999 - III | J37: 11.7 | K37: 11.5 | L37: 0
A38: 1999-12-01 | B38: 1999 - IV | J38: 11.6 | K38: 11.5 | L38: 0
A39: 2000-03-01 | B39: 2000 - I | J39: 11.8 | K39: 11.7 | L39: 0
A40: 2000-06-01 | B40: 2000 - II | J40: 12.1 | K40: 11.9 | L40: 0
A41: 2000-09-01 | B41: 2000 - III | J41: 12.3 | K41: 12.2 | L41: 0
A42: 2000-12-01 | B42: 2000 - IV | J42: 12.5 | K42: 12.4 | L42: 0
A43: 2001-03-01 | B43: 2001 - I | J43: 12.8 | K43: 12.6 | L43: 16.70411714
A44: 2001-06-01 | B44: 2001 - II | J44: 13.6 | K44: 13 | L44: 16.87151339 | M44: =L44/L43-1 -> 0.01002125721
A45: 2001-09-01 | B45: 2001 - III | J45: 13.7 | K45: 13.5 | L45: 17.02369181 | M45: 0.009019843656
A46: 2001-12-01 | B46: 2001 - IV | J46: 14.4 | K46: 14.1 | L46: 17.132753 | M46: 0.006406436234
A47: 2002-03-01 | B47: 2002 - I | J47: 15.4 | K47: 14.3 | L47: 17.55124364 | M47: 0.02442635085 | N47: =L47/L43-1 -> 0.05071363498
A48: 2002-06-01 | B48: 2002 - II | J48: 18.7 | K48: 16.6 | L48: 18.36539815 | M48: 0.04638728324 | N48: 0.08854479856
A49: 2002-09-01 | B49: 2002 - III | J49: 27 | K49: 25.1 | L49: 21.01583884 | M49: 0.1443170833 | N49: 0.2345053635
A50: 2002-12-01 | B50: 2002 - IV | J50: 27.4 | K50: 27.1 | L50: 21.57763082 | M50: 0.02673183683 | N50: 0.2594374537
A51: 2003-03-01 | B51: 2003 - I | J51: 28.9 | K51: 28.4 | L51: 22.55537712 | M51: 0.04531295915 | N51: 0.2851156069
A52: 2003-06-01 | B52: 2003 - II | J52: 27 | K52: 29.3 | L52: 22.89143778 | M52: 0.01489935905 | N52: 0.2464438613
A53: 2003-09-01 | B53: 2003 - III | J53: 28.2 | K53: 27.4 | L53: 23.45957053 | M53: 0.02481856961 | N53: 0.1162804731
A54: 2003-12-01 | B54: 2003 - IV | J54: 29.3 | K54: 28.6 | L54: 23.77534073 | M54: 0.01346018704 | N54: 0.1018513077
A55: 2004-03-01 | B55: 2004 - I | J55: 29.8 | K55: 29.5 | L55: 24.44492575 | M55: 0.02816300405 | N55: 0.08377375464
A56: 2004-06-01 | B56: 2004 - II | J56: 29.7 | K56: 29.4 | L56: 25.08661139 | M56: 0.02625025939 | N56: 0.09589496427
A57: 2004-09-01 | B57: 2004 - III | J57: 27.5 | K57: 29.4 | L57: 25.70927473 | M57: 0.02482054393 | N57: 0.09589707552
A58: 2004-12-01 | B58: 2004 - IV | J58: 26.4 | K58: 26.9 | L58: 25.57992308 | M58: -0.005031322449 | N58: 0.07590142949
A59: 2005-03-01 | B59: 2005 - I | J59: 25.525 | K59: 24.7 | L59: 25.78536394 | M59: 0.00803133211 | N59: 0.05483502801
A60: 2005-06-01 | B60: 2005 - II | J60: 24.635 | K60: 25.075 | L60: 26.12522906 | M60: 0.01318054394 | N60: 0.04140127389
A61: 2005-09-01 | B61: 2005 - III | J61: 24.075 | K61: 24.48 | L61: 26.72379749 | M61: 0.02291150915 | N61: 0.03946135254
A62: 2005-12-01 | B62: 2005 - IV | J62: 24.05 | K62: 23.275 | L62: 26.83412684 | M62: 0.004128505671 | N62: 0.04903078677
A63: 2006-03-01 | B63: 2006 - I | J63: 24.3 | K63: 24.175 | L63: 27.46947171 | M63: 0.02367674858 | N63: 0.06531254611
A64: 2006-06-01 | B64: 2006 - II | J64: 23.75 | K64: 23.975 | L64: 27.87528081 | M64: 0.0147730945 | N64: 0.06698703946
A65: 2006-09-01 | B65: 2006 - III | J65: 23.86 | K65: 23.885 | L65: 28.48653077 | M65: 0.02192802875 | N65: 0.06596118256
A66: 2006-12-01 | B66: 2006 - IV | J66: 24.42 | K66: 23.86 | L66: 28.54613398 | M66: 0.002092329609 | N66: 0.06379962193
A67: 2007-03-01 | B67: 2007 - I | J67: 24.12 | K67: 24.275 | L67: 29.49217645 | M67: 0.0331408263 | N67: 0.07363464291
A68: 2007-06-01 | B68: 2007 - II | J68: 23.92 | K68: 23.96 | L68: 30.1199124 | M68: =L68/L67-1 -> 0.02128482972 | N68: 0.08052408899
A69: 2007-09-01 | B69: 2007 - III | H69: 0.05 | J69: 23.05 | K69: 23.72 | L69: 31.0215695 | M69: 0.02993558166 | N69: 0.08899078485
A70: 2007-12-01 | B70: 2007 - IV | H70: 0.0725 | I70: 0.07125 | J70: 21.525 | K70: 21.875 | L70: 30.97337967 | M70: -0.00155342981 | N70: 0.08502887606
A71: 2008-03-01 | B71: 2008 - I | H71: 0.0725 | I71: 0.0725 | J71: 20.35 | K71: 21.05 | L71: 31.85981893 | M71: 0.02861939076 | N71: =L71/L67-1 -> 0.08028035776
A72: 2008-06-01 | B72: 2008 - II | H72: 0.0725 | I72: 0.0725 | J72: 19.45 | K72: 19.965 | L72: 32.65748744 | M72: 0.02503681885 | N72: 0.08424908425
A73: 2008-09-01 | B73: 2008 - III | H73: 0.0775 | I73: 0.075 | J73: 21.2 | K73: 19.175 | L73: 33.33594953 | M73: 0.02077508543 | N73: 0.07460551059
A74: 2008-12-01 | B74: 2008 - IV | H74: 0.0775 | I74: 0.0775 | J74: 24.4 | K74: 23.075 | L74: 33.82038415 | M74: 0.0145318979 | N74: 0.09191778578
A75: 2009-03-01 | B75: 2009 - I | H75: 0.09 | I75: 0.08375 | J75: 24.05 | K75: 22.65 | L75: 34.25789709 | M75: 0.01293636807 | N75: 0.07526967321
A76: 2009-06-01 | B76: 2009 - II | H76: 0.08 | I76: 0.085 | J76: 23.522 | K76: 23.95 | L76: 34.77403554 | M76: 0.01506626194 | N76: 0.06481050016
A77: 2009-09-01 | B77: 2009 - III | H77: 0.08 | I77: 0.08 | J77: 21.45 | K77: 23.25 | L77: 35.63257542 | M77: 0.02468910689 | N77: 0.06889336935
A78: 2009-12-01 | B78: 2009 - IV | H78: 0.0625 | I78: 0.07125 | J78: 19.5 | K78: 20.8 | L78: 35.81645767 | M78: 0.005160509645 | N78: 0.05901983576
A79: 2010-03-01 | B79: 2010 - I | H79: 0.0625 | I79: 0.0625 | J79: 19.45 | K79: 19.5 | L79: 36.69782431 | M79: 0.02460786744 | N79: 0.07122232916
A80: 2010-06-01 | B80: 2010 - II | H80: 0.0625 | I80: 0.0625 | J80: 21.12 | K80: 19.2 | L80: 36.92482378 | M80: 0.006185638261 | N80: 0.06185040662
A81: 2010-09-01 | B81: 2010 - III | H81: 0.0625 | I81: 0.0625 | J81: 20.3 | K81: 20.85 | L81: 37.88481593 | M81: 0.02599855754 | N81: 0.06320734572
A82: 2010-12-01 | B82: 2010 - IV | H82: 0.0625 | I82: 0.0625 | J82: 19.9 | K82: 20.1 | L82: 38.29950211 | M82: 0.01094597309 | N82: 0.06932691286
A83: 2011-03-01 | B83: 2011 - I | H83: 0.075 | I83: 0.06875 | J83: 19.25 | K83: 19.65 | L83: 39.69743393 | M83: 0.0365 | N83: 0.08173807796
A84: 2011-06-01 | B84: 2011 - II | H84: 0.08 | I84: 0.0775 | J84: 18.4 | K84: 18.85 | L84: 40.10340866 | M84: 0.01022672455 | N84: 0.08608260123
A85: 2011-09-01 | B85: 2011 - III | H85: 0.08 | I85: 0.08 | J85: 20.3039 | K85: 18.4 | L85: 40.8387591 | M85: 0.01833635756 | N85: 0.0779716911
A86: 2011-12-01 | B86: 2011 - IV | H86: 0.0875 | I86: 0.08375 | J86: 19.95 | K86: 19.125 | L86: 41.59325929 | M86: 0.01847510082 | N86: 0.086
A87: 2012-03-01 | B87: 2012 - I | H87: 0.0875 | I87: 0.0875 | J87: 19.5 | K87: 19.711 | L87: 42.66564535 | M87: 0.02578268877 | N87: 0.07477086348
A88: 2012-06-01 | B88: 2012 - II | H88: 0.0875 | I88: 0.0875 | J88: 21.63 | K88: 19.75 | L88: 43.31290693 | M88: 0.01517055655 | N88: 0.0800305606
A89: 2012-09-01 | B89: 2012 - III | H89: 0.09 | I89: 0.08875 | J89: 21 | K89: 21.35 | L89: 44.36614324 | M89: 0.02431691573 | N89: 0.08637344087
A90: 2012-12-01 | B90: 2012 - IV | H90: 0.0925 | I90: 0.09125 | J90: 19.18 | K90: 19.75 | L90: 44.70317886 | M90: 0.007596685083 | N90: 0.07476979742
A91: 2013-03-01 | B91: 2013 - I | H91: 0.0925 | I91: 0.0925 | J91: 18.945 | K91: 19.02 | L91: 46.307928 | M91: 0.03589787526 | N91: 0.08536804309
A92: 2013-06-01 | B92: 2013 - II | H92: 0.0925 | I92: 0.0925 | J92: 20.555 | K92: 18.945 | L92: 46.86710073 | M92: 0.01207509718 | N92: 0.08205853745
A93: 2013-09-01 | B93: 2013 - III | H93: 0.14 | I93: 0.1199 | J93: 22.05 | K93: 21.3 | L93: 48.36844121 | M93: 0.03203399526 | N93: 0.09021063536
A94: 2013-12-01 | B94: 2013 - IV | H94: 0.1499 | I94: 0.14935 | J94: 21.3995 | K94: 21.5615 | L94: 48.51397932 | M94: 0.00300894766 | N94: 0.08524674435
A95: 2014-03-01 | B95: 2014 - I | H95: 0.157 | I95: 0.1545 | J95: 22.634 | K95: 22.15 | L95: 50.81577939 | M95: 0.04744611984 | N95: 0.09734513274
A96: 2014-06-01 | B96: 2014 - II | H96: 0.125 | I96: 0.1425 | J96: 22.88 | K96: 23.027 | L96: 51.12217541 | M96: 0.006029544769 | N96: 0.09079022636
A97: 2014-09-01 | B97: 2014 - III | H97: 0.129 | I97: 0.10935 | J97: 24.68 | K97: 23.301 | L97: 52.41286863 | M97: 0.02524722805 | N97: 0.08361707182
A98: 2014-12-01 | B98: 2014 - IV | H98: 0.1397 | I98: 0.1373 | J98: 24.333 | K98: 24.162 | L98: 52.52010724 | M98: 0.002046035806 | N98: 0.0825767743
A99: 2015-03-01 | B99: 2015 - I | H99: 0.1396 | I99: 0.14105 | J99: 25.735 | K99: 24.449 | L99: 54.65338951 | M99: 0.04061839131 | N99: 0.07552004824
A100: 2015-06-01 | B100: 2015 - II | H100: 0.1219 | I100: 0.12615 | J100: 27.0505 | K100: 26.358 | L100: 55.48065875 | M100: =L100/L99-1 -> 0.01513665032 | N100: 0.08525621816
A101: 2015-09-01 | B101: 2015 - III | H101: 0.135 | I101: 0.1293 | J101: 29.097 | K101: 28.478 | L101: 57.20413635 | M101: 0.03106447605 | N101: 0.09141395689
A102: 2015-12-01 | B102: 2015 - IV | H102: 0.1227 | I102: 0.1226 | J102: 29.873 | K102: 29.365 | L102: 57.47606281 | M102: 0.004753615426 | N102: 0.0943630132
A103: 2016-03-01 | B103: 2016 - I | C103: 96.66103323 | H103: 0.153 | I103: 0.1426 | J103: 31.76 | K103: 31.008 | L103: 60.44427422 | M103: 0.0516425668 | N103: =L103/L99-1 -> 0.1059565522
A104: 2016-06-01 | B104: 2016 - II | C104: 101.0065001 | H104: 0.1146 | I104: 0.1252 | J104: 30.5 | K104: 31.518 | L104: 61.55112984 | M104: 0.01831200101 | N104: 0.1094159879
A105: 2016-09-01 | B105: 2016 - III | C105: 96.98776814 | H105: 0.1195 | I105: 0.11245 | J105: 28.365 | K105: 29.752 | L105: 62.29797013 | M105: 0.0121336569 | N105: 0.08904659882
A106: 2016-12-01 | B106: 2016 - IV | C106: 105.3446985 | G106: 0.01086219446 | H106: 0.1 | I106: 0.10745 | J106: 29.261 | K106: 28.245 | L106: 62.13328227 | M106: -0.002643550965 | N106: 0.0810288532
A107: 2017-03-01 | B107: 2017 - I | C107: 100.885138 | D107: =AVERAGE(OFFSET($C$1,MATCH(EDATE(A107,0),$A$1:$A$300,0)-1,,IF(MONTH($A107)=3,-1,IF(MONTH($A107)=6,-2,IF(MONTH($A107)=9,-3,-4)))))/AVERAGE(OFFSET($C$1,MATCH(EDATE(A107,-12),$A$1:$A$300,0)-1,,IF(MONTH($A107)=3,-1,IF(MONTH($A107)=6,-2,IF(MONTH($A107)=9,-3,-4)))))-1 -> 0.04370018199 | F107: =C107/C103-1 -> 0.04370018199 | G107: 0.01874152119 | H107: 0.1163 | I107: 0.11815 | J107: 28.52 | K107: 28.165 | L107: 64.5001915 | M107: 0.03809406398 | N107: 0.0671017615
A108: 2017-06-01 | B108: 2017 - II | C108: 101.9947506 | D108: 0.02636930378 | F108: 0.009784028642 | G108: -0.015438212 | H108: 0.0805 | I108: 0.09525 | J108: 28.525 | K108: 28.125 | L108: 64.82190732 | M108: 0.004987827326 | N108: 0.05313919482
A109: 2017-09-01 | B109: 2017 - III | C109: 98.31839982 | D109: 0.02220556317 | F109: 0.01371958239 | G109: 0.0006539144272 | H109: 0.0805 | I109: 0.081 | J109: 28.99 | K109: 28.24 | L109: 65.88280352 | M109: 0.01636632201 | N109: 0.05754334194
A110: 2017-12-01 | B110: 2017 - IV | C110: 105.7632176 | D110: 0.01740376489 | E110: =AVERAGE(C107:C110)/AVERAGE(C103:C106)-1 -> 0.01740376489 | F110: 0.003972853429 | G110: 0.0004319562108 | H110: 0.0856 | I110: 0.08155 | J110: 28.7 | K110: 29.15 | L110: 66.20451934 | M110: 0.004883153122 | N110: 0.06552425569
A111: 2018-03-01 | B111: 2018 - I | C111: 100.5814445 | D111: -0.003010289174 | E111: 0.006020689379 | F111: -0.003010289174 | G111: 0.01410294277 | H111: 0.0814 | I111: 0.0842 | J111: 28.335 | K111: 28.37 | L111: 68.78973573 | M111: 0.03904894134 | N111: 0.06650436435
A112: 2018-06-01 | B112: 2018 - II | C112: 102.0191349 | D112: -0.001376721648 | E112: 0.003627336555 | F112: 0.0002390741094 | G112: -0.01520127587 | H112: 0.077 | I112: 0.07825 | J112: 31.485 | K112: 28.6 | L112: 70.08042895 | M112: 0.01876287512 | N112: 0.0811225997
A113: 2018-09-01 | B113: 2018 - III | C113: 98.35270398 | D113: -0.0008134341521 | E113: 0.0004268037529 | F113: 0.0003489088541 | G113: -0.0009974482141 | H113: 0.086 | I113: 0.08125 | J113: 33.35 | K113: 30.555 | L113: 71.32516277 | M113: 0.01776150399 | N113: 0.08260667364
A114: 2018-12-01 | B114: 2018 - IV | C114: 106.6777486 | D114: 0.001645182671 | E114: 0.001645182671 | F114: 0.008646966426 | G114: 0.01045406203 | H114: 0.0825 | I114: 0.0825 | J114: 32.4 | K114: 32.8 | L114: 71.47453083 | M114: 0.00209418461 | N114: 0.07960199005
A115: 2019-03-01 | B115: 2019 - I | C115: 100.7368324 | D115: 0.001544895486 | E115: 0.002775324218 | F115: 0.001544895486 | G115: 0.009717792797 | H115: 0.0772 | I115: 0.0796 | J115: 33.47 | K115: 32.485 | L115: 74.14400613 | M115: 0.03734862287 | N115: 0.07783530984
A116: 2019-06-01 | B116: 2019 - II | C116: 104.4457663 | D116: 0.01274438227 | E116: 0.008682097256 | F116: 0.02378604186 | G116: 0.004090392263 | H116: 0.0815 | I116: 0.07925 | J116: 35.18 | K116: 35.075 | L116: 75.23554194 | M116: 0.01472183481 | N116: 0.07355995191
A117: 2019-09-01 | B117: 2019 - III | C117: 100.2322259 | D117: 0.01482469666 | E117: 0.01321822968 | F117: 0.01911001757 | G117: -0.008238517506 | H117: 0.0728 | I117: 0.07325 | J117: 36.96 | K117: 34.37 | L117: 76.87476063 | M117: 0.02178782325 | N117: 0.07780701283
